Workbook

Sheet Constant mix
E2: Histo? | F2: FALSE
AA4: Allocation opptimale | AB4: =TRANSPOSE('Volatilite Portfeuille'!AQ4:AQ13) -> 0.1482771067 | AC4: 0.07732856374 | AD4: -0.071391698 | AE4: 0.1156374927 | AF4: 0.05539189721 | AG4: -0.5147633916 | AH4: 0.3644872038 | AI4: 0.2619019989 | AJ4: -0.6706845986 | AK4: 0.3410356
AA7: vol | AB7: 0.15 | AC7: 0.15 | AD7: 0.15 | AE7: 0.15 | AF7: 0.15 | AG7: 0.15 | AH7: 0.15 | AI7: 0.15 | AJ7: 0.15 | AK7: 0.15
AA8: Tendance vs ASR | AB8: =0 -> 0 | AC8: =0 -> 0 | AD8: =0 -> 0 | AE8: =0 -> 0 | AF8: =0 -> 0 | AG8: =0 -> 0 | AH8: =0 -> 0 | AI8: =0 -> 0 | AJ8: =0 -> 0 | AK8: =0 -> 0
C10: Tracks | E10: Tracks | P10: returns histo | AA10: returns simules
C11: Taux court | E11: Actif sans risque | F11: US BONDS 10Y | G11: GERMAN BONDS 10Y | H11: S&P 500 | I11: EUROSTOXX 50 | J11: NIKKEI | K11: MSCI Emerging | L11: Commodities (CRB) | M11: Iboxx HY US | N11: Iboxx HY EUR | O11: Emerging Debt | P11: Actif sans risque | Q11: US BONDS 10Y | R11: GERMAN BONDS 10Y | S11: S&P 500 | T11: EUROSTOXX 50 | U11: NIKKEI | V11: MSCI Emerging | W11: Commodities (CRB) | X11: Iboxx HY US | Y11: Iboxx HY EUR | Z11: Emerging Debt | AA11: Actif sans risque | AB11: US BONDS 10Y | AC11: GERMAN BONDS 10Y | AD11: S&P 500 | AE11: EUROSTOXX 50 | AF11: NIKKEI | AG11: MSCI Emerging | AH11: Commodities (CRB) | AI11: Iboxx HY US | AJ11: Iboxx HY EUR | AK11: Emerging Debt
C12: EONIA Index | D12: Periode (annees) | E12: Eonia capitalise | F12: TY1 Comdty | G12: RX1 Comdty | H12: ES1 Index | I12: VG1 Index | J12: NH1 Index | K12: MES1 Index | L12: DN1 Index | M12: HYG US Equity | N12: IHYG LN Equity | O12: EMB US Equity | P12: Eonia capitalise | Q12: TY1 Comdty | R12: RX1 Comdty | S12: ES1 Index | T12: VG1 Index | U12: NH1 Index | V12: MES1 Index | W12: DN1 Index | X12: HYG US Equity | Y12: IHYG LN Equity | Z12: EMB US Equity | AA12: Eonia capitalise | AB12: TY1 Comdty | AC12: RX1 Comdty | AD12: ES1 Index | AE12: VG1 Index | AF12: NH1 Index | AG12: MES1 Index | AH12: DN1 Index | AI12: HYG US Equity | AJ12: IHYG LN Equity | AK12: EMB US Equity
B13: 1998-12-31 | C13: 0.032 | E13: 1 | F13: 1 | G13: 1 | H13: 1 | I13: 1 | J13: 1 | K13: 1 | L13: 1 | M13: 1 | N13: 1 | O13: 1
B14: 1999-01-01 | C14: 0.032 | D14: =(B14-B13)/365.25 -> 0.002737850787 | E14: =IF($F$2,E13*(1+P14),E13*(1+AA14)) -> 1.000087611 | F14: =IF($F$2,F13*(1+Q14),F13*(1+AB14)) -> 0.9941773406 | G14: 1.005071931 | H14: 1.005316327 | I14: 0.9882177715 | J14: 0.9994081522 | K14: 0.9969386804 | L14: 0.9955937649 | M14: 0.9957092301 | N14: 0.9891194164 | O14: 1.016385313 | P14: 8.761122519e-05 | Q14: 8.761122519e-05 | R14: 0.0001190335302 | S14: 8.761122519e-05 | T14: -2.674461937e-06 | U14: 7.53401502e-05 | V14: -5.306943227e-05 | W14: -5.306943227e-05 | X14: -5.306943227e-05 | Y14: -2.674461937e-06 | Z14: -5.306943227e-05 | AA14: 8.761122519e-05 | AB14: =NORMINV(RAND(),0,1)*AB$7*SQRT($D14)+$AB$8*($C14+AB$8) -> -0.005822659421 | AC14: =NORMINV(RAND(),0,1)*AC$7*SQRT($D14)+$AB$8*($C14+AC$8) -> 0.005071930869 | AD14: 0.005316326693 | AE14: -0.01178222847 | AF14: -0.0005918477863 | AG14: -0.003061319645 | AH14: -0.004406235088 | AI14: -0.004290769914 | AJ14: -0.0108805836 | AK14: 0.01638531267
B15: 1999-01-04 | C15: 0.032 | D15: =(B15-B14)/365.25 -> 0.008213552361 | E15: =IF($F$2,E14*(1+P15),E14*(1+AA15)) -> 1.000350468 | F15: =IF($F$2,F14*(1+Q15),F14*(1+AB15)) -> 0.9844808927 | G15: =IF($F$2,G14*(1+R15),G14*(1+AC15)) -> 1.01015895 | H15: =IF($F$2,H14*(1+S15),H14*(1+AD15)) -> 0.9960755584 | I15: =IF($F$2,I14*(1+T15),I14*(1+AE15)) -> 1.018775121 | J15: =IF($F$2,J14*(1+U15),J14*(1+AF15)) -> 0.9960271914 | K15: =IF($F$2,K14*(1+V15),K14*(1+AG15)) -> 0.9948803432 | L15: =IF($F$2,L14*(1+W15),L14*(1+AH15)) -> 1.00777782 | M15: =IF($F$2,M14*(1+X15),M14*(1+AI15)) -> 0.9923543619 | N15: =IF($F$2,N14*(1+Y15),N14*(1+AJ15)) -> 1.022221858 | O15: =IF($F$2,O14*(1+Z15),O14*(1+AK15)) -> 0.9911829354 | P15: 0.0002628336756 | Q15: -0.001342724645 | R15: 0.009390027636 | S15: -0.003352386632 | T15: 0.06017352941 | U15: -0.02008453913 | V15: 0.01569915926 | W15: 0.01219441624 | X15: 0.0007409543087 | Y15: -8.070841889e-06 | Z15: 0.01573323246 | AA15: 0.0002628336756 | AB15: =NORMINV(RAND(),0,1)*AB$7*SQRT($D15)+$AB$8*($C15+AB$8) -> -0.003216876985 | AC15: 0.005686569282 | AD15: -0.009570525538 | AE15: 0.01209816461 | AF15: -0.001623483152 | AG15: -0.005757227337 | AH15: 0.01119424567 | AI15: -0.007409133593 | AJ15: 0.01423097446 | AK15: -0.01462227031
B16: 1999-01-05 | C16: 0.032 | D16: 0.002737850787 | E16: 1.00043811 | F16: 0.9785797652 | G16: 1.023155818 | H16: 0.9928096966 | I16: 1.020006191 | J16: 0.999326692 | K16: 0.9991757868 | L16: 1.013280616 | M16: 0.9947819802 | N16: 1.040416015 | O16: 0.9889018841 | P16: 8.761122519e-05 | Q16: -0.002898410581 | R16: -0.000254572036 | S16: 0.009955519054 | T16: 0.01257116412 | U16: -0.01550320245 | V16: 0.009749919158 | W16: -0.006960950424 | X16: 0.0003467186921 | Y16: -0.002896373211 | Z16: 0.01355344935 | AA16: 8.761122519e-05 | AB16: -0.005994151453 | AC16: 0.01286616122 | AD16: -0.003278729002 | AE16: 0.001208382453 | AF16: 0.00331266114 | AG16: 0.004317548039 | AH16: 0.005460326424 | AI16: 0.00244632205 | AJ16: 0.01779863755 | AK16: -0.00230134237
B17: 1999-01-06 | C17: 0.0321 | D17: 0.002737850787 | E17: 1.000525759 | F17: 0.9738873322 | G17: 1.028351893 | H17: 0.9975117381 | I17: 1.016053945 | J17: 0.9988549943 | K17: 1.007102606 | L17: 1.010839435 | M17: 1.003711793 | N17: 1.038931848 | O17: 1.003563348 | P17: 8.761122519e-05 | Q17: 0.002161047876 | R17: 0.001913213254 | S17: 0.02163410278 | T17: 0.02748683024 | U17: 0.01002559073 | V17: 0.02300182603 | W17: 0.02336478791 | X17: 0.002244427663 | Y17: 0.0005161686688 | Z17: 0.002605494558 | AA17: 8.761122519e-05 | AB17: -0.004795146149 | AC17: 0.005078479206 | AD17: 0.004736095441 | AE17: -0.003874728049 | AF17: -0.0004720155084 | AG17: 0.007933358238 | AH17: -0.002409185649 | AI17: 0.008976653593 | AJ17: -0.001426512355 | AK17: 0.01482600428
B18: 1999-01-07 | C18: 0.0321 | D18: 0.002737850787 | E18: 1.000613691 | F18: 0.9746805905 | G18: 1.032303791 | H18: 1.002370691 | I18: 1.006646411 | J18: 0.9980956067 | K18: 1.008262307 | L18: 1.007907768 | M18: 1.0027334 | N18: 1.047191955 | O18: 0.9957270577 | P18: 8.788501027e-05 | Q18: -0.002900883382 | R18: -0.001164929787 | S18: -0.001866486889 | T18: -0.01591327015 | U18: 0.01031174064 | V18: 0.01016053578 | W18: 0.002847159429 | X18: 0.0003466118008 | Y18: 0.01243075482 | Z18: -0.01939170725 | AA18: 8.788501027e-05 | AB18: 0.0008145278223 | AC18: 0.003842943226 | AD18: 0.004871073646 | AE18: -0.009258891807 | AF18: -0.0007602580584 | AG18: 0.001151521751 | AH18: -0.002900229856 | AI18: -0.00097477541 | AJ18: 0.007950575788 | AK18: -0.007808465768
B19: 1999-01-08 | C19: 0.0321 | D19: 0.002737850787 | E19: 1.00070163 | F19: 0.9950656476 | G19: 1.019793394 | H19: 1.005976042 | I19: 1.01997521 | J19: 0.9899315004 | K19: 0.9980235501 | L19: 0.9996936897 | M19: 0.9996855593 | N19: 1.049703245 | O19: 0.9893475978 | P19: 8.788501027e-05 | Q19: -0.00567697483 | R19: 0.001798411609 | S19: 0.008113741289 | T19: -0.003977448089 | U19: -0.01039442698 | V19: -0.006037004476 | W19: 0.00314968598 | X19: -0.0009480648133 | Y19: 0.01412010568 | Z19: -0.008397696651 | AA19: 8.788501027e-05 | AB19: 0.02091460253 | AC19: -0.01211891075 | AD19: 0.003596823456 | AE19: 0.013240795 | AF19: -0.008179683622 | AG19: -0.01015485426 | AH19: -0.008149632791 | AI19: -0.003039532302 | AJ19: 0.002398118038 | AK19: -0.006406835915
B20: 1999-01-11 | C20: 0.032 | D20: 0.008213552361 | E20: 1.00096547 | F20: 0.9787509762 | G20: 1.025800073 | H20: 0.9911500048 | I20: 1.038559346 | J20: 0.97791596 | K20: 1.017303903 | L20: 1.0065129 | M20: 0.9919737108 | N20: 1.067398613 | O20: 0.9568118699 | P20: 0.0002636550308 | Q20: -0.001824093785 | R20: -0.006909550463 | S20: -0.0108056886 | T20: -0.0283148491 | U20: -0.0007691518592 | V20: -0.01336014351 | W20: 0.01011551764 | X20: 0.0002457474761 | Y20: 0.03471331142 | Z20: -0.01258754136 | AA20: 0.0002636550308 | AB20: -0.01639557299 | AC20: 0.005890094448 | AD20: -0.01473796218 | AE20: 0.01822018418 | AF20: -0.0121377494 | AG20: 0.01931853467 | AH20: 0.006821299747 | AI20: -0.00771427425 | AJ20: 0.01685749626 | AK20: -0.03288604322
B21: 1999-01-12 | C21: 0.0319 | D21: 0.002737850787 | E21: 1.001053165 | F21: 0.9821670031 | G21: 1.022574715 | H21: 0.98505671 | I21: 1.034472207 | J21: 0.9748138878 | K21: 1.013521128 | L21: 1.011951087 | M21: 0.9995378022 | N21: 1.078241748 | O21: 0.9493205597 | P21: 8.761122519e-05 | Q21: 0.003341440311 | R21: 0.006623382131 | S21: -0.01777134314 | T21: -0.01223819545 | U21: -0.001271129707 | V21: -0.02410256256 | W21: -0.01475645928 | X21: 0.00134377586 | Y21: -1.73243497e-06 | Z21: -0.01558404697 | AA21: 8.761122519e-05 | AB21: 0.003490190038 | AC21: -0.003144236816 | AD21: -0.006147701939 | AE21: -0.003935392725 | AF21: -0.003172125472 | AG21: -0.003718430936 | AH21: 0.005402998217 | AI21: 0.007625294226 | AJ21: 0.01015846787 | AK21: -0.00782944956
B22: 1999-01-13 | C22: 0.0318 | D22: 0.002737850787 | E22: 1.001140595 | F22: 0.9826225847 | G22: 1.016280796 | H22: 0.97570524 | I22: 1.039345452 | J22: 0.9891357524 | K22: 1.019067047 | L22: 1.013859218 | M22: 1.00010778 | N22: 1.070627633 | O22: 0.9523641548 | P22: 8.733744011e-05 | Q22: 0.004257263795 | R22: 0.002479618348 | S22: -0.009504509171 | T22: -0.03252982795 | U22: 0.001170127102 | V22: -0.05334370092 | W22: -0.01943624576 | X22: -0.0003501962708 | Y22: -0.01180195517 | Z22: -0.05523841451 | AA22: 8.733744011e-05 | AB22: 0.0004638534798 | AC22: -0.006154971788 | AD22: -0.009493331598 | AE22: 0.004710851196 | AF22: 0.01469189632 | AG22: 0.005471932469 | AH22: 0.00188559531 | AI22: 0.0005702412389 | AJ22: -0.007061602807 | AK22: 0.003206077329
B23: 1999-01-14 | C23: 0.0316 | D23: 0.002737850787 | E23: 1.001227758 | F23: 0.9819185677 | G23: 1.018589808 | H23: 0.9908517381 | I23: 1.033086978 | J23: 0.9933523009 | K23: 1.0290431 | L23: 1.022028172 | M23: 0.9954748134 | N23: 1.057386943 | O23: 0.9462661098 | P23: 8.706365503e-05 | Q23: 0.004931776074 | R23: 0.002587281314 | S23: -0.01606126421 | T23: -0.01193371105 | U23: 0.01224363163 | V23: -0.01577758244 | W23: -0.005966859753 | X23: -0.0004500404173 | Y23: 0.001774381703 | Z23: -0.01715734203 | AA23: 8.706365503e-05 | AB23: -0.0007164673543 | AC23: 0.00227202151 | AD23: 0.01552364125 | AE23: -0.006021552825 | AF23: 0.004262861226 | AG23: 0.009789398066 | AH23: 0.00805728706 | AI23: -0.004632467142 | AJ23: -0.01236722172 | AK23: -0.006403060165
B24: 1999-01-15 | C24: 0.031 | D24: 0.002737850787 | E24: 1.00131438 | F24: 0.9878200473 | G24: 1.022625307 | H24: 0.9791668308 | I24: 1.025899167 | J24: 0.9981905989 | K24: 1.028324203 | L24: 1.021597647 | M24: 0.9871985187 | N24: 1.069167301 | O24: 0.9514707897 | P24: 8.651608487e-05 | Q24: -0.004275661097 | R24: -0.0009337490075 | S24: 0.02429095867 | T24: 0.03747782218 | U24: 7.460088744e-05 | V24: 0.03610712503 | W24: -0.003670905466 | X24: -0.0007495174245 | Y24: 0.01014449832 | Z24: 0.05220721 | AA24: 8.651608487e-05 | AB24: 0.006010151784 | AC24: 0.003961848903 | AD24: -0.01179279086 | AE24: -0.006957605192 | AF24: 0.004870676861 | AG24: -0.0006986075269 | AH24: -0.0004212459078 | AI24: -0.008313916745 | AJ24: 0.01114100938 | AK24: 0.005500228617
B25: 1999-01-18 | C25: 0.0302 | D25: 0.008213552361 | E25: 1.001569335 | F25: 0.9676868801 | G25: 1.038223072 | H25: 0.9676524698 | I25: 1.041309321 | J25: 0.9898480899 | K25: 1.024349948 | L25: 0.9958407465 | M25: 0.9774704241 | N25: 1.080772468 | O25: 0.9434674369 | P25: 0.0002546201232 | Q25: 0.0002546201232 | R25: 0.001957084585 | S25: 0.007065362894 | T25: 0.01570451734 | U25: 0.005691755938 | V25: 0.01019672778 | W25: -0.0001586100667 | X25: -0.0001586100667 | Y25: -7.907537931e-06 | Z25: -0.0001586100667 | AA25: 0.0002546201232 | AB25: -0.02038141186 | AC25: 0.01525266882 | AD25: -0.0117593454 | AE25: 0.01502111965 | AF25: -0.008357631312 | AG25: -0.00386478785 | AH25: -0.02521237278 | AI25: -0.009854243537 | AJ25: 0.01085439713 | AK25: -0.008411559148
B26: 1999-01-19 | C26: 0.0298 | D26: 0.002737850787 | E26: 1.001652148 | F26: 0.9735833589 | G26: 1.041196987 | H26: 0.9747369748 | I26: 1.041573326 | J26: 0.9929007879 | K26: 1.013565823 | L26: 0.9980666136 | M26: 0.9813686273 | N26: 1.08119522 | O26: 0.94992126 | P26: 8.268309377e-05 | Q26: -0.0008396896829 | R26: 0.0007623949309 | S26: 8.268309377e-05 | T26: 8.268309377e-05 | U26: -0.0008485046578 | V26: 0.00117824289 | W26: -0.0117005216 | X26: -0.0001546266357 | Y26: -0.00936587831 | Z26: 0.02086567044 | AA26: 8.268309377e-05 | AB26: 0.006093374807 | AC26: 0.002864428029 | AD26: 0.00732133202 | AE26: 0.0002535319708 | AF26: 0.003084006519 | AG26: -0.01052777497 | AH26: 0.002235163748 | AI26: 0.003988052347 | AJ26: 0.0003911572652 | AK26: 0.006840536107
B27: 1999-01-20 | C27: 0.0301 | D27: 0.002737850787 | E27: 1.001733871 | F27: 0.9734734335 | G27: 1.039747811 | H27: 0.9785438592 | I27: 1.045428556 | J27: 0.9929085992 | K27: 1.020192572 | L27: 1.002179596 | M27: 0.9765770998 | N27: 1.074105394 | O27: 0.9556110097 | P27: 8.158795346e-05 | Q27: -0.002226470177 | R27: -0.003427867472 | S27: 0.009031851729 | T27: 0.02459022358 | U27: 0.01427493036 | V27: 0.01742712054 | W27: -0.009482324727 | X27: 0.001937258494 | Y27: 0.0009806976572 | Z27: 0.00628856173 | AA27: 8.158795346e-05 | AB27: -0.0001129080553 | AC27: -0.001391836901 | AD27: 0.003905550389 | AE27: 0.003701352185 | AF27: 7.867122987e-06 | AG27: 0.006538055153 | AH27: 0.004120949329 | AI27: -0.004882495075 | AJ27: -0.006557396359 | AK27: 0.005989706677
B28: 1999-01-21 | C28: 0.0303 | D28: 0.002737850787 | E28: 1.001816423 | F28: 0.9674519342 | G28: 1.035379477 | H28: 0.985630118 | I28: 1.040478673 | J28: 0.97873639 | K28: 1.020290293 | L28: 1.009505622 | M28: 0.9789145604 | N28: 1.070490653 | O28: 0.9542329829 | P28: 8.240930869e-05 | Q28: 0.003783847789 | R28: 0.003945047264 | S28: -0.027711165 | T28: -0.01229124495 | U28: 0.0136951612 | V28: -0.0206639034 | W28: 0.01563939741 | X28: 0.002133296837 | Y28: 9.555736735e-05 | Z28: -0.02730201654 | AA28: 8.240930869e-05 | AB28: -0.006185581531 | AC28: -0.004201340245 | AD28: 0.00724163637 | AE28: -0.004734788369 | AF28: -0.0142734278 | AG28: 9.578734118e-05 | AH28: 0.007310093081 | AI28: 0.002393523911 | AJ28: -0.003365350169 | AK28: -0.001442037421
B29: 1999-01-22 | C29: 0.0307 | D29: 0.002737850787 | E29: 1.00189953 | F29: 0.9672077272 | G29: 1.040671202 | H29: 0.968851132 | I29: 1.02891398 | J29: 0.9965511715 | K29: 1.016361608 | L29: 1.006213471 | M29: 0.9911946221 | N29: 1.058427335 | O29: 0.9459069257 | P29: 8.295687885e-05 | Q29: 0.004692696251 | R29: 0.001893676276 | S29: -0.0003243215732 | T29: -0.04724758837 | U29: -0.006832122679 | V29: -0.02098160641 | W29: -0.0003206816096 | X29: 0.0008390175749 | Y29: 0.001374201824 | Z29: -0.003521276376 | AA29: 8.295687885e-05 | AB29: -0.00025242292 | AC29: 0.005110904212 | AD29: -0.01702361326 | AE29: -0.01111478192 | AF29: 0.01820181789 | AG29: -0.003850556094 | AH29: -0.003261151102 | AI29: 0.01254456942 | AJ29: -0.01126896191 | AK29: -0.008725392358
B30: 1999-01-25 | C30: 0.0314 | D30: 0.008213552361 | E30: 1.002152165 | F30: 0.9801395145 | G30: 1.055411276 | H30: 0.9388451888 | I30: 1.03886943 | J30: 0.9968861726 | K30: 1.030079308 | L30: 0.9819526436 | M30: 0.9938395336 | N30: 1.046678896 | O30: 0.9511190767 | P30: 0.0002521560575 | Q30: 0.0002521560575 | R30: 2.61869722e-05 | S30: 0.009181702209 | T30: 0.004928882941 | U30: 0.001510031118 | V30: -0.01365070539 | W30: -0.01256431893 | X30: -0.0003579529079 | Y30: 0.000682077981 | Z30: -0.008517941916 | AA30: 0.0002521560575 | AB30: 0.01337022742 | AC30: 0.01416400648 | AD30: -0.03097064375 | AE30: 0.009675687382 | AF30: 0.0003361604962 | AG30: 0.01349686964 | AH30: -0.02411101463 | AI30: 0.002668407856 | AJ30: -0.01109990101 | AK30: 0.005510215572
B31: 1999-01-26 | C31: 0.0322 | D31: 0.002737850787 | E31: 1.002238319 | F31: 0.9810990844 | G31: 1.049046426 | H31: 0.9393004249 | I31: 1.053725977 | J31: 0.9859307874 | K31: 1.04018181 | L31: 0.9878857982 | M31: 1.001916811 | N31: 1.03952924 | O31: 0.9541934487 | P31: 8.596851472e-05 | Q31: -0.001520042446 | R31: -0.000140014079 | S31: 0.01777701227 | T31: 0.006485478365 | U31: 0.0103099444 | V31: 0.01346780325 | W31: -0.00996754322 | X31: 0.0004446960128 | Y31: 0.0144250961 | Z31: 0.01325897536 | AA31: 8.596851472e-05 | AB31: 0.0009790136389 | AC31: -0.006030681836 | AD31: 0.0004848894935 | AE31: 0.01430068774 | AF31: -0.01098960499 | AG31: 0.009807498292 | AH31: 0.006042200355 | AI31: 0.008127345126 | AJ31: -0.006830801915 | AK31: 0.003232373312
B32: 1999-01-27 | C32: 0.0313 | D32: 0.002737850787 | E32: 1.002326675 | F32: 0.9854162115 | G32: 1.034528238 | H32: 0.9500224575 | I32: 1.050367206 | J32: 0.9936230424 | K32: 1.02962792 | L32: 0.9909612579 | M32: 0.9916328057 | N32: 1.034963264 | O32: 0.9704596978 | P32: 8.815879535e-05 | Q32: 0.001007357471 | R32: 0.0005402271234 | S32: -0.01295126316 | T32: 0.006157954832 | U32: 0.005026300037 | V32: 0.01533410167 | W32: 0.006128399873 | X32: 0.00123972399 | Y32: 0.001258692482 | Z32: 0.004424606501 | AA32: 8.815879535e-05 | AB32: 0.00440029672 | AC32: -0.0138394138 | AD32: 0.01141491295 | AE32: -0.003187518259 | AF32: 0.007802023325 | AG32: -0.01014619674 | AH32: 0.003113173291 | AI32: -0.01026433008 | AJ32: -0.004392349655 | AK32: 0.01704711886
B33: 1999-01-28 | C33: 0.0312 | D33: 0.002737850787 | E33: 1.002412569 | F33: 0.9972397207 | G33: 1.042707744 | H33: 0.9542128546 | I33: 1.0422501 | J33: 0.9977037068 | K33: 1.022760158 | L33: 1.002097876 | M33: 0.9815806605 | N33: 1.018536774 | O33: 0.974806388 | P33: 8.569472964e-05 | Q33: 0.0007744589822 | R33: -0.00014023675 | S33: 0.01349484621 | T33: 0.01847248097 | U33: -0.004542993078 | V33: 0.002503584412 | W33: 0.009293174693 | X33: 0.001433606714 | Y33: 0.01130305386 | Z33: 0.01634196616 | AA33: 8.569472964e-05 | AB33: 0.01199849265 | AC33: 0.007906507384 | AD33: 0.00441084004 | AE33: -0.007727874789 | AF33: 0.004106853634 | AG33: -0.006670139829 | AH33: 0.01123819697 | AI33: -0.01013696311 | AJ33: -0.01587156823 | AK33: 0.004479001292
B34: 1999-01-29 | C34: 0.0316 | D34: 0.002737850787 | E34: 1.002498196 | F34: 0.9945726543 | G34: 1.04682823 | H34: 0.9526157868 | I34: 1.037878807 | J34: 0.9979146298 | K34: 1.036933899 | L34: 0.9981644659 | M34: 0.9779919963 | N34: 1.017582565 | O34: 0.9787193451 | P34: 8.542094456e-05 | Q34: 0.0007737109796 | R34: -0.001044491405 | S34: 0.01253063143 | T34: 0.01136969543 | U34: 0.01361695021 | V34: -0.001380445472 | W34: 0.006142708915 | X34: 0.001332286168 | Y34: 0.005157817999 | Z34: 0.001509853683 | AA34: 8.542094456e-05 | AB34: -0.002674448643 | AC34: 0.003951717348 | AD34: -0.001673701862 | AE34: -0.004194091624 | AF34: 0.0002114084634 | AG34: 0.01385832293 | AH34: -0.00392517526 | AI34: -0.003656005405 | AJ34: -0.0009368430008 | AK34: 0.004014086398
B35: 1999-02-01 | C35: 0.0317 | D35: 0.008213552361 | E35: 1.002758393 | F35: 0.9851609988 | G35: 1.034521289 | H35: 0.9600498112 | I35: 1.060601178 | J35: 1.02526705 | K35: 1.023921827 | L35: 1.010531489 | M35: 0.9968173654 | N35: 1.005050792 | O35: 0.9874699429 | P35: 0.0002595482546 | Q35: -0.00524394307 | R35: -0.004379139844 | S35: -0.005399444034 | T35: 0.01504696421 | U35: -0.005009378664 | V35: 0.01943008953 | W35: -0.01084428528 | X35: -0.002521962222 | Y35: 0.0001897639122 | Z35: 0.0160244319 | AA35: 0.0002595482546 | AB35: -0.009463014503 | AC35: -0.01175640862 | AD35: 0.007803801412 | AE35: 0.02189308697 | AF35: 0.02740957968 | AG35: -0.01254860269 | AH35: 0.01238976483 | AI35: 0.01924900117 | AJ35: -0.01231523973 | AK35: 0.008940865234
B36: 1999-02-02 | C36: 0.0318 | D36: 0.002737850787 | E36: 1.002845422 | F36: 0.9926838866 | G36: 1.025170134 | H36: 0.9628030527 | I36: 1.068243923 | J36: 1.046260529 | K36: 1.013343597 | L36: 1.009013827 | M36: 0.9932965332 | N36: 1.01347215 | O36: 0.9701817286 | P36: 8.678986995e-05 | Q36: -0.003371324894 | R36: 0.00156419081 | S36: -0.006972386003 | T36: -0.02355424182 | U36: -0.00496331012 | V36: 0.001184405969 | W36: 0.004566213747 | X36: 0.0009391961363 | Y36: 9.502315572e-05 | Z36: 0.0004190750069 | AA36: 8.678986995e-05 | AB36: 0.007636201415 | AC36: -0.009039113905 | AD36: 0.00286781113 | AE36: 0.00720604913 | AF36: 0.02047610827 | AG36: -0.01033109167 | AH36: -0.001501845091 | AI36: -0.003532073472 | AJ36: 0.008379037158 | AK36: -0.01750758527
B37: 1999-02-03 | C37: 0.0318 | D37: 0.002737850787 | E37: 1.002932733 | F37: 0.9914985552 | G37: 1.028538864 | H37: 0.9672376501 | I37: 1.050990604 | J37: 1.046236619 | K37: 1.030576649 | L37: 1.017792824 | M37: 1.001714221 | N37: 1.013357255 | O37: 0.9675850622 | P37: 8.706365503e-05 | Q37: -0.002457687143 | R37: -0.003771209369 | S37: 0.01055961698 | T37: -0.01567981363 | U37: -0.0148105104 | V37: -0.004009978981 | W37: -0.001201781689 | X37: -0.0005444453302 | Y37: 0.0001897699603 | Z37: -0.00319758306 | AA37: 8.706365503e-05 | AB37: -0.001194067308 | AC37: 0.003286020388 | AD37: 0.004605923686 | AE37: -0.0161511043 | AF37: -2.285372645e-05 | AG37: 0.01700612882 | AH37: 0.008700571048 | AI37: 0.008474496131 | AJ37: -0.0001133671885 | AK37: -0.00267647431
B38: 1999-02-04 | C38: 0.0317 | D38: 0.002737850787 | E38: 1.003020052 | F38: 0.9996672619 | G38: 1.022826118 | H38: 0.979802805 | I38: 1.062635962 | J38: 1.056795056 | K38: 1.030529652 | L38: 1.010726537 | M38: 0.994439425 | N38: 1.020581393 | O38: 0.9564443284 | P38: 8.706365503e-05 | Q38: -0.005247352501 | R38: -0.005381005494 | S38: -0.01497660561 | T38: -0.002201426589 | U38: -0.005739325093 | V38: -0.007854000105 | W38: -0.005109726097 | X38: 4.883584614e-05 | Y38: -0.0001904309311 | Z38: 0.001385099643 | AA38: 8.706365503e-05 | AB38: 0.008238747957 | AC38: -0.00555423368 | AD38: 0.01299076275 | AE38: 0.01108036407 | AF38: 0.01009182579 | AG38: -4.560252369e-05 | AH38: -0.006942755475 | AI38: -0.007262346603 | AJ38: 0.007128914575 | AK38: -0.01151395805
B39: 1999-02-05 | C39: 0.0315 | D39: 0.002737850787 | E39: 1.003107104 | F39: 1.000697452 | G39: 1.016768298 | H39: 0.986574021 | I39: 1.073807889 | J39: 1.053131099 | K39: 1.03730853 | L39: 1.004344958 | M39: 0.9867919066 | N39: 1.033768064 | O39: 0.953154614 | P39: 8.678986995e-05 | Q39: -0.002011783483 | R39: 0.001690410882 | S39: -0.01241569427 | T39: 0.004387549291 | U39: -0.005544483669 | V39: -0.005713193529 | W39: -0.003380561355 | X39: -0.0005448189123 | Y39: 0.0004742395428 | Z39: -0.0129713023 | AA39: 8.678986995e-05 | AB39: 0.001030532814 | AC39: -0.005922629223 | AD39: 0.006910794757 | AE39: 0.01051340965 | AF39: -0.003467045852 | AG39: 0.006578052751 | AH39: -0.006313853522 | AI39: -0.007690280779 | AJ39: 0.01292074465 | AK39: -0.003439525208
B40: 1999-02-08 | C40: 0.0315 | D40: 0.008213552361 | E40: 1.003366635 | F40: 0.9969987789 | G40: 0.9966411034 | H40: 0.9974830317 | I40: 1.096433556 | J40: 1.074261862 | K40: 1.020144233 | L40: 1.0196743 | M40: 0.9700574442 | N40: 1.032566761 | O40: 0.9731159515 | P40: 0.0002587268994 | Q40: 0.00142725345 | R40: -0.004888402056 | S40: 0.003270337793 | T40: -0.009735126246 | U40: 0.005751598867 | V40: 0.002785196629 | W40: -0.0001075980698 | X40: 0.0004410420238 | Y40: 0.0004705038191 | Z40: -0.001488714771 | AA40: 0.0002587268994 | AB40: -0.003696095069 | AC40: -0.01979526219 | AD40: 0.01105746798 | AE40: 0.02107049807 | AF40: 0.02006470284 | AG40: -0.01654695467 | AH40: 0.01526302505 | AI40: -0.0169584512 | AJ40: -0.001162062298 | AK40: 0.02094239198
B41: 1999-02-09 | C41: 0.0313 | D41: 0.002737850787 | E41: 1.003453168 | F41: 0.9898780005 | G41: 0.99731037 | H41: 1.006733626 | I41: 1.089315183 | J41: 1.076460006 | K41: 1.026499208 | L41: 1.010785605 | M41: 0.9705668893 | N41: 1.024604043 | O41: 0.9759069074 | P41: 8.624229979e-05 | Q41: 0.002420165852 | R41: 0.005489007057 | S41: -0.02256689566 | T41: -0.02817407759 | U41: -0.00632568593 | V41: -0.01310899761 | W41: -0.006676942926 | X41: 0.001036862888 | Y41: 0.0004731541131 | Z41: 0.007601950682 | AA41: 8.624229979e-05 | AB41: -0.007142213769 | AC41: 0.0006715221228 | AD41: 0.009273936406 | AE41: -0.006492297987 | AF41: 0.002046190267 | AG41: 0.006229486649 | AH41: -0.0087171905 | AI41: 0.0005251700426 | AJ41: -0.00771157678 | AK41: 0.002868060995
B42: 1999-02-10 | C42: 0.0312 | D42: 0.002737850787 | E42: 1.003539158 | F42: 0.9958517056 | G42: 0.9866802198 | H42: 1.014250335 | I42: 1.09048822 | J42: 1.071862494 | K42: 1.010046926 | L42: 1.006396493 | M42: 0.9857567102 | N42: 1.030118429 | O42: 0.9672221168 | P42: 8.569472964e-05 | Q42: -0.0008457005623 | R42: 0.000428698855 | S42: 0.00583144452 | T42: -0.01326833219 | U42: -0.0004368597586 | V42: 0.006332572383 | W42: -0.001312836092 | X42: 0.001726583711 | Y42: -0.0003815647278 | Z42: 0.007612500562 | AA42: 8.569472964e-05 | AB42: 0.006034789179 | AC42: -0.01065881849 | AD42: 0.007466432457 | AE42: 0.001076857491 | AF42: -0.004270955213 | AG42: -0.01602756386 | AH42: -0.00434227786 | AI42: 0.01565046275 | AJ42: 0.005381967701 | AK42: -0.008899199835
B43: 1999-02-11 | C43: 0.031 | D43: 0.002737850787 | E43: 1.003624882 | F43: 0.9905114965 | G43: 0.9896470834 | H43: 1.026774818 | I43: 1.095847881 | J43: 1.083045904 | K43: 1.015054188 | L43: 1.020224083 | M43: 0.9790782401 | N43: 1.03798722 | O43: 0.9669167657 | P43: 8.542094456e-05 | Q43: -0.0003807106895 | R43: 0.001799853095 | S43: 0.02985731071 | T43: 0.01963561714 | U43: 7.515534551e-05 | V43: 0.01304070471 | W43: -0.002327198815 | X43: -0.0005447331209 | Y43: 0.002465797561 | Z43: 0.008069492267 | AA43: 8.542094456e-05 | AB43: -0.005362454134 | AC43: 0.003006915052 | AD43: 0.01234851269 | AE43: 0.004914918262 | AF43: 0.01043362453 | AG43: 0.004957454671 | AH43: 0.01373970389 | AI43: -0.006774967995 | AJ43: 0.007638723965 | AK43: -0.0003156990677
B44: 1999-02-12 | C44: 0.0308 | D44: 0.002737850787 | E44: 1.003710063 | F44: 0.9919639483 | G44: 0.9808077106 | H44: 1.036934818 | I44: 1.089033067 | J44: 1.081790254 | K44: 1.017348785 | L44: 1.017405682 | M44: 0.9870026872 | N44: 1.035388701 | O44: 0.971661701 | P44: 8.48733744e-05 | Q44: -0.008542578319 | R44: -0.00698931512 | S44: -0.01911948053 | T44: 0.00893502842 | U44: 0.006016749235 | V44: 0.01001408274 | W44: -0.00199083007 | X44: -0.002913288846 | Y44: 0.006057373396 | Z44: 0.0002545388912 | AA44: 8.48733744e-05 | AB44: 0.001466365443 | AC44: -0.008931843418 | AD44: 0.009895062121 | AE44: -0.006218758377 | AF44: -0.001159369779 | AG44: 0.002260565962 | AH44: -0.002762530529 | AI44: 0.008093783332 | AJ44: -0.002503420335 | AK44: 0.00490728416
B45: 1999-02-15 | C45: 0.0306 | D45: 0.008213552361 | E45: 1.003963979 | F45: 0.9878734381 | G45: 0.9824238949 | H45: 1.011334201 | I45: 1.086717901 | J45: 1.087588153 | K45: 1.007705093 | L45: 1.026192586 | M45: 0.9715966337 | N45: 1.037110505 | O45: 0.9814208101 | P45: 0.0002529774127 | Q45: 0.0002529774127 | R45: -0.004459233557 | S45: 0.0006514817399 | T45: 0.002885176817 | U45: 0.005270442648 | V45: -0.001629453024 | W45: -0.0001584291375 | X45: -0.0001584291375 | Y45: 0.0005564569053 | Z45: -0.0001584291375 | AA45: 0.0002529774127 | AB45: -0.0041236481 | AC45: 0.00164780957 | AD45: -0.02468874287 | AE45: -0.002125892164 | AF45: 0.005359541542 | AG45: -0.009479238594 | AH45: 0.008636577925 | AI45: -0.0156089276 | AJ45: 0.001662954084 | AK45: 0.01004373133
B46: 1999-02-16 | C46: 0.0304 | D46: 0.002737850787 | E46: 1.004048089 | F46: 0.9803618686 | G46: 0.9780198978 | H46: 1.008835425 | I46: 1.10245359 | J46: 1.094879453 | K46: 1.013899281 | L46: 1.030488354 | M46: 0.9765901066 | N46: 1.023939211 | O46: 0.9874105848 | P46: 8.377823409e-05 | Q46: 0.0003189813804 | R46: 8.377823409e-05 | S46: 0.002914398598 | T46: -0.006040864248 | U46: 0.006198477057 | V46: 0.002712535732 | W46: -0.02167065168 | X46: -0.0008449132674 | Y46: 0.0003732629862 | Z46: 0.01023754308 | AA46: 8.377823409e-05 | AB46: -0.007603777107 | AC46: -0.004482787065 | AD46: -0.002470772404 | AE46: 0.01448001328 | AF46: 0.006704100193 | AG46: 0.006146826078 | AH46: 0.004186122467 | AI46: 0.005139450564 | AJ46: -0.01269999108 | AK46: 0.006103166585
B47: 1999-02-17 | C47: 0.0303 | D47: 0.002737850787 | E47: 1.004131657 | F47: 0.9684734191 | G47: 0.9805136911 | H47: 1.01042503 | I47: 1.100350291 | J47: 1.088211809 | K47: 1.02177783 | L47: 1.02652358 | M47: 0.9845649477 | N47: 1.016170282 | O47: 0.9720837199 | P47: 8.323066393e-05 | Q47: 0.00290500324 | R47: 0.003085096745 | S47: -0.01038461211 | T47: -0.01400220552 | U47: -0.004103530834 | V47: -0.004689845764 | W47: 0.003577960268 | X47: 0.001926455417 | Y47: -3.234865389e-06 | Z47: -0.003494251293 | AA47: 8.323066393e-05 | AB47: -0.01212659312 | AC47: 0.002549838976 | AD47: 0.001575683351 | AE47: -0.001907834712 | AF47: -0.006089843801 | AG47: 0.007770544246 | AH47: -0.003847470476 | AI47: 0.008166006456 | AJ47: -0.007587294998 | AK47: -0.01552228138
B48: 1999-02-18 | C48: 0.0302 | D48: 0.002737850787 | E48: 1.004214956 | F48: 0.9582396502 | G48: 0.9789038067 | H48: 1.011548744 | I48: 1.086168962 | J48: 1.084896324 | K48: 1.021237842 | L48: 1.027636191 | M48: 0.993025377 | N48: 1.001423984 | O48: 0.961021888 | P48: 8.295687885e-05 | Q48: -0.003199847669 | R48: -0.001643705685 | S48: 0.00760835913 | T48: 0.007523920039 | U48: -0.001575847829 | V48: -0.005553102949 | W48: 0.01345491526 | X48: -0.003315355965 | Y48: 0.0003729510563 | Z48: -0.002276722742 | AA48: 8.295687885e-05 | AB48: -0.01056690741 | AC48: -0.0016418785 | AD48: 0.00111212019 | AE48: -0.01288801353 | AF48: -0.003046727412 | AG48: -0.0005284790691 | AH48: 0.001083862575 | AI48: 0.008593063668 | AJ48: -0.01451164115 | AK48: -0.01137950531
B49: 1999-02-19 | C49: 0.0303 | D49: 0.002737850787 | E49: 1.004297988 | F49: 0.9552072392 | G49: 0.9812392429 | H49: 1.018575391 | I49: 1.089671013 | J49: 1.076309304 | K49: 1.033484706 | L49: 1.038006536 | M49: 0.9860928042 | N49: 0.9992249937 | O49: 0.9550889702 | P49: 8.268309377e-05 | Q49: -0.00156412443 | R49: 0.001927641347 | S49: 0.004123162534 | T49: 0.008355010574 | U49: -0.0006246088666 | V49: -0.005620680827 | W49: -0.005691481335 | X49: -0.0007484837056 | Y49: 0.0003726919202 | Z49: 0.002365209618 | AA49: 8.268309377e-05 | AB49: -0.003164564245 | AC49: 0.002385766824 | AD49: 0.006946424926 | AE49: 0.003224223278 | AF49: -0.007915059899 | AG49: 0.01199217612 | AH49: 0.01009145618 | AI49: -0.006981264531 | AJ49: -0.002195863078 | AK49: -0.0061735512
B50: 1999-02-22 | C50: 0.0305 | D50: 0.008213552361 | E50: 1.004547928 | F50: 0.9667761352 | G50: 0.990023897 | H50: 1.042039053 | I50: 1.107454383 | J50: 1.069374604 | K50: 1.015517489 | L50: 1.029242478 | M50: 0.9876167129 | N50: 1.010021694 | O50: 0.9500680908 | P50: 0.0002488706366 | Q50: 0.002841410122 | R50: 0.003126787746 | S50: 0.02518476312 | T50: 0.01988424108 | U50: 0.0134036813 | V50: 0.002747937735 | W50: -0.002218126231 | X50: -0.00155187296 | Y50: -0.002734015345 | Z50: -0.003851678724 | AA50: 0.0002488706366 | AB50: 0.01211139893 | AC50: 0.008952611813 | AD50: 0.02303576391 | AE50: 0.01631994411 | AF50: -0.006443036891 | AG50: -0.01738508231 | AH50: -0.008443162907 | AI50: 0.001545400965 | AJ50: 0.01080507434 | AK50: -0.005256975525
B51: 1999-02-23 | C51: 0.0334 | D51: 0.002737850787 | E51: 1.004631812 | F51: 0.9684919533 | G51: 0.9921929022 | H51: 1.053117592 | I51: 1.120166271 | J51: 1.066009469 | K51: 1.015559493 | L51: 1.029481366 | M51: 0.9831829569 | N51: 1.004972731 | O51: 0.9587432428 | P51: 8.350444901e-05 | Q51: -0.003442054321 | R51: 0.002034550992 | S51: 0.0008646252707 | T51: 0.02019978663 | U51: 0.008240626477 | V51: -0.01241767528 | W51: 0.01439669114 | X51: -0.001941377123 | Y51: -0.002075082703 | Z51: -0.006925741755 | AA51: 8.350444901e-05 | AB51: 0.001774783262 | AC51: 0.002190861441 | AD51: 0.01063159591 | AE51: 0.01147847604 | AF51: -0.003146825173 | AG51: 4.136199152e-05 | AH51: 0.000232100983 | AI51: -0.004489348899 | AJ51: -0.004998866384 | AK51: 0.009131084384
B52: 1999-02-24 | C52: 0.0313 | D52: 0.002737850787 | E52: 1.00472368 | F52: 0.9691635367 | G52: 0.9789592156 | H52: 1.046667144 | I52: 1.096045777 | J52: 1.062404384 | K52: 1.019422792 | L52: 1.024941336 | M52: 0.9867629325 | N52: 1.003762573 | O52: 0.963458281 | P52: 9.144421629e-05 | Q52: -0.005333580127 | R52: -0.002428543388 | S52: -0.01735622783 | T52: 0.007979358707 | U52: 0.002343380169 | V52: 0.005676914362 | W52: -0.0009238774592 | X52: -0.001140658183 | Y52: -8.905925176e-05 | Z52: 0.0009346773422 | AA52: 9.144421629e-05 | AB52: 0.0006934321531 | AC52: -0.01333781621 | AD52: -0.006125097478 | AE52: -0.02153295914 | AF52: -0.003381850364 | AG52: 0.003804108866 | AH52: -0.004410016919 | AI52: 0.003641209993 | AJ52: -0.001204169713 | AK52: 0.004917936311
B53: 1999-02-25 | C53: 0.0311 | D53: 0.002737850787 | E53: 1.00480978 | F53: 0.9707582137 | G53: 0.9653812226 | H53: 1.046045527 | I53: 1.077623018 | J53: 1.041933268 | K53: 1.029049948 | L53: 1.033766997 | M53: 0.9989260323 | N53: 1.008832751 | O53: 0.9556730555 | P53: 8.569472964e-05 | Q53: -0.007503288489 | R53: -0.01093832946 | S53: -0.009285077931 | T53: -0.02730580522 | U53: 0.003512510106 | V53: -0.0003260259853 | W53: 0.003715365069 | X53: -0.005532262683 | Y53: -0.0009446309287 | Z53: -0.0151982962 | AA53: 8.569472964e-05 | AB53: 0.001645415789 | AC53: -0.013869825 | AD53: -0.0005939010324 | AE53: -0.01680838461 | AF53: -0.01926866722 | AG53: 0.009443731732 | AH53: 0.008610893406 | AI53: 0.01232626334 | AJ53: 0.005051172402 | AK53: -0.008080500852
B54: 1999-02-26 | C54: 0.0312 | D54: 0.002737850787 | E54: 1.004895336 | F54: 0.9780262484 | G54: 0.9515523885 | H54: 1.040379459 | I54: 1.079118849 | J54: 1.059653757 | K54: 1.025520694 | L54: 1.044043353 | M54: 0.9934428473 | N54: 1.01303145 | O54: 0.9489712509 | P54: 8.514715948e-05 | Q54: 0.002235867906 | R54: -0.0003793066416 | S54: -0.004754546805 | T54: 0.005545289864 | U54: -0.003582375859 | V54: 0.005177825848 | W54: -0.01814554199 | X54: -0.004060693618 | Y54: -0.002931036179 | Z54: -0.0002146294791 | AA54: 8.514715948e-05 | AB54: =NORMINV(RAND(),0,1)*AB$7*SQRT($D54)+$AB$8*($C54+AB$8) -> 0.007486966944 | AC54: -0.01432473905 | AD54: -0.005416655246 | AE54: 0.001388083913 | AF54: 0.01700731645 | AG54: -0.003429622684 | AH54: 0.009940689253 | AI54: -0.005489080054 | AJ54: 0.004161937768 | AK54: -0.007012654087
B55: 1999-03-01 | C55: 0.0312 | D55: 0.008213552361 | E55: 1.005152854 | F55: 1.004312756 | G55: 0.95975789 | H55: 1.030028336 | I55: 1.076721143 | J55: 1.069124673 | K55: 1.022313891 | L55: 1.064985563 | M55: 0.9719874139 | N55: 1.037198341 | O55: 0.9531131067 | P55: 0.0002562628337 | Q55: -0.005944658204 | R55: -0.0064825992 | S55: 0.003094820194 | T55: -0.01432282028 | U55: -0.01067252455 | V55: 0.004520697354 | W55: 0.0002017029273 | X55: -0.002069151129 | Y55: -0.0005726159999 | Z55: 0.001196016711 | AA55: 0.0002562628337 | AB55: 0.02687709875 | AC55: 0.0086232788 | AD55: -0.009949372228 | AE55: -0.00222191139 | AF55: 0.008937746566 | AG55: -0.003127000548 | AH55: 0.02005875488 | AI55: -0.02159704854 | AJ55: 0.02385601235 | AK55: 0.004364574493
B56: 1999-03-02 | C56: 0.0311 | D56: 0.002737850787 | E56: 1.005238715 | F56: 1.014984176 | G56: 0.9572412814 | H56: 1.03273221 | I56: 1.07384013 | J56: 1.063875126 | K56: 1.019403784 | L56: 1.06215131 | M56: 0.9775658187 | N56: 1.041552839 | O56: 0.9588303242 | P56: 8.542094456e-05 | Q56: 0.002244914416 | R56: 0.00172279621 | S56: -0.007586977625 | T56: 0.00327589425 | U56: -0.01412560044 | V56: -0.003234499834 | W56: 0.008723116741 | X56: -0.002471581289 | Y56: -9.617985152e-05 | Z56: -0.008483957095 | AA56: 8.542094456e-05 | AB56: 0.01062559384 | AC56: -0.00262212864 | AD56: 0.002625047806 | AE56: -0.002675728026 | AF56: -0.004910135616 | AG56: -0.002846588259 | AH56: -0.002661306138 | AI56: 0.00573917383 | AJ56: 0.004198327672 | AK56: 0.005998467021
B57: 1999-03-03 | C57: 0.0308 | D57: 0.002737850787 | E57: 1.005324308 | F57: 1.003624554 | G57: 0.954182971 | H57: 1.023467142 | I57: 1.068947922 | J57: 1.071913177 | K57: 1.037364214 | L57: 1.049039454 | M57: 0.9700963933 | N57: 1.033523493 | O57: 0.9591798102 | P57: 8.514715948e-05 | Q57: -0.002069692755 | R57: -0.003884834744 | S57: 0.003746782863 | T57: -0.02130977691 | U57: 0.007154962963 | V57: 0.01030483319 | W57: 0.009610512208 | X57: -0.001164241781 | Y57: -1.804688033e-06 | Z57: -0.007111578322 | AA57: 8.514715948e-05 | AB57: -0.01119192001 | AC57: -0.00319492107 | AD57: -0.008971413614 | AE57: -0.004555806646 | AF57: 0.007555446121 | AG57: 0.01761856304 | AH57: -0.01234462212 | AI57: -0.007640841353 | AJ57: -0.00770901426 | AK57: 0.0003644920159
B58: 1999-03-04 | C58: 0.0306 | D58: 0.002737850787 | E58: 1.005409083 | F58: 1.012643587 | G58: 0.9544727932 | H58: 1.025312179 | I58: 1.056617544 | J58: 1.079106366 | K58: 1.056640941 | L58: 1.043256198 | M58: 0.9720150029 | N58: 1.048900505 | O58: 0.9610099406 | P58: 8.432580424e-05 | Q58: -0.002075165302 | R58: -0.001087968564 | S58: 0.01284971919 | T58: 0.01633356719 | U58: 0.004894870934 | V58: 0.001796060267 | W58: 0.01326827594 | X58: -0.001267419819 | Y58: -0.000571474887 | Z58: 0.007395531216 | AA58: 8.432580424e-05 | AB58: 0.008986461241 | AC58: 0.0003037385549 | AD58: 0.001802732052 | AE58: -0.01153505963 | AF58: 0.006710607869 | AG58: 0.01858241015 | AH58: -0.005512906025 | AI58: 0.001977751421 | AJ58: 0.01487824117 | AK58: 0.001908015948
B59: 1999-03-05 | C59: 0.0304 | D59: 0.002737850787 | E59: 1.005493314 | F59: 1.003445937 | G59: 0.9547524956 | H59: 1.024353882 | I59: 1.064732883 | J59: 1.072295954 | K59: 1.058983829 | L59: 1.053347293 | M59: 0.9612777922 | N59: 1.061240837 | O59: 0.9453480504 | P59: 8.377823409e-05 | Q59: 0.004893029392 | R59: 0.0129941427 | S59: 0.02388992572 | T59: 0.0303183522 | U59: 0.03774068959 | V59: 0.01286625314 | W59: 0.005375052511 | X59: 0.00156623892 | Y59: 0.0007564208064 | Z59: 0.01056534313 | AA59: 8.377823409e-05 | AB59: -0.009082811005 | AC59: 0.0002930439418 | AD59: -0.0009346399335 | AE59: 0.007680488712 | AF59: -0.006311160023 | AG59: 0.002217297595 | AH59: 0.009672691358 | AI59: -0.01104634257 | AJ59: 0.01176501649 | AK59: -0.01629732383
B60: 1999-03-08 | C60: 0.0303 | D60: 0.008213552361 | E60: 1.005744378 | F60: 1.006239492 | G60: 0.9374552344 | H60: 1.041391603 | I60: 1.069192869 | J60: 1.058931679 | K60: 1.036741667 | L60: 1.06600293 | M60: 0.9640929909 | N60: 1.058555534 | O60: 0.9213897597 | P60: 0.0002496919918 | Q60: 0.001207097775 | R60: -0.003458799509 | S60: 0.003183440047 | T60: -0.01301525023 | U60: 0.001130024733 | V60: 0.02286150999 | W60: 0.01054815028 | X60: 0.001251633606 | Y60: 0.001033900584 | Z60: 0.001725746481 | AA60: 0.0002496919918 | AB60: 0.002783961793 | AC60: -0.01811701074 | AD60: 0.01663265202 | AE60: 0.004188831024 | AF60: -0.01246323353 | AG60: -0.02100330645 | AH60: 0.0120146864 | AI60: 0.002928600659 | AJ60: -0.002530342527 | AK60: -0.02534335435
B61: 1999-03-09 | C61: 0.0303 | D61: 0.002737850787 | E61: 1.005827811 | F61: 1.004554801 | G61: 0.9331177688 | H61: 1.03326272 | I61: 1.055531384 | J61: 1.06559064 | K61: 1.031301837 | L61: 1.065845825 | M61: 0.9726563322 | N61: 1.049595058 | O61: 0.9157787898 | P61: 8.295687885e-05 | Q61: 0.004864610988 | R61: -0.00224308791 | S61: -0.00264262601 | T61: 0.00065491349 | U61: 0.01294153353 | V61: 0.01230480126 | W61: 0.007484715966 | X61: -0.001367201306 | Y61: 9.157036212e-05 | Z61: 0.008903951777 | AA61: 8.295687885e-05 | AB61: -0.001674244568 | AC61: -0.004626850917 | AD61: -0.007805789407 | AE61: -0.01277738086 | AF61: 0.006288376603 | AG61: -0.005247044221 | AH61: -0.0001473775805 | AI61: 0.008882277328 | AJ61: -0.008464814122 | AK61: -0.006089681254
B62: 1999-03-10 | C62: 0.0302 | D62: 0.002737850787 | E62: 1.005911252 | F62: 1.008259453 | G62: 0.9366986708 | H62: 1.031922436 | I62: 1.052748896 | J62: 1.075847519 | K62: 1.024355715 | L62: 1.06014747 | M62: 0.9853336801 | N62: 1.061654483 | O62: 0.9050700852 | P62: 8.295687885e-05 | Q62: -0.0008688232371 | R62: 0.001948130828 | S62: 0.007311377392 | T62: -0.001631932194 | U62: 0.02154947962 | V62: 0.008171152289 | W62: 0.02284342514 | X62: 0.002270749557 | Y62: -0.0003819310383 | Z62: 0.01051138768 | AA62: 8.295687885e-05 | AB62: 0.003687854824 | AC62: 0.003837567075 | AD62: -0.001297137829 | AE62: -0.002636102186 | AF62: 0.009625533971 | AG62: -0.006735295277 | AH62: -0.00534632248 | AI62: 0.01303373807 | AJ62: 0.01148959726 | AK62: -0.01169354949
B63: 1999-03-11 | C63: 0.0299 | D63: 0.002737850787 | E63: 1.005994423 | F63: 1.017096028 | G63: 0.9300199903 | H63: 1.022567615 | I63: 1.045643819 | J63: 1.073386458 | K63: 1.022029928 | L63: 1.062058115 | M63: 0.9899715892 | N63: 1.077705236 | O63: 0.9013365714 | P63: 8.268309377e-05 | Q63: 8.268309377e-05 | R63: 0.007180419414 | S63: 0.01210510925 | T63: 0.01067599433 | U63: 0.007410839247 | V63: 0.002562240235 | W63: -0.01191133334 | X63: 0.002366224553 | Y63: 0.0008497832076 | Z63: 0.004152453561 | AA63: 8.268309377e-05 | AB63: 0.008764186953 | AC63: -0.007130020286 | AD63: -0.009065430274 | AE63: -0.006749071233 | AF63: -0.002287555784 | AG63: -0.002270487576 | AH63: 0.001802244994 | AI63: 0.004706942633 | AJ63: 0.0151186226 | AK63: -0.004125110166
B64: 1999-03-12 | C64: 0.0292 | D64: 0.002737850787 | E64: 1.006076776 | F64: 1.025098104 | G64: 0.9285550017 | H64: 1.031002787 | I64: 1.041146284 | J64: 1.067647811 | K64: 1.022658765 | L64: 1.062153078 | M64: 0.9852334313 | N64: 1.073542905 | O64: 0.9042860354 | P64: 8.186173854e-05 | Q64: 0.002463576103 | R64: -0.00234439971 | S64: -0.01007557318 | T64: 0.01481370033 | U64: -0.0004029374115 | V64: 0.005901769877 | W64: -0.0009658325903 | X64: 0.001453992712 | Y64: 0.0008484515498 | Z64: 0.003594924739 | AA64: 8.186173854e-05 | AB64: 0.00786757182 | AC64: -0.001575222733 | AD64: 0.008249011391 | AE64: -0.004301210651 | AF64: -0.005346300752 | AG64: 0.0006152828738 | AH64: 8.941352451e-05 | AI64: -0.004786155487 | AJ64: -0.003862216495 | AK64: 0.003272322598
B65: 1999-03-15 | C65: 0.029 | D65: 0.008213552361 | E65: 1.006318069 | F65: 1.030535137 | G65: 0.938350829 | H65: 1.023776023 | I65: 1.035989694 | J65: 1.074375167 | K65: 1.038308577 | L65: 1.081109503 | M65: 1.002318971 | N65: 1.053051293 | O65: 0.9150913425 | P65: 0.000239835729 | Q65: 0.001665694369 | R65: 0.0004715067969 | S65: 0.01205216069 | T65: 0.00163601581 | U65: 0.01324770016 | V65: 0.01545078837 | W65: -0.007582834291 | X65: 0.002038975557 | Y65: 0.0002694446068 | Z65: 0.01021491548 | AA65: 0.000239835729 | AB65: 0.005303914625 | AC65: 0.01054953915 | AD65: -0.007009451229 | AE65: -0.004952800739 | AF65: 0.006301100361 | AG65: 0.01530306346 | AH65: 0.01784716848 | AI65: 0.01734161636 | AJ65: -0.01908783731 | AK65: 0.01194899259
B66: 1999-03-16 | C66: 0.029 | D66: 0.002737850787 | E66: 1.006397968 | F66: 1.025463503 | G66: 0.9228280051 | H66: 1.021789481 | I66: 1.022354947 | J66: 1.075118924 | K66: 1.027154401 | L66: 1.091386801 | M66: 1.006182379 | N66: 1.054779196 | O66: 0.9351090013 | P66: 7.939767283e-05 | Q66: 0.002452065283 | R66: 0.005174163621 | S66: -0.000109413606 | T66: 0.005376636857 | U66: 0.02461400549 | V66: 0.00742180471 | W66: 0.004139380268 | X66: 0.001345713513 | Y66: 0.009168209967 | Z66: -0.0004564908223 | AA66: 7.939767283e-05 | AB66: -0.004921359144 | AC66: -0.01654266555 | AD66: -0.0019404062 | AE66: -0.01316108387 | AF66: 0.0006922693112 | AG66: -0.01074264123 | AH66: 0.009506251585 | AI66: 0.003854469582 | AJ66: 0.001640853959 | AK66: 0.02187503898
B67: 1999-03-17 | C67: 0.0298 | D67: 0.002737850787 | E67: 1.006477874 | F67: 1.020320751 | G67: 0.9287485222 | H67: 1.023399434 | I67: 1.022974522 | J67: 1.087286877 | K67: 1.024780044 | L67: 1.087261464 | M67: 1.015369426 | N67: 1.059187529 | O67: 0.9267765572 | P67: 7.939767283e-05 | Q67: -0.001577538607 | R67: 0.0007706171621 | S67: -0.005417396966 | T67: -0.007428171921 | U67: 0.01554801691 | V67: 0.002852763124 | W67: 0.01892464253 | X67: 0.002344861878 | Y67: 0.0009320176811 | Z67: 0.001238641275 | AA67: 7.939767283e-05 | AB67: -0.005015051739 | AC67: 0.006415623522 | AD67: 0.00157562061 | AE67: 0.000606027302 | AF67: 0.01131777471 | AG67: -0.002311587614 | AH67: -0.003779904468 | AI67: 0.009130597728 | AJ67: 0.004179388758 | AK67: -0.008910666159
B68: 1999-03-18 | C68: 0.0295 | D68: 0.002737850787 | E68: 1.006559991 | F68: 1.022732682 | G68: 0.9304441445 | H68: 1.008626084 | I68: 1.021941527 | J68: 1.094068525 | K68: 1.016224421 | L68: 1.103037158 | M68: 1.022131997 | N68: 1.045281038 | O68: 0.9297096448 | P68: 8.158795346e-05 | Q68: 0.001504179117 | R68: 0.001463075125 | S68: 0.01494734485 | T68: 0.001761463605 | U68: -0.02282112145 | V68: 0.003037966814 | W68: -0.005107960327 | X68: 0.003839332704 | Y68: 0.0005588227872 | Z68: 0.008332334053 | AA68: 8.158795346e-05 | AB68: 0.002363894816 | AC68: 0.00182570665 | AD68: -0.01443556619 | AE68: -0.001009795658 | AF68: 0.006237219679 | AG68: -0.008348740694 | AH68: 0.01450956867 | AI68: 0.006660207369 | AJ68: -0.01312939428 | AK68: 0.003164827159
B69: 1999-03-19 | C69: 0.0265 | D69: 0.002737850787 | E69: 1.006641287 | F69: 1.028159228 | G69: 0.9210684313 | H69: 1.000444833 | I69: 1.018705824 | J69: 1.097354624 | K69: 1.012668714 | L69: 1.119789683 | M69: 1.031320742 | N69: 1.048827521 | O69: 0.9322135982 | P69: 8.076659822e-05 | Q69: -0.003470656579 | R69: -0.001413778748 | S69: -0.01625791101 | T69: 0.01909944916 | U69: 0.03136375565 | V69: 0.01117376969 | W69: 0.006696558353 | X69: 0.0007395274311 | Y69: 0.00168071338 | Z69: -0.001658485148 | AA69: 8.076659822e-05 | AB69: 0.005305928797 | AC69: -0.01007659971 | AD69: -0.008111282271 | AE69: -0.003166230604 | AF69: 0.003003558647 | AG69: -0.003498937985 | AH69: 0.01518763404 | AI69: 0.008989783183 | AJ69: 0.003392851656 | AK69: 0.002693263826
B70: 1999-03-22 | C70: 0.0219 | D70: 0.008213552361 | E70: 1.006860392 | F70: 1.023670945 | G70: 0.9059718357 | H70: 1.012868892 | I70: 1.032138023 | J70: 1.086685034 | K70: 1.036612008 | L70: 1.131662256 | M70: 1.036442094 | N70: 1.039300508 | O70: 0.9376965229 | P70: 0.0002176591376 | Q70: -0.001445805727 | R70: -0.001279327918 | S70: 0.001556156535 | T70: -0.008840089341 | U70: 0.0002025516833 | V70: -0.002860244589 | W70: 0.01899333222 | X70: 0.0007011092946 | Y70: 0.0004320511267 | Z70: 0.0003010496636 | AA70: 0.0002176591376 | AB70: -0.004365358504 | AC70: -0.01639030841 | AD70: 0.0124185347 | AE70: 0.01318555226 | AF70: -0.009723009276 | AG70: 0.02364375801 | AH70: 0.01060250246 | AI70: 0.004965819228 | AJ70: -0.009083489076 | AK70: 0.005881618486
B71: 1999-03-23 | C71: 0.0239 | D71: 0.002737850787 | E71: 1.006920762 | F71: 1.021021538 | G71: 0.8974606945 | H71: 0.9955599946 | I71: 1.032539007 | J71: 1.080430345 | K71: 1.031516679 | L71: 1.132517334 | M71: 1.052053075 | N71: 1.042422217 | O71: 0.9498110789 | P71: 5.995893224e-05 | Q71: 5.995893224e-05 | R71: -0.003053337377 | S71: -0.02968899072 | T71: -0.02791304166 | U71: -0.004712115817 | V71: -0.01027794117 | W71: -0.006396889351 | X71: 0.0003199803746 | Y71: -0.000492730415 | Z71: -0.0071740161 | AA71: 5.995893224e-05 | AB71: -0.00258814286 | AC71: -0.00939448758 | AD71: -0.01708898087 | AE71: 0.0003884984855 | AF71: -0.005755752069 | AG71: -0.004915367851 | AH71: 0.0007555946269 | AI71: 0.01506208661 | AJ71: 0.00300366351 | AK71: 0.01291948479
B72: 1999-03-24 | C72: 0.0298 | D72: 0.002737850787 | E72: 1.006986649 | F72: 1.02758071 | G72: 0.9038790303 | H72: 0.9968329963 | I72: 1.032423973 | J72: 1.088391757 | K72: 1.038876403 | L72: 1.126431086 | M72: 1.045878795 | N72: 1.02272967 | O72: 0.9571920245 | P72: 6.543463381e-05 | Q72: 0.002207412005 | R72: 0.000759442569 | S72: 0.005764151837 | T72: -0.014465725 | U72: -0.0237806668 | V72: -0.008001443192 | W72: -0.008011045435 | X72: 0.0007224136064 | Y72: 0.0003550375172 | Z72: -0.004951101313 | AA72: 6.543463381e-05 | AB72: 0.006424126963 | AC72: 0.007151662324 | AD72: 0.001278678991 | AE72: -0.0001114087872 | AF72: 0.007368742019 | AG72: 0.007134856957 | AH72: -0.005374088005 | AI72: -0.005868791029 | AJ72: -0.01889114315 | AK72: 0.007770961774
B73: 1999-03-25 | C73: 0.0299 | D73: 0.002737850787 | E73: 1.007068807 | F73: 1.026808936 | G73: 0.8980174367 | H73: 1.00320219 | I73: 1.042383683 | J73: 1.095858801 | K73: 1.04889154 | L73: 1.1202237 | M73: 1.049022 | N73: 1.02098108 | O73: 0.9439333712 | P73: 8.158795346e-05 | Q73: -0.002768323957 | R73: 0.0008907154518 | S73: 0.0192365096 | T73: 0.02234596135 | U73: 0.01818999445 | V73: 0.01326640519 | W73: 0.01548329926 | X73: -0.001741886964 | Y73: 0.0001844382629 | Z73: 0.007160453054 | AA73: 8.158795346e-05 | AB73: -0.0007510590877 | AC73: -0.006484931601 | AD73: 0.006389429356 | AE73: 0.009646918065 | AF73: 0.006860621806 | AG73: 0.009640354973 | AH73: -0.005510666742 | AI73: 0.00300532377 | AJ73: -0.001709728405 | AK73: -0.01385161281
B74: 1999-03-26 | C74: 0.0299 | D74: 0.002737850787 | E74: 1.007151248 | F74: 1.014313241 | G74: 0.8836367354 | H74: 1.000923193 | I74: 1.039888623 | J74: 1.087766368 | K74: 1.033871723 | L74: 1.129260302 | M74: 1.053920485 | N74: 1.007811898 | O74: 0.9299742574 | P74: 8.186173854e-05 | Q74: 8.186173854e-05 | R74: -0.004306995029 | S74: -0.005287146715 | T74: -0.01292875797 | U74: 0.01417295777 | V74: -0.004073302635 | W74: 0.01426340141 | X74: -0.0008501836914 | Y74: 0.0002783367337 | Z74: 0.0003090032888 | AA74: 8.186173854e-05 | AB74: -0.01216944488 | AC74: -0.01601383301 | AD74: -0.002271722806 | AE74: -0.00239361002 | AF74: -0.007384558784 | AG74: -0.01431970474 | AH74: 0.008066783461 | AI74: 0.004669573863 | AJ74: -0.01289855666 | AK74: -0.01478824057
B75: 1999-03-29 | C75: 0.0299 | D75: 0.008213552361 | E75: 1.007398589 | F75: 1.006344691 | G75: 0.8816772172 | H75: 0.9853048567 | I75: 1.024813084 | J75: 1.089053629 | K75: 1.032606068 | L75: 1.123350793 | M75: 1.068217161 | N75: 1.010632219 | O75: 0.9391650806 | P75: 0.0002455852156 | Q75: -0.002851150342 | R75: -0.0005665849615 | S75: 0.0147066035 | T75: 0.01457675345 | U75: 0.0009347804429 | V75: 0.0001339587992 | W75: 0.003440857259 | X75: 0.001027335088 | Y75: 0.0006486089487 | Z75: 0.007438217304 | AA75: 0.0002455852156 | AB75: -0.007856104573 | AC75: -0.002217560761 | AD75: -0.01560393087 | AE75: -0.01449726255 | AF75: 0.001183398738 | AG75: -0.001224190021 | AH75: -0.005233079761 | AI75: 0.01356523192 | AJ75: 0.002798460603 | AK75: 0.009882879186
B76: 1999-03-30 | C76: 0.0298 | D76: 0.002737850787 | E76: 1.007481057 | F76: 1.018752108 | G76: 0.8751588335 | H76: 0.9757327905 | I76: 1.026540774 | J76: 1.100819285 | K76: 1.014169171 | L76: 1.12370059 | M76: 1.06184735 | N76: 1.008066308 | O76: 0.9397931472 | P76: 8.186173854e-05 | Q76: 0.003904439328 | R76: 0.002752152291 | S76: 8.186173854e-05 | T76: -0.003591472643 | U76: 0.0005262564255 | V76: 0.01306181201 | W76: 0.009030996102 | X76: 0.0002426315835 | Y76: 0.005968028345 | Z76: 0.007227583363 | AA76: 8.186173854e-05 | AB76: 0.0123291926 | AC76: -0.007393163414 | AD76: -0.009714827007 | AE76: 0.00168585884 | AF76: 0.01080355951 | AG76: -0.01785472437 | AH76: 0.0003113877289 | AI76: -0.005963030274 | AJ76: -0.002538917132 | AK76: 0.0006687499659
B77: 1999-03-31 | C77: 0.0299 | D77: 0.002737850787 | E77: 1.007563255 | F77: 1.009731085 | G77: 0.8700381172 | H77: 0.959196989 | I77: 1.028368975 | J77: 1.098946899 | K77: 1.012080693 | L77: 1.131143478 | M77: 1.054725705 | N77: 0.9934078302 | O77: 0.9398195459 | P77: 8.158795346e-05 | Q77: -0.002298425345 | R77: 0.001934234174 | S77: -0.01702422564 | T77: 0.005751656248 | U77: -0.001533023326 | V77: 0.001030062582 | W77: -0.002192276322 | X77: -0.0006513702239 | Y77: 0.002409018333 | Z77: -5.56107394e-05 | AA77: 8.158795346e-05 | AB77: -0.008854973445 | AC77: -0.005851185077 | AD77: -0.01694705927 | AE77: 0.001780933143 | AF77: -0.001700902011 | AG77: -0.002059299374 | AH77: 0.006623550246 | AI77: -0.006706844224 | AJ77: -0.01454118409 | AK77: 2.808982067e-05
B78: 1999-04-01 | C78: 0.0298 | D78: 0.002737850787 | E78: 1.007645736 | F78: 1.004434622 | G78: 0.8753092335 | H78: 0.9557833746 | I78: 1.02422438 | J78: 1.091282679 | K78: 1.032313568 | L78: 1.129690437 | M78: 1.064252621 | N78: 1.006065728 | O78: 0.9381121197 | P78: 8.186173854e-05 | Q78: -0.00134955314 | R78: -0.0004960198411 | S78: 0.007428475408 | T78: 0.009104813418 | U78: 0.02629261692 | V78: 0.001068041361 | W78: -0.005887626039 | X78: -0.0003533510348 | Y78: 0.0001837872339 | Z78: 0.006631344437 | AA78: 8.186173854e-05 | AB78: -0.005245419482 | AC78: 0.006058488971 | AD78: -0.003558825258 | AE78: -0.004030260078 | AF78: -0.006974149898 | AG78: 0.01999136528 | AH78: -0.001284577012 | AI78: 0.009032600186 | AJ78: 0.0127418949 | AK78: -0.00181675961
B79: 1999-04-02 | C79: 0.0296 | D79: =(B79-B78)/365.25 -> 0.002737850787 | E79: =IF($F$2,E78*(1+P79),E78*(1+AA79)) -> 1.007727948 | F79: =IF($F$2,F78*(1+Q79),F78*(1+AB79)) -> 0.996853426 | G79: =IF($F$2,G78*(1+R79),G78*(1+AC79)) -> 0.875530372 | H79: =IF($F$2,H78*(1+S79),H78*(1+AD79)) -> 0.9600150362 | I79: =IF($F$2,I78*(1+T79),I78*(1+AE79)) -> 1.031930971 | J79: =IF($F$2,J78*(1+U79),J78*(1+AF79)) -> 1.070475711 | K79: =IF($F$2,K78*(1+V79),K78*(1+AG79)) -> 1.031593057 | L79: =IF($F$2,L78*(1+W79),L78*(1+AH79)) -> 1.141998862 | M79: =IF($F$2,M78*(1+X79),M78*(1+AI79)) -> 1.049807959 | N79: =IF($F$2,N78*(1+Y79),N78*(1+AJ79)) -> 1.024198242 | O79: =IF($F$2,O78*(1+Z79),O78*(1+AK79)) -> 0.9378364261 | P79: 8.158795346e-05 | Q79: 0.005815452767 | R79: 8.158795346e-05 | S79: 8.158795346e-05 | T79: 8.158795346e-05 | U79: 0.002942779159 | V79: 0.01061606724 | W79: -5.557601434e-05 | X79: -5.557601434e-05 | Y79: -5.801388103e-07 | Z79: -5.557601433e-05 | AA79: 8.158795346e-05 | AB79: -0.007547724827 | AC79: 0.0002526404067 | AD79: 0.004427427517 | AE79: 0.007524319011 | AF79: -0.01906652428 | AG79: =NORMINV(RAND(),0,1)*AG$7*SQRT($D79)+$AB$8*($C79+AG$8) -> -0.0006979579133 | AH79: 0.01089539672 | AI79: -0.01357258751 | AJ79: 0.01802318958 | AK79: -0.000293881287
B80: 1999-04-05 | C80: 0.0297 | D80: 0.008213552361 | E80: 1.007972948 | F80: 1.00216832 | G80: 0.8716212949 | H80: 0.96883691 | I80: 1.013889278 | J80: 1.076159811 | K80: 1.040311305 | L80: 1.159110954 | M80: 1.081933033 | N80: 1.018774523 | O80: 0.9268248896 | P80: 0.0002431211499 | Q80: 0.0007182960293 | R80: 0.0002431211499 | S80: 0.0238537025 | T80: 0.0002431211499 | U80: 0.002536595333 | V80: 0.001848604716 | W80: 0.005104098566 | X80: 0.002117719176 | Y80: 0.0007368770943 | Z80: 0.006042776911 | AA80: 0.0002431211499 | AB80: =NORMINV(RAND(),0,1)*AB$7*SQRT($D80)+$AB$8*($C80+AB$8) -> 0.005331670847 | AC80: -0.004464810417 | AD80: 0.009189307925 | AE80: -0.01748343039 | AF80: 0.005309882416 | AG80: 0.00845124728 | AH80: 0.01498433366 | AI80: 0.03060090558 | AJ80: -0.005295574926 | AK80: -0.01174142539
B81: 1999-04-06 | C81: 0.0298 | D81: 0.002737850787 | E81: 1.00805491 | F81: 1.006402836 | G81: 0.8789950404 | H81: 0.9749976554 | I81: 1.016831523 | J81: 1.072994302 | K81: 1.042930263 | L81: 1.170472071 | M81: 1.092517855 | N81: 1.014011534 | O81: 0.9228483189 | P81: 8.131416838e-05 | Q81: 0.004117729729 | R81: 0.01014226171 | S81: -0.002166884103 | T81: 0.02551119535 | U81: 0.01188959408 | V81: 0.009527108673 | W81: -0.00294313259 | X81: 0.001828102744 | Y81: 0.001755119241 | Z81: 0.0001480907457 | AA81: 8.131416838e-05 | AB81: 0.004225354084 | AC81: 0.008459804205 | AD81: 0.006358908683 | AE81: 0.002901938703 | AF81: -0.002941486159 | AG81: 0.002517475782 | AH81: 0.009801578454 | AI81: 0.009783250046 | AJ81: -0.004675214763 | AK81: -0.004290530782
B82: 1999-04-07 | C82: 0.0308 | D82: 0.002737850787 | E82: 1.008137155 | F82: 1.011784326 | G82: 0.8810873416 | H82: 0.9827517989 | I82: 0.9993428086 | J82: 1.070923099 | K82: 1.044667158 | L82: 1.182692709 | M82: 1.085127015 | N82: 1.019431835 | O82: 0.9211429684 | P82: 8.158795346e-05 | Q82: -0.0006278574861 | R82: -0.0003763772843 | S82: 0.006092521394 | T82: -0.008095304443 | U82: 0.001614809639 | V82: 0.01092503842 | W82: -0.01892329382 | X82: 0.0005382465042 | Y82: 0.001476085605 | Z82: 0.003163890232 | AA82: 8.158795346e-05 | AB82: 0.005347252073 | AC82: 0.002380333349 | AD82: 0.007952986842 | AE82: -0.01719922489 | AF82: -0.001930302266 | AG82: 0.001665399356 | AH82: 0.01044077667 | AI82: -0.006764959773 | AJ82: 0.0053454037 | AK82: -0.001847920757
B83: 1999-04-08 | C83: 0.0311 | D83: 0.002737850787 | E83: 1.008222167 | F83: 1.009653066 | G83: 0.8903527255 | H83: 0.9761250065 | I83: 1.002423425 | J83: 1.073812613 | K83: 1.053695733 | L83: 1.186242747 | M83: 1.096003504 | N83: 1.023858014 | O83: 0.9211628713 | P83: 8.432580424e-05 | Q83: 0.006947185589 | R83: 0.00810241111 | S83: 0.01278543396 | T83: 0.002831358471 | U83: 0.01550248775 | V83: 0.005834226802 | W83: -0.007696892374 | X83: 0.00232122243 | Y83: 2.930052173e-06 | Z83: 0.0133722538 | AA83: 8.432580424e-05 | AB83: -0.002106436864 | AC83: 0.01051585177 | AD83: -0.00674309869 | AE83: 0.003082642476 | AF83: 0.002698152725 | AG83: 0.008642537007 | AH83: 0.003001657778 | AI83: 0.01002324038 | AJ83: 0.004341810223 | AK83: 2.160675514e-05
B84: 1999-04-09 | C84: 0.0281 | D84: 0.002737850787 | E84: 1.008308014 | F84: 1.01909426 | G84: 0.873400279 | H84: 0.9726986497 | I84: 1.006609523 | J84: 1.062810205 | K84: 1.054968224 | L84: 1.171518224 | M84: 1.093809552 | N84: 1.036977499 | O84: 0.9137943988 | P84: 8.514715948e-05 | Q84: -0.0003849281153 | R84: -0.001505716613 | S84: 0.002113105071 | T84: 0.008580200575 | U84: -0.001533777305 | V84: -0.0002556218569 | W84: 0.01900110904 | X84: 0.003697867516 | Y84: 0.00101704356 | Z84: -0.007525082311 | AA84: 8.514715948e-05 | AB84: 0.009350929048 | AC84: -0.01904014668 | AD84: -0.003510161921 | AE84: 0.004175977841 | AF84: -0.01024611476 | AG84: 0.001207645152 | AH84: -0.01241274032 | AI84: -0.002001774371 | AJ84: 0.01281377391 | AK84: -0.007999098385
B85: 1999-04-12 | C85: 0.0277 | D85: 0.008213552361 | E85: 1.008540733 | F85: 1.02196021 | G85: 0.874742982 | H85: 0.9842007438 | I85: 1.013115435 | J85: 1.085387017 | K85: 1.076528893 | L85: 1.176968093 | M85: 1.088346487 | N85: 1.05716466 | O85: 0.9120004102 | P85: 0.0002308008214 | Q85: 0.0002308008214 | R85: 0.003076569573 | S85: 0.0103580951 | T85: -0.0003112899424 | U85: -0.01967124781 | V85: 0.00285200597 | W85: -0.005326760715 | X85: 0.001294808472 | Y85: 0.0008371849922 | Z85: 0.007265494208 | AA85: 0.0002308008214 | AB85: 0.002812251602 | AC85: 0.001537328358 | AD85: 0.01182493066 | AE85: 0.006463192759 | AF85: 0.02124256179 | AG85: 0.02043726906 | AH85: 0.00465197093 | AI85: -0.004994531139 | AJ85: 0.01946730819 | AK85: -0.001963230098
B86: 1999-04-13 | C86: 0.0273 | D86: 0.002737850787 | E86: 1.008617219 | F86: 1.023261859 | G86: 0.8655338744 | H86: 0.9765443603 | I86: 1.030564407 | J86: 1.088241717 | K86: 1.091588803 | L86: 1.190917097 | M86: 1.077753382 | N86: 1.055068338 | O86: 0.9163094889 | P86: 7.58384668e-05 | Q86: -0.002981059229 | R86: -0.003555848645 | S86: -0.007030601703 | T86: 0.008500639153 | U86: 0.01188060489 | V86: 0.004060369481 | W86: 0.01030476175 | X86: -0.001140865131 | Y86: 0.0001857974242 | Z86: 0.0100201152 | AA86: 7.58384668e-05 | AB86: 0.001273678473 | AC86: -0.01052778674 | AD86: -0.00777929048 | AE86: 0.01722308396 | AF86: 0.002630122033 | AG86: 0.01398932224 | AH86: 0.01185164141 | AI86: -0.009733209608 | AJ86: -0.001982966227 | AK86: 0.004724864884
B87: 1999-04-14 | C87: 0.026 | D87: 0.002737850787 | E87: 1.008692606 | F87: 1.023290895 | G87: 0.8586491517 | H87: 0.9843570408 | I87: 1.035528561 | J87: 1.086904196 | K87: 1.081435041 | L87: 1.192086385 | M87: 1.076964035 | N87: 1.045012562 | O87: 0.9159329898 | P87: 7.474332649e-05 | Q87: -0.0008687234125 | R87: 0.0003025507851 | S87: -0.01681280735 | T87: -0.006932081274 | U87: 0.008791311322 | V87: 0.008241017525 | W87: -0.008064510796 | X87: 0.001117110362 | Y87: 0.0002770293624 | Z87: 0.005079719012 | AA87: 7.474332649e-05 | AB87: 2.837599445e-05 | AC87: -0.007954307602 | AD87: 0.008000333425 | AE87: 0.004816928023 | AF87: -0.001229066231 | AG87: -0.009301818842 | AH87: 0.0009818385172 | AI87: -0.0007324009011 | AJ87: -0.009530924148 | AK87: -0.0004108863493
B88: 1999-04-15 | C88: 0.0258 | D88: 0.002737850787 | E88: 1.008764409 | F88: 1.030282297 | G88: 0.8625901553 | H88: 0.9728815846 | I88: 1.027924709 | J88: 1.078714313 | K88: 1.097626754 | L88: 1.183599842 | M88: 1.078360052 | N88: 1.061975324 | O88: 0.917159859 | P88: 7.118412047e-05 | Q88: -0.001109258731 | R88: -0.002889627857 | S88: -0.005342469371 | T88: -0.01323213372 | U88: -0.003967376253 | V88: 0.01345809941 | W88: 0.008021874179 | X88: -0.0006546476161 | Y88: 0.0003656073441 | Z88: -0.004349452433 | AA88: 7.118412047e-05 | AB88: 0.006832273087 | AC88: 0.004589771706 | AD88: -0.011657819 | AE88: -0.007342967712 | AF88: -0.007535055428 | AG88: 0.01497243246 | AH88: -0.007119066686 | AI88: 0.00129625276 | AJ88: 0.01623211339 | AK88: 0.001339474871
B89: 1999-04-16 | C89: 0.0255 | D89: 0.002737850787 | E89: 1.008835665 | F89: 1.032033246 | G89: 0.8648822195 | H89: 0.9649698841 | I89: 1.034058054 | J89: 1.075224433 | K89: 1.106947153 | L89: 1.185650988 | M89: 1.075252041 | N89: 1.056314799 | O89: 0.9238519632 | P89: 7.063655031e-05 | Q89: -0.003238507603 | R89: 0.000299067486 | S89: -0.006120489995 | T89: 0.0008971598865 | U89: 0.003884290226 | V89: 0.02288300303 | W89: 0.008264219382 | X89: -0.001539430201 | Y89: 0.0009164426288 | Z89: 0.01622338327 | AA89: 7.063655031e-05 | AB89: 0.001699484584 | AC89: 0.00265718792 | AD89: -0.00813223383 | AE89: 0.005966725847 | AF89: -0.003235221823 | AG89: 0.008491410226 | AH89: 0.00173297234 | AI89: -0.002882164156 | AJ89: -0.005330184787 | AK89: 0.007296551478
B90: 1999-04-19 | C90: 0.0251 | D90: 0.008213552361 | E90: 1.009046961 | F90: 1.046351362 | G90: 0.8685647086 | H90: 0.9773799715 | I90: 1.039837095 | J90: 1.08134657 | K90: 1.104667649 | L90: 1.18579438 | M90: 1.077026891 | N90: 1.06588757 | O90: 0.9344078854 | P90: 0.0002094455852 | Q90: 0.002581296298 | R90: 0.001465703167 | S90: -0.01698339757 | T90: 0.01698021256 | U90: -0.007503953919 | V90: 0.01359997402 | W90: 0.01059536322 | X90: 0.000585681431 | Y90: 0.002286143753 | Z90: -0.0002423700569 | AA90: 0.0002094455852 | AB90: 0.01387369588 | AC90: 0.004257792603 | AD90: 0.01286059564 | AE90: 0.005588701498 | AF90: 0.005693822664 | AG90: -0.002059271049 | AH90: 0.0001209390854 | AI90: 0.001650635564 | AJ90: 0.009062422594 | AK90: 0.01142598881
B91: 1999-04-20 | C91: 0.0247 | D91: 0.002737850787 | E91: 1.009116303 | F91: 1.051850557 | G91: 0.8793310951 | H91: 0.9670877219 | I91: 1.042962397 | J91: 1.074113091 | K91: 1.099442244 | L91: 1.189938908 | M91: 1.088150874 | N91: 1.072210825 | O91: 0.9329722781 | P91: 6.872005476e-05 | Q91: 0.001961445335 | R91: 0.0007529956073 | S91: 0.01083141126 | T91: -0.02669648415 | U91: -0.0027867712 | V91: -0.006547132807 | W91: -0.005835875206 | X91: -0.001738876639 | Y91: -0.0003699519141 | Z91: -0.003664461981 | AA91: 6.872005476e-05 | AB91: 0.00525559169 | AC91: 0.01239560669 | AD91: -0.01053044873 | AE91: 0.003005568323 | AF91: -0.006689325373 | AG91: -0.00473029655 | AH91: 0.003495149443 | AI91: 0.01032841761 | AJ91: 0.005932384279 | AK91: -0.001536381815
B92: 1999-04-21 | C92: 0.0247 | D92: 0.002737850787 | E92: 1.009184544 | F92: 1.054308273 | G92: 0.8716399092 | H92: 0.9671891745 | I92: 1.028239241 | J92: 1.073534254 | K92: 1.094610132 | L92: 1.18281143 | M92: 1.080956123 | N92: 1.066817095 | O92: 0.925053358 | P92: 6.762491444e-05 | Q92: -0.0001685185625 | R92: 0.001093335299 | S92: 0.02802053993 | T92: 0.005622632503 | U92: -0.01282979455 | V92: -0.01363676994 | W92: 0.005407997646 | X92: 0.0002261347333 | Y92: -0.000188617648 | Z92: 0.004870357766 | AA92: 6.762491444e-05 | AB92: 0.002336563569 | AC92: -0.008746632479 | AD92: 0.0001049052832 | AE92: -0.01411666967 | AF92: -0.0005388976172 | AG92: -0.004395057432 | AH92: -0.005989785214 | AI92: -0.006611905813 | AJ92: -0.00503047539 | AK92: -0.008487840744
B93: 1999-04-22 | C93: 0.0247 | D93: 0.002737850787 | E93: 1.00925279 | F93: 1.05654729 | G93: 0.8713517445 | H93: 0.9705351657 | I93: 1.027673698 | J93: 1.067777015 | K93: 1.096567911 | L93: 1.187657141 | M93: 1.073737137 | N93: 1.065770318 | O93: 0.9283848651 | P93: 6.762491444e-05 | Q93: -0.005364957838 | R93: -0.001412438738 | S93: 0.01282825668 | T93: 0.008908485319 | U93: 0.00211252501 | V93: 0.0045081835 | W93: -0.001146612439 | X93: -0.000659699499 | Y93: 0.001187090199 | Z93: -0.001321130569 | AA93: 6.762491444e-05 | AB93: 0.002123683837 | AC93: -0.0003306006515 | AD93: 0.00345950023 | AE93: -0.0005500116461 | AF93: -0.005362883072 | AG93: 0.001788562891 | AH93: 0.004096773842 | AI93: -0.00667833365 | AJ93: -0.0009812147555 | AK93: 0.00360142158
B94: 1999-04-23 | C94: 0.0293 | D94: 0.002737850787 | E94: 1.009321041 | F94: 1.053471032 | G94: 0.8712546124 | H94: 0.9780577908 | I94: 1.024308596 | J94: 1.069049122 | K94: 1.094757473 | L94: 1.173935518 | M94: 1.080080931 | N94: 1.060099969 | O94: 0.933752257 | P94: 6.762491444e-05 | Q94: 0.0003051142578 | R94: 0.0009797832772 | S94: -0.002856530427 | T94: -0.001028200498 | U94: 0.0160610765 | V94: 0.007044623937 | W94: -0.00267953786 | X94: 0.0004235104572 | Y94: 0.0004536287797 | Z94: -0.0009729886051 | AA94: 6.762491444e-05 | AB94: -0.00291161453 | AC94: -0.0001114728768 | AD94: 0.007751007332 | AE94: -0.00327448466 | AF94: 0.00119136023 | AG94: -0.001651004291 | AH94: -0.01155352166 | AI94: 0.005908143673 | AJ94: -0.005320423231 | AK94: 0.005781429776
B95: 1999-04-26 | C95: 0.0253 | D95: 0.008213552361 | E95: 1.009563941 | F95: 1.038162567 | G95: 0.8809741249 | H95: 0.989191463 | I95: 1.003830358 | J95: 1.085652265 | K95: 1.11805324 | L95: 1.160523127 | M95: 1.077149479 | N95: 1.067405283 | O95: 0.9406726234 | P95: 0.0002406570842 | Q95: 0.001665501325 | R95: -0.001810183766 | S95: 0.005005539166 | T95: 0.006273743358 | U95: 0.006501606125 | V95: -0.002411881702 | W95: -0.007082191787 | X95: 0.0005207788866 | Y95: 0.0002087901568 | Z95: -0.001402550976 | AA95: 0.0002406570842 | AB95: -0.01453145337 | AC95: 0.01115576595 | AD95: 0.01138345019 | AE95: -0.01999225413 | AF95: 0.01553075745 | AG95: 0.02127938624 | AH95: -0.01142515187 | AI95: -0.002714103684 | AJ95: 0.00689115533 | AK95: 0.007411351774
B96: 1999-04-27 | C96: 0.0253 | D96: 0.002737850787 | E96: 1.009633871 | F96: 1.02168937 | G96: 0.8885656259 | H96: 0.9839768408 | I96: 1.008852977 | J96: 1.090520034 | K96: 1.131944504 | L96: 1.177612559 | M96: 1.079280166 | N96: 1.06827766 | O96: 0.9382555343 | P96: 6.926762491e-05 | Q96: 0.001491841263 | R96: 0.002923020814 | S96: 0.00371456298 | T96: 0.01532920107 | U96: 0.004961884389 | V96: 0.004195771352 | W96: 0.003057308235 | X96: -0.0004603406435 | Y96: 0.002649977512 | Z96: -0.001724643639 | AA96: 6.926762491e-05 | AB96: -0.0158676471 | AC96: 0.008617166771 | AD96: -0.005271600447 | AE96: 0.005003454373 | AF96: 0.004483727908 | AG96: 0.012424511 | AH96: 0.01472562809 | AI96: 0.001978079401 | AJ96: 0.0008172882479 | AK96: -0.002569532775
B97: 1999-04-28 | C97: 0.0252 | D97: 0.002737850787 | E97: 1.009703806 | F97: 1.015410289 | G97: 0.8983895035 | H97: 0.9905113398 | I97: 1.007404921 | J97: 1.106211718 | K97: 1.143580879 | L97: 1.192697981 | M97: 1.080356428 | N97: 1.065579876 | O97: 0.9323423575 | P97: 6.926762491e-05 | Q97: -0.001588044135 | R97: -0.00232106411 | S97: -0.01264292961 | T97: -0.002617464947 | U97: -0.001992108085 | V97: 0.009120656177 | W97: 0.0133649619 | X97: -0.0003621369192 | Y97: -0.0002758062635 | Z97: -0.001118934207 | AA97: 6.926762491e-05 | AB97: -0.006145782516 | AC97: 0.01105588307 | AD97: 0.006640907315 | AE97: -0.001435349378 | AF97: 0.01438917523 | AG97: 0.01027998662 | AH97: 0.01281017427 | AI97: 0.0009972029909 | AJ97: -0.002525358385 | AK97: -0.006302309549
B98: 1999-04-29 | C98: 0.0252 | D98: 0.002737850787 | E98: 1.009773469 | F98: 1.003338299 | G98: 0.8985613102 | H98: 0.9924123223 | I98: 1.009398407 | J98: 1.111123524 | K98: 1.138230071 | L98: 1.182902798 | M98: 1.092889513 | N98: 1.072030234 | O98: 0.9338924036 | P98: 6.899383984e-05 | Q98: 0.003626270318 | R98: 0.004747011951 | S98: -0.00839490589 | T98: -0.00235020955 | U98: 6.576445038e-05 | V98: -0.005316599381 | W98: 0.01064403913 | X98: 0.001605982995 | Y98: 0.003190959645 | Z98: 0.004031574245 | AA98: 6.899383984e-05 | AB98: -0.01188878023 | AC98: 0.0001912385413 | AD98: 0.00191919309 | AE98: 0.001978832925 | AF98: 0.00444020465 | AG98: -0.004678994084 | AH98: -0.008212626613 | AI98: 0.01160087961 | AJ98: 0.00605337752 | AK98: 0.001662528926
B99: 1999-04-30 | C99: 0.0253 | D99: 0.002737850787 | E99: 1.009843138 | F99: 1.01607732 | G99: 0.8909552749 | H99: 0.9960226034 | I99: 1.012751279 | J99: 1.121404475 | K99: 1.147336805 | L99: 1.16528718 | M99: 1.092558221 | N99: 1.080802945 | O99: 0.9234993556 | P99: 6.899383984e-05 | Q99: -0.009383454117 | R99: -0.00572291153 | S99: -0.007166592871 | T99: 0.00897146911 | U99: -0.0077391472 | V99: 0.01285459517 | W99: 2.197838415e-05 | X99: -0.002130577468 | Y99: 0.003544592333 | Z99: 0.00679107738 | AA99: 6.899383984e-05 | AB99: 0.01269663567 | AC99: -0.008464681493 | AD99: 0.003637884185 | AE99: 0.003321654148 | AF99: 0.00925275199 | AG99: 0.008000785009 | AH99: -0.01489185574 | AI99: -0.0003031340465 | AJ99: 0.008183268636 | AK99: -0.0111287424
B100: 1999-05-03 | C100: 0.0252 | D100: 0.008213552361 | E100: 1.010052986 | F100: 0.9913932487 | G100: 0.8807119058 | H100: 0.9756873026 | I100: 1.03079338 | J100: 1.124039644 | K100: 1.172645823 | L100: 1.141813615 | M100: 1.087706685 | N100: 1.069047522 | O100: 0.9204107451 | P100: 0.0002078028747 | Q100: -3.079631487e-05 | R100: 0.002949663214 | S100: 0.01628290368 | T100: 0.003148473633 | U100: 0.000197904985 | V100: 0.01080594845 | W100: 0.006247273277 | X100: -0.0008901467776 | Y100: -6.356618967e-06 | Z100: 0.005161317215 | AA100: 0.0002078028747 | AB100: -0.02429349695 | AC100: -0.01149706319 | AD100: -0.02041650538 | AE100: 0.01781493725 | AF100: 0.002349882865 | AG100: 0.02205892609 | AH100: -0.02014401734 | AI100: -0.004440528563 | AJ100: -0.01087656494 | AK100: -0.003344464211
B101: 1999-05-04 | C101: 0.0251 | D101: 0.002737850787 | E101: 1.010122673 | F101: 0.9842424541 | G101: 0.8866938607 | H101: 0.9767034028 | I101: 1.021818251 | J101: 1.117654745 | K101: 1.172680591 | L101: 1.138115272 | M101: 1.090194979 | N101: 1.074318265 | O101: 0.9200388785 | P101: 6.899383984e-05 | Q101: -0.003033105163 | R101: -0.004715480217 | S101: -0.01188824612 | T101: -0.002862649604 | U101: 6.569500114e-05 | V101: 0.01448360908 | W101: 0.00234362827 | X101: -0.00164365955 | Y101: 0.02292629993 | Z101: -0.000615713446 | AA101: 6.899383984e-05 | AB101: -0.007212874011 | AC101: 0.006792181207 | AD101: 0.001041419947 | AE101: -0.008707010792 | AF101: -0.005680314816 | AG101: 2.964943885e-05 | AH101: -0.003239007668 | AI101: 0.002287652373 | AJ101: 0.004930317529 | AK101: -0.0004040224311
B102: 1999-05-05 | C102: 0.0251 | D102: 0.002737850787 | E102: 1.010192089 | F102: 1.001886861 | G102: 0.8882312134 | H102: 0.9663377791 | I102: 1.013670415 | J102: 1.120161758 | K102: 1.175175387 | L102: 1.125393725 | M102: 1.075496446 | N102: 1.076712802 | O102: 0.926167425 | P102: 6.872005476e-05 | Q102: 0.001504912568 | R102: 0.0008699654525 | S102: 0.006772144028 | T102: -0.01330209716 | U102: 6.542121697e-05 | V102: 0.006306773692 | W102: 0.002229540682 | X102: 0.0009193404134 | Y102: -9.114808336e-05 | Z102: -0.006866752284 | AA102: 6.872005476e-05 | AB102: 0.01792689117 | AC102: 0.001733803312 | AD102: -0.01061286741 | AE102: -0.007973859897 | AF102: 0.002243101668 | AG102: 0.002127430575 | AH102: -0.01117773157 | AI102: -0.01348248126 | AJ102: 0.002228889359 | AK102: 0.006661182093
B103: 1999-05-06 | C103: 0.0251 | D103: 0.002737850787 | E103: 1.01026151 | F103: 1.00359197 | G103: 0.8922861207 | H103: 0.9564226597 | I103: 1.023905407 | J103: 1.111849333 | K103: 1.170209845 | L103: 1.13349379 | M103: 1.08697252 | N103: 1.088670414 | O103: 0.9258998356 | P103: 6.872005476e-05 | Q103: -0.006623900443 | R103: -0.004277415737 | S103: -0.007142776209 | T103: -0.005080469799 | U103: 0.03296884794 | V103: 0.0254899479 | W103: -0.01145781881 | X103: -0.003025086342 | Y103: 0.002567003992 | Z103: 0.001191173279 | AA103: 6.872005476e-05 | AB103: 0.001701897389 | AC103: 0.004565148377 | AD103: -0.01026051095 | AE103: 0.01009696211 | AF103: -0.007420736092 | AG103: -0.004225363175 | AH103: 0.007197538718 | AI103: 0.01067048976 | AJ103: 0.01110566483 | AK103: -0.0002889211479
B104: 1999-05-07 | C104: 0.0251 | D104: 0.002737850787 | E104: 1.010330935 | F104: 1.007642666 | G104: 0.8908317114 | H104: 0.9582422472 | I104: 1.014727877 | J104: 1.114982819 | K104: 1.17655406 | L104: 1.139242065 | M104: 1.082570002 | N104: 1.078822709 | O104: 0.9255788886 | P104: 6.872005476e-05 | Q104: -0.001856340042 | R104: 0.001102560909 | S104: 0.007518169611 | T104: -0.002383329866 | U104: -0.009136085258 | V104: 0.004730589256 | W104: -0.008181080593 | X104: -0.002045028016 | Y104: -0.0262503618 | Z104: 0.006953710763 | AA104: 6.872005476e-05 | AB104: 0.004036197732 | AC104: -0.001629980898 | AD104: 0.001902492998 | AE104: -0.008963259728 | AF104: 0.002818264362 | AG104: 0.005421434249 | AH104: 0.005071289856 | AI104: -0.004050256348 | AJ104: -0.009045625092 | AK104: -0.0003466325835
B105: 1999-05-10 | C105: 0.0251 | D105: 0.008213552361 | E105: 1.010539225 | F105: 1.010733572 | G105: 0.888354526 | H105: 0.9482328723 | I105: 1.004444313 | J105: 1.119623943 | K105: 1.178021243 | L105: 1.140614239 | M105: 1.083693057 | N105: 1.075527926 | O105: 0.9188267262 | P105: 0.0002061601643 | Q105: 0.001894068342 | R105: -0.001171060022 | S105: -0.003675759309 | T105: 0.001571589943 | U105: 0.004178190889 | V105: 0.00758444406 | W105: 0.00707964326 | X105: -0.002481516816 | Y105: 0.0005367839996 | Z105: 0.0006095464585 | AA105: 0.0002061601643 | AB105: 0.003067462568 | AC105: -0.002780755787 | AD105: -0.01044555783 | AE105: -0.01013430751 | AF105: 0.004162507187 | AG105: 0.001247016897 | AH105: 0.001204461996 | AI105: 0.001037396344 | AJ105: -0.003054053979 | AK105: -0.007295069523
B106: 1999-05-11 | C106: 0.0251 | D106: 0.002737850787 | E106: 1.010608669 | F106: 1.025126136 | G106: 0.889581785 | H106: 0.9486169952 | I106: 1.012414412 | J106: 1.128603834 | K106: 1.166550451 | L106: 1.137019963 | M106: 1.083266878 | N106: 1.092360789 | O106: 0.9190628099 | P106: 6.872005476e-05 | Q106: -0.002819565057 | R106: -0.0005058339611 | S106: 0.008416494985 | T106: 0.006341552528 | U106: -0.0130694429 | V106: -0.00624351943 | W106: -0.00548135888 | X106: -0.002847886347 | Y106: -2.56956615e-06 | Z106: -0.00760184524 | AA106: 6.872005476e-05 | AB106: 0.01423972112 | AC106: 0.00138149695 | AD106: 0.000405093423 | AE106: 0.007934834576 | AF106: 0.008020453308 | AG106: -0.00973733879 | AH106: -0.003151175975 | AI106: -0.0003932646537 | AJ106: 0.01565079053 | AK106: 0.0002569403047
B107: 1999-05-12 | C107: 0.0251 | D107: 0.002737850787 | E107: 1.010678118 | F107: 1.027314127 | G107: 0.8923773919 | H107: 0.9391083267 | I107: 1.004880201 | J107: 1.120223438 | K107: 1.180447757 | L107: 1.124434745 | M107: 1.094866058 | N107: 1.092386164 | O107: 0.9222467279 | P107: 6.872005476e-05 | Q107: 0.001275657926 | R107: 0.00064360435 | S107: 0.00798716426 | T107: -0.006435352368 | U107: 0.003995522143 | V107: -0.01694672019 | W107: -0.01164215468 | X107: -0.0003662059101 | Y107: -2.496783374e-06 | Z107: -0.007822554337 | AA107: 6.872005476e-05 | AB107: 0.002134362268 | AC107: 0.003142608038 | AD107: -0.0100237172 | AE107: -0.00744182481 | AF107: -0.007425454049 | AG107: 0.01191316312 | AH107: -0.01106859848 | AI107: 0.01070759224 | AJ107: =NORMINV(RAND(),0,1)*AJ$7*SQRT($D107)+$AB$8*($C107+AJ$8) -> 2.323020667e-05 | AK107: 0.003464309542
B108: 1999-05-13 | C108: 0.0251 | D108: 0.002737850787 | E108: 1.010747572 | F108: 1.030594518 | G108: 0.8869955912 | H108: 0.9283832878 | I108: 1.00763049 | J108: 1.117917636 | K108: 1.179579809 | L108: 1.122182391 | M108: 1.089015952 | N108: 1.097833262 | O108: 0.9241670974 | P108: 6.872005476e-05 | Q108: 0.006578328406 | R108: 6.872005476e-05 | S108: 0.00444845974 | T108: 6.872005476e-05 | U108: -0.006674607523 | V108: 0.002199775824 | W108: 0.007729324995 | X108: 0.0002314249048 | Y108: -2.482893533e-06 | Z108: 0.0013845265 | AA108: 6.872005476e-05 | AB108: 0.003193172525 | AC108: -0.006030857314 | AD108: -0.01142044923 | AE108: 0.002736932322 | AF108: -0.002058341284 | AG108: -0.0007352705042 | AH108: -0.002003098919 | AI108: -0.00534321675 | AJ108: 0.004986421098 | AK108: 0.002082272962
B109: 1999-05-14 | C109: 0.0251 | D109: 0.002737850787 | E109: 1.010817031 | F109: 1.024417832 | G109: 0.8858808265 | H109: 0.9278141355 | I109: 1.014504505 | J109: 1.125562807 | K109: 1.177872881 | L109: 1.124145318 | M109: 1.103138437 | N109: 1.097918407 | O109: 0.9212075873 | P109: 6.872005476e-05 | Q109: -0.0126267631 | R109: -0.007285571349 | S109: -0.02520230321 | T109: -0.01275246858 | U109: -0.003276048423 | V109: 0.0009088625712 | W109: 0.0004429531095 | X109: -0.002855673002 | Y109: -2.395943118e-06 | Z109: -0.01299247892 | AA109: 6.872005476e-05 | AB109: -0.005993323333 | AC109: -0.001256787182 | AD109: -0.0006130573945 | AE109: 0.006821959512 | AF109: 0.00683876032 | AG109: -0.001447063814 | AH109: 0.001749205137 | AI109: 0.0129681161 | AJ109: 7.755791548e-05 | AK109: -0.003202353839
B110: 1999-05-17 | C110: 0.0252 | D110: 0.008213552361 | E110: 1.011025421 | F110: 1.035304206 | G110: 0.8993175656 | H110: 0.930837695 | I110: 1.023335104 | J110: 1.116500077 | K110: 1.190319894 | L110: 1.138957865 | M110: 1.095660153 | N110: 1.077523525 | O110: 0.9166296322 | P110: 0.0002061601643 | Q110: -0.001735045387 | R110: 0.0006692721727 | S110: 0.0007637885912 | T110: -0.01748288422 | U110: -0.01837342459 | V110: -0.01193376635 | W110: -0.00326365355 | X110: -0.004296960553 | Y110: -0.001277216022 | Z110: -0.008578722178 | AA110: 0.0002061601643 | AB110: 0.01062688859 | AC110: 0.01516765991 | AD110: 0.003258798606 | AE110: 0.008704346571 | AF110: -0.008051732159 | AG110: 0.01056736519 | AH110: 0.0131767184 | AI110: -0.006779098142 | AJ110: -0.01857595439 | AK110: -0.004969515167
B111: 1999-05-18 | C111: 0.0253 | D111: 0.002737850787 | E111: 1.011095175 | F111: 1.013240056 | G111: 0.9055747619 | H111: 0.9379130243 | I111: 1.027496517 | J111: 1.119019577 | K111: 1.183112527 | L111: 1.133974545 | M111: 1.099159629 | N111: 1.061540741 | O111: 0.918370671 | P111: 6.899383984e-05 | Q111: -0.001875719809 | R111: 0.003308833227 | S111: 0.0002547409349 | T111: 0.01132297224 | U111: 0.001367821157 | V111: 0.01129146426 | W111: -0.01395442921 | X111: -0.002072860536 | Y111: 0.0001795268996 | Z111: -0.003166494475 | AA111: 6.899383984e-05 | AB111: -0.02131175543 | AC111: 0.006957716054 | AD111: 0.007601034362 | AE111: 0.004066521085 | AF111: 0.002256605368 | AG111: -0.006054983764 | AH111: -0.004375332684 | AI111: 0.003193942897 | AJ111: -0.01483288662 | AK111: 0.001899391728
B112: 1999-05-19 | C112: 0.0264 | D112: 0.002737850787 | E112: 1.011165211 | F112: 1.025851441 | G112: 0.9114817545 | H112: 0.937165403 | I112: 1.032598128 | J112: 1.116513288 | K112: 1.189019078 | L112: 1.135191029 | M112: 1.090444173 | N112: 1.058971454 | O112: 0.9224245731 | P112: 6.926762491e-05 | Q112: 0.003479148226 | R112: -0.001084081778 | S112: 0.006038602892 | T112: 0.01091726637 | U112: -0.01771020321 | V112: -0.008411788453 | W112: -0.0020821323 | X112: 0.001741000289 | Y112: -1.848411892e-06 | Z112: -0.01438816875 | AA112: 6.926762491e-05 | AB112: 0.01244659117 | AC112: 0.00652292104 | AD112: -0.0007971114785 | AE112: 0.00496508787 | AF112: -0.002239718689 | AG112: 0.004992383734 | AH112: 0.001072761248 | AI112: -0.00792920001 | AJ112: -0.00242033723 | AK112: 0.004414232999
B113: 1999-05-20 | C113: 0.0302 | D113: 0.002737850787 | E113: 1.011238298 | F113: 1.018891328 | G113: 0.8997698341 | H113: 0.9390769215 | I113: 1.037405883 | J113: 1.124638867 | K113: 1.190575821 | L113: 1.116635856 | M113: 1.083255215 | N113: 1.064854985 | O113: 0.9073792121 | P113: 7.227926078e-05 | Q113: -0.0006559287096 | R113: 0.001573369162 | S113: -0.004932005125 | T113: 0.01245740524 | U113: 0.001031922369 | V113: -0.006646483694 | W113: -0.0007885051485 | X113: 0.0004368345397 | Y113: -0.007808944791 | Z113: -0.001710991126 | AA113: 7.227926078e-05 | AB113: -0.006784718075 | AC113: -0.01284931961 | AD113: 0.002039681025 | AE113: 0.004655979074 | AF113: 0.007277638013 | AG113: 0.001309266742 | AH113: -0.01634541869 | AI113: -0.006592687757 | AJ113: 0.005555891437 | AK113: -0.01631066804
B114: 1999-05-21 | C114: 0.0261 | D114: 0.002737850787 | E114: 1.01132191 | F114: 1.015771139 | G114: 0.8982769359 | H114: 0.9386804069 | I114: 1.02524571 | J114: 1.123875018 | K114: 1.173954893 | L114: 1.116534646 | M114: 1.090683304 | N114: 1.079279803 | O114: 0.9124712179 | P114: 8.268309377e-05 | Q114: 0.003240583235 | R114: 0.004694546977 | S114: -0.005688987153 | T114: 0.001167291893 | U114: 0.006074373775 | V114: -0.01054180359 | W114: 0.002710949551 | X114: -0.0004550890436 | Y114: 1.10555052e-05 | Z114: -0.01773395849 | AA114: 8.268309377e-05 | AB114: -0.003062337409 | AC114: -0.001659200108 | AD114: -0.0004222386412 | AE114: -0.01172171185 | AF114: -0.0006791952791 | AG114: -0.0139604119 | AH114: -9.063908646e-05 | AI114: 0.006857192171 | AJ114: 0.01354627519 | AK114: 0.005611772567
B115: 1999-05-24 | C115: 0.0254 | D115: 0.008213552361 | E115: 1.011538711 | F115: 1.033890677 | G115: 0.9106340533 | H115: 0.9408233931 | I115: 1.034970759 | J115: 1.129396331 | K115: 1.181417396 | L115: 1.105069339 | M115: 1.089266357 | N115: 1.091994083 | O115: 0.9094523703 | P115: 0.0002143737166 | Q115: 0.001667469659 | R115: 0.0002143737166 | S115: -0.01646353155 | T115: 0.0002143737166 | U115: 0.006194139847 | V115: -0.01528744293 | W115: -0.01461597574 | X115: -9.56303282e-05 | Y115: 0.000732303641 | Z115: -0.01393333384 | AA115: 0.0002143737166 | AB115: 0.01783820942 | AC115: 0.01375646744 | AD115: 0.002282977425 | AE115: 0.009485578043 | AF115: 0.00491274632 | AG115: 0.006356721192 | AH115: -0.01026865278 | AI115: -0.001299136687 | AJ115: 0.01178033697 | AK115: -0.003308430477
B116: 1999-05-25 | C116: 0.0254 | D116: 0.002737850787 | E116: 1.011609055 | F116: 1.046596845 | G116: 0.9117710682 | H116: 0.942597843 | I116: 1.043526812 | J116: 1.124333258 | K116: 1.177296299 | L116: 1.114953862 | M116: 1.095898442 | N116: 1.095896189 | O116: 0.907074921 | P116: 6.954140999e-05 | Q116: -0.0001722549008 | R116: -0.0001599902727 | S116: -0.02126044962 | T116: -0.01404996464 | U116: -0.006631228533 | V116: -0.01562791362 | W116: 0.001708529504 | X116: -0.002172790136 | Y116: -0.01225693082 | Z116: 0.01101892413 | AA116: 6.954140999e-05 | AB116: 0.01228966339 | AC116: 0.001248596898 | AD116: 0.001886060519 | AE116: 0.008266951589 | AF116: -0.00448299021 | AG116: -0.00348826535 | AH116: 0.00894470852 | AI116: 0.006088579443 | AJ116: 0.003573376219 | AK116: -0.002614154766
B117: 1999-05-26 | C117: 0.0252 | D117: 0.002737850787 | E117: 1.011679403 | F117: 1.042074205 | G117: 0.9075026047 | H117: 0.9489045298 | I117: 1.042914637 | J117: 1.135293273 | K117: 1.171243731 | L117: 1.113111731 | M117: 1.085555257 | N117: 1.089961648 | O117: 0.9200827343 | P117: 6.954140999e-05 | Q117: -0.003558280385 | R117: -0.0005044195298 | S117: 0.01563827542 | T117: -0.001307359372 | U117: -0.004011414508 | V117: 0.008388701866 | W117: 0.004580695384 | X117: -0.002579080196 | Y117: -1.849109812e-06 | Z117: 0.01929303417 | AA117: 6.954140999e-05 | AB117: -0.004321282238 | AC117: -0.004681507974 | AD117: 0.006690750298 | AE117: -0.0005866399655 | AF117: 0.009748012456 | AG117: -0.005141074308 | AH117: -0.001652204226 | AI117: -0.009438087259 | AJ117: -0.005415239986 | AK117: 0.01434039573
B118: 1999-05-27 | C118: 0.0251 | D118: 0.002737850787 | E118: 1.011749203 | F118: 1.048276007 | G118: 0.9065106017 | H118: 0.9599676048 | I118: 1.039415801 | J118: 1.140602595 | K118: 1.171692231 | L118: 1.115314866 | M118: 1.071970717 | N118: 1.100422823 | O118: 0.9240837492 | P118: 6.899383984e-05 | Q118: -0.005513915592 | R118: -0.004755044031 | S118: -0.01411541466 | T118: -0.01289365275 | U118: -0.000816102315 | V118: -0.01161978869 | W118: -0.006673671006 | X118: -0.003089577937 | Y118: -0.001761534382 | Z118: -0.01349423665 | AA118: 6.899383984e-05 | AB118: 0.005951401799 | AC118: -0.001093113108 | AD118: 0.01165878619 | AE118: -0.003354863069 | AF118: 0.004676608747 | AG118: 0.0003829261744 | AH118: 0.001979257893 | AI118: -0.01251390879 | AJ118: 0.009597745494 | AK118: 0.004348538101
B119: 1999-05-28 | C119: 0.0251 | D119: 0.002737850787 | E119: 1.011818731 | F119: 1.049066201 | G119: 0.8997502811 | H119: 0.9575880363 | I119: 1.049315775 | J119: 1.139837661 | K119: 1.177537902 | L119: 1.136494142 | M119: 1.072103329 | N119: 1.111688797 | O119: 0.9280476056 | P119: 6.872005476e-05 | Q119: 6.872005476e-05 | R119: 0.0007612084933 | S119: 0.008432025599 | T119: 0.004820162195 | U119: -0.007685976911 | V119: -0.005553996065 | W119: -0.002247032755 | X119: -0.001886907973 | Y119: 0.0002757188479 | Z119: 0.002431883649 | AA119: 6.872005476e-05 | AB119: 0.000753803494 | AC119: -0.007457519561 | AD119: -0.002478800881 | AE119: 0.009524555597 | AF119: -0.0006706400618 | AG119: 0.004989084151 | AH119: 0.01898950408 | AI119: 0.0001237079621 | AJ119: 0.01023785989 | AK119: 0.004289499113
B120: 1999-05-31 | C120: 0.0252 | D120: 0.008213552361 | E120: 1.012027327 | F120: 1.018917552 | G120: 0.8984435877 | H120: 0.936181804 | I120: 1.046332978 | J120: 1.139954892 | K120: 1.168579117 | L120: 1.139181024 | M120: 1.046458196 | N120: 1.102577851 | O120: 0.9200108406 | P120: 0.0002061601643 | Q120: 0.0002061601643 | R120: -0.0004859442021 | S120: 0.002710466329 | T120: 0.008549099646 | U120: 0.004151873728 | V120: 0.006974839985 | W120: -0.0002058997686 | X120: -0.0002058997686 | Y120: -7.842278749e-06 | Z120: -0.0002058997686 | AA120: 0.0002061601643 | AB120: -0.028738558 | AC120: -0.001452284608 | AD120: -0.022354323 | AE120: -0.002842611127 | AF120: 0.0001028484228 | AG120: -0.007608065785 | AH120: 0.002364184923 | AI120: -0.023920393 | AJ120: -0.00819559077 | AK120: -0.008659862905
B121: 1999-06-01 | C121: 0.0252 | D121: 0.002737850787 | E121: 1.012097151 | F121: 0.9994116838 | G121: 0.903566175 | H121: 0.9416236435 | I121: 1.042731203 | J121: 1.1296581 | K121: 1.155949846 | L121: 1.142602783 | M121: 1.044608241 | N121: 1.126158158 | O121: 0.920743339 | P121: 6.899383984e-05 | Q121: -0.00871852966 | R121: -0.008817943555 | S121: -0.003393583556 | T121: -0.004067401253 | U121: 0.01570853296 | V121: 0.008040617259 | W121: -0.005356480454 | X121: -0.002598879587 | Y121: 0.02401412705 | Z121: -0.006248834677 | AA121: 6.899383984e-05 | AB121: -0.01914371558 | AC121: 0.005701623757 | AD121: 0.005812802081 | AE121: -0.003442283803 | AF121: -0.009032631136 | AG121: -0.01080737272 | AH121: 0.003003700852 | AI121: -0.001767824989 | AJ121: 0.02138652325 | AK121: 0.00079618457
B122: 1999-06-02 | C122: 0.0253 | D122: 0.002737850787 | E122: 1.012166979 | F122: 1.005965362 | G122: 0.8893091812 | H122: 0.9380508985 | I122: 1.038558421 | J122: 1.128546644 | K122: 1.138718611 | L122: 1.146656123 | M122: 1.044094541 | N122: 1.131513515 | O122: 0.9240285908 | P122: 6.899383984e-05 | Q122: 6.899383984e-05 | R122: -0.002143548182 | S122: 0.0006458061792 | T122: 0.002285533721 | U122: 0.007121058362 | V122: 0.002630700533 | W122: 0.01257209371 | X122: -0.002706744015 | Y122: -0.01050660377 | Z122: 0.002397442877 | AA122: 6.899383984e-05 | AB122: 0.006557535842 | AC122: -0.01577858291 | AD122: -0.003794238864 | AE122: -0.004001781531 | AF122: -0.0009838866829 | AG122: -0.01490655989 | AH122: 0.003547461353 | AI122: -0.0004917635018 | AJ122: 0.004755422375 | AK122: 0.003568042975
B123: 1999-06-03 | C123: 0.0254 | D123: 0.002737850787 | E123: 1.01223709 | F123: 1.00266298 | G123: 0.9042280112 | H123: 0.9350871935 | I123: 1.029534055 | J123: 1.132487225 | K123: 1.13204818 | L123: 1.141465412 | M123: 1.039165184 | N123: 1.128411765 | O123: 0.9203970913 | P123: 6.926762491e-05 | Q123: 0.001546838569 | R123: 6.926762491e-05 | S123: 0.006822319047 | T123: 6.926762491e-05 | U123: -0.006778772442 | V123: 0.006994457941 | W123: 0.007246543064 | X123: -0.003426025099 | Y123: -2.393727441e-06 | Z123: 0.006167903487 | AA123: 6.926762491e-05 | AB123: -0.003282798382 | AC123: 0.01677575176 | AD123: -0.003159428819 | AE123: -0.008689319291 | AF123: 0.003491730888 | AG123: -0.005857839512 | AH123: -0.004526824478 | AI123: -0.004721178609 | AJ123: -0.002741240454 | AK123: -0.003930072599
B124: 1999-06-04 | C124: 0.0254 | D124: 0.002737850787 | E124: 1.012307482 | F124: 1.017687868 | G124: 0.9063702163 | H124: 0.9398549111 | I124: 1.0336801 | J124: 1.13914668 | K124: 1.146189445 | L124: 1.135490446 | M124: 1.04117836 | N124: 1.124671928 | O124: 0.9238269331 | P124: 6.954140999e-05 | Q124: 6.954140999e-05 | R124: -0.00191449199 | S124: 0.01884308521 | T124: 0.0169259942 | U124: -0.0008128489171 | V124: 0.01271054081 | W124: 0.01281351573 | X124: 0.0003403207252 | Y124: 0.0002726385797 | Z124: 0.005372472228 | AA124: 6.954140999e-05 | AB124: 0.01498498316 | AC124: 0.002369098402 | AD124: 0.005098687723 | AE124: 0.004027108514 | AF124: 0.005880379384 | AG124: 0.01249175203 | AH124: -0.005234469556 | AI124: 0.001937301627 | AJ124: -0.003314248465 | AK124: 0.003726480395
B125: 1999-06-07 | C125: 0.0254 | D125: 0.008213552361 | E125: 1.012518674 | F125: 1.008355956 | G125: 0.8861792289 | H125: 0.9444264947 | I125: 1.049252594 | J125: 1.140662012 | K125: 1.159886186 | L125: 1.1480754 | M125: 1.036292822 | N125: 1.111072766 | O125: 0.9157015637 | P125: 0.00020862423 | Q125: 0.0004545570119 | R125: 0.004185131857 | S125: 0.002276498343 | T125: 0.01162406955 | U125: 0.009407825766 | V125: 0.0181475577 | W125: 0.01130704291 | X125: 0.0007145971131 | Y125: 0.0008176076981 | Z125: 0.008284965118 | AA125: 0.00020862423 | AB125: -0.009169719644 | AC125: -0.02227675522 | AD125: 0.004864137607 | AE125: 0.01506509969 | AF125: 0.001330234114 | AG125: 0.01194980533 | AH125: 0.01108327617 | AI125: -0.004692316187 | AJ125: -0.01209167007 | AK125: -0.008795337152
B126: 1999-06-08 | C126: 0.0254 | D126: 0.002737850787 | E126: 1.012589086 | F126: 1.024818668 | G126: 0.8891504219 | H126: 0.9468889701 | I126: 1.05329841 | J126: 1.144404364 | K126: 1.154563201 | L126: 1.15381266 | M126: 1.041574214 | N126: 1.113491069 | O126: 0.9187439294 | P126: 6.954140999e-05 | Q126: -0.001159649275 | R126: -0.0008622727446 | S126: -0.008183741667 | T126: 0.001412775809 | U126: 0.007962622149 | V126: 0.008105885948 | W126: -0.002805601163 | X126: 0.00176717418 | Y126: -0.01499403196 | Z126: 0.002118745878 | AA126: 6.954140999e-05 | AB126: 0.01632629094 | AC126: 0.003352812698 | AD126: 0.002607376435 | AE126: 0.003855902557 | AF126: 0.003280860442 | AG126: -0.004589230533 | AH126: 0.004997285477 | AI126: 0.005096428325 | AJ126: 0.002176547817 | AK126: 0.003322442376
B127: 1999-06-09 | C127: 0.0254 | D127: 0.002737850787 | E127: 1.012659503 | F127: 1.019503949 | G127: 0.8872486049 | H127: 0.945711343 | I127: 1.0497156 | J127: 1.152799894 | K127: 1.15580561 | L127: 1.154479531 | M127: 1.023418791 | N127: 1.102506879 | O127: 0.9151393716 | P127: 6.954140999e-05 | Q127: -0.001161161939 | R127: -0.002611922737 | S127: -0.002010949042 | T127: 0.003287720247 | U127: 0.002588963992 | V127: -0.008492859861 | W127: 0.003176186594 | X127: 0.0008478701908 | Y127: 0.0001834627894 | Z127: -0.006965215732 | AA127: 6.954140999e-05 | AB127: -0.00518600928 | AC127: -0.002138914748 | AD127: -0.001243680245 | AE127: -0.003401514293 | AF127: 0.007336156841 | AG127: 0.001076085746 | AH127: 0.0005779717557 | AI127: -0.01743075332 | AJ127: -0.009864641601 | AK127: -0.003923354193
B128: 1999-06-10 | C128: 0.0254 | D128: 0.002737850787 | E128: 1.012729925 | F128: 1.0304306 | G128: 0.8983211923 | H128: 0.9527091053 | I128: 1.033626092 | J128: 1.145645544 | K128: 1.164274678 | L128: 1.151288206 | M128: 1.022904119 | N128: 1.103960263 | O128: 0.9134708665 | P128: 6.954140999e-05 | Q128: -0.003134229915 | R128: -0.009399264301 | S128: -0.008276516062 | T128: -0.01036069912 | U128: 0.01875900369 | V128: 0.01269440393 | W128: -0.005570429769 | X128: -0.003016665072 | Y128: 0.000740121888 | Z128: -0.005019689176 | AA128: 6.954140999e-05 | AB128: 0.01071761448 | AC128: 0.01247968979 | AD128: 0.007399469587 | AE128: -0.01532749251 | AF128: -0.006206064469 | AG128: 0.007327416033 | AH128: -0.002764297846 | AI128: -0.0005028944268 | AJ128: 0.001318254566 | AK128: -0.001823225074
B129: 1999-06-11 | C129: 0.0255 | D129: 0.002737850787 | E129: 1.012800351 | F129: 1.032416001 | G129: 0.8968944481 | H129: 0.9430589558 | I129: 1.030397824 | J129: 1.138141523 | K129: 1.159566115 | L129: 1.147949119 | M129: 1.016131551 | N129: 1.102231971 | O129: 0.8911154243 | P129: 6.954140999e-05 | Q129: -0.005616886143 | R129: -0.002408799441 | S129: -0.009870804335 | T129: 0.01574499043 | U129: 0.009628424401 | V129: -0.003575699185 | W129: 0.01392864147 | X129: -0.004249328118 | Y129: 0.0001830651335 | Z129: -0.004602958051 | AA129: 6.954140999e-05 | AB129: 0.001926769063 | AC129: -0.001588233898 | AD129: -0.01012916687 | AE129: -0.00312324597 | AF129: -0.006550037004 | AG129: -0.004044202754 | AH129: -0.002900305301 | AI129: -0.006620921612 | AJ129: -0.00156553879 | AK129: -0.02447307628
B130: 1999-06-14 | C130: 0.0255 | D130: 0.008213552361 | E130: 1.013012478 | F130: 1.074993998 | G130: 0.9162004377 | H130: 0.9427652737 | I130: 1.032115703 | J130: 1.128702649 | K130: 1.14199961 | L130: 1.148969502 | M130: 1.033971592 | N130: 1.084360078 | O130: 0.9091090441 | P130: 0.0002094455852 | Q130: 0.003193660739 | R130: 0.006244070183 | S130: 0.00155656604 | T130: -0.008573472409 | U130: 0.0006283494629 | V130: -0.008535004787 | W130: -0.001439801537 | X130: -0.002766704325 | Y130: 0.0004563085505 | Z130: 0.00398169869 | AA130: 0.0002094455852 | AB130: 0.04124112431 | AC130: 0.02152537523 | AD130: -0.0003114142871 | AE130: 0.001667200251 | AF130: -0.008293234193 | AG130: -0.01514920545 | AH130: 0.000888874662 | AI130: 0.01755682144 | AJ130: -0.01621427571 | AK130: 0.02019224373
B131: 1999-06-15 | C131: 0.0255 | D131: 0.002737850787 | E131: 1.013083202 | F131: 1.069500338 | G131: 0.9286325537 | H131: 0.9454987203 | I131: 1.033314637 | J131: 1.126042462 | K131: 1.135938273 | L131: 1.154412835 | M131: 1.035731774 | N131: 1.096341918 | O131: 0.902481372 | P131: 6.981519507e-05 | Q131: 0.001061456063 | R131: 0.002186613957 | S131: 0.006946401811 | T131: 0.004635034878 | U131: 0.002818818937 | V131: -0.0009640668096 | W131: -6.908339037e-05 | X131: 0.0001362486731 | Y131: -0.003245481052 | Z131: 0.00920818201 | AA131: 6.981519507e-05 | AB131: -0.005110409827 | AC131: 0.01356920995 | AD131: 0.002899392496 | AE131: 0.0011616273 | AF131: -0.002356853994 | AG131: -0.005307652211 | AH131: 0.004737578329 | AI131: 0.001702350538 | AJ131: 0.01104968791 | AK131: -0.007290293956
B132: 1999-06-16 | C132: 0.0256 | D132: 0.002737850787 | E132: 1.01315393 | F132: 1.074407355 | G132: 0.9138623833 | H132: 0.9428843491 | I132: 1.042306965 | J132: 1.134279663 | K132: 1.12081754 | L132: 1.166360445 | M132: 1.028356068 | N132: 1.093433568 | O132: 0.8951018713 | P132: 6.981519507e-05 | Q132: 0.001803467673 | R132: 0.000773924429 | S132: 0.0186502132 | T132: 0.009127401574 | U132: -0.001301219099 | V132: 0.0230549685 | W132: -0.01262540245 | X132: 0.00290762036 | Y132: 0.0001834829583 | Z132: 0.01190933489 | AA132: 6.981519507e-05 | AB132: 0.004588139806 | AC132: -0.01590529037 | AD132: -0.002765071072 | AE132: 0.008702409934 | AF132: 0.007315178413 | AG132: -0.01331122796 | AH132: 0.01034951237 | AI132: -0.007121251176 | AJ132: -0.002652776186 | AK132: -0.008176900821
B133: 1999-06-17 | C133: 0.0258 | D133: 0.002737850787 | E133: 1.013224941 | F133: 1.063276729 | G133: 0.9096871227 | H133: 0.9426827618 | I133: 1.038922104 | J133: 1.135533665 | K133: 1.132836553 | L133: 1.156023454 | M133: 1.03501921 | N133: 1.091399478 | O133: 0.9008346015 | P133: 7.008898015e-05 | Q133: 0.00921782527 | R133: 0.005933539314 | S133: 0.00937820202 | T133: 0.008782188593 | U133: 0.01163049694 | V133: 0.0138642394 | W133: 0.004642849767 | X133: 0.003512547688 | Y133: 0.0003694266153 | Z133: 0.01324422541 | AA133: 7.008898015e-05 | AB133: -0.0103597823 | AC133: -0.004568806735 | AD133: -0.0002137985606 | AE133: -0.003247469822 | AF133: 0.001105548725 | AG133: 0.01072343423 | AH133: -0.008862604092 | AI133: 0.006479411515 | AJ133: -0.001860278121 | AK133: 0.006404556108
B134: 1999-06-18 | C134: 0.026 | D134: 0.002737850787 | E134: 1.013296512 | F134: 1.064756075 | G134: 0.9156867516 | H134: 0.9340044796 | I134: 1.051701074 | J134: 1.144362838 | K134: 1.14277358 | L134: 1.154277668 | M134: 1.039224096 | N134: 1.099993304 | O134: 0.8951320464 | P134: 7.063655031e-05 | Q134: -0.003114301783 | R134: -0.001444975279 | S134: 0.0009922017645 | T134: 0.005043843541 | U134: -0.001990281664 | V134: 0.007853167367 | W134: 0.00742929267 | X134: 0.002276507331 | Y134: 0.0003697492444 | Z134: -0.001474407463 | AA134: 7.063655031e-05 | AB134: 0.001391308209 | AC134: 0.006595266307 | AD134: -0.009205941325 | AE134: 0.0123002194 | AF134: 0.007775351878 | AG134: 0.008771809577 | AH134: -0.001510164874 | AI134: 0.004062616556 | AJ134: 0.007874134865 | AK134: -0.006330302029
B135: 1999-06-21 | C135: 0.0267 | D135: 0.008213552361 | E135: 1.013512904 | F135: 1.061224659 | G135: 0.9042718467 | H135: 0.911134081 | I135: 1.037886662 | J135: 1.130862475 | K135: 1.142928941 | L135: 1.14297329 | M135: 1.039334552 | N135: 1.093483506 | O135: 0.8945532905 | P135: 0.0002135523614 | Q135: -0.003227831205 | R135: -0.007727430891 | S135: 0.002611732955 | T135: 0.01532212004 | U135: 0.01651340489 | V135: 0.01913229625 | W135: -0.006601152545 | X135: -0.0005107488145 | Y135: 0.001296015396 | Z135: 0.001097897808 | AA135: 0.0002135523614 | AB135: -0.003316643093 | AC135: -0.01246594956 | AD135: -0.02448639071 | AE135: -0.01313530278 | AF135: -0.01179727512 | AG135: 0.000135950942 | AH135: -0.009793464486 | AI135: 0.000106287306 | AJ135: -0.005918034911 | AK135: -0.0006465591925
B136: 1999-06-22 | C136: 0.0266 | D136: 0.002737850787 | E136: 1.013586992 | F136: 1.056402768 | G136: 0.9088792212 | H136: 0.907214344 | I136: 1.031373762 | J136: 1.114200216 | K136: 1.130607889 | L136: 1.150484583 | M136: 1.030951808 | N136: 1.087332696 | O136: 0.8971716444 | P136: 7.310061602e-05 | Q136: -0.00214654375 | R136: -0.00298702656 | S136: -0.007830108198 | T136: -0.004545135313 | U136: 0.004713796913 | V136: 0.005271280611 | W136: -0.0007234670622 | X136: -0.0006775517107 | Y136: 0.0001855476222 | Z136: -0.0008166165231 | AA136: 7.310061602e-05 | AB136: -0.004543703481 | AC136: 0.005095121051 | AD136: =NORMINV(RAND(),0,1)*AD$7*SQRT($D136)+$AB$8*($C136+AD$8) -> -0.004302041964 | AE136: -0.006275155053 | AF136: -0.01473411648 | AG136: -0.01078024344 | AH136: 0.006571712965 | AI136: -0.008065491695 | AJ136: -0.005624967708 | AK136: 0.002926995951
B137: 1999-06-23 | C137: 0.0223 | D137: 0.002737850787 | E137: 1.013660808 | F137: 1.043508121 | G137: 0.9222512723 | H137: 0.913982363 | I137: 1.041342304 | J137: 1.11177075 | K137: 1.123710275 | L137: 1.155225915 | M137: 1.04575718 | N137: 1.081407999 | O137: 0.8932238468 | P137: 7.282683094e-05 | Q137: -0.003634808464 | R137: -0.005239801809 | S137: -0.005115834419 | T137: -0.01410408108 | U137: -0.01148351604 | V137: -0.01303311453 | W137: 0.008940491357 | X137: -0.0004750591225 | Y137: 0.0001852394021 | Z137: -0.009268529839 | AA137: 7.282683094e-05 | AB137: -0.01220618442 | AC137: 0.01471268216 | AD137: 0.007460220469 | AE137: 0.009665304446 | AF137: -0.002180457125 | AG137: -0.006100801158 | AH137: 0.004121161362 | AI137: 0.01436087692 | AJ137: -0.005448836117 | AK137: -0.004400270058
B138: 1999-06-24 | C138: 0.0255 | D138: 0.002737850787 | E138: 1.013722697 | F138: 1.045856252 | G138: 0.9218849071 | H138: 0.9176616092 | I138: 1.048192916 | J138: 1.116968177 | K138: 1.132919835 | L138: 1.152350616 | M138: 1.042034751 | N138: 1.080468907 | O138: 0.9003462896 | P138: 6.105407255e-05 | Q138: -0.00241987139 | R138: -0.008247072415 | S138: -0.0070159076 | T138: -0.01431954452 | U138: 0.001443007835 | V138: -0.008136444144 | W138: -0.004598523326 | X138: -0.0003860238949 | Y138: 8.071249297e-05 | Z138: -0.004833894678 | AA138: 6.105407255e-05 | AB138: 0.002250226935 | AC138: -0.0003972510209 | AD138: 0.004025511122 | AE138: 0.006578636079 | AF138: 0.004674909245 | AG138: 0.008195671522 | AH138: -0.002488949833 | AI138: -0.003559554282 | AJ138: -0.0008683966627 | AK138: 0.007973860907
B139: 1999-06-25 | C139: 0.0258 | D139: 0.002737850787 | E139: 1.01379347 | F139: 1.042592323 | G139: 0.9241717963 | H139: 0.9222012059 | I139: 1.053805831 | J139: 1.121820465 | K139: 1.137862488 | L139: 1.148775499 | M139: 1.034686354 | N139: 1.086025317 | O139: 0.9060195124 | P139: 6.981519507e-05 | Q139: 0.001562085499 | R139: 0.004378397453 | S139: -0.002748802449 | T139: 0.002193437199 | U139: -0.001001875027 | V139: -0.009836367986 | W139: 0.001819785279 | X139: -0.0003786796473 | Y139: 0.0002749559478 | Z139: -0.007469782325 | AA139: 6.981519507e-05 | AB139: -0.003120819835 | AC139: 0.002480666697 | AD139: 0.004946918049 | AE139: 0.005354849052 | AF139: 0.004344159504 | AG139: 0.004362755997 | AH139: -0.003102456032 | AI139: -0.00705196878 | AJ139: 0.005142590485 | AK139: 0.006301156492
B140: 1999-06-28 | C140: 0.026 | D140: 0.008213552361 | E140: 1.014008302 | F140: 1.039869489 | G140: 0.9255088898 | H140: 0.9175385425 | I140: 1.051929353 | J140: 1.132365435 | K140: 1.120497916 | L140: 1.163034619 | M140: 1.022281615 | N140: 1.092718169 | O140: 0.8933130233 | P140: 0.0002119096509 | Q140: 0.003937556198 | R140: -0.0002648357779 | S140: 0.01150632645 | T140: 0.002063288151 | U140: 0.005918268074 | V140: 0.009415555821 | W140: -0.005550816803 | X140: 0.0006987254722 | Y140: 0.0004561342565 | Z140: 0.001101436492 | AA140: 0.0002119096509 | AB140: -0.002611599864 | AC140: 0.001446801901 | AD140: -0.005056015358 | AE140: -0.001780666809 | AF140: 0.009399872996 | AG140: -0.01526069498 | AH140: 0.0124124516 | AI140: -0.01198888801 | AJ140: 0.006162704173 | AK140: -0.01402452034
B141: 1999-06-29 | C141: 0.0266 | D141: 0.002737850787 | E141: 1.014080484 | F141: 1.036044494 | G141: 0.9239623629 | H141: 0.9102693601 | I141: 1.061594057 | J141: 1.112426778 | K141: 1.127889386 | L141: 1.17517953 | M141: 1.014251013 | N141: 1.100199771 | O141: 0.8943353928 | P141: 7.118412047e-05 | Q141: 0.002297963105 | R141: 0.003290297374 | S141: 0.009552876924 | T141: 0.003769690633 | U141: 0.005560155762 | V141: 0.005041068947 | W141: 0.006141470887 | X141: 0.00114853451 | Y141: 0.001294886545 | Z141: 0.004955193863 | AA141: 7.118412047e-05 | AB141: -0.003678340915 | AC141: -0.001671001587 | AD141: -0.007922481802 | AE141: 0.009187597442 | AF141: -0.01760797032 | AG141: 0.006596594921 | AH141: 0.01044243281 | AI141: -0.007855567494 | AJ141: 0.00684678067 | AK141: 0.00114446941
B142: 1999-06-30 | C142: 0.0276 | D142: 0.002737850787 | E142: 1.014154336 | F142: 1.025946936 | G142: 0.9201493787 | H142: 0.9145704672 | I142: 1.070407774 | J142: 1.114458251 | K142: 1.140887016 | L142: 1.177730624 | M142: 1.014368484 | N142: 1.104538446 | O142: 0.8986411999 | P142: 7.282683094e-05 | Q142: 0.008219556845 | R142: 0.001261267505 | S142: 0.01850045039 | T142: 0.001126536583 | U142: -0.006385296285 | V142: 0.004484736474 | W142: 0.02277645875 | X142: 0.002674151333 | Y142: -0.0006481674807 | Z142: 0.01055912389 | AA142: 7.282683094e-05 | AB142: -0.009746259502 | AC142: -0.004126774467 | AD142: 0.004725092759 | AE142: 0.008302342338 | AF142: 0.001826162884 | AG142: 0.01152385102 | AH142: 0.002170811844 | AI142: 0.0001158204583 | AJ142: 0.003943534282 | AK142: 0.00481453289
B143: 1999-07-01 | C143: 0.026 | D143: =(B143-B142)/365.25 -> 0.002737850787 | E143: =IF($F$2,E142*(1+P143),E142*(1+AA143)) -> 1.01423097 | F143: =IF($F$2,F142*(1+Q143),F142*(1+AB143)) -> 1.016701804 | G143: =IF($F$2,G142*(1+R143),G142*(1+AC143)) -> 0.9079990797 | H143: =IF($F$2,H142*(1+S143),H142*(1+AD143)) -> 0.9171687022 | I143: =IF($F$2,I142*(1+T143),I142*(1+AE143)) -> 1.071914792 | J143: =IF($F$2,J142*(1+U143),J142*(1+AF143)) -> 1.117631603 | K143: =IF($F$2,K142*(1+V143),K142*(1+AG143)) -> 1.135532093 | L143: =IF($F$2,L142*(1+W143),L142*(1+AH143)) -> 1.182144684 | M143: =IF($F$2,M142*(1+X143),M142*(1+AI143)) -> 1.011615994 | N143: =IF($F$2,N142*(1+Y143),N142*(1+AJ143)) -> 1.103949775 | O143: =IF($F$2,O142*(1+Z143),O142*(1+AK143)) -> 0.8939552958 | P143: 7.556468172e-05 | Q143: -0.002618076653 | R143: -0.005147381888 | S143: 0.007568228997 | T143: 0.0205889509 | U143: 0.02211290246 | V143: 0.01497686424 | W143: -0.004514377393 | X143: 0.003378988517 | Y143: 0.01000114703 | Z143: -0.0005199861316 | AA143: 7.556468172e-05 | AB143: -0.009011315352 | AC143: -0.01320470272 | AD143: 0.002840934742 | AE143: 0.001407891502 | AF143: 0.002847439849 | AG143: -0.004693648319 | AH143: 0.003747936986 | AI143: -0.002713501519 | AJ143: -0.000532957229 | AK143: -0.005214432728
B144: 1999-07-02 | C144: 0.0258 | D144: 0.002737850787 | E144: 1.014303167 | F144: 1.010664184 | G144: 0.9176735001 | H144: 0.9060876316 | I144: 1.065872931 | J144: 1.109916567 | K144: 1.138787306 | L144: 1.195215733 | M144: 0.9995167545 | N144: 1.100229001 | O144: 0.8902001359 | P144: 7.118412047e-05 | Q144: 0.0005622576211 | R144: -0.003150617809 | S144: 0.01005808086 | T144: 0.008316654374 | U144: 0.00887371568 | V144: 0.01041287074 | W144: -0.001674066203 | X144: -0.0003760074287 | Y144: -0.007610117541 | Z144: -0.00191578495 | AA144: 7.118412047e-05 | AB144: =NORMINV(RAND(),0,1)*AB$7*SQRT($D144)+$AB$8*($C144+AB$8) -> -0.005938437382 | AC144: 0.01065465883 | AD144: -0.01208182376 | AE144: -0.005636512245 | AF144: -0.00690302308 | AG144: 0.002866685227 | AH144: 0.01105706339 | AI144: -0.01196030828 | AJ144: -0.003370419495 | AK144: -0.004200612723
B145: 1999-07-05 | C145: 0.0257 | D145: 0.008213552361 | E145: 1.014518108 | F145: 1.018667522 | G145: 0.9379889078 | H145: 0.8797106222 | I145: 1.061035927 | J145: 1.112364191 | K145: 1.147896369 | L145: 1.203880777 | M145: 1.023894679 | N145: 1.077492691 | O145: 0.896481405 | P145: 0.0002119096509 | Q145: 0.0002119096509 | R145: 0.001289466173 | S145: 0.002705071811 | T145: 0.02142725838 | U145: 0.01830598556 | V145: 0.0161178416 | W145: -0.0002201610563 | X145: -0.0002201610563 | Y145: 0.0005467232163 | Z145: -0.0002201610563 | AA145: 0.0002119096509 | AB145: 0.007918889522 | AC145: 0.02213794742 | AD145: -0.02911088124 | AE145: -0.004538068835 | AF145: 0.002205232314 | AG145: 0.007998915181 | AH145: 0.007249773968 | AI145: 0.02438971035 | AJ145: -0.02066507048 | AK145: 0.007056019123
B146: 1999-07-06 | C146: 0.0256 | D146: 0.002737850787 | E146: 1.014589492 | F146: 1.018043829 | G146: 0.9462659704 | H146: 0.879394351 | I146: 1.054944918 | J146: 1.122883655 | K146: 1.144734797 | L146: 1.198080147 | M146: 1.029007671 | N146: 1.080284013 | O146: 0.8950853433 | P146: 7.036276523e-05 | Q146: -0.002138381594 | R146: -0.00543044277 | S146: -0.004367281703 | T146: -0.001933154476 | U146: -0.005224460822 | V146: -0.001404354357 | W146: -0.01479054314 | X146: -0.0003769776346 | Y146: 0.0003664832302 | Z146: 0.00723872285 | AA146: 7.036276523e-05 | AB146: -0.00061226352 | AC146: 0.008824264933 | AD146: -0.0003595173125 | AE146: -0.005740624621 | AF146: 0.009456853139 | AG146: -0.002754231548 | AH146: -0.004818275739 | AI146: 0.004993669968 | AJ146: 0.002590571716 | AK146: -0.001557267951
B147: 1999-07-07 | C147: 0.0254 | D147: 0.002737850787 | E147: 1.014660604 | F147: 1.020052022 | G147: 0.9494442606 | H147: 0.8841604857 | I147: 1.052568489 | J147: 1.12478541 | K147: 1.132266571 | L147: 1.196628123 | M147: 1.02869264 | N147: 1.087804126 | O147: 0.8924180492 | P147: 7.008898015e-05 | Q147: -0.001651625388 | R147: -0.006302847742 | S147: 0.0009602925751 | T147: -0.003942035853 | U147: -0.001077383261 | V147: -0.00332857533 | W147: 1.487747067e-05 | X147: 0.000431835852 | Y147: 0.001012043281 | Z147: -0.001542430576 | AA147: 7.008898015e-05 | AB147: 0.001972599632 | AC147: 0.003358770457 | AD147: 0.005419792327 | AE147: -0.002252656311 | AF147: 0.001693634954 | AG147: -0.01089180292 | AH147: -0.001211959318 | AI147: -0.000306150516 | AJ147: 0.006961236924 | AK147: -0.002979932684
B148: 1999-07-08 | C148: 0.0254 | D148: 0.002737850787 | E148: 1.014731165 | F148: 1.016269765 | G148: 0.9403041522 | H148: 0.8858861933 | I148: 1.05739206 | J148: 1.131144424 | K148: 1.116438582 | L148: 1.205339904 | M148: 1.02060787 | N148: 1.087796486 | O148: 0.8898349782 | P148: 6.954140999e-05 | Q148: 0.004258056365 | R148: 0.003094921194 | S148: 0.0004278654296 | T148: -0.00395874207 | U148: -0.005303073375 | V148: -0.00849863116 | W148: 0.002657999374 | X148: 0.001340817667 | Y148: 0.0001809843855 | Z148: -0.003474850253 | AA148: 6.954140999e-05 | AB148: -0.003707906393 | AC148: -0.009626798331 | AD148: 0.001951803536 | AE148: 0.00458266701 | AF148: 0.005653535292 | AG148: -0.01397903044 | AH148: 0.007280274379 | AI148: -0.007859266012 | AJ148: -7.023527345e-06 | AK148: -0.002894462943
B149: 1999-07-09 | C149: 0.0254 | D149: 0.002737850787 | E149: 1.014801731 | F149: 1.014418955 | G149: 0.9427197079 | H149: 0.8925446692 | I149: 1.050061289 | J149: 1.126520644 | K149: 1.119676087 | L149: 1.210701806 | M149: 1.017749029 | N149: 1.08879823 | O149: 0.8854337637 | P149: 6.954140999e-05 | Q149: -0.0006665254752 | R149: -0.0008956602224 | S149: 0.006472289162 | T149: 0.004873032299 | U149: -0.00312114511 | V149: 0.004282537092 | W149: 0.0008797872207 | X149: 0.0007331511361 | Y149: 0.0001810023467 | Z149: -0.004041074336 | AA149: 6.954140999e-05 | AB149: -0.001821179176 | AC149: 0.002568908894 | AD149: 0.007516175274 | AE149: -0.006932878695 | AF149: -0.004087701339 | AG149: 0.002899849897 | AH149: 0.004448456878 | AI149: -0.002801116412 | AJ149: 0.0009208928335 | AK149: -0.004946101931
B150: 1999-07-12 | C150: 0.0254 | D150: 0.008213552361 | E150: 1.015013443 | F150: 1.006383639 | G150: 0.9419731857 | H150: 0.9084114652 | I150: 1.033872061 | J150: 1.113516628 | K150: 1.099108594 | L150: 1.233833466 | M150: 1.016609056 | N150: 1.105232326 | O150: 0.8863769294 | P150: 0.00020862423 | Q150: 0.006593457088 | R150: 0.008059555346 | S150: -0.003325614479 | T150: 0.00020862423 | U150: 0.01365662118 | V150: -0.008386247143 | W150: -0.002562872202 | X150: 0.002197983216 | Y150: 0.0006350155555 | Z150: -0.01704831783 | AA150: 0.00020862423 | AB150: -0.007921102252 | AC150: -0.000791881343 | AD150: 0.01777703294 | AE150: -0.015417413 | AF150: -0.01154352172 | AG150: -0.01836914542 | AH150: 0.01910599226 | AI150: -0.001120092009 | AJ150: 0.01509379384 | AK150: 0.001065201789
B151: 1999-07-13 | C151: 0.0255 | D151: 0.002737850787 | E151: 1.015084028 | F151: 0.9937078393 | G151: 0.9418668304 | H151: 0.8977161921 | I151: 1.033378117 | J151: 1.117942052 | K151: 1.099840779 | L151: 1.232173363 | M151: 1.012031487 | N151: 1.112866088 | O151: 0.8852802706 | P151: 6.954140999e-05 | Q151: 0.001533414854 | R151: -0.0002899372174 | S151: -0.00365532617 | T151: -0.01502437253 | U151: -0.0002118659007 | V151: -0.008117050478 | W151: 0.001984600571 | X151: 0.002038855966 | Y151: 0.0001806934389 | Z151: 0.0005240998481 | AA151: 6.954140999e-05 | AB151: -0.01259539544 | AC151: -0.0001129069157 | AD151: -0.01177359987 | AE151: -0.0004777609833 | AF151: 0.003974277071 | AG151: 0.0006661625314 | AH151: -0.001345483296 | AI151: -0.004502782731 | AJ151: 0.006906929611 | AK151: -0.001237237522
B152: 1999-07-14 | C152: 0.0256 | D152: 0.002737850787 | E152: 1.015154897 | F152: 0.9851243129 | G152: 0.931779672 | H152: 0.895526016 | I152: 1.027867868 | J152: 1.118856557 | K152: 1.102090447 | L152: 1.233295244 | M152: 1.015343342 | N152: 1.107234644 | O152: 0.876238531 | P152: 6.981519507e-05 | Q152: -0.001635541372 | R152: 0.001268508489 | S152: 0.003987866593 | T152: 0.002367395203 | U152: 0.00908513771 | V152: -0.00521785954 | W152: 0.00047647474 | X152: 0.0006288471478 | Y152: 0.004416601198 | Z152: 0.006708331621 | AA152: 6.981519507e-05 | AB152: -0.00863787735 | AC152: -0.01070975009 | AD152: -0.002439719905 | AE152: -0.005332267576 | AF152: 0.0008180252916 | AG152: 0.002045449031 | AH152: 0.0009104896694 | AI152: 0.003272482719 | AJ152: -0.005060307004 | AK152: -0.01021342036
B153: 1999-07-15 | C153: 0.0259 | D153: 0.002737850787 | E153: 1.015226048 | F153: 0.9682904937 | G153: 0.9316272946 | H153: 0.8931585988 | I153: 1.013025106 | J153: 1.124089685 | K153: 1.107338358 | L153: 1.239459596 | M153: 1.01782546 | N153: 1.117246605 | O153: 0.8779511958 | P153: 7.008898015e-05 | Q153: 0.0005581661344 | R153: -0.009148802059 | S153: 0.00733994035 | T153: 0.008735276799 | U153: 0.009859164926 | V153: 0.009029291627 | W153: 0.01005679055 | X153: 0.0007289755483 | Y153: 0.0001805321371 | Z153: 0.0009340471175 | AA153: 7.008898015e-05 | AB153: -0.01708801511 | AC153: -0.0001635337759 | AD153: -0.002643605181 | AE153: -0.01444034098 | AF153: 0.004677210647 | AG153: 0.004761778868 | AH153: 0.004998277136 | AI153: 0.002444609141 | AJ153: 0.009042311859 | AK153: 0.001954564571
B154: 1999-07-16 | C154: 0.0262 | D154: 0.002737850787 | E154: 1.015298038 | F154: 0.9789285027 | G154: 0.9340368983 | H154: 0.9104116829 | I154: 0.9968599707 | J154: 1.124678946 | K154: 1.092045137 | L154: 1.247780666 | M154: 1.030045681 | N154: 1.108496046 | O154: 0.8802307401 | P154: 7.091033539e-05 | Q154: 0.002997947146 | R154: 0.004179466516 | S154: 0.005711871707 | T154: -0.001446155939 | U154: -0.003041892614 | V154: -0.0007004333472 | W154: -0.0006858190279 | X154: 0.002333438138 | Y154: 0.0001812158011 | Z154: -0.001355389114 | AA154: 7.091033539e-05 | AB154: 0.01098638178 | AC154: 0.002586446032 | AD154: 0.01931693221 | AE154: -0.01595728984 | AF154: 0.0005242116866 | AG154: -0.01381079308 | AH154: 0.006713466306 | AI154: 0.01200620529 | AJ154: -0.007832253465 | AK154: 0.002596436271
B155: 1999-07-19 | C155: 0.0263 | D155: 0.008213552361 | E155: 1.015516525 | F155: 0.9627936335 | G155: 0.9447356996 | H155: 0.8893761552 | I155: 1.001890307 | J155: 1.109182331 | K155: 1.086472248 | L155: 1.253792465 | M155: 1.017677688 | N155: 1.088870868 | O155: 0.8579121463 | P155: 0.0002151950719 | Q155: 0.0007016810617 | R155: 0.002141000502 | S155: -0.00644644188 | T155: -0.0002883554406 | U155: 0.006168179457 | V155: 0.005259450977 | W155: 0.005273881564 | X155: 0.001784266069 | Y155: 0.0005441830071 | Z155: 0.003264659876 | AA155: 0.0002151950719 | AB155: -0.01648217332 | AC155: 0.01145436682 | AD155: -0.0231055116 | AE155: 0.005046181504 | AF155: -0.01377870058 | AG155: -0.00510316686 | AH155: 0.004817993657 | AI155: -0.01200722819 | AJ155: -0.01770432823 | AK155: -0.02535539019
B156: 1999-07-20 | C156: 0.0263 | D156: 0.002737850787 | E156: 1.015589648 | F156: 0.9789701028 | G156: 0.9421377501 | H156: 0.8862237445 | I156: 1.019496037 | J156: 1.109082445 | K156: 1.080910732 | L156: 1.254416769 | M156: 1.014074087 | N156: 1.080520251 | O156: 0.858739975 | P156: 7.20054757e-05 | Q156: 0.001044365228 | R156: 0.005357036492 | S156: -0.02143832677 | T156: -0.02195509312 | U156: 6.947057097e-05 | V156: -0.007041841261 | W156: -0.009490827675 | X156: 0.002024483958 | Y156: -1.888733593e-06 | Z156: -0.0040270047 | AA156: 7.20054757e-05 | AB156: 0.01680159559 | AC156: -0.002749921961 | AD156: -0.003544519054 | AE156: 0.01757251204 | AF156: -9.005352203e-05 | AG156: -0.005118875759 | AH156: 0.0004979325574 | AI156: -0.0035410036 | AJ156: -0.007669061102 | AK156: 0.0009649342028
B157: 1999-07-21 | C157: 0.026 | D157: 0.002737850787 | E157: 1.015662776 | F157: 0.9865522542 | G157: 0.9532369625 | H157: 0.8853815799 | I157: 1.018855732 | J157: 1.096232145 | K157: 1.093645718 | L157: 1.26183041 | M157: 1.014933925 | N157: 1.088261615 | O157: 0.8553029927 | P157: 7.20054757e-05 | Q157: -0.000413702152 | R157: 0.003775975866 | S157: -0.001365903264 | T157: -0.01727297908 | U157: -0.0104189662 | V157: -0.005920913287 | W157: 0.004403872881 | X157: -0.001566139364 | Y157: 0.001097192141 | Z157: -0.003363176136 | AA157: 7.20054757e-05 | AB157: 0.007745028578 | AC157: 0.01178088063 | AD157: -0.0009502843987 | AE157: -0.0006280598601 | AF157: -0.01158642468 | AG157: 0.01178171871 | AH157: 0.005910029581 | AI157: 0.0008479040583 | AJ157: 0.007164478434 | AK157: -0.004002355095
B158: 1999-07-22 | C158: 0.0204 | D158: 0.002737850787 | E158: 1.015735075 | F158: 0.9871543928 | G158: 0.9487545422 | H158: 0.9045688607 | I158: 1.016739575 | J158: 1.082053333 | K158: 1.104114662 | L158: 1.275373892 | M158: 1.009922711 | N158: 1.08573828 | O158: 0.8551885257 | P158: 7.118412047e-05 | Q158: -0.006732021214 | R158: -0.003857199295 | S158: -0.01273943067 | T158: -0.005725673713 | U158: -0.0273200521 | V158: -0.004934277406 | W158: 0.01562990269 | X158: -0.000870509172 | Y158: -0.001100487873 | Z158: -0.00403498632 | AA158: 7.118412047e-05 | AB158: 0.0006103463586 | AC158: -0.004702314806 | AD158: 0.0216711995 | AE158: -0.002076993601 | AF158: -0.01293413277 | AG158: 0.009572518376 | AH158: 0.01073320337 | AI158: -0.004937478241 | AJ158: -0.002318684092 | AK158: -0.0001338321653
B159: 1999-07-23 | C159: 0.0187 | D159: 0.002737850787 | E159: 1.015791806 | F159: 0.9982036736 | G159: 0.9462900447 | H159: 0.9008035056 | I159: 1.007987871 | J159: 1.068549673 | K159: 1.107048291 | L159: 1.27344098 | M159: 1.005978127 | N159: 1.087856103 | O159: 0.8667350005 | P159: 5.585215606e-05 | Q159: -0.00361362871 | R159: -0.00209531961 | S159: -0.00360389036 | T159: -0.01425383432 | U159: -0.0153916482 | V159: -0.02394230385 | W159: 0.018906083 | X159: -0.00298312248 | Y159: 7.434638951e-05 | Z159: -0.005926742291 | AA159: 5.585215606e-05 | AB159: 0.0111930625 | AC159: -0.002597613382 | AD159: -0.004162596413 | AE159: -0.00860761606 | AF159: -0.01247966216 | AG159: 0.002656997177 | AH159: -0.001515565085 | AI159: -0.003905827647 | AJ159: 0.001950583526 | AK159: 0.01350167187
B160: 1999-07-26 | C160: 0.0257 | D160: 0.008213552361 | E160: 1.015947825 | F160: 0.9672913074 | G160: 0.9419911926 | H160: 0.8816739059 | I160: 1.02059802 | J160: 1.070932419 | K160: 1.113431925 | L160: 1.257985294 | M160: 0.9910953644 | N160: 1.086276502 | O160: 0.8570222407 | P160: 0.0001535934292 | Q160: -0.0008286345045 | R160: 0.002070055405 | S160: -0.005716162177 | T160: -0.01060180136 | U160: 3.129955563e-05 | V160: -0.01995811172 | W160: -0.0067548725 | X160: -0.005385249967 | Y160: -0.006110491256 | Z160: -0.002956636929 | AA160: 0.0001535934292 | AB160: -0.03096799485 | AC160: -0.004542848256 | AD160: -0.0212361515 | AE160: 0.01251021911 | AF160: 0.002229887866 | AG160: 0.005766355425 | AH160: -0.0121369474 | AI160: -0.01479432003 | AJ160: -0.001452031908 | AK160: -0.01120614706
B161: 1999-07-27 | C161: 0.0259 | D161: 0.002737850787 | E161: 1.01601931 | F161: 0.9571832767 | G161: 0.9451332951 | H161: 0.8784911834 | I161: 1.034405622 | J161: 1.071217009 | K161: 1.100905844 | L161: 1.254770195 | M161: 0.9862867592 | N161: 1.073576482 | O161: 0.8590851878 | P161: 7.036276523e-05 | Q161: 0.002036586138 | R161: -0.001244575555 | S161: 0.006710610269 | T161: 0.001430088613 | U161: -0.001443832722 | V161: 0.00403944232 | W161: -0.007973584051 | X161: -0.002791118756 | Y161: -2.628481391e-06 | Z161: 0.009116363652 | AA161: 7.036276523e-05 | AB161: -0.01044983096 | AC161: 0.003335596384 | AD161: -0.003609863617 | AE161: 0.01352893289 | AF161: 0.0002657408045 | AG161: -0.01124997465 | AH161: -0.002555751906 | AI161: -0.004851808763 | AJ161: -0.01169133266 | AK161: 0.002407110412
B162: 1999-07-28 | C162: 0.0258 | D162: 0.002737850787 | E162: 1.016091356 | F162: 0.9512075247 | G162: 0.9373497601 | H162: 0.8840424744 | I162: 1.026055635 | J162: 1.055796712 | K162: 1.103877779 | L162: 1.270657032 | M162: 0.9860947573 | N162: 1.065284368 | O162: 0.8607523503 | P162: 7.091033539e-05 | Q162: 7.091033539e-05 | R162: 0.0005496995205 | S162: 0.003009988914 | T162: 0.0003424864108 | U162: 0.01137403698 | V162: 0.01093740132 | W162: 0.0003752255011 | X162: 0.0007344153489 | Y162: -0.0001864273326 | Z162: 0.003122740622 | AA162: 7.091033539e-05 | AB162: -0.006243059364 | AC162: -0.008235383308 | AD162: 0.006319119826 | AE162: -0.008072256917 | AF162: -0.01439511978 | AG162: 0.002699535704 | AH162: 0.01266115225 | AI162: -0.0001946714577 | AJ162: -0.007723821713 | AK162: 0.001940625311
B163: 1999-07-29 | C163: 0.0258 | D163: 0.002737850787 | E163: 1.016163129 | F163: 0.9560001495 | G163: 0.9457882035 | H163: 0.8832478553 | I163: 1.03240297 | J163: 1.055242826 | K163: 1.101981909 | L163: 1.250829701 | M163: 0.9839966137 | N163: 1.077635576 | O163: 0.8577765626 | P163: 7.063655031e-05 | Q163: -0.004099390632 | R163: -0.006031002697 | S163: -0.01309674662 | T163: -0.03140126809 | U163: 0.01206579171 | V163: -0.0004411343164 | W163: 0.009306421112 | X163: -0.00229183203 | Y163: -0.003780761732 | Z163: -0.002566300907 | AA163: 7.063655031e-05 | AB163: 0.005038463969 | AC163: 0.009002449009 | AD163: -0.000898847181 | AE163: 0.006186151073 | AF163: -0.0005246147718 | AG163: -0.001717463601 | AH163: -0.0156039988 | AI163: -0.002127730215 | AJ163: 0.01159428205 | AK163: -0.003457193846
B164: 1999-07-30 | C164: 0.0258 | D164: 0.002737850787 | E164: 1.016234907 | F164: 0.9605237679 | G164: 0.9540059374 | H164: 0.8742941015 | I164: 1.045719357 | J164: 1.058569605 | K164: 1.11271701 | L164: 1.249745442 | M164: 0.9809626661 | N164: 1.085013925 | O164: 0.8561364812 | P164: 7.063655031e-05 | Q164: -0.001899945985 | R164: -0.004503591205 | S164: -0.01326576923 | T164: 0.01827850348 | U164: 0.007704338148 | V164: -0.007413647405 | W164: -0.007694269346 | X164: -0.001892491553 | Y164: 0.0001825856644 | Z164: 4.422448953e-05 | AA164: 7.063655031e-05 | AB164: 0.004731817692 | AC164: 0.008688767537 | AD164: -0.01013730606 | AE164: 0.01289843932 | AF164: 0.003152619375 | AG164: =NORMINV(RAND(),0,1)*AG$7*SQRT($D164)+$AB$8*($C164+AG$8) -> 0.00974163047 | AH164: -0.0008668320442 | AI164: -0.003083290727 | AJ164: 0.006846794672 | AK164: -0.001912014687
B165: 1999-08-02 | C165: 0.0258 | D165: 0.008213552361 | E165: 1.016450257 | F165: 0.9557850548 | G165: 0.9514278355 | H165: 0.8842592393 | I165: 1.050830864 | J165: 1.063755646 | K165: 1.12342396 | L165: 1.270238445 | M165: 0.9936938701 | N165: 1.079794447 | O165: 0.8362467367 | P165: 0.0002119096509 | Q165: -0.0002817783598 | R165: -0.004504930068 | S165: 0.003593238459 | T165: 0.004338926077 | U165: -0.006770049181 | V165: -0.01706787377 | W165: 0.01004837561 | X165: -0.006398267674 | Y165: 0.0006402026322 | Z165: -0.007067444821 | AA165: 0.0002119096509 | AB165: -0.004933467886 | AC165: -0.002702396058 | AD165: 0.01139792408 | AE165: 0.004888029761 | AF165: 0.00489910296 | AG165: 0.009622348067 | AH165: 0.01639774188 | AI165: 0.01297827578 | AJ165: -0.004810517324 | AK165: -0.02323197862
B166: 1999-08-03 | C166: 0.0255 | D166: 0.002737850787 | E166: 1.016522056 | F166: 0.950081833 | G166: 0.938740287 | H166: 0.8740685102 | I166: 1.057081414 | J166: 1.073664641 | K166: 1.131054791 | L166: 1.273123075 | M166: 0.9954931807 | N166: 1.070944699 | O166: 0.8309733485 | P166: 7.063655031e-05 | Q166: -0.001164018557 | R166: -0.0005368659625 | S166: -0.005538405278 | T166: -0.009793399054 | U166: 0.009172119892 | V166: 0.007353820322 | W166: 0.002780200697 | X166: -0.003843509954 | Y166: -0.001666249303 | Z166: -0.008450463026 | AA166: 7.063655031e-05 | AB166: -0.005967054827 | AC166: -0.01333527143 | AD166: -0.01152459447 | AE166: 0.005948198272 | AF166: 0.009315104626 | AG166: 0.006792476532 | AH166: 0.002270935572 | AI166: 0.001810729346 | AJ166: -0.008195770781 | AK166: -0.006306019549
B167: 1999-08-04 | C167: 0.0254 | D167: 0.002737850787 | E167: 1.016593025 | F167: 0.950736106 | G167: 0.9403400929 | H167: 0.8712409774 | I167: 1.073234932 | J167: 1.067955826 | K167: 1.120187445 | L167: 1.288508422 | M167: 0.9836561127 | N167: 1.082807558 | O167: 0.8226956315 | P167: 6.981519507e-05 | Q167: 0.0003170512433 | R167: 0.0009208349746 | S167: -0.01479613316 | T167: -0.003803684329 | U167: -0.01498908295 | V167: 1.304023603e-05 | W167: 0.01097083864 | X167: -0.004779168274 | Y167: -0.0005588655539 | Z167: -0.002959334245 | AA167: 6.981519507e-05 | AB167: 0.000688649125 | AC167: 0.001704204953 | AD167: -0.003234909769 | AE167: 0.015281243 | AF167: -0.005317131094 | AG167: -0.009608151359 | AH167: 0.01208472931 | AI167: -0.01189065704 | AJ167: 0.01107700373 | AK167: -0.009961471078
B168: 1999-08-05 | C168: 0.0253 | D168: 0.002737850787 | E168: 1.01666372 | F168: 0.9563771267 | G168: 0.9559475666 | H168: 0.8605814029 | I168: 1.079932934 | J168: 1.075245479 | K168: 1.107891728 | L168: 1.292741863 | M168: 0.9791767389 | N168: 1.080760693 | O168: 0.8054887144 | P168: 6.954140999e-05 | Q168: 0.00352998965 | R168: -0.005518117876 | S168: 0.009427150099 | T168: -0.02659767152 | U168: -0.01956920439 | V168: -0.01431489106 | W168: 0.002526011832 | X168: 2.755951313e-05 | Y168: -0.002504584688 | Z168: -0.005839029728 | AA168: 6.954140999e-05 | AB168: 0.005933319171 | AC168: 0.01659769042 | AD168: -0.01223493244 | AE168: 0.006240946502 | AF168: 0.006825800144 | AG168: -0.01097648165 | AH168: 0.00328553606 | AI168: -0.004553800598 | AJ168: -0.001890331121 | AK168: -0.0209152893
B169: 1999-08-06 | C169: 0.0253 | D169: 0.002737850787 | E169: 1.016734142 | F169: 0.960510438 | G169: 0.9560945453 | H169: 0.8580162042 | I169: 1.08049849 | J169: 1.068487543 | K169: 1.11695886 | L169: 1.291241055 | M169: 0.9793512638 | N169: 1.081363372 | O169: 0.8090631441 | P169: 6.926762491e-05 | Q169: -0.008798341645 | R169: -0.005305478653 | S169: -0.01147339406 | T169: 0.007773842443 | U169: -0.007153938535 | V169: -0.009472953431 | W169: 0.006392172704 | X169: -0.003568583287 | Y169: -0.0008393922279 | Z169: 0.000285530912 | AA169: 6.926762491e-05 | AB169: 0.004321842459 | AC169: 0.0001537518105 | AD169: -0.002980774064 | AE169: 0.0005236954834 | AF169: -0.00628501667 | AG169: 0.008184131653 | AH169: -0.001160949973 | AI169: 0.0001782362913 | AJ169: 0.000557643861 | AK169: 0.004437591309
B170: 1999-08-09 | C170: 0.0253 | D170: 0.008213552361 | E170: 1.016945422 | F170: 0.98568664 | G170: 0.9447381678 | H170: 0.8738595243 | I170: 1.090820748 | J170: 1.058379808 | K170: 1.107357312 | L170: 1.278020688 | M170: 0.9697223511 | N170: 1.068076189 | O170: 0.8027988456 | P170: 0.0002078028747 | Q170: -0.005260530044 | R170: 0.004015544725 | S170: -0.001705443045 | T170: 0.01975315505 | U170: 0.002909054439 | V170: 0.004684864646 | W170: 0.008189435533 | X170: -0.001566834509 | Y170: -0.0001035319444 | Z170: -0.000937175164 | AA170: 0.0002078028747 | AB170: 0.0262112737 | AC170: -0.01187788123 | AD170: 0.01846505936 | AE170: 0.009553237045 | AF170: -0.009459852819 | AG170: -0.00859615189 | AH170: -0.01023849613 | AI170: -0.009831929632 | AJ170: -0.01228743584 | AK170: -0.00774265709
B171: 1999-08-10 | C171: 0.0254 | D171: 0.002737850787 | E171: 1.017015863 | F171: 0.9803981481 | G171: 0.9425624508 | H171: 0.8713725453 | I171: 1.094094959 | J171: 1.056982542 | K171: 1.113649787 | L171: 1.280314301 | M171: 0.9728602636 | N171: 1.074216981 | O171: 0.8051154569 | P171: 6.926762491e-05 | Q171: -0.000930301858 | R171: -0.0001754275715 | S171: -0.009906949881 | T171: -0.01882082064 | U171: -0.0001332307001 | V171: 0.002470537401 | W171: 0.0006265732346 | X171: -0.004722125016 | Y171: 0.0001823710631 | Z171: -0.005766260926 | AA171: 6.926762491e-05 | AB171: -0.005365287222 | AC171: -0.002302984183 | AD171: -0.002845971171 | AE171: 0.003001602554 | AF171: -0.001320193112 | AG171: 0.005682424572 | AH171: 0.001794659854 | AI171: 0.003235887603 | AJ171: 0.00574939522 | AK171: 0.002885668428
B172: 1999-08-11 | C172: 0.0255 | D172: 0.002737850787 | E172: 1.017086588 | F172: 0.9876623797 | G172: 0.9462150795 | H172: 0.866084277 | I172: 1.09435877 | J172: 1.050869034 | K172: 1.115157633 | L172: 1.292392033 | M172: 0.9716802863 | N172: 1.072918266 | O172: 0.8014326027 | P172: 6.954140999e-05 | Q172: 0.002570965976 | R172: 0.002884225631 | S172: 0.0105292961 | T172: 0.002336259924 | U172: -0.002465271331 | V172: -0.004856134399 | W172: 0.002915914405 | X172: -0.001113677038 | Y172: -3.293654712e-06 | Z172: 0.01159945753 | AA172: 6.954140999e-05 | AB172: 0.007409470946 | AC172: 0.003875211383 | AD172: -0.00606889482 | AE172: 0.0002411228943 | AF172: -0.005783925237 | AG172: 0.001353968236 | AH172: 0.009433411926 | AI172: -0.001212894977 | AJ172: -0.001208988412 | AK172: -0.004574318003
B173: 1999-08-12 | C173: 0.0256 | D173: 0.002737850787 | E173: 1.017157596 | F173: 0.9916879099 | G173: 0.947362775 | H173: 0.8686261941 | I173: 1.097104485 | J173: 1.054751361 | K173: 1.114209693 | L173: 1.310809227 | M173: 0.9637532797 | N173: 1.082868702 | O173: 0.799296308 | P173: 6.981519507e-05 | Q173: 6.981519507e-05 | R173: 0.006049488282 | S173: 0.0006487268102 | T173: 0.03057804088 | U173: 0.01259429292 | V173: 0.007956339276 | W173: -0.008990244498 | X173: 0.001169697488 | Y173: 8.993226598e-05 | Z173: 0.004938362136 | AA173: 6.981519507e-05 | AB173: 0.004075816069 | AC173: 0.001212932972 | AD173: 0.002934953552 | AE173: 0.002508971025 | AF173: 0.003694395943 | AG173: -0.0008500500367 | AH173: 0.01425047004 | AI173: -0.008158039885 | AJ173: 0.009274179694 | AK173: -0.002665595045
B174: 1999-08-13 | C174: 0.0257 | D174: 0.002737850787 | E174: 1.017228888 | F174: 0.9906899249 | G174: 0.9450727975 | H174: 0.8649632532 | I174: 1.089855032 | J174: 1.067115347 | K174: 1.113084236 | L174: 1.313344976 | M174: 0.9562735572 | N174: 1.080344088 | O174: 0.7972144775 | P174: 7.008898015e-05 | Q174: 0.006807088083 | R174: 0.001040559712 | S174: 0.02172539402 | T174: 0.0244693631 | U174: 0.002888964488 | V174: 0.003150857222 | W174: 0.006807024699 | X174: 0.003138383697 | Y174: -0.01598597352 | Z174: 0.004956599277 | AA174: 7.008898015e-05 | AB174: -0.001006349873 | AC174: -0.002417212848 | AD174: -0.004216935774 | AE174: -0.006607805116 | AF174: 0.01172218063 | AG174: -0.001010094768 | AH174: 0.001934491288 | AI174: -0.007761034588 | AJ174: -0.002331412881 | AK174: -0.002604579153
B175: 1999-08-16 | C175: 0.0257 | D175: 0.008213552361 | E175: 1.017443613 | F175: 1.009097049 | G175: 0.9519930426 | H175: 0.8503483955 | I175: 1.103043721 | J175: 1.075614702 | K175: 1.121249788 | L175: 1.324223622 | M175: 0.9614269234 | N175: 1.095030372 | O175: 0.8103179874 | P175: 0.0002110882957 | Q175: 0.0007068558735 | R175: -0.001970661533 | S175: 0.005086121105 | T175: -0.002731941618 | U175: 0.01824711996 | V175: 0.01022976483 | W175: -0.004340135101 | X175: 0.002252451768 | Y175: -0.0004797843736 | Z175: 0.002162405304 | AA175: 0.0002110882957 | AB175: 0.01858010586 | AC175: 0.007322446564 | AD175: -0.01689650704 | AE175: 0.01210132421 | AF175: 0.007964795259 | AG175: 0.007335969559 | AH175: 0.00828315968 | AI175: 0.005389008313 | AJ175: 0.01359407993 | AK175: 0.01643661819
B176: 1999-08-17 | C176: 0.0255 | D176: 0.002737850787 | E176: 1.017515203 | F176: 1.011719305 | G176: 0.9512981956 | H176: 0.846644909 | I176: 1.113370443 | J176: 1.082638163 | K176: 1.112168181 | L176: 1.314338045 | M176: 0.9696764464 | N176: 1.103224157 | O176: 0.8105732188 | P176: 7.036276523e-05 | Q176: 0.005520337494 | R176: 0.002742399197 | S176: 0.005665781302 | T176: 0.008121660217 | U176: 0.003909305402 | V176: -0.006028959722 | W176: 0.007236665242 | X176: 0.005079253872 | Y176: 0.0001864703347 | Z176: 0.0079491224 | AA176: 7.036276523e-05 | AB176: 0.002598616932 | AC176: -0.0007298866143 | AD176: -0.004355257858 | AE176: 0.009362024465 | AF176: 0.006529718599 | AG176: -0.008099539353 | AH176: -0.007465186855 | AI176: 0.008580499285 | AJ176: 0.007482700869 | AK176: 0.0003149768052
B177: 1999-08-18 | C177: 0.0216 | D177: 0.002737850787 | E177: 1.017586241 | F177: 1.017771639 | G177: 0.9418384016 | H177: 0.8474209712 | I177: 1.106237751 | J177: 1.071445544 | K177: 1.113106893 | L177: 1.299694609 | M177: 0.9526895209 | N177: 1.089514338 | O177: 0.8070330384 | P177: 6.981519507e-05 | Q177: 0.0005625817953 | R177: 0.002734729916 | S177: -0.009210661892 | T177: -0.003657238727 | U177: 0.00298280147 | V177: -0.003923638136 | W177: -0.004502037124 | X177: 0.002179729196 | Y177: 0.001791800895 | Z177: -0.003199856881 | AA177: 6.981519507e-05 | AB177: 0.005982226139 | AC177: -0.00994408908 | AD177: 0.0009166324349 | AE177: -0.00640639607 | AF177: -0.01033828279 | AG177: 0.0008440376023 | AH177: -0.01114130129 | AI177: -0.01751813768 | AJ177: -0.0124270474 | AK177: -0.004367502382
B178: 1999-08-19 | C178: 0.0185 | D178: 0.002737850787 | E178: 1.017646419 | F178: 1.021385877 | G178: 0.9306005701 | H178: 0.8460058837 | I178: 1.114023733 | J178: 1.083535444 | K178: 1.115219381 | L178: 1.303804567 | M178: 0.9429351232 | N178: 1.081344316 | O178: 0.8230832579 | P178: 5.9137577e-05 | Q178: -0.00166467773 | R178: 0.0005423746573 | S178: -0.005557204883 | T178: -0.01651244756 | U178: -0.002027837044 | V178: -0.002983285433 | W178: 0.006318889297 | X178: 0.00103796194 | Y178: 0.0008361278567 | Z178: 0.001162990759 | AA178: 5.9137577e-05 | AB178: 0.003551129165 | AC178: -0.01193180434 | AD178: -0.001669875486 | AE178: 0.007038253594 | AF178: 0.01128372839 | AG178: 0.001897830503 | AH178: 0.003162249075 | AI178: -0.01023880028 | AJ178: -0.007498774633 | AK178: 0.01988793363
B179: 1999-08-20 | C179: 0.0194 | D179: 0.002737850787 | E179: 1.017697963 | F179: 1.019726737 | G179: 0.9218648429 | H179: 0.8486039272 | I179: 1.114413935 | J179: 1.089133235 | K179: 1.10711011 | L179: 1.308351288 | M179: 0.9523640853 | N179: 1.077586971 | O179: 0.8226325999 | P179: 5.065023956e-05 | Q179: 0.001037380038 | R179: 0.003793897059 | S179: 0.01041211496 | T179: 0.00929020517 | U179: 0.01603949825 | V179: 0.009051700134 | W179: -0.004576729726 | X179: -0.001528268781 | Y179: 7.308685441e-05 | Z179: -0.01199206456 | AA179: 5.065023956e-05 | AB179: -0.001624401422 | AC179: -0.009387193064 | AD179: 0.003070952049 | AE179: 0.0003502633748 | AF179: 0.005166227564 | AG179: -0.007271458017 | AH179: 0.003487271765 | AI179: 0.009999587361 | AJ179: -0.003474697901 | AK179: -0.0005475242024
B180: 1999-08-23 | C180: 0.0186 | D180: 0.008213552361 | E180: 1.017860126 | F180: 1.037368794 | G180: 0.9132980199 | H180: 0.8461773823 | I180: 1.124998475 | J180: 1.110270393 | K180: 1.086277992 | L180: 1.312820683 | M180: 0.9512778475 | N180: 1.062574261 | O180: 0.8278128198 | P180: 0.0001593429158 | Q180: -8.712316179e-05 | R180: -0.0009234712411 | S180: 0.01955251302 | T180: 0.01443225173 | U180: 0.01335263114 | V180: 0.01904850569 | W180: -0.0002298173071 | X180: -0.0004892606229 | Y180: 0.0005081247765 | Z180: 0.003260385292 | AA180: 0.0001593429158 | AB180: 0.01730076923 | AC180: -0.009292927314 | AD180: -0.002859455186 | AE180: 0.009497853729 | AF180: 0.01940732057 | AG180: -0.01881666331 | AH180: 0.003416051159 | AI180: -0.001140569911 | AJ180: -0.01393178517 | AK180: 0.006297124555
B181: 1999-08-24 | C181: 0.0255 | D181: 0.002737850787 | E181: 1.017911959 | F181: 1.043968877 | G181: 0.9153762842 | H181: 0.8403729212 | I181: 1.114205818 | J181: 1.112102077 | K181: 1.080922101 | L181: 1.286994034 | M181: 0.9565456557 | N181: 1.062240265 | O181: 0.8367184586 | P181: 5.092402464e-05 | Q181: 0.003994925697 | R181: -0.0001899360245 | S181: 0.002799382443 | T181: 0.007486258498 | U181: -0.007627337949 | V181: -0.000206145123 | W181: -0.003667951599 | X181: 0.00113143325 | Y181: 0.002144125657 | Z181: 0.002960778778 | AA181: 5.092402464e-05 | AB181: 0.006362331036 | AC181: 0.002275559868 | AD181: -0.006859626891 | AE181: -0.009593486387 | AF181: 0.001649764189 | AG181: -0.004930497998 | AH181: -0.01967263982 | AI181: 0.005537612634 | AJ181: -0.0003143270234 | AK181: 0.01075803447
B182: 1999-08-25 | C182: 0.0256 | D182: 0.002737850787 | E182: 1.017983025 | F182: 1.041138833 | G182: 0.918545321 | H182: 0.8327528277 | I182: 1.09917918 | J182: 1.117175483 | K182: 1.07329131 | L182: 1.291493048 | M182: 0.9596806455 | N182: 1.045100735 | O182: 0.844369542 | P182: 6.981519507e-05 | Q182: 0.006208225551 | R182: 0.008020261811 | S182: 0.009191105547 | T182: 0.02009578248 | U182: -0.008070938875 | V182: 0.01920450491 | W182: -0.01278522172 | X182: 0.001148663123 | Y182: 0.0001854132329 | Z182: 0.01015230823 | AA182: 6.981519507e-05 | AB182: -0.002710850899 | AC182: 0.003462004489 | AD182: -0.009067514212 | AE182: -0.01348641124 | AF182: 0.004561996751 | AG182: -0.007059519505 | AH182: 0.003495753155 | AI182: 0.003277407423 | AJ182: -0.0161352664 | AK182: 0.009144155035
B183: 1999-08-26 | C183: 0.0256 | D183: 0.002737850787 | E183: 1.018054374 | F183: 1.053709485 | G183: 0.903058907 | H183: 0.8302829926 | I183: 1.09910863 | J183: 1.119233747 | K183: 1.087977929 | L183: 1.289090892 | M183: 0.9524755788 | N183: 1.051122115 | O183: 0.8386947316 | P183: 7.008898015e-05 | Q183: -0.001394142482 | R183: -0.004710360776 | S183: -0.01095718124 | T183: -0.003804772393 | U183: -0.009023828314 | V183: -0.005846565245 | W183: -0.0003659103718 | X183: 0.002679229747 | Y183: 0.0008432294804 | Z183: -0.003213795808 | AA183: 7.008898015e-05 | AB183: 0.01207394379 | AC183: -0.0168597168 | AD183: -0.002965868267 | AE183: -6.418402824e-05 | AF183: 0.001842382308 | AG183: 0.01368372166 | AH183: -0.001859983459 | AI183: -0.007507775438 | AJ183: 0.005761530437 | AK183: -0.006720766297
B184: 1999-08-27 | C184: 0.0255 | D184: 0.002737850787 | E184: 1.018125729 | F184: 1.042187956 | G184: 0.9074680342 | H184: 0.83047614 | I184: 1.106498502 | J184: 1.112633918 | K184: 1.086167484 | L184: 1.285808714 | M184: 0.9428429851 | N184: 1.041030153 | O184: 0.8334151373 | P184: 7.008898015e-05 | Q184: -0.005306631928 | R184: -0.00245170159 | S184: -0.01181603034 | T184: 0.002146348496 | U184: -0.001758333535 | V184: -0.002979346755 | W184: 0.004904023887 | X184: 0.0004305806446 | Y184: 0.0003732806044 | Z184: -0.002029601478 | AA184: 7.008898015e-05 | AB184: -0.01093425552 | AC184: 0.004882435806 | AD184: 0.0002326284954 | AE184: 0.006723513199 | AF184: -0.005896739468 | AG184: -0.001664046408 | AH184: -0.002546118327 | AI184: -0.01011321852 | AJ184: -0.009601131504 | AK184: -0.006295013081
B185: 1999-08-30 | C185: 0.0255 | D185: 0.008213552361 | E185: 1.018338971 | F185: 1.041845431 | G185: 0.9034301042 | H185: 0.8601172842 | I185: 1.10749379 | J185: 1.105096994 | K185: 1.102120968 | L185: 1.262860397 | M185: 0.9329977449 | N185: 1.034121483 | O185: 0.8434252352 | P185: 0.0002094455852 | Q185: -0.005934347078 | R185: -0.005931240791 | S185: -0.0186580389 | T185: -0.006004246841 | U185: 0.01343603597 | V185: -0.005648388769 | W185: 0.01511744811 | X185: -0.001358370058 | Y185: 0.000367889952 | Z185: -0.004105292603 | AA185: 0.0002094455852 | AB185: -0.0003286599981 | AC185: -0.004449666345 | AD185: 0.03569174688 | AE185: 0.0008994933794 | AF185: -0.006773947345 | AG185: 0.01468786731 | AH185: -0.01784738062 | AI185: -0.01044207827 | AJ185: -0.006636378428 | AK185: 0.01201093843
B186: 1999-08-31 | C186: 0.0256 | D186: 0.002737850787 | E186: 1.018410066 | F186: 1.046483466 | G186: 0.8960130082 | H186: 0.8658065825 | I186: 1.108203215 | J186: 1.100808562 | K186: 1.092482901 | L186: 1.267471512 | M186: 0.9183439563 | N186: 1.042265697 | O186: 0.8406339277 | P186: 6.981519507e-05 | Q186: -0.000919128998 | R186: -0.002958496988 | S186: -0.004647271471 | T186: -0.01868210705 | U186: -0.02724694956 | V186: -0.003159181547 | W186: 0.007199928599 | X186: -0.001200648164 | Y186: 0.006843336089 | Z186: -0.0007120092181 | AA186: 6.981519507e-05 | AB186: 0.004451749825 | AC186: -0.008209927886 | AD186: 0.006614560987 | AE186: 0.0006405679806 | AF186: -0.003880593579 | AG186: -0.008745016835 | AH186: 0.003651326286 | AI186: -0.01570613507 | AJ186: 0.007875490848 | AK186: -0.003309490113
B187: 1999-09-01 | C187: 0.0256 | D187: 0.002737850787 | E187: 1.018481445 | F187: 1.050977591 | G187: 0.8945541403 | H187: 0.866502653 | I187: 1.110440787 | J187: 1.115429076 | K187: 1.100042005 | L187: 1.263319762 | M187: 0.8981574703 | N187: 1.05205955 | O187: 0.8459109279 | P187: 7.008898015e-05 | Q187: 7.008898015e-05 | R187: 0.00128509334 | S187: 0.01087002607 | T187: 0.008297248089 | U187: 0.02698762961 | V187: 0.0006832321441 | W187: 0.001443607983 | X187: -0.003140666088 | Y187: 0.0006497369121 | Z187: 0.004673866003 | AA187: 7.008898015e-05 | AB187: 0.004294501469 | AC187: -0.001628177096 | AD187: 0.0008039562031 | AE187: 0.002019099168 | AF187: 0.01328161383 | AG187: 0.006919196271 | AH187: -0.003275616099 | AI187: -0.02198140013 | AJ187: 0.009396694729 | AK187: 0.006277405722
B188: 1999-09-02 | C188: 0.0255 | D188: 0.002737850787 | E188: 1.01855283 | F188: 1.047745483 | G188: 0.9036818671 | H188: 0.8723611284 | I188: 1.116812154 | J188: 1.117957224 | K188: 1.105730421 | L188: 1.269666288 | M188: 0.8935429058 | N188: 1.047892263 | O188: 0.8434442077 | P188: 7.008898015e-05 | Q188: -0.001909757769 | R188: -0.007939209148 | S188: -0.01023720333 | T188: -0.02151540612 | U188: 0.0005660217974 | V188: -0.004426125049 | W188: -0.01159558915 | X188: -0.003559511894 | Y188: 0.000370066934 | Z188: -0.002909049933 | AA188: 7.008898015e-05 | AB188: -0.003075334362 | AC188: 0.0102036605 | AD188: 0.006761058776 | AE188: 0.005737691619 | AF188: 0.002266525017 | AG188: 0.005171090029 | AH188: 0.005023689687 | AI188: -0.005137812247 | AJ188: -0.003961074865 | AK188: -0.002916051942
B189: 1999-09-03 | C189: 0.0254 | D189: 0.002737850787 | E189: 1.01862394 | F189: 1.060917977 | G189: 0.8972931473 | H189: 0.8682614648 | I189: 1.108804328 | J189: 1.111790899 | K189: 1.10723092 | L189: 1.263679 | M189: 0.8840919445 | N189: 1.057489808 | O189: 0.8366648634 | P189: 6.981519507e-05 | Q189: 0.007260994129 | R189: 0.006064117451 | S189: 0.03206927205 | T189: 0.02751307293 | U189: 7.380841096e-05 | V189: 2.150597599e-06 | W189: 0.007993876861 | X189: 0.0003313047932 | Y189: 0.0001835987142 | Z189: 0.006549224091 | AA189: 6.981519507e-05 | AB189: 0.01257222652 | AC189: -0.007069655848 | AD189: -0.004699502861 | AE189: -0.007170252602 | AF189: -0.005515707633 | AG189: 0.001357020674 | AH189: -0.004715639283 | AI189: -0.01057695302 | AJ189: 0.009158904344 | AK189: -0.008037691548
B190: 1999-09-06 | C190: 0.0253 | D190: 0.008213552361 | E190: 1.01883645 | F190: 1.057735441 | G190: 0.9094194024 | H190: 0.8682339888 | I190: 1.122096399 | J190: 1.109478489 | K190: 1.110084112 | L190: 1.276814034 | M190: 0.8896743395 | N190: 1.045248923 | O190: 0.8341779837 | P190: 0.00020862423 | Q190: 0.00020862423 | R190: 0.001546451913 | S190: 0.001125581088 | T190: 0.009637457163 | U190: 0.0102769266 | V190: 0.01346273463 | W190: -0.0002399068249 | X190: -0.0002399068249 | Y190: 0.0007362536631 | Z190: -0.000239906825 | AA190: 0.00020862423 | AB190: -0.002999794586 | AC190: 0.01351426245 | AD190: -3.164485883e-05 | AE190: 0.01198775125 | AF190: -0.002079896126 | AG190: 0.002576871405 | AH190: 0.01039428075 | AI190: 0.006314269771 | AJ190: -0.01157541639 | AK190: -0.002972372539
B191: 1999-09-07 | C191: 0.0252 | D191: 0.002737850787 | E191: 1.018907022 | F191: 1.056836801 | G191: 0.9040379528 | H191: 0.8736141625 | I191: 1.117608318 | J191: 1.099467489 | K191: 1.131716327 | L191: 1.295229234 | M191: 0.8883950674 | N191: 1.061775436 | O191: 0.8372149657 | P191: 6.926762491e-05 | Q191: -0.002885146755 | R191: -0.009281713991 | S191: -0.008181226402 | T191: -0.007453012437 | U191: -0.004861548255 | V191: -0.008231510373 | W191: 0.02065963058 | X191: -0.0001828289627 | Y191: 0.0008338239731 | Z191: 0.004100721351 | AA191: 6.926762491e-05 | AB191: -0.000849588656 | AC191: -0.005917456283 | AD191: 0.006196686397 | AE191: -0.003999728722 | AF191: -0.009023158622 | AG191: 0.01948700594 | AH191: 0.01442277308 | AI191: -0.001437910575 | AJ191: 0.01581107829 | AK191: 0.003640688326
B192: 1999-09-08 | C192: 0.0252 | D192: 0.002737850787 | E192: 1.018977321 | F192: 1.047215807 | G192: 0.8968246774 | H192: 0.8782272799 | I192: 1.117637293 | J192: 1.108098471 | K192: 1.14151772 | L192: 1.295990677 | M192: 0.8693197244 | N192: 1.067465387 | O192: 0.8386810936 | P192: 6.899383984e-05 | Q192: 0.001550577534 | R192: 0.005708019792 | S192: -0.00473510087 | T192: 0.0003305608086 | U192: -0.00130301137 | V192: -0.005799067277 | W192: -0.00138076821 | X192: 0.001254470486 | Y192: -0.0003745214507 | Z192: 0.002398549928 | AA192: 6.899383984e-05 | AB192: -0.009103575491 | AC192: -0.007978952032 | AD192: 0.005280497449 | AE192: 2.592610406e-05 | AF192: 0.007850148128 | AG192: 0.008660644109 | AH192: 0.0005878834859 | AI192: -0.02147168946 | AJ192: =NORMINV(RAND(),0,1)*AJ$7*SQRT($D192)+$AB$8*($C192+AJ$8) -> 0.005358902508 | AK192: 0.001751196479
B193: 1999-09-09 | C193: 0.0251 | D193: 0.002737850787 | E193: 1.019047624 | F193: 1.052400442 | G193: 0.8999320061 | H193: 0.8840135608 | I193: 1.124532332 | J193: 1.112741689 | K193: 1.136857892 | L193: 1.298958971 | M193: 0.8758846269 | N193: 1.070446359 | O193: 0.832078913 | P193: 6.899383984e-05 | Q193: -0.002396659498 | R193: -0.006391715165 | S193: -0.0006721244259 | T193: 0.009215291025 | U193: 0.003428412252 | V193: 0.005420861033 | W193: 0.01033554051 | X193: -0.001721263202 | Y193: 0.004642944593 | Z193: 0.001895730285 | AA193: 6.899383984e-05 | AB193: 0.004950875378 | AC193: 0.003464811834 | AD193: 0.006588591642 | AE193: 0.006169299731 | AF193: 0.004190257285 | AG193: -0.004082133178 | AH193: 0.002290366453 | AI193: 0.007551769891 | AJ193: 0.002792570342 | AK193: -0.007872098986
B194: 1999-09-10 | C194: 0.0251 | D194: 0.002737850787 | E194: 1.019117653 | F194: 1.041711546 | G194: 0.893498557 | H194: 0.8813837041 | I194: 1.120433565 | J194: 1.110045069 | K194: 1.137004122 | L194: 1.286406681 | M194: 0.8784672886 | N194: 1.072842818 | O194: 0.8366840289 | P194: 6.872005476e-05 | Q194: 0.005012213481 | R194: 0.002277189808 | S194: 0.005641250254 | T194: 0.008872995272 | U194: 0.004869380406 | V194: 0.01073854218 | W194: 0.002733100915 | X194: 0.0005355772058 | Y194: -0.004257608267 | Z194: 0.01349328393 | AA194: 6.872005476e-05 | AB194: -0.01015668216 | AC194: -0.007148816915 | AD194: -0.002974905367 | AE194: -0.003644864266 | AF194: -0.002423401601 | AG194: 0.0001286258194 | AH194: -0.009663346241 | AI194: 0.002948632312 | AJ194: 0.002238747403 | AK194: 0.00553447005
B195: 1999-09-13 | C195: 0.0251 | D195: 0.008213552361 | E195: 1.019327754 | F195: 1.065554756 | G195: 0.894431421 | H195: 0.8762347593 | I195: 1.112702782 | J195: 1.10581939 | K195: 1.1325782 | L195: 1.283679056 | M195: 0.8664377139 | N195: 1.071256279 | O195: 0.8451229954 | P195: 0.0002061601643 | Q195: -0.001023803141 | R195: -0.003589456308 | S195: -0.00386093419 | T195: -0.009036286004 | U195: 0.01364850185 | V195: 0.00774501292 | W195: 0.004452429773 | X195: -0.0001395961087 | Y195: -0.0002877791233 | Z195: -0.004842254389 | AA195: 0.0002061601643 | AB195: 0.02288849557 | AC195: 0.00104405774 | AD195: -0.00584188787 | AE195: -0.006899813493 | AF195: -0.003806763024 | AG195: -0.003892616963 | AH195: -0.002120344201 | AI195: -0.0136938221 | AJ195: -0.001478817476 | AK195: 0.01008620491
B196: 1999-09-14 | C196: 0.0251 | D196: 0.002737850787 | E196: 1.019397802 | F196: 1.070391409 | G196: 0.9027914764 | H196: 0.8840571913 | I196: 1.115802365 | J196: 1.106753804 | K196: 1.119712869 | L196: 1.278953615 | M196: 0.8640878073 | N196: 1.060887947 | O196: 0.8498625925 | P196: 6.872005476e-05 | Q196: -0.002886420216 | R196: -0.003617942713 | S196: -0.00690330578 | T196: -0.009258646002 | U196: -0.006729533655 | V196: -0.00165709667 | W196: -0.008215618763 | X196: -0.001415117638 | Y196: -0.002232793887 | Z196: -0.00195197598 | AA196: 6.872005476e-05 | AB196: 0.004539093804 | AC196: 0.009346781776 | AD196: 0.008927324409 | AE196: 0.002785634062 | AF196: 0.0008449963878 | AG196: -0.01135933131 | AH196: -0.003681169723 | AI196: -0.00271214714 | AJ196: -0.009678666587 | AK196: 0.005608174336
B197: 1999-09-15 | C197: 0.0251 | D197: 0.002737850787 | E197: 1.019467856 | F197: 1.080970638 | G197: 0.8881984121 | H197: 0.8827153937 | I197: 1.116676832 | J197: 1.11119224 | K197: 1.134078359 | L197: 1.274255234 | M197: 0.8633357359 | N197: 1.057278716 | O197: 0.8453459255 | P197: 6.872005476e-05 | Q197: 0.002291643858 | R197: -0.001658088293 | S197: -0.01526992212 | T197: -0.01162174236 | U197: 6.656712904e-05 | V197: -0.01029967617 | W197: -0.002992960035 | X197: 0.0006387392398 | Y197: 0.0001832046053 | Z197: -0.00068819529 | AA197: 6.872005476e-05 | AB197: 0.009883514532 | AC197: -0.01616437976 | AD197: -0.00151777237 | AE197: 0.0007837111915 | AF197: 0.004010318891 | AG197: 0.01282961938 | AH197: -0.003673613346 | AI197: -0.0008703645843 | AJ197: -0.003402085411 | AK197: -0.005314584987
B198: 1999-09-16 | C198: 0.0251 | D198: 0.002737850787 | E198: 1.019537913 | F198: 1.072198438 | G198: 0.8984716014 | H198: 0.8896011204 | I198: 1.105595204 | J198: 1.122281847 | K198: 1.128708207 | L198: 1.273411988 | M198: 0.8722637204 | N198: 1.060318188 | O198: 0.8430294273 | P198: 6.872005476e-05 | Q198: 0.00204027002 | R198: 0.006370116734 | S198: 0.001194562426 | T198: -0.0007194469946 | U198: -0.01896482135 | V198: -0.01463773921 | W198: 0.0004470734984 | X198: -0.0006970179535 | Y198: -0.0008408871995 | Z198: -0.003109438748 | AA198: 6.872005476e-05 | AB198: -0.008115113379 | AC198: 0.01156632254 | AD198: 0.007800619199 | AE198: -0.009923755334 | AF198: 0.009979918127 | AG198: -0.004735256472 | AH198: -0.0006617563006 | AI198: 0.01034126602 | AJ198: 0.002874807332 | AK198: -0.002740296181
B199: 1999-09-17 | C199: 0.0246 | D199: 0.002737850787 | E199: 1.019607976 | F199: 1.068047399 | G199: 0.891091028 | H199: 0.8865834843 | I199: 1.116384122 | J199: 1.117702053 | K199: 1.127883571 | L199: 1.274414321 | M199: 0.8890902165 | N199: 1.057943948 | O199: 0.8390543039 | P199: 6.872005476e-05 | Q199: 0.002528308643 | R199: 0.002524382965 | S199: 0.01357045202 | T199: -0.001246967032 | U199: 0.003738824816 | V199: 0.001297122164 | W199: 0.003832000143 | X199: 0.001152487695 | Y199: 0.0001833885694 | Z199: 0.003829567742 | AA199: 6.872005476e-05 | AB199: -0.003871521925 | AC199: -0.008214587287 | AD199: -0.00339212261 | AE199: 0.009758470048 | AF199: -0.004080788253 | AG199: -0.0007306017056 | AH199: 0.0007871242427 | AI199: 0.01929060645 | AJ199: -0.00223917717 | AK199: -0.004715284267
B200: 1999-09-20 | C200: 0.0205 | D200: 0.008213552361 | E200: 1.019813991 | F200: 1.06502585 | G200: 0.9215653537 | H200: 0.8912678142 | I200: 1.128119387 | J200: 1.098415158 | K200: 1.147927691 | L200: 1.283026334 | M200: 0.8847616752 | N200: 1.067853335 | O200: 0.8509868434 | P200: 0.0002020533881 | Q200: -0.002497216138 | R200: -0.001757926141 | S200: -0.001835839884 | T200: 0.001519649313 | U200: 0.01219714187 | V200: 0.006936932528 | W200: -0.006588454583 | X200: -0.001170401486 | Y200: -1.299005339e-05 | Z200: 0.004036619791 | AA200: 0.0002020533881 | AB200: -0.002829040125 | AC200: 0.03419889185 | AD200: 0.005283574538 | AE200: 0.01051185287 | AF200: -0.01725584627 | AG200: 0.01777144404 | AH200: 0.006757623945 | AI200: -0.004868506249 | AJ200: 0.009366646357 | AK200: 0.01422141496
B201: 1999-09-21 | C201: 0.0238 | D201: 0.002737850787 | E201: 1.019871229 | F201: 1.069363311 | G201: 0.9308322562 | H201: 0.9005504157 | I201: 1.140943487 | J201: 1.091637817 | K201: 1.147870075 | L201: 1.276127399 | M201: 0.8875307301 | N201: 1.069596436 | O201: 0.8443840892 | P201: 5.612594114e-05 | Q201: -0.001419971662 | R201: -0.00141653003 | S201: -0.01977518717 | T201: -0.01388312261 | U201: 0.006667064869 | V201: -0.007310659911 | W201: -0.0003666034021 | X201: 0.0002148537513 | Y201: 0.0004508101106 | Z201: -0.003367106648 | AA201: 5.612594114e-05 | AB201: 0.004072634483 | AC201: 0.01005561073 | AD201: 0.01041505297 | AE201: 0.01136767978 | AF201: -0.006170108628 | AG201: -5.019112768e-05 | AH201: -0.005377080068 | AI201: 0.003129718352 | AJ201: 0.001632341385 | AK201: -0.007758937958
B202: 1999-09-22 | C202: 0.0192 | D202: 0.002737850787 | E202: 1.019937685 | F202: 1.064135153 | G202: 0.9152148553 | H202: 0.8864986356 | I202: 1.148298931 | J202: 1.08493368 | K202: 1.146543889 | L202: 1.28159752 | M202: 0.8834636306 | N202: 1.073993527 | O202: 0.8376927202 | P202: 6.516084873e-05 | Q202: 0.001050689463 | R202: 0.001294195088 | S202: -0.0001273352123 | T202: -0.001003528051 | U202: -0.03266469233 | V202: -0.002571279074 | W202: 0.003283631817 | X202: 0.0003264681349 | Y202: 0.0002731915122 | Z202: 0.0006269359951 | AA202: 6.516084873e-05 | AB202: -0.004889038086 | AC202: -0.01677788969 | AD202: -0.01560354627 | AE202: 0.006446808185 | AF202: -0.006141356364 | AG202: -0.001155344762 | AH202: 0.004286501303 | AI202: -0.004582488632 | AJ202: 0.004110981167 | AK202: -0.007924556034
B203: 1999-09-23 | C203: 0.0174 | D203: 0.002737850787 | E203: 1.0199913 | F203: 1.0510223 | G203: 0.9155428684 | H203: 0.8830612769 | I203: 1.151973073 | J203: 1.080827159 | K203: 1.150752559 | L203: 1.283691946 | M203: 0.8672079677 | N203: 1.074283408 | O203: 0.8379584191 | P203: 5.256673511e-05 | Q203: 0.005221433066 | R203: 0.004471603485 | S203: -0.02321614307 | T203: 0.004059639034 | U203: 5.048329226e-05 | V203: -0.007225735483 | W203: 0.01478828396 | X203: 0.000519030553 | Y203: 7.426285522e-05 | Z203: 0.005442981232 | AA203: 5.256673511e-05 | AB203: -0.01232254404 | AC203: 0.0003584001001 | AD203: -0.003877455201 | AE203: 0.003199639099 | AF203: -0.003785043264 | AG203: 0.00367074428 | AH203: 0.001634230756 | AI203: -0.01839992311 | AJ203: 0.0002699099708 | AK203: 0.0003171794595
B204: 1999-09-24 | C204: 0.0252 | D204: 0.002737850787 | E204: 1.020039891 | F204: 1.052133432 | G204: 0.9187209766 | H204: 0.8782478081 | I204: 1.15716611 | J204: 1.081594363 | K204: 1.161425604 | L204: 1.283280471 | M204: 0.8715121484 | N204: 1.072275986 | O204: 0.8356842608 | P204: 4.76386037e-05 | Q204: 0.005434770839 | R204: 0.004202791935 | S204: -0.001304014957 | T204: -0.01511271841 | U204: -0.03298667947 | V204: -0.005647049004 | W204: 0.0003916305043 | X204: 0.00102672373 | Y204: -0.0002101907545 | Z204: -0.005465740267 | AA204: 4.76386037e-05 | AB204: 0.001057191196 | AC204: 0.003471282862 | AD204: -0.005450888797 | AE204: 0.004507949644 | AF204: 0.0007098304521 | AG204: 0.009274839275 | AH204: -0.0003205406533 | AI204: 0.004963262306 | AJ204: -0.001868615785 | AK204: -0.002713927452
B205: 1999-09-27 | C205: 0.0252 | D205: 0.008213552361 | E205: 1.02025102 | F205: 1.054424877 | G205: 0.9191158864 | H205: 0.8692458776 | I205: 1.177745693 | J205: 1.072484466 | K205: 1.164872678 | L205: 1.302358009 | M205: 0.8691840497 | N205: 1.04298138 | O205: 0.8332627708 | P205: 0.0002069815195 | Q205: -0.004177754396 | R205: -0.006974740753 | S205: 0.005635876832 | T205: 0.01290106049 | U205: 0.002079290274 | V205: -0.009303083037 | W205: 0.003454338405 | X205: -0.0004464470663 | Y205: 0.0005508678868 | Z205: 0.004911782982 | AA205: 0.0002069815195 | AB205: 0.002177903301 | AC205: 0.0004298473073 | AD205: -0.01024987524 | AE205: 0.01778446805 | AF205: -0.0084226555 | AG205: 0.002967968458 | AH205: 0.01486622642 | AI205: -0.002671332444 | AJ205: -0.02732002423 | AK205: -0.002897613442
... 2045 more rows

Sheet Volatilite Portfeuille
D1: date | E1: index | AP1: Vol cible | AQ1: 0.15
C2: begin date | D2: 2006-01-01 | E2: =MATCH(D2,'Constant mix'!$B$13:$B$3984,1) -> 1827 | AP2: lambda | AQ2: =SQRT(MMULT(AD17:AM17,MMULT(MINVERSE(AD21:AM30),AL4:AL13)))/AQ1 -> 8.078209272
C3: end date | D3: 2014-01-01 | E3: =MATCH(D3,'Constant mix'!$B$13:$B$3984,1) -> 3915 | AK3: Actifs | AL3: Tendance Actifs | AP3: Actifs | AQ3: poids
AK4: US BONDS 10Y | AL4: =TRANSPOSE(AD17:AM17) -> 0.03036549776 | AP4: US BONDS 10Y | AQ4: =MMULT(MINVERSE(AD21:AM30),AL4:AL13)/AQ2 -> 0.1482771067
C5: nb jours | D5: =1+E3-E2 -> 2089 | AK5: GERMAN BONDS 10Y | AL5: 0.01109846758 | AP5: GERMAN BONDS 10Y | AQ5: 0.07732856374
AK6: S&P 500 | AL6: -0.01282794321 | AP6: S&P 500 | AQ6: -0.071391698
AK7: EUROSTOXX 50 | AL7: 0.02198664996 | AP7: EUROSTOXX 50 | AQ7: 0.1156374927
AK8: NIKKEI | AL8: 0.009532350364 | AP8: NIKKEI | AQ8: 0.05539189721
AK9: MSCI Emerging | AL9: -0.08399169276 | AP9: MSCI Emerging | AQ9: -0.5147633916
AK10: Commodities (CRB) | AL10: 0.07358709242 | AP10: Commodities (CRB) | AQ10: 0.3644872038
AK11: Iboxx HY US | AL11: 0.02813309015 | AP11: Iboxx HY US | AQ11: 0.2619019989
AK12: Iboxx HY EUR | AL12: -0.1110043911 | AP12: Iboxx HY EUR | AQ12: -0.6706845986
AK13: Emerging Debt | AL13: 0.06022308812 | AP13: Emerging Debt | AQ13: 0.3410356
Z15: Temps total (années) | AA15: =(D3-D2)/365.25 -> 8
AC17: Tendances actifs - ASR | AD17: =365*SUM(OFFSET(O22,0,0,$D$5+1,1))/($D$3-$D$2)-$AQ$18 -> 0.03036549776 | AE17: =365*SUM(OFFSET(P22,0,0,$D$5+1,1))/($D$3-$D$2)-$AQ$18 -> 0.01109846758 | AF17: -0.01282794321 | AG17: 0.02198664996 | AH17: 0.009532350364 | AI17: -0.08399169276 | AJ17: 0.07358709242 | AK17: 0.02813309015 | AL17: -0.1110043911 | AM17: 0.06022308812
AC18: nb | AD18: 0 | AE18: =AD18+1 -> 1 | AF18: =AE18+1 -> 2 | AG18: 3 | AH18: 4 | AI18: 5 | AJ18: 6 | AK18: 7 | AL18: 8 | AM18: 9 | AP18: Rendement ASR | AQ18: =SUM($C$21:$C$2690)/$D$5 -> 0.01612197224
D19: Prices | O19: Returns | AC19: vols | AD19: =SQRT(OFFSET($AD$21,AD18,AD18)) -> 0.1510518536 | AE19: =SQRT(OFFSET($AD$21,AE18,AE18)) -> 0.1538361975 | AF19: 0.1462421219 | AG19: 0.1476852692 | AH19: 0.1481284695 | AI19: 0.148296877 | AJ19: 0.1552332206 | AK19: 0.1447760964 | AL19: 0.1480186391 | AM19: 0.1520105989 | AP19: Rendement portefeuille | AQ19: =SUMPRODUCT(AQ4:AQ13,AL4:AL13)+AQ18 -> 0.1978816808
A20: nb | B20: date | C20: EONIA | D20: US BONDS 10Y | E20: GERMAN BONDS 10Y | F20: S&P 500 | G20: EUROSTOXX 50 | H20: NIKKEI | I20: MSCI Emerging | J20: Commodities (CRB) | K20: Iboxx HY US | L20: Iboxx HY EUR | M20: Emerging Debt | N20: Constant Mix | O20: US BONDS 10Y | P20: GERMAN BONDS 10Y | Q20: S&P 500 | R20: EUROSTOXX 50 | S20: NIKKEI | T20: MSCI Emerging | U20: Commodities (CRB) | V20: Iboxx HY US | W20: Iboxx HY EUR | X20: Emerging Debt | Y20: Constant Mix | AA20: Vol | AB20: nb | AC20: Matrice Covariance | AD20: US BONDS 10Y | AE20: GERMAN BONDS 10Y | AF20: S&P 500 | AG20: EUROSTOXX 50 | AH20: NIKKEI | AI20: MSCI Emerging | AJ20: Commodities (CRB) | AK20: Iboxx HY US | AL20: Iboxx HY EUR | AM20: Emerging Debt | AP20: Vol portefeuille | AQ20: =SQRT(MMULT(TRANSPOSE(AQ4:AQ13),MMULT(AD21:AM30,AQ4:AQ13))) -> 0.15
A21: 0 | B21: =IF(A21<$D$5,OFFSET('Constant mix'!$B$12,'Volatilite Portfeuille'!$E$2+A21,0),"") -> 2005-12-30 | C21: =IF($A21<$D$5,OFFSET('Constant mix'!$C$13,'Volatilite Portfeuille'!$E$2+$A21,0),"") -> 0.0235 | D21: =IF($A21<$D$5,OFFSET('Constant mix'!F$12,'Volatilite Portfeuille'!$E$2+$A21,0),"") -> 1.513419814 | E21: =IF($A21<$D$5,OFFSET('Constant mix'!G$12,'Volatilite Portfeuille'!$E$2+$A21,0),"") -> 0.9035628739 | F21: =IF($A21<$D$5,OFFSET('Constant mix'!H$12,'Volatilite Portfeuille'!$E$2+$A21,0),"") -> 1.089746333 | G21: =IF($A21<$D$5,OFFSET('Constant mix'!I$12,'Volatilite Portfeuille'!$E$2+$A21,0),"") -> 0.6496148381 | H21: =IF($A21<$D$5,OFFSET('Constant mix'!J$12,'Volatilite Portfeuille'!$E$2+$A21,0),"") -> 1.13126941 | I21: =IF($A21<$D$5,OFFSET('Constant mix'!K$12,'Volatilite Portfeuille'!$E$2+$A21,0),"") -> 1.722150004 | J21: =IF($A21<$D$5,OFFSET('Constant mix'!L$12,'Volatilite Portfeuille'!$E$2+$A21,0),"") -> 1.876462595 | K21: =IF($A21<$D$5,OFFSET('Constant mix'!M$12,'Volatilite Portfeuille'!$E$2+$A21,0),"") -> 0.9893129275 | L21: =IF($A21<$D$5,OFFSET('Constant mix'!N$12,'Volatilite Portfeuille'!$E$2+$A21,0),"") -> 1.025133528 | M21: =IF($A21<$D$5,OFFSET('Constant mix'!O$12,'Volatilite Portfeuille'!$E$2+$A21,0),"") -> 0.9742669059 | N21: =IF($A21<$D$5,OFFSET('Constant mix'!$AM$12,'Volatilite Portfeuille'!$E$2+$A21,0),"") -> 0 | AA21: =TRANSPOSE(AD19:AM19) -> 0.1510518536 | AB21: 0 | AC21: US BONDS 10Y | AD21: =SUMPRODUCT(OFFSET($O$22:$O$2690,0,$AB21),OFFSET($O$22:$O$2690,0,AD$18))/$AA$15 -> 0.02281666248 | AE21: =SUMPRODUCT(OFFSET($O$22:$O$2690,0,$AB21),OFFSET($O$22:$O$2690,0,AE$18))/$AA$15 -> 0.0005588759969 | AF21: -0.0002729787036 | AG21: -0.0001612640998 | AH21: 0.0004844623295 | AI21: 0.0006974931643 | AJ21: 1.783083283e-05 | AK21: 0.0002111993002 | AL21: -0.0005474168973 | AM21: 0.0006889168429 | AP21: Ratio Sharpe | AQ21: =(AQ19-AQ18)/AQ20 -> 1.211731391
A22: =A21+1 -> 1 | B22: =IF(A22<$D$5,OFFSET('Constant mix'!$B$12,'Volatilite Portfeuille'!$E$2+A22,0),"") -> 2006-01-02 | C22: =IF($A22<$D$5,OFFSET('Constant mix'!$C$13,'Volatilite Portfeuille'!$E$2+$A22,0),"") -> 0.0234 | D22: =IF($A22<$D$5,OFFSET('Constant mix'!F$12,'Volatilite Portfeuille'!$E$2+$A22,0),"") -> 1.486265036 | E22: =IF($A22<$D$5,OFFSET('Constant mix'!G$12,'Volatilite Portfeuille'!$E$2+$A22,0),"") -> 0.9036453335 | F22: =IF($A22<$D$5,OFFSET('Constant mix'!H$12,'Volatilite Portfeuille'!$E$2+$A22,0),"") -> 1.090755402 | G22: =IF($A22<$D$5,OFFSET('Constant mix'!I$12,'Volatilite Portfeuille'!$E$2+$A22,0),"") -> 0.6597073439 | H22: =IF($A22<$D$5,OFFSET('Constant mix'!J$12,'Volatilite Portfeuille'!$E$2+$A22,0),"") -> 1.135691136 | I22: =IF($A22<$D$5,OFFSET('Constant mix'!K$12,'Volatilite Portfeuille'!$E$2+$A22,0),"") -> 1.702350392 | J22: =IF($A22<$D$5,OFFSET('Constant mix'!L$12,'Volatilite Portfeuille'!$E$2+$A22,0),"") -> 1.905300639 | K22: =IF($A22<$D$5,OFFSET('Constant mix'!M$12,'Volatilite Portfeuille'!$E$2+$A22,0),"") -> 1.004349621 | L22: =IF($A22<$D$5,OFFSET('Constant mix'!N$12,'Volatilite Portfeuille'!$E$2+$A22,0),"") -> 1.009350607 | M22: =IF($A22<$D$5,OFFSET('Constant mix'!O$12,'Volatilite Portfeuille'!$E$2+$A22,0),"") -> 0.989220228 | N22: =IF($A22<$D$5,OFFSET('Constant mix'!$AM$12,'Volatilite Portfeuille'!$E$2+$A22,0),"") -> 0 | O22: =IF($A22<$D$5,D22/D21-1,0) -> -0.01794266073 | P22: 9.126049561e-05 | Q22: 0.0009259669994 | R22: 0.01553613806 | S22: 0.003908640799 | T22: -0.01149703132 | U22: 0.01536830211 | V22: 0.01519912732 | W22: -0.01539596545 | X22: 0.01534828082 | AA22: 0.1538361975 | AB22: =AB21+1 -> 1 | AC22: GERMAN BONDS 10Y | AD22: =SUMPRODUCT(OFFSET($O$22:$O$2690,0,$AB22),OFFSET($O$22:$O$2690,0,AD$18))/$AA$15 -> 0.0005588759969 | AE22: 0.02366557566 | AF22: -0.0002919201809 | AG22: -0.0003858323547 | AH22: 0.001081515673 | AI22: 0.000233705573 | AJ22: -0.0005012533968 | AK22: 0.0006028107413 | AL22: 0.001025325558 | AM22: 0.0007554893443
A23: =A22+1 -> 2 | B23: =IF(A23<$D$5,OFFSET('Constant mix'!$B$12,'Volatilite Portfeuille'!$E$2+A23,0),"") -> 2006-01-03 | C23: =IF($A23<$D$5,OFFSET('Constant mix'!$C$13,'Volatilite Portfeuille'!$E$2+$A23,0),"") -> 0.0234 | D23: =IF($A23<$D$5,OFFSET('Constant mix'!F$12,'Volatilite Portfeuille'!$E$2+$A23,0),"") -> 1.465495371 | E23: =IF($A23<$D$5,OFFSET('Constant mix'!G$12,'Volatilite Portfeuille'!$E$2+$A23,0),"") -> 0.9088015261 | F23: =IF($A23<$D$5,OFFSET('Constant mix'!H$12,'Volatilite Portfeuille'!$E$2+$A23,0),"") -> 1.100658196 | G23: =IF($A23<$D$5,OFFSET('Constant mix'!I$12,'Volatilite Portfeuille'!$E$2+$A23,0),"") -> 0.6688050479 | H23: =IF($A23<$D$5,OFFSET('Constant mix'!J$12,'Volatilite Portfeuille'!$E$2+$A23,0),"") -> 1.132554086 | I23: =IF($A23<$D$5,OFFSET('Constant mix'!K$12,'Volatilite Portfeuille'!$E$2+$A23,0),"") -> 1.727849433 | J23: =IF($A23<$D$5,OFFSET('Constant mix'!L$12,'Volatilite Portfeuille'!$E$2+$A23,0),"") -> 1.92770926 | K23: =IF($A23<$D$5,OFFSET('Constant mix'!M$12,'Volatilite Portfeuille'!$E$2+$A23,0),"") -> 0.9935068985 | L23: =IF($A23<$D$5,OFFSET('Constant mix'!N$12,'Volatilite Portfeuille'!$E$2+$A23,0),"") -> 0.99888261 | M23: =IF($A23<$D$5,OFFSET('Constant mix'!O$12,'Volatilite Portfeuille'!$E$2+$A23,0),"") -> 0.9906844209 | N23: =IF($A23<$D$5,OFFSET('Constant mix'!$AM$12,'Volatilite Portfeuille'!$E$2+$A23,0),"") -> 0 | O23: =IF($A23<$D$5,D23/D22-1,0) -> -0.01397440154 | P23: =IF($A23<$D$5,E23/E22-1,0) -> 0.005705991589 | Q23: =IF($A23<$D$5,F23/F22-1,0) -> 0.009078839788 | R23: =IF($A23<$D$5,G23/G22-1,0) -> 0.0137905149 | S23: =IF($A23<$D$5,H23/H22-1,0) -> -0.002762237928 | T23: =IF($A23<$D$5,I23/I22-1,0) -> 0.01497872663 | U23: =IF($A23<$D$5,J23/J22-1,0) -> 0.0117611992 | V23: =IF($A23<$D$5,K23/K22-1,0) -> -0.01079576465 | W23: =IF($A23<$D$5,L23/L22-1,0) -> -0.01037102189 | X23: =IF($A23<$D$5,M23/M22-1,0) -> 0.001480148604 | Y23: =IF($A23<$D$5,N23/N22-1,0) ->  | AA23: 0.1462421219 | AB23: =AB22+1 -> 2 | AC23: S&P 500 | AD23: -0.0002729787036 | AE23: -0.0002919201809 | AF23: 0.02138675822 | AG23: 6.610542172e-05 | AH23: -0.0005412096318 | AI23: -0.0009421725439 | AJ23: -0.0001359001905 | AK23: -0.0006783598406 | AL23: 0.0002187099082 | AM23: -0.0002546946642
A24: 3 | B24: =IF(A24<$D$5,OFFSET('Constant mix'!$B$12,'Volatilite Portfeuille'!$E$2+A24,0),"") -> 2006-01-04 | C24: =IF($A24<$D$5,OFFSET('Constant mix'!$C$13,'Volatilite Portfeuille'!$E$2+$A24,0),"") -> 0.0234 | D24: =IF($A24<$D$5,OFFSET('Constant mix'!F$12,'Volatilite Portfeuille'!$E$2+$A24,0),"") -> 1.467360212 | E24: =IF($A24<$D$5,OFFSET('Constant mix'!G$12,'Volatilite Portfeuille'!$E$2+$A24,0),"") -> 0.8988907229 | F24: =IF($A24<$D$5,OFFSET('Constant mix'!H$12,'Volatilite Portfeuille'!$E$2+$A24,0),"") -> 1.098833231 | G24: =IF($A24<$D$5,OFFSET('Constant mix'!I$12,'Volatilite Portfeuille'!$E$2+$A24,0),"") -> 0.6686711298 | H24: =IF($A24<$D$5,OFFSET('Constant mix'!J$12,'Volatilite Portfeuille'!$E$2+$A24,0),"") -> 1.133939075 | I24: =IF($A24<$D$5,OFFSET('Constant mix'!K$12,'Volatilite Portfeuille'!$E$2+$A24,0),"") -> 1.738652769 | J24: =IF($A24<$D$5,OFFSET('Constant mix'!L$12,'Volatilite Portfeuille'!$E$2+$A24,0),"") -> 1.950533004 | K24: =IF($A24<$D$5,OFFSET('Constant mix'!M$12,'Volatilite Portfeuille'!$E$2+$A24,0),"") -> 0.9992522774 | L24: =IF($A24<$D$5,OFFSET('Constant mix'!N$12,'Volatilite Portfeuille'!$E$2+$A24,0),"") -> 1.003511059 | M24: =IF($A24<$D$5,OFFSET('Constant mix'!O$12,'Volatilite Portfeuille'!$E$2+$A24,0),"") -> 0.9920465957 | N24: =IF($A24<$D$5,OFFSET('Constant mix'!$AM$12,'Volatilite Portfeuille'!$E$2+$A24,0),"") -> 0 | O24: 0.001272498599 | P24: -0.01090535495 | Q24: -0.001658066811 | R24: -0.000200234861 | S24: 0.001222889755 | T24: 0.006252475129 | U24: 0.01183982731 | V24: 0.005782928072 | W24: 0.004633626527 | X24: 0.001374983519 | AA24: 0.1476852692 | AB24: 3 | AC24: EUROSTOXX 50 | AD24: -0.0001612640998 | AE24: -0.0003858323547 | AF24: 6.610542172e-05 | AG24: 0.02181093873 | AH24: 0.0002187801855 | AI24: 9.271226642e-05 | AJ24: -2.993280297e-05 | AK24: -0.0002569782865 | AL24: -0.0003166555782 | AM24: 0.0004676094069
A25: 4 | B25: =IF(A25<$D$5,OFFSET('Constant mix'!$B$12,'Volatilite Portfeuille'!$E$2+A25,0),"") -> 2006-01-05 | C25: =IF($A25<$D$5,OFFSET('Constant mix'!$C$13,'Volatilite Portfeuille'!$E$2+$A25,0),"") -> 0.0234 | D25: =IF($A25<$D$5,OFFSET('Constant mix'!F$12,'Volatilite Portfeuille'!$E$2+$A25,0),"") -> 1.470112425 | E25: =IF($A25<$D$5,OFFSET('Constant mix'!G$12,'Volatilite Portfeuille'!$E$2+$A25,0),"") -> 0.9004331983 | F25: =IF($A25<$D$5,OFFSET('Constant mix'!H$12,'Volatilite Portfeuille'!$E$2+$A25,0),"") -> 1.098522162 | G25: =IF($A25<$D$5,OFFSET('Constant mix'!I$12,'Volatilite Portfeuille'!$E$2+$A25,0),"") -> 0.678387262 | H25: =IF($A25<$D$5,OFFSET('Constant mix'!J$12,'Volatilite Portfeuille'!$E$2+$A25,0),"") -> 1.121427957 | I25: =IF($A25<$D$5,OFFSET('Constant mix'!K$12,'Volatilite Portfeuille'!$E$2+$A25,0),"") -> 1.743658156 | J25: =IF($A25<$D$5,OFFSET('Constant mix'!L$12,'Volatilite Portfeuille'!$E$2+$A25,0),"") -> 1.958797267 | K25: =IF($A25<$D$5,OFFSET('Constant mix'!M$12,'Volatilite Portfeuille'!$E$2+$A25,0),"") -> 0.990815041 | L25: =IF($A25<$D$5,OFFSET('Constant mix'!N$12,'Volatilite Portfeuille'!$E$2+$A25,0),"") -> 0.997235421 | M25: =IF($A25<$D$5,OFFSET('Constant mix'!O$12,'Volatilite Portfeuille'!$E$2+$A25,0),"") -> 0.9710683885 | N25: =IF($A25<$D$5,OFFSET('Constant mix'!$AM$12,'Volatilite Portfeuille'!$E$2+$A25,0),"") -> 0 | O25: 0.001875621989 | P25: 0.001715976576 | Q25: -0.0002830898165 | R25: 0.01453050952 | S25: -0.01103332506 | T25: 0.002878888588 | U25: 0.004236925325 | V25: -0.008443549808 | W25: -0.006253680878 | X25: -0.02114639296 | AA25: 0.1481284695 | AB25: 4 | AC25: NIKKEI | AD25: 0.0004844623295 | AE25: 0.001081515673 | AF25: -0.0005412096318 | AG25: 0.0002187801855 | AH25: 0.02194204347 | AI25: 0.0002693657571 | AJ25: 5.600075586e-05 | AK25: 0.0001752150337 | AL25: 0.0003956326843 | AM25: 0.0002430722601
A26: 5 | B26: =IF(A26<$D$5,OFFSET('Constant mix'!$B$12,'Volatilite Portfeuille'!$E$2+A26,0),"") -> 2006-01-06 | C26: =IF($A26<$D$5,OFFSET('Constant mix'!$C$13,'Volatilite Portfeuille'!$E$2+$A26,0),"") -> 0.0234 | D26: =IF($A26<$D$5,OFFSET('Constant mix'!F$12,'Volatilite Portfeuille'!$E$2+$A26,0),"") -> 1.464105734 | E26: =IF($A26<$D$5,OFFSET('Constant mix'!G$12,'Volatilite Portfeuille'!$E$2+$A26,0),"") -> 0.8998944281 | F26: =IF($A26<$D$5,OFFSET('Constant mix'!H$12,'Volatilite Portfeuille'!$E$2+$A26,0),"") -> 1.093319151 | G26: =IF($A26<$D$5,OFFSET('Constant mix'!I$12,'Volatilite Portfeuille'!$E$2+$A26,0),"") -> 0.6752285258 | H26: =IF($A26<$D$5,OFFSET('Constant mix'!J$12,'Volatilite Portfeuille'!$E$2+$A26,0),"") -> 1.120203186 | I26: =IF($A26<$D$5,OFFSET('Constant mix'!K$12,'Volatilite Portfeuille'!$E$2+$A26,0),"") -> 1.756916245 | J26: =IF($A26<$D$5,OFFSET('Constant mix'!L$12,'Volatilite Portfeuille'!$E$2+$A26,0),"") -> 1.978610135 | K26: =IF($A26<$D$5,OFFSET('Constant mix'!M$12,'Volatilite Portfeuille'!$E$2+$A26,0),"") -> 0.9869679071 | L26: =IF($A26<$D$5,OFFSET('Constant mix'!N$12,'Volatilite Portfeuille'!$E$2+$A26,0),"") -> 1.00097853 | M26: =IF($A26<$D$5,OFFSET('Constant mix'!O$12,'Volatilite Portfeuille'!$E$2+$A26,0),"") -> 0.9703191232 | N26: =IF($A26<$D$5,OFFSET('Constant mix'!$AM$12,'Volatilite Portfeuille'!$E$2+$A26,0),"") -> 0 | O26: -0.004085871841 | P26: -0.0005983456454 | Q26: -0.004736373795 | R26: -0.004656243405 | S26: -0.001092152975 | T26: 0.007603605275 | U26: 0.01011481303 | V26: -0.003882797275 | W26: 0.003753486204 | X26: -0.0007715886425 | AA26: 0.148296877 | AB26: 5 | AC26: MSCI Emerging | AD26: 0.0006974931643 | AE26: 0.000233705573 | AF26: -0.0009421725439 | AG26: 9.271226642e-05 | AH26: 0.0002693657571 | AI26: 0.02199196372 | AJ26: -0.0005847391572 | AK26: 0.0008117850921 | AL26: -0.0004519247106 | AM26: 0.001191563378
A27: 6 | B27: =IF(A27<$D$5,OFFSET('Constant mix'!$B$12,'Volatilite Portfeuille'!$E$2+A27,0),"") -> 2006-01-09 | C27: =IF($A27<$D$5,OFFSET('Constant mix'!$C$13,'Volatilite Portfeuille'!$E$2+$A27,0),"") -> 0.0234 | D27: =IF($A27<$D$5,OFFSET('Constant mix'!F$12,'Volatilite Portfeuille'!$E$2+$A27,0),"") -> 1.42497029 | E27: =IF($A27<$D$5,OFFSET('Constant mix'!G$12,'Volatilite Portfeuille'!$E$2+$A27,0),"") -> 0.9048370893 | F27: =IF($A27<$D$5,OFFSET('Constant mix'!H$12,'Volatilite Portfeuille'!$E$2+$A27,0),"") -> 1.111893576 | G27: =IF($A27<$D$5,OFFSET('Constant mix'!I$12,'Volatilite Portfeuille'!$E$2+$A27,0),"") -> 0.6796529918 | H27: =IF($A27<$D$5,OFFSET('Constant mix'!J$12,'Volatilite Portfeuille'!$E$2+$A27,0),"") -> 1.122005455 | I27: =IF($A27<$D$5,OFFSET('Constant mix'!K$12,'Volatilite Portfeuille'!$E$2+$A27,0),"") -> 1.764803342 | J27: =IF($A27<$D$5,OFFSET('Constant mix'!L$12,'Volatilite Portfeuille'!$E$2+$A27,0),"") -> 1.928767473 | K27: =IF($A27<$D$5,OFFSET('Constant mix'!M$12,'Volatilite Portfeuille'!$E$2+$A27,0),"") -> 0.9721520938 | L27: =IF($A27<$D$5,OFFSET('Constant mix'!N$12,'Volatilite Portfeuille'!$E$2+$A27,0),"") -> 0.9981777728 | M27: =IF($A27<$D$5,OFFSET('Constant mix'!O$12,'Volatilite Portfeuille'!$E$2+$A27,0),"") -> 0.9827353249 | N27: =IF($A27<$D$5,OFFSET('Constant mix'!$AM$12,'Volatilite Portfeuille'!$E$2+$A27,0),"") -> 0 | O27: -0.02672993007 | P27: 0.005492490081 | Q27: 0.016989024 | R27: 0.006552546044 | S27: 0.001608876508 | T27: 0.004489170998 | U27: -0.02519074428 | V27: -0.01501144378 | W27: -0.002798019645 | X27: 0.01279599813 | AA27: 0.1552332206 | AB27: 6 | AC27: Commodities (CRB) | AD27: 1.783083283e-05 | AE27: -0.0005012533968 | AF27: -0.0001359001905 | AG27: -2.993280297e-05 | AH27: 5.600075586e-05 | AI27: -0.0005847391572 | AJ27: 0.02409735279 | AK27: -1.388019042e-05 | AL27: 0.0001762177354 | AM27: 0.0005094761907
A28: 7 | B28: =IF(A28<$D$5,OFFSET('Constant mix'!$B$12,'Volatilite Portfeuille'!$E$2+A28,0),"") -> 2006-01-10 | C28: =IF($A28<$D$5,OFFSET('Constant mix'!$C$13,'Volatilite Portfeuille'!$E$2+$A28,0),"") -> 0.0234 | D28: =IF($A28<$D$5,OFFSET('Constant mix'!F$12,'Volatilite Portfeuille'!$E$2+$A28,0),"") -> 1.41562556 | E28: =IF($A28<$D$5,OFFSET('Constant mix'!G$12,'Volatilite Portfeuille'!$E$2+$A28,0),"") -> 0.9200916767 | F28: =IF($A28<$D$5,OFFSET('Constant mix'!H$12,'Volatilite Portfeuille'!$E$2+$A28,0),"") -> 1.122651202 | G28: =IF($A28<$D$5,OFFSET('Constant mix'!I$12,'Volatilite Portfeuille'!$E$2+$A28,0),"") -> 0.6788208394 | H28: =IF($A28<$D$5,OFFSET('Constant mix'!J$12,'Volatilite Portfeuille'!$E$2+$A28,0),"") -> 1.113918263 | I28: =IF($A28<$D$5,OFFSET('Constant mix'!K$12,'Volatilite Portfeuille'!$E$2+$A28,0),"") -> 1.797804959 | J28: =IF($A28<$D$5,OFFSET('Constant mix'!L$12,'Volatilite Portfeuille'!$E$2+$A28,0),"") -> 1.908751232 | K28: =IF($A28<$D$5,OFFSET('Constant mix'!M$12,'Volatilite Portfeuille'!$E$2+$A28,0),"") -> 0.9770165897 | L28: =IF($A28<$D$5,OFFSET('Constant mix'!N$12,'Volatilite Portfeuille'!$E$2+$A28,0),"") -> 1.011219356 | M28: =IF($A28<$D$5,OFFSET('Constant mix'!O$12,'Volatilite Portfeuille'!$E$2+$A28,0),"") -> 0.983022237 | N28: =IF($A28<$D$5,OFFSET('Constant mix'!$AM$12,'Volatilite Portfeuille'!$E$2+$A28,0),"") -> 0 | O28: -0.006557842348 | P28: 0.01685893253 | Q28: 0.009675049699 | R28: -0.001224378226 | S28: -0.007207800245 | T28: 0.0186998835 | U28: -0.01037773677 | V28: 0.005003842368 | W28: 0.01306539159 | X28: 0.0002919526368 | AA28: 0.1447760964 | AB28: 7 | AC28: Iboxx HY US | AD28: 0.0002111993002 | AE28: 0.0006028107413 | AF28: -0.0006783598406 | AG28: -0.0002569782865 | AH28: 0.0001752150337 | AI28: 0.0008117850921 | AJ28: -1.388019042e-05 | AK28: 0.02096011808 | AL28: 0.0023377027 | AM28: -0.0003590776194
A29: 8 | B29: =IF(A29<$D$5,OFFSET('Constant mix'!$B$12,'Volatilite Portfeuille'!$E$2+A29,0),"") -> 2006-01-11 | C29: =IF($A29<$D$5,OFFSET('Constant mix'!$C$13,'Volatilite Portfeuille'!$E$2+$A29,0),"") -> 0.0232 | D29: =IF($A29<$D$5,OFFSET('Constant mix'!F$12,'Volatilite Portfeuille'!$E$2+$A29,0),"") -> 1.423875462 | E29: =IF($A29<$D$5,OFFSET('Constant mix'!G$12,'Volatilite Portfeuille'!$E$2+$A29,0),"") -> 0.9238996411 | F29: =IF($A29<$D$5,OFFSET('Constant mix'!H$12,'Volatilite Portfeuille'!$E$2+$A29,0),"") -> 1.118997399 | G29: =IF($A29<$D$5,OFFSET('Constant mix'!I$12,'Volatilite Portfeuille'!$E$2+$A29,0),"") -> 0.6737243995 | H29: =IF($A29<$D$5,OFFSET('Constant mix'!J$12,'Volatilite Portfeuille'!$E$2+$A29,0),"") -> 1.116983072 | I29: =IF($A29<$D$5,OFFSET('Constant mix'!K$12,'Volatilite Portfeuille'!$E$2+$A29,0),"") -> 1.788593472 | J29: =IF($A29<$D$5,OFFSET('Constant mix'!L$12,'Volatilite Portfeuille'!$E$2+$A29,0),"") -> 1.908409331 | K29: =IF($A29<$D$5,OFFSET('Constant mix'!M$12,'Volatilite Portfeuille'!$E$2+$A29,0),"") -> 0.9673931643 | L29: =IF($A29<$D$5,OFFSET('Constant mix'!N$12,'Volatilite Portfeuille'!$E$2+$A29,0),"") -> 1.011541332 | M29: =IF($A29<$D$5,OFFSET('Constant mix'!O$12,'Volatilite Portfeuille'!$E$2+$A29,0),"") -> 0.988882321 | N29: =IF($A29<$D$5,OFFSET('Constant mix'!$AM$12,'Volatilite Portfeuille'!$E$2+$A29,0),"") -> 0 | O29: 0.005827743401 | P29: 0.004138679345 | Q29: -0.003254619519 | R29: -0.007507783585 | S29: 0.002751377004 | T29: -0.005123741034 | U29: -0.0001791227883 | V29: -0.0098498075 | W29: 0.0003184037598 | X29: 0.005961293372 | AA29: 0.1480186391 | AB29: 8 | AC29: Iboxx HY EUR | AD29: -0.0005474168973 | AE29: 0.001025325558 | AF29: 0.0002187099082 | AG29: -0.0003166555782 | AH29: 0.0003956326843 | AI29: -0.0004519247106 | AJ29: 0.0001762177354 | AK29: 0.0023377027 | AL29: 0.02190951753 | AM29: 0.0002235833074
A30: 9 | B30: =IF(A30<$D$5,OFFSET('Constant mix'!$B$12,'Volatilite Portfeuille'!$E$2+A30,0),"") -> 2006-01-12 | C30: =IF($A30<$D$5,OFFSET('Constant mix'!$C$13,'Volatilite Portfeuille'!$E$2+$A30,0),"") -> 0.0221 | D30: =IF($A30<$D$5,OFFSET('Constant mix'!F$12,'Volatilite Portfeuille'!$E$2+$A30,0),"") -> 1.438515081 | E30: =IF($A30<$D$5,OFFSET('Constant mix'!G$12,'Volatilite Portfeuille'!$E$2+$A30,0),"") -> 0.9257633742 | F30: =IF($A30<$D$5,OFFSET('Constant mix'!H$12,'Volatilite Portfeuille'!$E$2+$A30,0),"") -> 1.116812807 | G30: =IF($A30<$D$5,OFFSET('Constant mix'!I$12,'Volatilite Portfeuille'!$E$2+$A30,0),"") -> 0.6674652156 | H30: =IF($A30<$D$5,OFFSET('Constant mix'!J$12,'Volatilite Portfeuille'!$E$2+$A30,0),"") -> 1.104431134 | I30: =IF($A30<$D$5,OFFSET('Constant mix'!K$12,'Volatilite Portfeuille'!$E$2+$A30,0),"") -> 1.772658962 | J30: =IF($A30<$D$5,OFFSET('Constant mix'!L$12,'Volatilite Portfeuille'!$E$2+$A30,0),"") -> 1.9090207 | K30: =IF($A30<$D$5,OFFSET('Constant mix'!M$12,'Volatilite Portfeuille'!$E$2+$A30,0),"") -> 0.964500625 | L30: =IF($A30<$D$5,OFFSET('Constant mix'!N$12,'Volatilite Portfeuille'!$E$2+$A30,0),"") -> 1.025626542 | M30: =IF($A30<$D$5,OFFSET('Constant mix'!O$12,'Volatilite Portfeuille'!$E$2+$A30,0),"") -> 0.9965577806 | N30: =IF($A30<$D$5,OFFSET('Constant mix'!$AM$12,'Volatilite Portfeuille'!$E$2+$A30,0),"") -> 0 | O30: 0.01028153058 | P30: 0.002017246196 | Q30: -0.001952276083 | R30: -0.009290421835 | S30: -0.01123735767 | T30: -0.008908961124 | U30: 0.0003203550714 | V30: -0.002990034941 | W30: 0.0139245023 | X30: 0.007761752331 | AA30: 0.1520105989 | AB30: 9 | AC30: Emerging Debt | AD30: 0.0006889168429 | AE30: 0.0007554893443 | AF30: -0.0002546946642 | AG30: 0.0004676094069 | AH30: 0.0002430722601 | AI30: 0.001191563378 | AJ30: 0.0005094761907 | AK30: -0.0003590776194 | AL30: 0.0002235833074 | AM30: 0.02310722219
A31: 10 | B31: =IF(A31<$D$5,OFFSET('Constant mix'!$B$12,'Volatilite Portfeuille'!$E$2+A31,0),"") -> 2006-01-13 | C31: =IF($A31<$D$5,OFFSET('Constant mix'!$C$13,'Volatilite Portfeuille'!$E$2+$A31,0),"") -> 0.0231 | D31: =IF($A31<$D$5,OFFSET('Constant mix'!F$12,'Volatilite Portfeuille'!$E$2+$A31,0),"") -> 1.431311646 | E31: =IF($A31<$D$5,OFFSET('Constant mix'!G$12,'Volatilite Portfeuille'!$E$2+$A31,0),"") -> 0.9260152183 | F31: =IF($A31<$D$5,OFFSET('Constant mix'!H$12,'Volatilite Portfeuille'!$E$2+$A31,0),"") -> 1.121051912 | G31: =IF($A31<$D$5,OFFSET('Constant mix'!I$12,'Volatilite Portfeuille'!$E$2+$A31,0),"") -> 0.6653984387 | H31: =IF($A31<$D$5,OFFSET('Constant mix'!J$12,'Volatilite Portfeuille'!$E$2+$A31,0),"") -> 1.103060213 | I31: =IF($A31<$D$5,OFFSET('Constant mix'!K$12,'Volatilite Portfeuille'!$E$2+$A31,0),"") -> 1.754244336 | J31: =IF($A31<$D$5,OFFSET('Constant mix'!L$12,'Volatilite Portfeuille'!$E$2+$A31,0),"") -> 1.916961352 | K31: =IF($A31<$D$5,OFFSET('Constant mix'!M$12,'Volatilite Portfeuille'!$E$2+$A31,0),"") -> 0.9644532038 | L31: =IF($A31<$D$5,OFFSET('Constant mix'!N$12,'Volatilite Portfeuille'!$E$2+$A31,0),"") -> 1.023388064 | M31: =IF($A31<$D$5,OFFSET('Constant mix'!O$12,'Volatilite Portfeuille'!$E$2+$A31,0),"") -> 1.000495173 | N31: =IF($A31<$D$5,OFFSET('Constant mix'!$AM$12,'Volatilite Portfeuille'!$E$2+$A31,0),"") -> 0 | O31: -0.00500754915 | P31: 0.0002720393801 | Q31: 0.003795716518 | R31: -0.003096456409 | S31: -0.00124129164 | T31: -0.01038813834 | U31: 0.004159541998 | V31: -4.916657204e-05 | W31: -0.002182546964 | X31: 0.003950992898
A32: 11 | B32: =IF(A32<$D$5,OFFSET('Constant mix'!$B$12,'Volatilite Portfeuille'!$E$2+A32,0),"") -> 2006-01-16 | C32: =IF($A32<$D$5,OFFSET('Constant mix'!$C$13,'Volatilite Portfeuille'!$E$2+$A32,0),"") -> 0.023 | D32: =IF($A32<$D$5,OFFSET('Constant mix'!F$12,'Volatilite Portfeuille'!$E$2+$A32,0),"") -> 1.432633151 | E32: =IF($A32<$D$5,OFFSET('Constant mix'!G$12,'Volatilite Portfeuille'!$E$2+$A32,0),"") -> 0.9306187574 | F32: =IF($A32<$D$5,OFFSET('Constant mix'!H$12,'Volatilite Portfeuille'!$E$2+$A32,0),"") -> 1.127275094 | G32: =IF($A32<$D$5,OFFSET('Constant mix'!I$12,'Volatilite Portfeuille'!$E$2+$A32,0),"") -> 0.6671605356 | H32: =IF($A32<$D$5,OFFSET('Constant mix'!J$12,'Volatilite Portfeuille'!$E$2+$A32,0),"") -> 1.105028395 | I32: =IF($A32<$D$5,OFFSET('Constant mix'!K$12,'Volatilite Portfeuille'!$E$2+$A32,0),"") -> 1.781413428 | J32: =IF($A32<$D$5,OFFSET('Constant mix'!L$12,'Volatilite Portfeuille'!$E$2+$A32,0),"") -> 1.902329786 | K32: =IF($A32<$D$5,OFFSET('Constant mix'!M$12,'Volatilite Portfeuille'!$E$2+$A32,0),"") -> 0.9553338294 | L32: =IF($A32<$D$5,OFFSET('Constant mix'!N$12,'Volatilite Portfeuille'!$E$2+$A32,0),"") -> 1.004683983 | M32: =IF($A32<$D$5,OFFSET('Constant mix'!O$12,'Volatilite Portfeuille'!$E$2+$A32,0),"") -> 1.000318844 | N32: =IF($A32<$D$5,OFFSET('Constant mix'!$AM$12,'Volatilite Portfeuille'!$E$2+$A32,0),"") -> 0 | O32: 0.0009232823778 | P32: 0.004971342891 | Q32: 0.005551198596 | R32: 0.002648183102 | S32: 0.001784292559 | T32: 0.01548763289 | U32: -0.007632686769 | V32: -0.009455486602 | W32: -0.01827662623 | X32: -0.0001762423581
A33: 12 | B33: =IF(A33<$D$5,OFFSET('Constant mix'!$B$12,'Volatilite Portfeuille'!$E$2+A33,0),"") -> 2006-01-17 | C33: =IF($A33<$D$5,OFFSET('Constant mix'!$C$13,'Volatilite Portfeuille'!$E$2+$A33,0),"") -> 0.0233 | D33: =IF($A33<$D$5,OFFSET('Constant mix'!F$12,'Volatilite Portfeuille'!$E$2+$A33,0),"") -> 1.408191465 | E33: =IF($A33<$D$5,OFFSET('Constant mix'!G$12,'Volatilite Portfeuille'!$E$2+$A33,0),"") -> 0.9255613095 | F33: =IF($A33<$D$5,OFFSET('Constant mix'!H$12,'Volatilite Portfeuille'!$E$2+$A33,0),"") -> 1.121628772 | G33: =IF($A33<$D$5,OFFSET('Constant mix'!I$12,'Volatilite Portfeuille'!$E$2+$A33,0),"") -> 0.6712300834 | H33: =IF($A33<$D$5,OFFSET('Constant mix'!J$12,'Volatilite Portfeuille'!$E$2+$A33,0),"") -> 1.094438 | I33: =IF($A33<$D$5,OFFSET('Constant mix'!K$12,'Volatilite Portfeuille'!$E$2+$A33,0),"") -> 1.766072155 | J33: =IF($A33<$D$5,OFFSET('Constant mix'!L$12,'Volatilite Portfeuille'!$E$2+$A33,0),"") -> 1.900438663 | K33: =IF($A33<$D$5,OFFSET('Constant mix'!M$12,'Volatilite Portfeuille'!$E$2+$A33,0),"") -> 0.9470684253 | L33: =IF($A33<$D$5,OFFSET('Constant mix'!N$12,'Volatilite Portfeuille'!$E$2+$A33,0),"") -> 1.013236686 | M33: =IF($A33<$D$5,OFFSET('Constant mix'!O$12,'Volatilite Portfeuille'!$E$2+$A33,0),"") -> 1.000541595 | N33: =IF($A33<$D$5,OFFSET('Constant mix'!$AM$12,'Volatilite Portfeuille'!$E$2+$A33,0),"") -> 0 | O33: -0.01706067338 | P33: -0.005434500298 | Q33: -0.00500882397 | R33: 0.006099803034 | S33: -0.009583821744 | T33: -0.008611854429 | U33: -0.0009941089165 | V33: -0.008651849086 | W33: 0.008512828856 | X33: 0.0002226807786
A34: 13 | B34: =IF(A34<$D$5,OFFSET('Constant mix'!$B$12,'Volatilite Portfeuille'!$E$2+A34,0),"") -> 2006-01-18 | C34: =IF($A34<$D$5,OFFSET('Constant mix'!$C$13,'Volatilite Portfeuille'!$E$2+$A34,0),"") -> 0.0233 | D34: =IF($A34<$D$5,OFFSET('Constant mix'!F$12,'Volatilite Portfeuille'!$E$2+$A34,0),"") -> 1.40625244 | E34: =IF($A34<$D$5,OFFSET('Constant mix'!G$12,'Volatilite Portfeuille'!$E$2+$A34,0),"") -> 0.9262512064 | F34: =IF($A34<$D$5,OFFSET('Constant mix'!H$12,'Volatilite Portfeuille'!$E$2+$A34,0),"") -> 1.1047107 | G34: =IF($A34<$D$5,OFFSET('Constant mix'!I$12,'Volatilite Portfeuille'!$E$2+$A34,0),"") -> 0.6653024462 | H34: =IF($A34<$D$5,OFFSET('Constant mix'!J$12,'Volatilite Portfeuille'!$E$2+$A34,0),"") -> 1.097735807 | I34: =IF($A34<$D$5,OFFSET('Constant mix'!K$12,'Volatilite Portfeuille'!$E$2+$A34,0),"") -> 1.774970064 | J34: =IF($A34<$D$5,OFFSET('Constant mix'!L$12,'Volatilite Portfeuille'!$E$2+$A34,0),"") -> 1.872218473 | K34: =IF($A34<$D$5,OFFSET('Constant mix'!M$12,'Volatilite Portfeuille'!$E$2+$A34,0),"") -> 0.9492557801 | L34: =IF($A34<$D$5,OFFSET('Constant mix'!N$12,'Volatilite Portfeuille'!$E$2+$A34,0),"") -> 1.002153367 | M34: =IF($A34<$D$5,OFFSET('Constant mix'!O$12,'Volatilite Portfeuille'!$E$2+$A34,0),"") -> 1.022339353 | N34: =IF($A34<$D$5,OFFSET('Constant mix'!$AM$12,'Volatilite Portfeuille'!$E$2+$A34,0),"") -> 0 | O34: -0.001376960989 | P34: 0.0007453821344 | Q34: -0.01508348594 | R34: -0.008831006568 | S34: 0.003013242253 | T34: 0.005038247942 | U34: -0.01484930324 | V34: 0.002309605832 | W34: -0.01093852824 | X34: 0.02178595813
A35: 14 | B35: =IF(A35<$D$5,OFFSET('Constant mix'!$B$12,'Volatilite Portfeuille'!$E$2+A35,0),"") -> 2006-01-19 | C35: =IF($A35<$D$5,OFFSET('Constant mix'!$C$13,'Volatilite Portfeuille'!$E$2+$A35,0),"") -> 0.0233 | D35: =IF($A35<$D$5,OFFSET('Constant mix'!F$12,'Volatilite Portfeuille'!$E$2+$A35,0),"") -> 1.406927137 | E35: =IF($A35<$D$5,OFFSET('Constant mix'!G$12,'Volatilite Portfeuille'!$E$2+$A35,0),"") -> 0.9317779204 | F35: =IF($A35<$D$5,OFFSET('Constant mix'!H$12,'Volatilite Portfeuille'!$E$2+$A35,0),"") -> 1.093096606 | G35: =IF($A35<$D$5,OFFSET('Constant mix'!I$12,'Volatilite Portfeuille'!$E$2+$A35,0),"") -> 0.6659642009 | H35: =IF($A35<$D$5,OFFSET('Constant mix'!J$12,'Volatilite Portfeuille'!$E$2+$A35,0),"") -> 1.100111531 | I35: =IF($A35<$D$5,OFFSET('Constant mix'!K$12,'Volatilite Portfeuille'!$E$2+$A35,0),"") -> 1.755705037 | J35: =IF($A35<$D$5,OFFSET('Constant mix'!L$12,'Volatilite Portfeuille'!$E$2+$A35,0),"") -> 1.882911488 | K35: =IF($A35<$D$5,OFFSET('Constant mix'!M$12,'Volatilite Portfeuille'!$E$2+$A35,0),"") -> 0.9492029935 | L35: =IF($A35<$D$5,OFFSET('Constant mix'!N$12,'Volatilite Portfeuille'!$E$2+$A35,0),"") -> 1.007650324 | M35: =IF($A35<$D$5,OFFSET('Constant mix'!O$12,'Volatilite Portfeuille'!$E$2+$A35,0),"") -> 1.024945082 | N35: =IF($A35<$D$5,OFFSET('Constant mix'!$AM$12,'Volatilite Portfeuille'!$E$2+$A35,0),"") -> 0 | O35: 0.0004797832617 | P35: 0.005966754992 | Q35: -0.01051324465 | R35: 0.0009946675504 | S35: 0.002164203956 | T35: -0.01085371935 | U35: 0.005711414187 | V35: -5.560839936e-05 | W35: 0.005485145383 | X35: 0.002548791051 | AC35: Matrice Corel | AD35: US BONDS 10Y | AE35: GERMAN BONDS 10Y | AF35: S&P 500 | AG35: EUROSTOXX 50 | AH35: NIKKEI | AI35: MSCI Emerging | AJ35: Commodities (CRB) | AK35: Iboxx HY US | AL35: Iboxx HY EUR | AM35: Emerging Debt
A36: 15 | B36: =IF(A36<$D$5,OFFSET('Constant mix'!$B$12,'Volatilite Portfeuille'!$E$2+A36,0),"") -> 2006-01-20 | C36: =IF($A36<$D$5,OFFSET('Constant mix'!$C$13,'Volatilite Portfeuille'!$E$2+$A36,0),"") -> 0.0233 | D36: =IF($A36<$D$5,OFFSET('Constant mix'!F$12,'Volatilite Portfeuille'!$E$2+$A36,0),"") -> 1.411178549 | E36: =IF($A36<$D$5,OFFSET('Constant mix'!G$12,'Volatilite Portfeuille'!$E$2+$A36,0),"") -> 0.936643301 | F36: =IF($A36<$D$5,OFFSET('Constant mix'!H$12,'Volatilite Portfeuille'!$E$2+$A36,0),"") -> 1.08692058 | G36: =IF($A36<$D$5,OFFSET('Constant mix'!I$12,'Volatilite Portfeuille'!$E$2+$A36,0),"") -> 0.6602254957 | H36: =IF($A36<$D$5,OFFSET('Constant mix'!J$12,'Volatilite Portfeuille'!$E$2+$A36,0),"") -> 1.100447518 | I36: =IF($A36<$D$5,OFFSET('Constant mix'!K$12,'Volatilite Portfeuille'!$E$2+$A36,0),"") -> 1.754338829 | J36: =IF($A36<$D$5,OFFSET('Constant mix'!L$12,'Volatilite Portfeuille'!$E$2+$A36,0),"") -> 1.875895693 | K36: =IF($A36<$D$5,OFFSET('Constant mix'!M$12,'Volatilite Portfeuille'!$E$2+$A36,0),"") -> 0.951605352 | L36: =IF($A36<$D$5,OFFSET('Constant mix'!N$12,'Volatilite Portfeuille'!$E$2+$A36,0),"") -> 1.002012073 | M36: =IF($A36<$D$5,OFFSET('Constant mix'!O$12,'Volatilite Portfeuille'!$E$2+$A36,0),"") -> 1.028869942 | N36: =IF($A36<$D$5,OFFSET('Constant mix'!$AM$12,'Volatilite Portfeuille'!$E$2+$A36,0),"") -> 0 | O36: 0.003021771726 | P36: 0.005221609649 | Q36: -0.005650027153 | R36: -0.008617137703 | S36: 0.0003054117595 | T36: -0.0007781537323 | U36: -0.00372603561 | V36: 0.002530921764 | W36: -0.005595444748 | X36: 0.003829336999 | AC36: US BONDS 10Y | AD36: =AD21/(AD$19*$AA21) -> 1 | AE36: =AE21/(AE$19*$AA21) -> 0.02405087394 | AF36: -0.01235748887 | AG36: -0.007228937312 | AH36: 0.02165187038 | AI36: 0.03113736743 | AJ36: 0.0007604329055 | AK36: 0.009657607549 | AL36: -0.02448362577 | AM36: 0.0300031514
A37: 16 | B37: =IF(A37<$D$5,OFFSET('Constant mix'!$B$12,'Volatilite Portfeuille'!$E$2+A37,0),"") -> 2006-01-23 | C37: =IF($A37<$D$5,OFFSET('Constant mix'!$C$13,'Volatilite Portfeuille'!$E$2+$A37,0),"") -> 0.0233 | D37: =IF($A37<$D$5,OFFSET('Constant mix'!F$12,'Volatilite Portfeuille'!$E$2+$A37,0),"") -> 1.420571098 | E37: =IF($A37<$D$5,OFFSET('Constant mix'!G$12,'Volatilite Portfeuille'!$E$2+$A37,0),"") -> 0.9144918495 | F37: =IF($A37<$D$5,OFFSET('Constant mix'!H$12,'Volatilite Portfeuille'!$E$2+$A37,0),"") -> 1.109323757 | G37: =IF($A37<$D$5,OFFSET('Constant mix'!I$12,'Volatilite Portfeuille'!$E$2+$A37,0),"") -> 0.6704765279 | H37: =IF($A37<$D$5,OFFSET('Constant mix'!J$12,'Volatilite Portfeuille'!$E$2+$A37,0),"") -> 1.097376159 | I37: =IF($A37<$D$5,OFFSET('Constant mix'!K$12,'Volatilite Portfeuille'!$E$2+$A37,0),"") -> 1.743554953 | J37: =IF($A37<$D$5,OFFSET('Constant mix'!L$12,'Volatilite Portfeuille'!$E$2+$A37,0),"") -> 1.872409842 | K37: =IF($A37<$D$5,OFFSET('Constant mix'!M$12,'Volatilite Portfeuille'!$E$2+$A37,0),"") -> 0.9408403189 | L37: =IF($A37<$D$5,OFFSET('Constant mix'!N$12,'Volatilite Portfeuille'!$E$2+$A37,0),"") -> 1.009332177 | M37: =IF($A37<$D$5,OFFSET('Constant mix'!O$12,'Volatilite Portfeuille'!$E$2+$A37,0),"") -> 1.036182207 | N37: =IF($A37<$D$5,OFFSET('Constant mix'!$AM$12,'Volatilite Portfeuille'!$E$2+$A37,0),"") -> 0 | O37: 0.006655818603 | P37: -0.0236498264 | Q37: 0.02061160372 | R37: 0.01552656221 | S37: -0.002791008971 | T37: -0.006146974362 | U37: -0.001858232696 | V37: -0.01131249746 | W37: 0.007305405736 | X37: 0.007107083112 | AC37: GERMAN BONDS 10Y | AD37: =AD22/(AD$19*$AA22) -> 0.02405087394 | AE37: 1 | AF37: -0.01297576893 | AG37: -0.01698255102 | AH37: 0.04746087552 | AI37: 0.01024421128 | AJ37: -0.02099008147 | AK37: 0.02706609384 | AL37: 0.04502843361 | AM37: 0.03230694828
A38: 17 | B38: =IF(A38<$D$5,OFFSET('Constant mix'!$B$12,'Volatilite Portfeuille'!$E$2+A38,0),"") -> 2006-01-24 | C38: =IF($A38<$D$5,OFFSET('Constant mix'!$C$13,'Volatilite Portfeuille'!$E$2+$A38,0),"") -> 0.0233 | D38: =IF($A38<$D$5,OFFSET('Constant mix'!F$12,'Volatilite Portfeuille'!$E$2+$A38,0),"") -> 1.411735505 | E38: =IF($A38<$D$5,OFFSET('Constant mix'!G$12,'Volatilite Portfeuille'!$E$2+$A38,0),"") -> 0.910348353 | F38: =IF($A38<$D$5,OFFSET('Constant mix'!H$12,'Volatilite Portfeuille'!$E$2+$A38,0),"") -> 1.114654567 | G38: =IF($A38<$D$5,OFFSET('Constant mix'!I$12,'Volatilite Portfeuille'!$E$2+$A38,0),"") -> 0.6742227776 | H38: =IF($A38<$D$5,OFFSET('Constant mix'!J$12,'Volatilite Portfeuille'!$E$2+$A38,0),"") -> 1.098436391 | I38: =IF($A38<$D$5,OFFSET('Constant mix'!K$12,'Volatilite Portfeuille'!$E$2+$A38,0),"") -> 1.74390006 | J38: =IF($A38<$D$5,OFFSET('Constant mix'!L$12,'Volatilite Portfeuille'!$E$2+$A38,0),"") -> 1.847701865 | K38: =IF($A38<$D$5,OFFSET('Constant mix'!M$12,'Volatilite Portfeuille'!$E$2+$A38,0),"") -> 0.9449379214 | L38: =IF($A38<$D$5,OFFSET('Constant mix'!N$12,'Volatilite Portfeuille'!$E$2+$A38,0),"") -> 1.008948927 | M38: =IF($A38<$D$5,OFFSET('Constant mix'!O$12,'Volatilite Portfeuille'!$E$2+$A38,0),"") -> 1.039456568 | N38: =IF($A38<$D$5,OFFSET('Constant mix'!$AM$12,'Volatilite Portfeuille'!$E$2+$A38,0),"") -> 0 | O38: -0.006219747218 | P38: -0.004530927711 | Q38: 0.004805459236 | R38: 0.005587443453 | S38: 0.0009661515041 | T38: 0.0001979326945 | U38: -0.01319581673 | V38: 0.004355258259 | W38: -0.0003797066628 | X38: 0.003160024853 | AC38: S&P 500 | AD38: =AD23/(AD$19*$AA23) -> -0.01235748887 | AE38: -0.01297576893 | AF38: 1 | AG38: 0.003060746922 | AH38: -0.02498357029 | AI38: -0.04344361529 | AJ38: -0.005986361206 | AK38: -0.03203987308 | AL38: 0.01010367973 | AM38: -0.01145706816
A39: 18 | B39: =IF(A39<$D$5,OFFSET('Constant mix'!$B$12,'Volatilite Portfeuille'!$E$2+A39,0),"") -> 2006-01-25 | C39: =IF($A39<$D$5,OFFSET('Constant mix'!$C$13,'Volatilite Portfeuille'!$E$2+$A39,0),"") -> 0.0233 | D39: =IF($A39<$D$5,OFFSET('Constant mix'!F$12,'Volatilite Portfeuille'!$E$2+$A39,0),"") -> 1.411105971 | E39: =IF($A39<$D$5,OFFSET('Constant mix'!G$12,'Volatilite Portfeuille'!$E$2+$A39,0),"") -> 0.909036969 | F39: =IF($A39<$D$5,OFFSET('Constant mix'!H$12,'Volatilite Portfeuille'!$E$2+$A39,0),"") -> 1.103258926 | G39: =IF($A39<$D$5,OFFSET('Constant mix'!I$12,'Volatilite Portfeuille'!$E$2+$A39,0),"") -> 0.6715445292 | H39: =IF($A39<$D$5,OFFSET('Constant mix'!J$12,'Volatilite Portfeuille'!$E$2+$A39,0),"") -> 1.093723557 | I39: =IF($A39<$D$5,OFFSET('Constant mix'!K$12,'Volatilite Portfeuille'!$E$2+$A39,0),"") -> 1.758230284 | J39: =IF($A39<$D$5,OFFSET('Constant mix'!L$12,'Volatilite Portfeuille'!$E$2+$A39,0),"") -> 1.833040192 | K39: =IF($A39<$D$5,OFFSET('Constant mix'!M$12,'Volatilite Portfeuille'!$E$2+$A39,0),"") -> 0.96378228 | L39: =IF($A39<$D$5,OFFSET('Constant mix'!N$12,'Volatilite Portfeuille'!$E$2+$A39,0),"") -> 1.016461021 | M39: =IF($A39<$D$5,OFFSET('Constant mix'!O$12,'Volatilite Portfeuille'!$E$2+$A39,0),"") -> 1.044977546 | N39: =IF($A39<$D$5,OFFSET('Constant mix'!$AM$12,'Volatilite Portfeuille'!$E$2+$A39,0),"") -> 0 | O39: -0.0004459292357 | P39: -0.001440529903 | Q39: -0.01022347288 | R39: -0.003972349352 | S39: -0.004290492682 | T39: 0.008217342547 | U39: -0.007935086206 | V39: 0.0199424302 | W39: 0.007445465227 | X39: 0.005311408223 | AC39: EUROSTOXX 50 | AD39: =AD24/(AD$19*$AA24) -> -0.007228937312 | AE39: -0.01698255102 | AF39: 0.003060746922 | AG39: 1 | AH39: 0.01000074311 | AI39: 0.004233192459 | AJ39: -0.001305646294 | AK39: -0.0120188354 | AL39: -0.01448550222 | AM39: 0.02082918082
A40: 19 | B40: =IF(A40<$D$5,OFFSET('Constant mix'!$B$12,'Volatilite Portfeuille'!$E$2+A40,0),"") -> 2006-01-26 | C40: =IF($A40<$D$5,OFFSET('Constant mix'!$C$13,'Volatilite Portfeuille'!$E$2+$A40,0),"") -> 0.0233 | D40: =IF($A40<$D$5,OFFSET('Constant mix'!F$12,'Volatilite Portfeuille'!$E$2+$A40,0),"") -> 1.413677113 | E40: =IF($A40<$D$5,OFFSET('Constant mix'!G$12,'Volatilite Portfeuille'!$E$2+$A40,0),"") -> 0.9075752188 | F40: =IF($A40<$D$5,OFFSET('Constant mix'!H$12,'Volatilite Portfeuille'!$E$2+$A40,0),"") -> 1.107264991 | G40: =IF($A40<$D$5,OFFSET('Constant mix'!I$12,'Volatilite Portfeuille'!$E$2+$A40,0),"") -> 0.6775628156 | H40: =IF($A40<$D$5,OFFSET('Constant mix'!J$12,'Volatilite Portfeuille'!$E$2+$A40,0),"") -> 1.090177391 | I40: =IF($A40<$D$5,OFFSET('Constant mix'!K$12,'Volatilite Portfeuille'!$E$2+$A40,0),"") -> 1.749797034 | J40: =IF($A40<$D$5,OFFSET('Constant mix'!L$12,'Volatilite Portfeuille'!$E$2+$A40,0),"") -> 1.835894295 | K40: =IF($A40<$D$5,OFFSET('Constant mix'!M$12,'Volatilite Portfeuille'!$E$2+$A40,0),"") -> 0.9551587026 | L40: =IF($A40<$D$5,OFFSET('Constant mix'!N$12,'Volatilite Portfeuille'!$E$2+$A40,0),"") -> 1.006687501 | M40: =IF($A40<$D$5,OFFSET('Constant mix'!O$12,'Volatilite Portfeuille'!$E$2+$A40,0),"") -> 1.048439953 | N40: =IF($A40<$D$5,OFFSET('Constant mix'!$AM$12,'Volatilite Portfeuille'!$E$2+$A40,0),"") -> 0 | O40: 0.001822076285 | P40: -0.001608020707 | Q40: 0.003631119243 | R40: 0.008961857593 | S40: -0.003242287612 | T40: -0.004796442119 | U40: 0.001557032739 | V40: -0.008947640479 | W40: -0.00961524408 | X40: 0.003313379328 | AC40: NIKKEI | AD40: =AD25/(AD$19*$AA25) -> 0.02165187038 | AE40: 0.04746087552 | AF40: -0.02498357029 | AG40: 0.01000074311 | AH40: 1 | AI40: 0.0122622974 | AJ40: 0.002435402152 | AK40: 0.008170261719 | AL40: 0.01804418288 | AM40: 0.01079500862
A41: 20 | B41: =IF(A41<$D$5,OFFSET('Constant mix'!$B$12,'Volatilite Portfeuille'!$E$2+A41,0),"") -> 2006-01-27 | C41: =IF($A41<$D$5,OFFSET('Constant mix'!$C$13,'Volatilite Portfeuille'!$E$2+$A41,0),"") -> 0.0233 | D41: =IF($A41<$D$5,OFFSET('Constant mix'!F$12,'Volatilite Portfeuille'!$E$2+$A41,0),"") -> 1.427111792 | E41: =IF($A41<$D$5,OFFSET('Constant mix'!G$12,'Volatilite Portfeuille'!$E$2+$A41,0),"") -> 0.90051485 | F41: =IF($A41<$D$5,OFFSET('Constant mix'!H$12,'Volatilite Portfeuille'!$E$2+$A41,0),"") -> 1.096721763 | G41: =IF($A41<$D$5,OFFSET('Constant mix'!I$12,'Volatilite Portfeuille'!$E$2+$A41,0),"") -> 0.6820923799 | H41: =IF($A41<$D$5,OFFSET('Constant mix'!J$12,'Volatilite Portfeuille'!$E$2+$A41,0),"") -> 1.087664043 | I41: =IF($A41<$D$5,OFFSET('Constant mix'!K$12,'Volatilite Portfeuille'!$E$2+$A41,0),"") -> 1.736956584 | J41: =IF($A41<$D$5,OFFSET('Constant mix'!L$12,'Volatilite Portfeuille'!$E$2+$A41,0),"") -> 1.842071255 | K41: =IF($A41<$D$5,OFFSET('Constant mix'!M$12,'Volatilite Portfeuille'!$E$2+$A41,0),"") -> 0.9496430037 | L41: =IF($A41<$D$5,OFFSET('Constant mix'!N$12,'Volatilite Portfeuille'!$E$2+$A41,0),"") -> 1.004395665 | M41: =IF($A41<$D$5,OFFSET('Constant mix'!O$12,'Volatilite Portfeuille'!$E$2+$A41,0),"") -> 1.068354565 | N41: =IF($A41<$D$5,OFFSET('Constant mix'!$AM$12,'Volatilite Portfeuille'!$E$2+$A41,0),"") -> 0 | O41: 0.009503357177 | P41: -0.007779375908 | Q41: -0.009521865005 | R41: 0.006685083878 | S41: -0.002305449083 | T41: -0.007338251292 | U41: 0.00336455095 | V41: -0.005774641373 | W41: -0.002276610253 | X41: 0.0189945184 | AC41: MSCI Emerging | AD41: =AD26/(AD$19*$AA26) -> 0.03113736743 | AE41: 0.01024421128 | AF41: -0.04344361529 | AG41: 0.004233192459 | AH41: 0.0122622974 | AI41: 1 | AJ41: -0.02540068942 | AK41: 0.03781048114 | AL41: -0.02058816672 | AM41: 0.05285806631
A42: 21 | B42: =IF(A42<$D$5,OFFSET('Constant mix'!$B$12,'Volatilite Portfeuille'!$E$2+A42,0),"") -> 2006-01-30 | C42: =IF($A42<$D$5,OFFSET('Constant mix'!$C$13,'Volatilite Portfeuille'!$E$2+$A42,0),"") -> 0.0234 | D42: =IF($A42<$D$5,OFFSET('Constant mix'!F$12,'Volatilite Portfeuille'!$E$2+$A42,0),"") -> 1.437586082 | E42: =IF($A42<$D$5,OFFSET('Constant mix'!G$12,'Volatilite Portfeuille'!$E$2+$A42,0),"") -> 0.9302786835 | F42: =IF($A42<$D$5,OFFSET('Constant mix'!H$12,'Volatilite Portfeuille'!$E$2+$A42,0),"") -> 1.094503836 | G42: =IF($A42<$D$5,OFFSET('Constant mix'!I$12,'Volatilite Portfeuille'!$E$2+$A42,0),"") -> 0.6784297481 | H42: =IF($A42<$D$5,OFFSET('Constant mix'!J$12,'Volatilite Portfeuille'!$E$2+$A42,0),"") -> 1.095778131 | I42: =IF($A42<$D$5,OFFSET('Constant mix'!K$12,'Volatilite Portfeuille'!$E$2+$A42,0),"") -> 1.746081255 | J42: =IF($A42<$D$5,OFFSET('Constant mix'!L$12,'Volatilite Portfeuille'!$E$2+$A42,0),"") -> 1.852320192 | K42: =IF($A42<$D$5,OFFSET('Constant mix'!M$12,'Volatilite Portfeuille'!$E$2+$A42,0),"") -> 0.9586624844 | L42: =IF($A42<$D$5,OFFSET('Constant mix'!N$12,'Volatilite Portfeuille'!$E$2+$A42,0),"") -> 1.02656253 | M42: =IF($A42<$D$5,OFFSET('Constant mix'!O$12,'Volatilite Portfeuille'!$E$2+$A42,0),"") -> 1.056010123 | N42: =IF($A42<$D$5,OFFSET('Constant mix'!$AM$12,'Volatilite Portfeuille'!$E$2+$A42,0),"") -> 0 | O42: 0.00733950197 | P42: 0.0330520186 | Q42: -0.002022324387 | R42: -0.005369700567 | S42: 0.007460104979 | T42: 0.005253252225 | U42: 0.005563811283 | V42: 0.009497759403 | W42: 0.02206985304 | X42: -0.01155463001 | AC42: Commodities (CRB) | AD42: =AD27/(AD$19*$AA27) -> 0.0007604329055 | AE42: -0.02099008147 | AF42: -0.005986361206 | AG42: -0.001305646294 | AH42: 0.002435402152 | AI42: -0.02540068942 | AJ42: 1 | AK42: -0.0006176093952 | AL42: 0.007669173112 | AM42: 0.02159063198
A43: 22 | B43: =IF(A43<$D$5,OFFSET('Constant mix'!$B$12,'Volatilite Portfeuille'!$E$2+A43,0),"") -> 2006-01-31 | C43: =IF($A43<$D$5,OFFSET('Constant mix'!$C$13,'Volatilite Portfeuille'!$E$2+$A43,0),"") -> 0.0233 | D43: =IF($A43<$D$5,OFFSET('Constant mix'!F$12,'Volatilite Portfeuille'!$E$2+$A43,0),"") -> 1.443962172 | E43: =IF($A43<$D$5,OFFSET('Constant mix'!G$12,'Volatilite Portfeuille'!$E$2+$A43,0),"") -> 0.933443067 | F43: =IF($A43<$D$5,OFFSET('Constant mix'!H$12,'Volatilite Portfeuille'!$E$2+$A43,0),"") -> 1.098976308 | G43: =IF($A43<$D$5,OFFSET('Constant mix'!I$12,'Volatilite Portfeuille'!$E$2+$A43,0),"") -> 0.6821328906 | H43: =IF($A43<$D$5,OFFSET('Constant mix'!J$12,'Volatilite Portfeuille'!$E$2+$A43,0),"") -> 1.081225103 | I43: =IF($A43<$D$5,OFFSET('Constant mix'!K$12,'Volatilite Portfeuille'!$E$2+$A43,0),"") -> 1.784199697 | J43: =IF($A43<$D$5,OFFSET('Constant mix'!L$12,'Volatilite Portfeuille'!$E$2+$A43,0),"") -> 1.853783196 | K43: =IF($A43<$D$5,OFFSET('Constant mix'!M$12,'Volatilite Portfeuille'!$E$2+$A43,0),"") -> 0.9608909622 | L43: =IF($A43<$D$5,OFFSET('Constant mix'!N$12,'Volatilite Portfeuille'!$E$2+$A43,0),"") -> 1.016030033 | M43: =IF($A43<$D$5,OFFSET('Constant mix'!O$12,'Volatilite Portfeuille'!$E$2+$A43,0),"") -> 1.064382468 | N43: =IF($A43<$D$5,OFFSET('Constant mix'!$AM$12,'Volatilite Portfeuille'!$E$2+$A43,0),"") -> 0 | O43: 0.00443527575 | P43: 0.003401543517 | Q43: 0.00408630134 | R43: 0.005458402407 | S43: -0.01328099862 | T43: 0.02183085246 | U43: 0.0007898224552 | V43: 0.00232456968 | W43: -0.01025996638 | X43: 0.007928280868 | AC43: Iboxx HY US | AD43: =AD28/(AD$19*$AA28) -> 0.009657607549 | AE43: 0.02706609384 | AF43: -0.03203987308 | AG43: -0.0120188354 | AH43: 0.008170261719 | AI43: 0.03781048114 | AJ43: -0.0006176093952 | AK43: 1 | AL43: 0.1090877562 | AM43: -0.01631614682
A44: 23 | B44: =IF(A44<$D$5,OFFSET('Constant mix'!$B$12,'Volatilite Portfeuille'!$E$2+A44,0),"") -> 2006-02-01 | C44: =IF($A44<$D$5,OFFSET('Constant mix'!$C$13,'Volatilite Portfeuille'!$E$2+$A44,0),"") -> 0.0234 | D44: =IF($A44<$D$5,OFFSET('Constant mix'!F$12,'Volatilite Portfeuille'!$E$2+$A44,0),"") -> 1.462557834 | E44: =IF($A44<$D$5,OFFSET('Constant mix'!G$12,'Volatilite Portfeuille'!$E$2+$A44,0),"") -> 0.9460864956 | F44: =IF($A44<$D$5,OFFSET('Constant mix'!H$12,'Volatilite Portfeuille'!$E$2+$A44,0),"") -> 1.097762581 | G44: =IF($A44<$D$5,OFFSET('Constant mix'!I$12,'Volatilite Portfeuille'!$E$2+$A44,0),"") -> 0.6897425126 | H44: =IF($A44<$D$5,OFFSET('Constant mix'!J$12,'Volatilite Portfeuille'!$E$2+$A44,0),"") -> 1.082933518 | I44: =IF($A44<$D$5,OFFSET('Constant mix'!K$12,'Volatilite Portfeuille'!$E$2+$A44,0),"") -> 1.771501581 | J44: =IF($A44<$D$5,OFFSET('Constant mix'!L$12,'Volatilite Portfeuille'!$E$2+$A44,0),"") -> 1.851620018 | K44: =IF($A44<$D$5,OFFSET('Constant mix'!M$12,'Volatilite Portfeuille'!$E$2+$A44,0),"") -> 0.9727477213 | L44: =IF($A44<$D$5,OFFSET('Constant mix'!N$12,'Volatilite Portfeuille'!$E$2+$A44,0),"") -> 1.016516962 | M44: =IF($A44<$D$5,OFFSET('Constant mix'!O$12,'Volatilite Portfeuille'!$E$2+$A44,0),"") -> 1.061123957 | N44: =IF($A44<$D$5,OFFSET('Constant mix'!$AM$12,'Volatilite Portfeuille'!$E$2+$A44,0),"") -> 0 | O44: 0.01287821974 | P44: 0.01354493817 | Q44: -0.001104415863 | R44: 0.01115562973 | S44: 0.001580073798 | T44: -0.007116981171 | U44: -0.001166899328 | V44: 0.01233933878 | W44: 0.0004792460688 | X44: -0.003061409718 | AC44: Iboxx HY EUR | AD44: =AD29/(AD$19*$AA29) -> -0.02448362577 | AE44: 0.04502843361 | AF44: 0.01010367973 | AG44: -0.01448550222 | AH44: 0.01804418288 | AI44: -0.02058816672 | AJ44: 0.007669173112 | AK44: 0.1090877562 | AL44: 1 | AM44: 0.009936858351
A45: 24 | B45: =IF(A45<$D$5,OFFSET('Constant mix'!$B$12,'Volatilite Portfeuille'!$E$2+A45,0),"") -> 2006-02-02 | C45: =IF($A45<$D$5,OFFSET('Constant mix'!$C$13,'Volatilite Portfeuille'!$E$2+$A45,0),"") -> 0.024 | D45: =IF($A45<$D$5,OFFSET('Constant mix'!F$12,'Volatilite Portfeuille'!$E$2+$A45,0),"") -> 1.450912777 | E45: =IF($A45<$D$5,OFFSET('Constant mix'!G$12,'Volatilite Portfeuille'!$E$2+$A45,0),"") -> 0.9390223671 | F45: =IF($A45<$D$5,OFFSET('Constant mix'!H$12,'Volatilite Portfeuille'!$E$2+$A45,0),"") -> 1.093199561 | G45: =IF($A45<$D$5,OFFSET('Constant mix'!I$12,'Volatilite Portfeuille'!$E$2+$A45,0),"") -> 0.6838741673 | H45: =IF($A45<$D$5,OFFSET('Constant mix'!J$12,'Volatilite Portfeuille'!$E$2+$A45,0),"") -> 1.087679357 | I45: =IF($A45<$D$5,OFFSET('Constant mix'!K$12,'Volatilite Portfeuille'!$E$2+$A45,0),"") -> 1.776846906 | J45: =IF($A45<$D$5,OFFSET('Constant mix'!L$12,'Volatilite Portfeuille'!$E$2+$A45,0),"") -> 1.856035693 | K45: =IF($A45<$D$5,OFFSET('Constant mix'!M$12,'Volatilite Portfeuille'!$E$2+$A45,0),"") -> 0.9663576554 | L45: =IF($A45<$D$5,OFFSET('Constant mix'!N$12,'Volatilite Portfeuille'!$E$2+$A45,0),"") -> 1.021386819 | M45: =IF($A45<$D$5,OFFSET('Constant mix'!O$12,'Volatilite Portfeuille'!$E$2+$A45,0),"") -> 1.051687713 | N45: =IF($A45<$D$5,OFFSET('Constant mix'!$AM$12,'Volatilite Portfeuille'!$E$2+$A45,0),"") -> 0 | O45: -0.00796211786 | P45: -0.007466683585 | Q45: -0.004156654875 | R45: -0.008508023124 | S45: 0.004382391477 | T45: 0.003017397886 | U45: 0.002384763288 | V45: -0.006569088468 | W45: 0.004790729228 | X45: -0.008892688331 | AC45: Emerging Debt | AD45: =AD30/(AD$19*$AA30) -> 0.0300031514 | AE45: 0.03230694828 | AF45: -0.01145706816 | AG45: 0.02082918082 | AH45: 0.01079500862 | AI45: 0.05285806631 | AJ45: 0.02159063198 | AK45: -0.01631614682 | AL45: 0.009936858351 | AM45: 1
A46: 25 | B46: =IF(A46<$D$5,OFFSET('Constant mix'!$B$12,'Volatilite Portfeuille'!$E$2+A46,0),"") -> 2006-02-03 | C46: =IF($A46<$D$5,OFFSET('Constant mix'!$C$13,'Volatilite Portfeuille'!$E$2+$A46,0),"") -> 0.0238 | D46: =IF($A46<$D$5,OFFSET('Constant mix'!F$12,'Volatilite Portfeuille'!$E$2+$A46,0),"") -> 1.459426568 | E46: =IF($A46<$D$5,OFFSET('Constant mix'!G$12,'Volatilite Portfeuille'!$E$2+$A46,0),"") -> 0.9286807167 | F46: =IF($A46<$D$5,OFFSET('Constant mix'!H$12,'Volatilite Portfeuille'!$E$2+$A46,0),"") -> 1.102101763 | G46: =IF($A46<$D$5,OFFSET('Constant mix'!I$12,'Volatilite Portfeuille'!$E$2+$A46,0),"") -> 0.6797587568 | H46: =IF($A46<$D$5,OFFSET('Constant mix'!J$12,'Volatilite Portfeuille'!$E$2+$A46,0),"") -> 1.102165058 | I46: =IF($A46<$D$5,OFFSET('Constant mix'!K$12,'Volatilite Portfeuille'!$E$2+$A46,0),"") -> 1.743135344 | J46: =IF($A46<$D$5,OFFSET('Constant mix'!L$12,'Volatilite Portfeuille'!$E$2+$A46,0),"") -> 1.875807947 | K46: =IF($A46<$D$5,OFFSET('Constant mix'!M$12,'Volatilite Portfeuille'!$E$2+$A46,0),"") -> 0.9689780554 | L46: =IF($A46<$D$5,OFFSET('Constant mix'!N$12,'Volatilite Portfeuille'!$E$2+$A46,0),"") -> 1.020811596 | M46: =IF($A46<$D$5,OFFSET('Constant mix'!O$12,'Volatilite Portfeuille'!$E$2+$A46,0),"") -> 1.060415005 | N46: =IF($A46<$D$5,OFFSET('Constant mix'!$AM$12,'Volatilite Portfeuille'!$E$2+$A46,0),"") -> 0 | O46: 0.005867886723 | P46: -0.0110132099 | Q46: 0.008143254078 | R46: -0.006017789176 | S46: 0.01331798842 | T46: -0.01897268835 | U46: 0.01065294908 | V46: 0.002711625379 | W46: -0.0005631786144 | X46: 0.008298368195
A47: 26 | B47: =IF(A47<$D$5,OFFSET('Constant mix'!$B$12,'Volatilite Portfeuille'!$E$2+A47,0),"") -> 2006-02-06 | C47: =IF($A47<$D$5,OFFSET('Constant mix'!$C$13,'Volatilite Portfeuille'!$E$2+$A47,0),"") -> 0.0234 | D47: =IF($A47<$D$5,OFFSET('Constant mix'!F$12,'Volatilite Portfeuille'!$E$2+$A47,0),"") -> 1.477021716 | E47: =IF($A47<$D$5,OFFSET('Constant mix'!G$12,'Volatilite Portfeuille'!$E$2+$A47,0),"") -> 0.9132518422 | F47: =IF($A47<$D$5,OFFSET('Constant mix'!H$12,'Volatilite Portfeuille'!$E$2+$A47,0),"") -> 1.10755589 | G47: =IF($A47<$D$5,OFFSET('Constant mix'!I$12,'Volatilite Portfeuille'!$E$2+$A47,0),"") -> 0.6751314559 | H47: =IF($A47<$D$5,OFFSET('Constant mix'!J$12,'Volatilite Portfeuille'!$E$2+$A47,0),"") -> 1.100688723 | I47: =IF($A47<$D$5,OFFSET('Constant mix'!K$12,'Volatilite Portfeuille'!$E$2+$A47,0),"") -> 1.745989575 | J47: =IF($A47<$D$5,OFFSET('Constant mix'!L$12,'Volatilite Portfeuille'!$E$2+$A47,0),"") -> 1.871535677 | K47: =IF($A47<$D$5,OFFSET('Constant mix'!M$12,'Volatilite Portfeuille'!$E$2+$A47,0),"") -> 0.9694106602 | L47: =IF($A47<$D$5,OFFSET('Constant mix'!N$12,'Volatilite Portfeuille'!$E$2+$A47,0),"") -> 1.02383758 | M47: =IF($A47<$D$5,OFFSET('Constant mix'!O$12,'Volatilite Portfeuille'!$E$2+$A47,0),"") -> 1.059147422 | N47: =IF($A47<$D$5,OFFSET('Constant mix'!$AM$12,'Volatilite Portfeuille'!$E$2+$A47,0),"") -> 0 | O47: 0.01205620643 | P47: -0.01661375564 | Q47: 0.004948841686 | R47: -0.006807269203 | S47: -0.001339486086 | T47: 0.001637412033 | U47: -0.002277562279 | V47: 0.0004464547434 | W47: 0.002964292541 | X47: -0.001195365131
A48: 27 | B48: =IF(A48<$D$5,OFFSET('Constant mix'!$B$12,'Volatilite Portfeuille'!$E$2+A48,0),"") -> 2006-02-07 | C48: =IF($A48<$D$5,OFFSET('Constant mix'!$C$13,'Volatilite Portfeuille'!$E$2+$A48,0),"") -> 0.0234 | D48: =IF($A48<$D$5,OFFSET('Constant mix'!F$12,'Volatilite Portfeuille'!$E$2+$A48,0),"") -> 1.492824862 | E48: =IF($A48<$D$5,OFFSET('Constant mix'!G$12,'Volatilite Portfeuille'!$E$2+$A48,0),"") -> 0.8970178072 | F48: =IF($A48<$D$5,OFFSET('Constant mix'!H$12,'Volatilite Portfeuille'!$E$2+$A48,0),"") -> 1.124643788 | G48: =IF($A48<$D$5,OFFSET('Constant mix'!I$12,'Volatilite Portfeuille'!$E$2+$A48,0),"") -> 0.6722697319 | H48: =IF($A48<$D$5,OFFSET('Constant mix'!J$12,'Volatilite Portfeuille'!$E$2+$A48,0),"") -> 1.104249876 | I48: =IF($A48<$D$5,OFFSET('Constant mix'!K$12,'Volatilite Portfeuille'!$E$2+$A48,0),"") -> 1.740912892 | J48: =IF($A48<$D$5,OFFSET('Constant mix'!L$12,'Volatilite Portfeuille'!$E$2+$A48,0),"") -> 1.883109457 | K48: =IF($A48<$D$5,OFFSET('Constant mix'!M$12,'Volatilite Portfeuille'!$E$2+$A48,0),"") -> 0.9651145427 | L48: =IF($A48<$D$5,OFFSET('Constant mix'!N$12,'Volatilite Portfeuille'!$E$2+$A48,0),"") -> 1.023572838 | M48: =IF($A48<$D$5,OFFSET('Constant mix'!O$12,'Volatilite Portfeuille'!$E$2+$A48,0),"") -> 1.066878435 | N48: =IF($A48<$D$5,OFFSET('Constant mix'!$AM$12,'Volatilite Portfeuille'!$E$2+$A48,0),"") -> 0 | O48: 0.01069933202 | P48: -0.01777607694 | Q48: 0.01542847489 | R48: -0.004238765624 | S48: 0.003235386169 | T48: -0.002907625032 | U48: 0.006184108598 | V48: -0.004431679727 | W48: -0.0002585778262 | X48: 0.007299280147
A49: 28 | B49: =IF(A49<$D$5,OFFSET('Constant mix'!$B$12,'Volatilite Portfeuille'!$E$2+A49,0),"") -> 2006-02-08 | C49: =IF($A49<$D$5,OFFSET('Constant mix'!$C$13,'Volatilite Portfeuille'!$E$2+$A49,0),"") -> 0.0234 | D49: =IF($A49<$D$5,OFFSET('Constant mix'!F$12,'Volatilite Portfeuille'!$E$2+$A49,0),"") -> 1.473607189 | E49: =IF($A49<$D$5,OFFSET('Constant mix'!G$12,'Volatilite Portfeuille'!$E$2+$A49,0),"") -> 0.8895562245 | F49: =IF($A49<$D$5,OFFSET('Constant mix'!H$12,'Volatilite Portfeuille'!$E$2+$A49,0),"") -> 1.126350355 | G49: =IF($A49<$D$5,OFFSET('Constant mix'!I$12,'Volatilite Portfeuille'!$E$2+$A49,0),"") -> 0.6761440659 | H49: =IF($A49<$D$5,OFFSET('Constant mix'!J$12,'Volatilite Portfeuille'!$E$2+$A49,0),"") -> 1.109139629 | I49: =IF($A49<$D$5,OFFSET('Constant mix'!K$12,'Volatilite Portfeuille'!$E$2+$A49,0),"") -> 1.719179943 | J49: =IF($A49<$D$5,OFFSET('Constant mix'!L$12,'Volatilite Portfeuille'!$E$2+$A49,0),"") -> 1.890895951 | K49: =IF($A49<$D$5,OFFSET('Constant mix'!M$12,'Volatilite Portfeuille'!$E$2+$A49,0),"") -> 0.9656994504 | L49: =IF($A49<$D$5,OFFSET('Constant mix'!N$12,'Volatilite Portfeuille'!$E$2+$A49,0),"") -> 1.02772605 | M49: =IF($A49<$D$5,OFFSET('Constant mix'!O$12,'Volatilite Portfeuille'!$E$2+$A49,0),"") -> 1.059857763 | N49: =IF($A49<$D$5,OFFSET('Constant mix'!$AM$12,'Volatilite Portfeuille'!$E$2+$A49,0),"") -> 0 | O49: -0.01287336055 | P49: -0.008318210205 | Q49: 0.001517428438 | R49: 0.00576306476 | S49: 0.004428121638 | T49: -0.01248365069 | U49: 0.004134913246 | V49: 0.0006060500459 | W49: 0.004057563514 | X49: -0.006580573764
A50: 29 | B50: =IF(A50<$D$5,OFFSET('Constant mix'!$B$12,'Volatilite Portfeuille'!$E$2+A50,0),"") -> 2006-02-09 | C50: =IF($A50<$D$5,OFFSET('Constant mix'!$C$13,'Volatilite Portfeuille'!$E$2+$A50,0),"") -> 0.0234 | D50: =IF($A50<$D$5,OFFSET('Constant mix'!F$12,'Volatilite Portfeuille'!$E$2+$A50,0),"") -> 1.487283448 | E50: =IF($A50<$D$5,OFFSET('Constant mix'!G$12,'Volatilite Portfeuille'!$E$2+$A50,0),"") -> 0.8882094878 | F50: =IF($A50<$D$5,OFFSET('Constant mix'!H$12,'Volatilite Portfeuille'!$E$2+$A50,0),"") -> 1.116411261 | G50: =IF($A50<$D$5,OFFSET('Constant mix'!I$12,'Volatilite Portfeuille'!$E$2+$A50,0),"") -> 0.6731792342 | H50: =IF($A50<$D$5,OFFSET('Constant mix'!J$12,'Volatilite Portfeuille'!$E$2+$A50,0),"") -> 1.098688237 | I50: =IF($A50<$D$5,OFFSET('Constant mix'!K$12,'Volatilite Portfeuille'!$E$2+$A50,0),"") -> 1.7193937 | J50: =IF($A50<$D$5,OFFSET('Constant mix'!L$12,'Volatilite Portfeuille'!$E$2+$A50,0),"") -> 1.884177415 | K50: =IF($A50<$D$5,OFFSET('Constant mix'!M$12,'Volatilite Portfeuille'!$E$2+$A50,0),"") -> 0.9664448148 | L50: =IF($A50<$D$5,OFFSET('Constant mix'!N$12,'Volatilite Portfeuille'!$E$2+$A50,0),"") -> 1.035084238 | M50: =IF($A50<$D$5,OFFSET('Constant mix'!O$12,'Volatilite Portfeuille'!$E$2+$A50,0),"") -> 1.060528162 | N50: =IF($A50<$D$5,OFFSET('Constant mix'!$AM$12,'Volatilite Portfeuille'!$E$2+$A50,0),"") -> 0 | O50: 0.009280803049 | P50: -0.00151394211 | Q50: -0.008824158073 | R50: -0.004384911196 | S50: -0.009422972237 | T50: 0.0001243368295 | U50: -0.00355309708 | V50: 0.0007718389391 | W50: 0.007159678028 | X50: 0.000632536427
A51: 30 | B51: =IF(A51<$D$5,OFFSET('Constant mix'!$B$12,'Volatilite Portfeuille'!$E$2+A51,0),"") -> 2006-02-10 | C51: =IF($A51<$D$5,OFFSET('Constant mix'!$C$13,'Volatilite Portfeuille'!$E$2+$A51,0),"") -> 0.0234 | D51: =IF($A51<$D$5,OFFSET('Constant mix'!F$12,'Volatilite Portfeuille'!$E$2+$A51,0),"") -> 1.498822126 | E51: =IF($A51<$D$5,OFFSET('Constant mix'!G$12,'Volatilite Portfeuille'!$E$2+$A51,0),"") -> 0.895288812 | F51: =IF($A51<$D$5,OFFSET('Constant mix'!H$12,'Volatilite Portfeuille'!$E$2+$A51,0),"") -> 1.126662016 | G51: =IF($A51<$D$5,OFFSET('Constant mix'!I$12,'Volatilite Portfeuille'!$E$2+$A51,0),"") -> 0.6737892868 | H51: =IF($A51<$D$5,OFFSET('Constant mix'!J$12,'Volatilite Portfeuille'!$E$2+$A51,0),"") -> 1.099771091 | I51: =IF($A51<$D$5,OFFSET('Constant mix'!K$12,'Volatilite Portfeuille'!$E$2+$A51,0),"") -> 1.710199377 | J51: =IF($A51<$D$5,OFFSET('Constant mix'!L$12,'Volatilite Portfeuille'!$E$2+$A51,0),"") -> 1.883344225 | K51: =IF($A51<$D$5,OFFSET('Constant mix'!M$12,'Volatilite Portfeuille'!$E$2+$A51,0),"") -> 0.97101539 | L51: =IF($A51<$D$5,OFFSET('Constant mix'!N$12,'Volatilite Portfeuille'!$E$2+$A51,0),"") -> 1.057175356 | M51: =IF($A51<$D$5,OFFSET('Constant mix'!O$12,'Volatilite Portfeuille'!$E$2+$A51,0),"") -> 1.051583906 | N51: =IF($A51<$D$5,OFFSET('Constant mix'!$AM$12,'Volatilite Portfeuille'!$E$2+$A51,0),"") -> 0 | O51: 0.007758224476 | P51: 0.007970331573 | Q51: 0.009181880544 | R51: 0.0009062261224 | S51: 0.0009855876571 | T51: -0.005347422129 | U51: -0.0004422033314 | V51: 0.004729266624 | W51: 0.02134233837 | X51: -0.008433774876
A52: 31 | B52: =IF(A52<$D$5,OFFSET('Constant mix'!$B$12,'Volatilite Portfeuille'!$E$2+A52,0),"") -> 2006-02-13 | C52: =IF($A52<$D$5,OFFSET('Constant mix'!$C$13,'Volatilite Portfeuille'!$E$2+$A52,0),"") -> 0.0234 | D52: =IF($A52<$D$5,OFFSET('Constant mix'!F$12,'Volatilite Portfeuille'!$E$2+$A52,0),"") -> 1.514712073 | E52: =IF($A52<$D$5,OFFSET('Constant mix'!G$12,'Volatilite Portfeuille'!$E$2+$A52,0),"") -> 0.88657525 | F52: =IF($A52<$D$5,OFFSET('Constant mix'!H$12,'Volatilite Portfeuille'!$E$2+$A52,0),"") -> 1.132136154 | G52: =IF($A52<$D$5,OFFSET('Constant mix'!I$12,'Volatilite Portfeuille'!$E$2+$A52,0),"") -> 0.6630741116 | H52: =IF($A52<$D$5,OFFSET('Constant mix'!J$12,'Volatilite Portfeuille'!$E$2+$A52,0),"") -> 1.109666228 | I52: =IF($A52<$D$5,OFFSET('Constant mix'!K$12,'Volatilite Portfeuille'!$E$2+$A52,0),"") -> 1.700749117 | J52: =IF($A52<$D$5,OFFSET('Constant mix'!L$12,'Volatilite Portfeuille'!$E$2+$A52,0),"") -> 1.865780679 | K52: =IF($A52<$D$5,OFFSET('Constant mix'!M$12,'Volatilite Portfeuille'!$E$2+$A52,0),"") -> 0.9684227486 | L52: =IF($A52<$D$5,OFFSET('Constant mix'!N$12,'Volatilite Portfeuille'!$E$2+$A52,0),"") -> 1.063789116 | M52: =IF($A52<$D$5,OFFSET('Constant mix'!O$12,'Volatilite Portfeuille'!$E$2+$A52,0),"") -> 1.063898979 | N52: =IF($A52<$D$5,OFFSET('Constant mix'!$AM$12,'Volatilite Portfeuille'!$E$2+$A52,0),"") -> 0 | O52: 0.01060162263 | P52: -0.009732682705 | Q52: 0.0048587219 | R52: -0.01590285776 | S52: 0.008997452098 | T52: -0.00552582344 | U52: -0.009325722941 | V52: -0.002670031193 | W52: 0.006256067577 | X52: 0.01171097531
A53: 32 | B53: =IF(A53<$D$5,OFFSET('Constant mix'!$B$12,'Volatilite Portfeuille'!$E$2+A53,0),"") -> 2006-02-14 | C53: =IF($A53<$D$5,OFFSET('Constant mix'!$C$13,'Volatilite Portfeuille'!$E$2+$A53,0),"") -> 0.0234 | D53: =IF($A53<$D$5,OFFSET('Constant mix'!F$12,'Volatilite Portfeuille'!$E$2+$A53,0),"") -> 1.513807704 | E53: =IF($A53<$D$5,OFFSET('Constant mix'!G$12,'Volatilite Portfeuille'!$E$2+$A53,0),"") -> 0.8947134694 | F53: =IF($A53<$D$5,OFFSET('Constant mix'!H$12,'Volatilite Portfeuille'!$E$2+$A53,0),"") -> 1.138181922 | G53: =IF($A53<$D$5,OFFSET('Constant mix'!I$12,'Volatilite Portfeuille'!$E$2+$A53,0),"") -> 0.6592561504 | H53: =IF($A53<$D$5,OFFSET('Constant mix'!J$12,'Volatilite Portfeuille'!$E$2+$A53,0),"") -> 1.121066012 | I53: =IF($A53<$D$5,OFFSET('Constant mix'!K$12,'Volatilite Portfeuille'!$E$2+$A53,0),"") -> 1.713996152 | J53: =IF($A53<$D$5,OFFSET('Constant mix'!L$12,'Volatilite Portfeuille'!$E$2+$A53,0),"") -> 1.871031393 | K53: =IF($A53<$D$5,OFFSET('Constant mix'!M$12,'Volatilite Portfeuille'!$E$2+$A53,0),"") -> 0.9561786932 | L53: =IF($A53<$D$5,OFFSET('Constant mix'!N$12,'Volatilite Portfeuille'!$E$2+$A53,0),"") -> 1.067624584 | M53: =IF($A53<$D$5,OFFSET('Constant mix'!O$12,'Volatilite Portfeuille'!$E$2+$A53,0),"") -> 1.080143012 | N53: =IF($A53<$D$5,OFFSET('Constant mix'!$AM$12,'Volatilite Portfeuille'!$E$2+$A53,0),"") -> 0 | O53: -0.0005970565345 | P53: 0.009179389283 | Q53: 0.005340142893 | R53: -0.005757970637 | S53: 0.0102731649 | T53: 0.007788941487 | U53: 0.002814218206 | V53: -0.01264329593 | W53: 0.003605477086 | X53: 0.01526839764
A54: 33 | B54: =IF(A54<$D$5,OFFSET('Constant mix'!$B$12,'Volatilite Portfeuille'!$E$2+A54,0),"") -> 2006-02-15 | C54: =IF($A54<$D$5,OFFSET('Constant mix'!$C$13,'Volatilite Portfeuille'!$E$2+$A54,0),"") -> 0.0234 | D54: =IF($A54<$D$5,OFFSET('Constant mix'!F$12,'Volatilite Portfeuille'!$E$2+$A54,0),"") -> 1.521949291 | E54: =IF($A54<$D$5,OFFSET('Constant mix'!G$12,'Volatilite Portfeuille'!$E$2+$A54,0),"") -> 0.8989536485 | F54: =IF($A54<$D$5,OFFSET('Constant mix'!H$12,'Volatilite Portfeuille'!$E$2+$A54,0),"") -> 1.153065975 | G54: =IF($A54<$D$5,OFFSET('Constant mix'!I$12,'Volatilite Portfeuille'!$E$2+$A54,0),"") -> 0.6645798553 | H54: =IF($A54<$D$5,OFFSET('Constant mix'!J$12,'Volatilite Portfeuille'!$E$2+$A54,0),"") -> 1.122604567 | I54: =IF($A54<$D$5,OFFSET('Constant mix'!K$12,'Volatilite Portfeuille'!$E$2+$A54,0),"") -> 1.697707118 | J54: =IF($A54<$D$5,OFFSET('Constant mix'!L$12,'Volatilite Portfeuille'!$E$2+$A54,0),"") -> 1.87412866 | K54: =IF($A54<$D$5,OFFSET('Constant mix'!M$12,'Volatilite Portfeuille'!$E$2+$A54,0),"") -> 0.9556574263 | L54: =IF($A54<$D$5,OFFSET('Constant mix'!N$12,'Volatilite Portfeuille'!$E$2+$A54,0),"") -> 1.069273952 | M54: =IF($A54<$D$5,OFFSET('Constant mix'!O$12,'Volatilite Portfeuille'!$E$2+$A54,0),"") -> 1.078538045 | N54: =IF($A54<$D$5,OFFSET('Constant mix'!$AM$12,'Volatilite Portfeuille'!$E$2+$A54,0),"") -> 0 | O54: 0.005378217098 | P54: 0.00473914753 | Q54: 0.01307704159 | R54: 0.00807532089 | S54: 0.001372403175 | T54: -0.00950354193 | U54: 0.001655379837 | V54: -0.0005451563937 | W54: 0.001544895476 | X54: -0.00148588322
A55: 34 | B55: =IF(A55<$D$5,OFFSET('Constant mix'!$B$12,'Volatilite Portfeuille'!$E$2+A55,0),"") -> 2006-02-16 | C55: =IF($A55<$D$5,OFFSET('Constant mix'!$C$13,'Volatilite Portfeuille'!$E$2+$A55,0),"") -> 0.0234 | D55: =IF($A55<$D$5,OFFSET('Constant mix'!F$12,'Volatilite Portfeuille'!$E$2+$A55,0),"") -> 1.536096239 | E55: =IF($A55<$D$5,OFFSET('Constant mix'!G$12,'Volatilite Portfeuille'!$E$2+$A55,0),"") -> 0.8925776375 | F55: =IF($A55<$D$5,OFFSET('Constant mix'!H$12,'Volatilite Portfeuille'!$E$2+$A55,0),"") -> 1.170230677 | G55: =IF($A55<$D$5,OFFSET('Constant mix'!I$12,'Volatilite Portfeuille'!$E$2+$A55,0),"") -> 0.660637998 | H55: =IF($A55<$D$5,OFFSET('Constant mix'!J$12,'Volatilite Portfeuille'!$E$2+$A55,0),"") -> 1.12356336 | I55: =IF($A55<$D$5,OFFSET('Constant mix'!K$12,'Volatilite Portfeuille'!$E$2+$A55,0),"") -> 1.712589714 | J55: =IF($A55<$D$5,OFFSET('Constant mix'!L$12,'Volatilite Portfeuille'!$E$2+$A55,0),"") -> 1.867287851 | K55: =IF($A55<$D$5,OFFSET('Constant mix'!M$12,'Volatilite Portfeuille'!$E$2+$A55,0),"") -> 0.960957844 | L55: =IF($A55<$D$5,OFFSET('Constant mix'!N$12,'Volatilite Portfeuille'!$E$2+$A55,0),"") -> 1.063103405 | M55: =IF($A55<$D$5,OFFSET('Constant mix'!O$12,'Volatilite Portfeuille'!$E$2+$A55,0),"") -> 1.085028376 | N55: =IF($A55<$D$5,OFFSET('Constant mix'!$AM$12,'Volatilite Portfeuille'!$E$2+$A55,0),"") -> 0 | O55: 0.009295282026 | P55: -0.007092702693 | Q55: 0.01488614058 | R55: -0.005931352397 | S55: 0.0008540788768 | T55: 0.00876629184 | U55: -0.003650127671 | V55: 0.005546357461 | W55: -0.005770782365 | X55: 0.006017711482
A56: 35 | B56: =IF(A56<$D$5,OFFSET('Constant mix'!$B$12,'Volatilite Portfeuille'!$E$2+A56,0),"") -> 2006-02-17 | C56: =IF($A56<$D$5,OFFSET('Constant mix'!$C$13,'Volatilite Portfeuille'!$E$2+$A56,0),"") -> 0.0234 | D56: =IF($A56<$D$5,OFFSET('Constant mix'!F$12,'Volatilite Portfeuille'!$E$2+$A56,0),"") -> 1.533801495 | E56: =IF($A56<$D$5,OFFSET('Constant mix'!G$12,'Volatilite Portfeuille'!$E$2+$A56,0),"") -> 0.8901714926 | F56: =IF($A56<$D$5,OFFSET('Constant mix'!H$12,'Volatilite Portfeuille'!$E$2+$A56,0),"") -> 1.163471732 | G56: =IF($A56<$D$5,OFFSET('Constant mix'!I$12,'Volatilite Portfeuille'!$E$2+$A56,0),"") -> 0.6599016674 | H56: =IF($A56<$D$5,OFFSET('Constant mix'!J$12,'Volatilite Portfeuille'!$E$2+$A56,0),"") -> 1.129664399 | I56: =IF($A56<$D$5,OFFSET('Constant mix'!K$12,'Volatilite Portfeuille'!$E$2+$A56,0),"") -> 1.702744379 | J56: =IF($A56<$D$5,OFFSET('Constant mix'!L$12,'Volatilite Portfeuille'!$E$2+$A56,0),"") -> 1.866327987 | K56: =IF($A56<$D$5,OFFSET('Constant mix'!M$12,'Volatilite Portfeuille'!$E$2+$A56,0),"") -> 0.9778347584 | L56: =IF($A56<$D$5,OFFSET('Constant mix'!N$12,'Volatilite Portfeuille'!$E$2+$A56,0),"") -> 1.069353039 | M56: =IF($A56<$D$5,OFFSET('Constant mix'!O$12,'Volatilite Portfeuille'!$E$2+$A56,0),"") -> 1.08285052 | N56: =IF($A56<$D$5,OFFSET('Constant mix'!$AM$12,'Volatilite Portfeuille'!$E$2+$A56,0),"") -> 0 | O56: -0.001493880074 | P56: -0.002695726174 | Q56: -0.005775736895 | R56: -0.001114574979 | S56: 0.005430080673 | T56: -0.005748799424 | U56: -0.000514042017 | V56: 0.01756259595 | W56: 0.00587867003 | X56: -0.002007188536
A57: 36 | B57: =IF(A57<$D$5,OFFSET('Constant mix'!$B$12,'Volatilite Portfeuille'!$E$2+A57,0),"") -> 2006-02-20 | C57: =IF($A57<$D$5,OFFSET('Constant mix'!$C$13,'Volatilite Portfeuille'!$E$2+$A57,0),"") -> 0.0234 | D57: =IF($A57<$D$5,OFFSET('Constant mix'!F$12,'Volatilite Portfeuille'!$E$2+$A57,0),"") -> 1.513737861 | E57: =IF($A57<$D$5,OFFSET('Constant mix'!G$12,'Volatilite Portfeuille'!$E$2+$A57,0),"") -> 0.8793183907 | F57: =IF($A57<$D$5,OFFSET('Constant mix'!H$12,'Volatilite Portfeuille'!$E$2+$A57,0),"") -> 1.173728869 | G57: =IF($A57<$D$5,OFFSET('Constant mix'!I$12,'Volatilite Portfeuille'!$E$2+$A57,0),"") -> 0.6506026103 | H57: =IF($A57<$D$5,OFFSET('Constant mix'!J$12,'Volatilite Portfeuille'!$E$2+$A57,0),"") -> 1.132737392 | I57: =IF($A57<$D$5,OFFSET('Constant mix'!K$12,'Volatilite Portfeuille'!$E$2+$A57,0),"") -> 1.677269014 | J57: =IF($A57<$D$5,OFFSET('Constant mix'!L$12,'Volatilite Portfeuille'!$E$2+$A57,0),"") -> 1.889680722 | K57: =IF($A57<$D$5,OFFSET('Constant mix'!M$12,'Volatilite Portfeuille'!$E$2+$A57,0),"") -> 0.9876548118 | L57: =IF($A57<$D$5,OFFSET('Constant mix'!N$12,'Volatilite Portfeuille'!$E$2+$A57,0),"") -> 1.086834486 | M57: =IF($A57<$D$5,OFFSET('Constant mix'!O$12,'Volatilite Portfeuille'!$E$2+$A57,0),"") -> 1.07007727 | N57: =IF($A57<$D$5,OFFSET('Constant mix'!$AM$12,'Volatilite Portfeuille'!$E$2+$A57,0),"") -> 0 | O57: -0.0130809845 | P57: -0.01219214724 | Q57: 0.008815973627 | R57: -0.01409158003 | S57: 0.002720270005 | T57: -0.01496135625 | U57: 0.01251266393 | V57: 0.01004265123 | W57: 0.01634768582 | X57: -0.01179594872
A58: 37 | B58: =IF(A58<$D$5,OFFSET('Constant mix'!$B$12,'Volatilite Portfeuille'!$E$2+A58,0),"") -> 2006-02-21 | C58: =IF($A58<$D$5,OFFSET('Constant mix'!$C$13,'Volatilite Portfeuille'!$E$2+$A58,0),"") -> 0.0234 | D58: =IF($A58<$D$5,OFFSET('Constant mix'!F$12,'Volatilite Portfeuille'!$E$2+$A58,0),"") -> 1.502779382 | E58: =IF($A58<$D$5,OFFSET('Constant mix'!G$12,'Volatilite Portfeuille'!$E$2+$A58,0),"") -> 0.8885205761 | F58: =IF($A58<$D$5,OFFSET('Constant mix'!H$12,'Volatilite Portfeuille'!$E$2+$A58,0),"") -> 1.196709359 | G58: =IF($A58<$D$5,OFFSET('Constant mix'!I$12,'Volatilite Portfeuille'!$E$2+$A58,0),"") -> 0.648362607 | H58: =IF($A58<$D$5,OFFSET('Constant mix'!J$12,'Volatilite Portfeuille'!$E$2+$A58,0),"") -> 1.136445525 | I58: =IF($A58<$D$5,OFFSET('Constant mix'!K$12,'Volatilite Portfeuille'!$E$2+$A58,0),"") -> 1.683706441 | J58: =IF($A58<$D$5,OFFSET('Constant mix'!L$12,'Volatilite Portfeuille'!$E$2+$A58,0),"") -> 1.891878037 | K58: =IF($A58<$D$5,OFFSET('Constant mix'!M$12,'Volatilite Portfeuille'!$E$2+$A58,0),"") -> 0.99996681 | L58: =IF($A58<$D$5,OFFSET('Constant mix'!N$12,'Volatilite Portfeuille'!$E$2+$A58,0),"") -> 1.111076349 | M58: =IF($A58<$D$5,OFFSET('Constant mix'!O$12,'Volatilite Portfeuille'!$E$2+$A58,0),"") -> 1.070167102 | N58: =IF($A58<$D$5,OFFSET('Constant mix'!$AM$12,'Volatilite Portfeuille'!$E$2+$A58,0),"") -> 0 | O58: -0.007239350693 | P58: 0.01046513469 | Q58: 0.01957904532 | R58: -0.003442966969 | S58: 0.003273603402 | T58: 0.003838041229 | U58: 0.001162796922 | V58: 0.01246589203 | W58: 0.0223050178 | X58: 8.394865667e-05
A59: 38 | B59: =IF(A59<$D$5,OFFSET('Constant mix'!$B$12,'Volatilite Portfeuille'!$E$2+A59,0),"") -> 2006-02-22 | C59: =IF($A59<$D$5,OFFSET('Constant mix'!$C$13,'Volatilite Portfeuille'!$E$2+$A59,0),"") -> 0.0235 | D59: =IF($A59<$D$5,OFFSET('Constant mix'!F$12,'Volatilite Portfeuille'!$E$2+$A59,0),"") -> 1.496131864 | E59: =IF($A59<$D$5,OFFSET('Constant mix'!G$12,'Volatilite Portfeuille'!$E$2+$A59,0),"") -> 0.8849433356 | F59: =IF($A59<$D$5,OFFSET('Constant mix'!H$12,'Volatilite Portfeuille'!$E$2+$A59,0),"") -> 1.198717705 | G59: =IF($A59<$D$5,OFFSET('Constant mix'!I$12,'Volatilite Portfeuille'!$E$2+$A59,0),"") -> 0.6501322648 | H59: =IF($A59<$D$5,OFFSET('Constant mix'!J$12,'Volatilite Portfeuille'!$E$2+$A59,0),"") -> 1.132482733 | I59: =IF($A59<$D$5,OFFSET('Constant mix'!K$12,'Volatilite Portfeuille'!$E$2+$A59,0),"") -> 1.673228832 | J59: =IF($A59<$D$5,OFFSET('Constant mix'!L$12,'Volatilite Portfeuille'!$E$2+$A59,0),"") -> 1.883189812 | K59: =IF($A59<$D$5,OFFSET('Constant mix'!M$12,'Volatilite Portfeuille'!$E$2+$A59,0),"") -> 1.002830053 | L59: =IF($A59<$D$5,OFFSET('Constant mix'!N$12,'Volatilite Portfeuille'!$E$2+$A59,0),"") -> 1.1201998 | M59: =IF($A59<$D$5,OFFSET('Constant mix'!O$12,'Volatilite Portfeuille'!$E$2+$A59,0),"") -> 1.069028118 | N59: =IF($A59<$D$5,OFFSET('Constant mix'!$AM$12,'Volatilite Portfeuille'!$E$2+$A59,0),"") -> 0 | O59: -0.004423482355 | P59: -0.004026063783 | Q59: 0.001678223796 | R59: 0.002729426057 | S59: -0.003487005081 | T59: -0.006222943426 | U59: -0.004592381004 | V59: 0.002863338162 | W59: 0.008211362531 | X59: -0.001064304849
A60: 39 | B60: =IF(A60<$D$5,OFFSET('Constant mix'!$B$12,'Volatilite Portfeuille'!$E$2+A60,0),"") -> 2006-02-23 | C60: =IF($A60<$D$5,OFFSET('Constant mix'!$C$13,'Volatilite Portfeuille'!$E$2+$A60,0),"") -> 0.0235 | D60: =IF($A60<$D$5,OFFSET('Constant mix'!F$12,'Volatilite Portfeuille'!$E$2+$A60,0),"") -> 1.490081037 | E60: =IF($A60<$D$5,OFFSET('Constant mix'!G$12,'Volatilite Portfeuille'!$E$2+$A60,0),"") -> 0.8763742851 | F60: =IF($A60<$D$5,OFFSET('Constant mix'!H$12,'Volatilite Portfeuille'!$E$2+$A60,0),"") -> 1.213001874 | G60: =IF($A60<$D$5,OFFSET('Constant mix'!I$12,'Volatilite Portfeuille'!$E$2+$A60,0),"") -> 0.6512625428 | H60: =IF($A60<$D$5,OFFSET('Constant mix'!J$12,'Volatilite Portfeuille'!$E$2+$A60,0),"") -> 1.130915679 | I60: =IF($A60<$D$5,OFFSET('Constant mix'!K$12,'Volatilite Portfeuille'!$E$2+$A60,0),"") -> 1.665503185 | J60: =IF($A60<$D$5,OFFSET('Constant mix'!L$12,'Volatilite Portfeuille'!$E$2+$A60,0),"") -> 1.892392783 | K60: =IF($A60<$D$5,OFFSET('Constant mix'!M$12,'Volatilite Portfeuille'!$E$2+$A60,0),"") -> 1.0020693 | L60: =IF($A60<$D$5,OFFSET('Constant mix'!N$12,'Volatilite Portfeuille'!$E$2+$A60,0),"") -> 1.123307282 | M60: =IF($A60<$D$5,OFFSET('Constant mix'!O$12,'Volatilite Portfeuille'!$E$2+$A60,0),"") -> 1.073943053 | N60: =IF($A60<$D$5,OFFSET('Constant mix'!$AM$12,'Volatilite Portfeuille'!$E$2+$A60,0),"") -> 0 | O60: -0.004044314304 | P60: -0.009683162991 | Q60: 0.01191620725 | R60: 0.00173853543 | S60: -0.001383733145 | T60: -0.00461720859 | U60: 0.004886905835 | V60: -0.0007586058587 | W60: 0.002774042578 | X60: 0.004597572762
A61: 40 | B61: =IF(A61<$D$5,OFFSET('Constant mix'!$B$12,'Volatilite Portfeuille'!$E$2+A61,0),"") -> 2006-02-24 | C61: =IF($A61<$D$5,OFFSET('Constant mix'!$C$13,'Volatilite Portfeuille'!$E$2+$A61,0),"") -> 0.0236 | D61: =IF($A61<$D$5,OFFSET('Constant mix'!F$12,'Volatilite Portfeuille'!$E$2+$A61,0),"") -> 1.496374499 | E61: =IF($A61<$D$5,OFFSET('Constant mix'!G$12,'Volatilite Portfeuille'!$E$2+$A61,0),"") -> 0.879602908 | F61: =IF($A61<$D$5,OFFSET('Constant mix'!H$12,'Volatilite Portfeuille'!$E$2+$A61,0),"") -> 1.213734026 | G61: =IF($A61<$D$5,OFFSET('Constant mix'!I$12,'Volatilite Portfeuille'!$E$2+$A61,0),"") -> 0.6440514897 | H61: =IF($A61<$D$5,OFFSET('Constant mix'!J$12,'Volatilite Portfeuille'!$E$2+$A61,0),"") -> 1.135503326 | I61: =IF($A61<$D$5,OFFSET('Constant mix'!K$12,'Volatilite Portfeuille'!$E$2+$A61,0),"") -> 1.656744453 | J61: =IF($A61<$D$5,OFFSET('Constant mix'!L$12,'Volatilite Portfeuille'!$E$2+$A61,0),"") -> 1.887895469 | K61: =IF($A61<$D$5,OFFSET('Constant mix'!M$12,'Volatilite Portfeuille'!$E$2+$A61,0),"") -> 0.9961985225 | L61: =IF($A61<$D$5,OFFSET('Constant mix'!N$12,'Volatilite Portfeuille'!$E$2+$A61,0),"") -> 1.122706656 | M61: =IF($A61<$D$5,OFFSET('Constant mix'!O$12,'Volatilite Portfeuille'!$E$2+$A61,0),"") -> 1.083717835 | N61: =IF($A61<$D$5,OFFSET('Constant mix'!$AM$12,'Volatilite Portfeuille'!$E$2+$A61,0),"") -> 0 | O61: 0.004223570664 | P61: 0.003684068519 | Q61: 0.000603586593 | R61: -0.01107242102 | S61: 0.004056577037 | T61: -0.005258910632 | U61: -0.002376522675 | V61: -0.005858654623 | W61: -0.0005346943366 | X61: 0.00910176959
A62: 41 | B62: =IF(A62<$D$5,OFFSET('Constant mix'!$B$12,'Volatilite Portfeuille'!$E$2+A62,0),"") -> 2006-02-27 | C62: =IF($A62<$D$5,OFFSET('Constant mix'!$C$13,'Volatilite Portfeuille'!$E$2+$A62,0),"") -> 0.024 | D62: =IF($A62<$D$5,OFFSET('Constant mix'!F$12,'Volatilite Portfeuille'!$E$2+$A62,0),"") -> 1.493761364 | E62: =IF($A62<$D$5,OFFSET('Constant mix'!G$12,'Volatilite Portfeuille'!$E$2+$A62,0),"") -> 0.9010756369 | F62: =IF($A62<$D$5,OFFSET('Constant mix'!H$12,'Volatilite Portfeuille'!$E$2+$A62,0),"") -> 1.228515816 | G62: =IF($A62<$D$5,OFFSET('Constant mix'!I$12,'Volatilite Portfeuille'!$E$2+$A62,0),"") -> 0.641610463 | H62: =IF($A62<$D$5,OFFSET('Constant mix'!J$12,'Volatilite Portfeuille'!$E$2+$A62,0),"") -> 1.137707102 | I62: =IF($A62<$D$5,OFFSET('Constant mix'!K$12,'Volatilite Portfeuille'!$E$2+$A62,0),"") -> 1.630622854 | J62: =IF($A62<$D$5,OFFSET('Constant mix'!L$12,'Volatilite Portfeuille'!$E$2+$A62,0),"") -> 1.899819035 | K62: =IF($A62<$D$5,OFFSET('Constant mix'!M$12,'Volatilite Portfeuille'!$E$2+$A62,0),"") -> 1.00979797 | L62: =IF($A62<$D$5,OFFSET('Constant mix'!N$12,'Volatilite Portfeuille'!$E$2+$A62,0),"") -> 1.121875817 | M62: =IF($A62<$D$5,OFFSET('Constant mix'!O$12,'Volatilite Portfeuille'!$E$2+$A62,0),"") -> 1.08579125 | N62: =IF($A62<$D$5,OFFSET('Constant mix'!$AM$12,'Volatilite Portfeuille'!$E$2+$A62,0),"") -> 0 | O62: -0.001746311211 | P62: 0.02441184398 | Q62: 0.01217877239 | R62: -0.003790111132 | S62: 0.001940792292 | T62: -0.01576682404 | U62: 0.006315797685 | V62: 0.01365134282 | W62: -0.0007400312933 | X62: 0.001913243145
A63: 42 | B63: =IF(A63<$D$5,OFFSET('Constant mix'!$B$12,'Volatilite Portfeuille'!$E$2+A63,0),"") -> 2006-02-28 | C63: =IF($A63<$D$5,OFFSET('Constant mix'!$C$13,'Volatilite Portfeuille'!$E$2+$A63,0),"") -> 0.0237 | D63: =IF($A63<$D$5,OFFSET('Constant mix'!F$12,'Volatilite Portfeuille'!$E$2+$A63,0),"") -> 1.481136334 | E63: =IF($A63<$D$5,OFFSET('Constant mix'!G$12,'Volatilite Portfeuille'!$E$2+$A63,0),"") -> 0.9002105988 | F63: =IF($A63<$D$5,OFFSET('Constant mix'!H$12,'Volatilite Portfeuille'!$E$2+$A63,0),"") -> 1.220376713 | G63: =IF($A63<$D$5,OFFSET('Constant mix'!I$12,'Volatilite Portfeuille'!$E$2+$A63,0),"") -> 0.6401611643 | H63: =IF($A63<$D$5,OFFSET('Constant mix'!J$12,'Volatilite Portfeuille'!$E$2+$A63,0),"") -> 1.148866039 | I63: =IF($A63<$D$5,OFFSET('Constant mix'!K$12,'Volatilite Portfeuille'!$E$2+$A63,0),"") -> 1.625469553 | J63: =IF($A63<$D$5,OFFSET('Constant mix'!L$12,'Volatilite Portfeuille'!$E$2+$A63,0),"") -> 1.900903757 | K63: =IF($A63<$D$5,OFFSET('Constant mix'!M$12,'Volatilite Portfeuille'!$E$2+$A63,0),"") -> 1.008059093 | L63: =IF($A63<$D$5,OFFSET('Constant mix'!N$12,'Volatilite Portfeuille'!$E$2+$A63,0),"") -> 1.125834077 | M63: =IF($A63<$D$5,OFFSET('Constant mix'!O$12,'Volatilite Portfeuille'!$E$2+$A63,0),"") -> 1.085463913 | N63: =IF($A63<$D$5,OFFSET('Constant mix'!$AM$12,'Volatilite Portfeuille'!$E$2+$A63,0),"") -> 0 | O63: -0.008451838089 | P63: -0.0009600061211 | Q63: -0.006625151616 | R63: -0.002258845099 | S63: 0.009808268311 | T63: -0.003160326729 | U63: 0.0005709607338 | V63: -0.001722004484 | W63: 0.003528251324 | X63: -0.0003014734258
A64: 43 | B64: =IF(A64<$D$5,OFFSET('Constant mix'!$B$12,'Volatilite Portfeuille'!$E$2+A64,0),"") -> 2006-03-01 | C64: =IF($A64<$D$5,OFFSET('Constant mix'!$C$13,'Volatilite Portfeuille'!$E$2+$A64,0),"") -> 0.0238 | D64: =IF($A64<$D$5,OFFSET('Constant mix'!F$12,'Volatilite Portfeuille'!$E$2+$A64,0),"") -> 1.485696833 | E64: =IF($A64<$D$5,OFFSET('Constant mix'!G$12,'Volatilite Portfeuille'!$E$2+$A64,0),"") -> 0.90489429 | F64: =IF($A64<$D$5,OFFSET('Constant mix'!H$12,'Volatilite Portfeuille'!$E$2+$A64,0),"") -> 1.226674907 | G64: =IF($A64<$D$5,OFFSET('Constant mix'!I$12,'Volatilite Portfeuille'!$E$2+$A64,0),"") -> 0.6407014038 | H64: =IF($A64<$D$5,OFFSET('Constant mix'!J$12,'Volatilite Portfeuille'!$E$2+$A64,0),"") -> 1.140401798 | I64: =IF($A64<$D$5,OFFSET('Constant mix'!K$12,'Volatilite Portfeuille'!$E$2+$A64,0),"") -> 1.621459259 | J64: =IF($A64<$D$5,OFFSET('Constant mix'!L$12,'Volatilite Portfeuille'!$E$2+$A64,0),"") -> 1.90276398 | K64: =IF($A64<$D$5,OFFSET('Constant mix'!M$12,'Volatilite Portfeuille'!$E$2+$A64,0),"") -> 1.00198776 | L64: =IF($A64<$D$5,OFFSET('Constant mix'!N$12,'Volatilite Portfeuille'!$E$2+$A64,0),"") -> 1.130588756 | M64: =IF($A64<$D$5,OFFSET('Constant mix'!O$12,'Volatilite Portfeuille'!$E$2+$A64,0),"") -> 1.09349394 | N64: =IF($A64<$D$5,OFFSET('Constant mix'!$AM$12,'Volatilite Portfeuille'!$E$2+$A64,0),"") -> 0 | O64: 0.003079054123 | P64: 0.005202883883 | Q64: 0.005160861125 | R64: 0.0008439116367 | S64: -0.007367473574 | T64: -0.00246716058 | U64: 0.0009785991598 | V64: -0.006022795313 | W64: 0.004223249989 | X64: 0.007397783014
A65: 44 | B65: =IF(A65<$D$5,OFFSET('Constant mix'!$B$12,'Volatilite Portfeuille'!$E$2+A65,0),"") -> 2006-03-02 | C65: =IF($A65<$D$5,OFFSET('Constant mix'!$C$13,'Volatilite Portfeuille'!$E$2+$A65,0),"") -> 0.0235 | D65: =IF($A65<$D$5,OFFSET('Constant mix'!F$12,'Volatilite Portfeuille'!$E$2+$A65,0),"") -> 1.492354849 | E65: =IF($A65<$D$5,OFFSET('Constant mix'!G$12,'Volatilite Portfeuille'!$E$2+$A65,0),"") -> 0.8893482049 | F65: =IF($A65<$D$5,OFFSET('Constant mix'!H$12,'Volatilite Portfeuille'!$E$2+$A65,0),"") -> 1.221161498 | G65: =IF($A65<$D$5,OFFSET('Constant mix'!I$12,'Volatilite Portfeuille'!$E$2+$A65,0),"") -> 0.643921563 | H65: =IF($A65<$D$5,OFFSET('Constant mix'!J$12,'Volatilite Portfeuille'!$E$2+$A65,0),"") -> 1.144524766 | I65: =IF($A65<$D$5,OFFSET('Constant mix'!K$12,'Volatilite Portfeuille'!$E$2+$A65,0),"") -> 1.654070385 | J65: =IF($A65<$D$5,OFFSET('Constant mix'!L$12,'Volatilite Portfeuille'!$E$2+$A65,0),"") -> 1.907949266 | K65: =IF($A65<$D$5,OFFSET('Constant mix'!M$12,'Volatilite Portfeuille'!$E$2+$A65,0),"") -> 1.002364513 | L65: =IF($A65<$D$5,OFFSET('Constant mix'!N$12,'Volatilite Portfeuille'!$E$2+$A65,0),"") -> 1.141759655 | M65: =IF($A65<$D$5,OFFSET('Constant mix'!O$12,'Volatilite Portfeuille'!$E$2+$A65,0),"") -> 1.086060012 | N65: =IF($A65<$D$5,OFFSET('Constant mix'!$AM$12,'Volatilite Portfeuille'!$E$2+$A65,0),"") -> 0 | O65: 0.004481409588 | P65: -0.01718000141 | Q65: -0.004494597344 | R65: 0.005025990613 | S65: 0.003615363865 | T65: 0.02011220804 | U65: 0.002725134025 | V65: 0.000376005741 | W65: 0.009880603483 | X65: -0.006798325263
A66: 45 | B66: =IF(A66<$D$5,OFFSET('Constant mix'!$B$12,'Volatilite Portfeuille'!$E$2+A66,0),"") -> 2006-03-03 | C66: =IF($A66<$D$5,OFFSET('Constant mix'!$C$13,'Volatilite Portfeuille'!$E$2+$A66,0),"") -> 0.0229 | D66: =IF($A66<$D$5,OFFSET('Constant mix'!F$12,'Volatilite Portfeuille'!$E$2+$A66,0),"") -> 1.494681905 | E66: =IF($A66<$D$5,OFFSET('Constant mix'!G$12,'Volatilite Portfeuille'!$E$2+$A66,0),"") -> 0.8917140552 | F66: =IF($A66<$D$5,OFFSET('Constant mix'!H$12,'Volatilite Portfeuille'!$E$2+$A66,0),"") -> 1.231222897 | G66: =IF($A66<$D$5,OFFSET('Constant mix'!I$12,'Volatilite Portfeuille'!$E$2+$A66,0),"") -> 0.6482816865 | H66: =IF($A66<$D$5,OFFSET('Constant mix'!J$12,'Volatilite Portfeuille'!$E$2+$A66,0),"") -> 1.131695011 | I66: =IF($A66<$D$5,OFFSET('Constant mix'!K$12,'Volatilite Portfeuille'!$E$2+$A66,0),"") -> 1.640718208 | J66: =IF($A66<$D$5,OFFSET('Constant mix'!L$12,'Volatilite Portfeuille'!$E$2+$A66,0),"") -> 1.924807861 | K66: =IF($A66<$D$5,OFFSET('Constant mix'!M$12,'Volatilite Portfeuille'!$E$2+$A66,0),"") -> 0.9877631413 | L66: =IF($A66<$D$5,OFFSET('Constant mix'!N$12,'Volatilite Portfeuille'!$E$2+$A66,0),"") -> 1.130713654 | M66: =IF($A66<$D$5,OFFSET('Constant mix'!O$12,'Volatilite Portfeuille'!$E$2+$A66,0),"") -> 1.084167647 | N66: =IF($A66<$D$5,OFFSET('Constant mix'!$AM$12,'Volatilite Portfeuille'!$E$2+$A66,0),"") -> 0 | O66: 0.001559318017 | P66: 0.002660206992 | Q66: 0.008239204547 | R66: 0.006771202752 | S66: -0.01120967878 | T66: -0.008072314828 | U66: 0.008835976334 | V66: -0.01456692801 | W66: -0.009674541979 | X66: -0.001742413129
A67: 46 | B67: =IF(A67<$D$5,OFFSET('Constant mix'!$B$12,'Volatilite Portfeuille'!$E$2+A67,0),"") -> 2006-03-06 | C67: =IF($A67<$D$5,OFFSET('Constant mix'!$C$13,'Volatilite Portfeuille'!$E$2+$A67,0),"") -> 0.0208 | D67: =IF($A67<$D$5,OFFSET('Constant mix'!F$12,'Volatilite Portfeuille'!$E$2+$A67,0),"") -> 1.500408874 | E67: =IF($A67<$D$5,OFFSET('Constant mix'!G$12,'Volatilite Portfeuille'!$E$2+$A67,0),"") -> 0.8873955496 | F67: =IF($A67<$D$5,OFFSET('Constant mix'!H$12,'Volatilite Portfeuille'!$E$2+$A67,0),"") -> 1.231341761 | G67: =IF($A67<$D$5,OFFSET('Constant mix'!I$12,'Volatilite Portfeuille'!$E$2+$A67,0),"") -> 0.6355185779 | H67: =IF($A67<$D$5,OFFSET('Constant mix'!J$12,'Volatilite Portfeuille'!$E$2+$A67,0),"") -> 1.126031284 | I67: =IF($A67<$D$5,OFFSET('Constant mix'!K$12,'Volatilite Portfeuille'!$E$2+$A67,0),"") -> 1.649052931 | J67: =IF($A67<$D$5,OFFSET('Constant mix'!L$12,'Volatilite Portfeuille'!$E$2+$A67,0),"") -> 1.917502213 | K67: =IF($A67<$D$5,OFFSET('Constant mix'!M$12,'Volatilite Portfeuille'!$E$2+$A67,0),"") -> 0.9739349106 | L67: =IF($A67<$D$5,OFFSET('Constant mix'!N$12,'Volatilite Portfeuille'!$E$2+$A67,0),"") -> 1.130221474 | M67: =IF($A67<$D$5,OFFSET('Constant mix'!O$12,'Volatilite Portfeuille'!$E$2+$A67,0),"") -> 1.083509512 | N67: =IF($A67<$D$5,OFFSET('Constant mix'!$AM$12,'Volatilite Portfeuille'!$E$2+$A67,0),"") -> 0 | O67: 0.003831563809 | P67: -0.004842926418 | Q67: 9.654156536e-05 | R67: -0.01968759694 | S67: -0.005004641118 | T67: 0.005079923373 | U67: -0.003795520876 | V67: -0.01399954103 | W67: -0.0004352817853 | X67: -0.0006070413961
A68: 47 | B68: =IF(A68<$D$5,OFFSET('Constant mix'!$B$12,'Volatilite Portfeuille'!$E$2+A68,0),"") -> 2006-03-07 | C68: =IF($A68<$D$5,OFFSET('Constant mix'!$C$13,'Volatilite Portfeuille'!$E$2+$A68,0),"") -> 0.0258 | D68: =IF($A68<$D$5,OFFSET('Constant mix'!F$12,'Volatilite Portfeuille'!$E$2+$A68,0),"") -> 1.508502563 | E68: =IF($A68<$D$5,OFFSET('Constant mix'!G$12,'Volatilite Portfeuille'!$E$2+$A68,0),"") -> 0.8953728691 | F68: =IF($A68<$D$5,OFFSET('Constant mix'!H$12,'Volatilite Portfeuille'!$E$2+$A68,0),"") -> 1.255680602 | G68: =IF($A68<$D$5,OFFSET('Constant mix'!I$12,'Volatilite Portfeuille'!$E$2+$A68,0),"") -> 0.6368048893 | H68: =IF($A68<$D$5,OFFSET('Constant mix'!J$12,'Volatilite Portfeuille'!$E$2+$A68,0),"") -> 1.113808399 | I68: =IF($A68<$D$5,OFFSET('Constant mix'!K$12,'Volatilite Portfeuille'!$E$2+$A68,0),"") -> 1.640934582 | J68: =IF($A68<$D$5,OFFSET('Constant mix'!L$12,'Volatilite Portfeuille'!$E$2+$A68,0),"") -> 1.905115849 | K68: =IF($A68<$D$5,OFFSET('Constant mix'!M$12,'Volatilite Portfeuille'!$E$2+$A68,0),"") -> 0.97759782 | L68: =IF($A68<$D$5,OFFSET('Constant mix'!N$12,'Volatilite Portfeuille'!$E$2+$A68,0),"") -> 1.119296502 | M68: =IF($A68<$D$5,OFFSET('Constant mix'!O$12,'Volatilite Portfeuille'!$E$2+$A68,0),"") -> 1.075888766 | N68: =IF($A68<$D$5,OFFSET('Constant mix'!$AM$12,'Volatilite Portfeuille'!$E$2+$A68,0),"") -> 0 | O68: 0.005394322228 | P68: 0.008989587046 | Q68: 0.01976611349 | R68: 0.002024034204 | S68: -0.01085483537 | T68: -0.004923036924 | U68: -0.006459634433 | V68: 0.003760938515 | W68: -0.009666222929 | X68: -0.007033391633
A69: 48 | B69: =IF(A69<$D$5,OFFSET('Constant mix'!$B$12,'Volatilite Portfeuille'!$E$2+A69,0),"") -> 2006-03-08 | C69: =IF($A69<$D$5,OFFSET('Constant mix'!$C$13,'Volatilite Portfeuille'!$E$2+$A69,0),"") -> 0.0258 | D69: =IF($A69<$D$5,OFFSET('Constant mix'!F$12,'Volatilite Portfeuille'!$E$2+$A69,0),"") -> 1.518860072 | E69: =IF($A69<$D$5,OFFSET('Constant mix'!G$12,'Volatilite Portfeuille'!$E$2+$A69,0),"") -> 0.8953812946 | F69: =IF($A69<$D$5,OFFSET('Constant mix'!H$12,'Volatilite Portfeuille'!$E$2+$A69,0),"") -> 1.258726276 | G69: =IF($A69<$D$5,OFFSET('Constant mix'!I$12,'Volatilite Portfeuille'!$E$2+$A69,0),"") -> 0.6395921758 | H69: =IF($A69<$D$5,OFFSET('Constant mix'!J$12,'Volatilite Portfeuille'!$E$2+$A69,0),"") -> 1.118862929 | I69: =IF($A69<$D$5,OFFSET('Constant mix'!K$12,'Volatilite Portfeuille'!$E$2+$A69,0),"") -> 1.648964664 | J69: =IF($A69<$D$5,OFFSET('Constant mix'!L$12,'Volatilite Portfeuille'!$E$2+$A69,0),"") -> 1.879403859 | K69: =IF($A69<$D$5,OFFSET('Constant mix'!M$12,'Volatilite Portfeuille'!$E$2+$A69,0),"") -> 0.9731489959 | L69: =IF($A69<$D$5,OFFSET('Constant mix'!N$12,'Volatilite Portfeuille'!$E$2+$A69,0),"") -> 1.12625088 | M69: =IF($A69<$D$5,OFFSET('Constant mix'!O$12,'Volatilite Portfeuille'!$E$2+$A69,0),"") -> 1.06339924 | N69: =IF($A69<$D$5,OFFSET('Constant mix'!$AM$12,'Volatilite Portfeuille'!$E$2+$A69,0),"") -> 0 | O69: 0.006866086403 | P69: 9.409952305e-06 | Q69: 0.002425516462 | R69: 0.004376986658 | S69: 0.004538060111 | T69: 0.004893602327 | U69: -0.01349628699 | V69: -0.00455077121 | W69: 0.006213168832 | X69: -0.01160856573
A70: 49 | B70: =IF(A70<$D$5,OFFSET('Constant mix'!$B$12,'Volatilite Portfeuille'!$E$2+A70,0),"") -> 2006-03-09 | C70: =IF($A70<$D$5,OFFSET('Constant mix'!$C$13,'Volatilite Portfeuille'!$E$2+$A70,0),"") -> 0.0258 | D70: =IF($A70<$D$5,OFFSET('Constant mix'!F$12,'Volatilite Portfeuille'!$E$2+$A70,0),"") -> 1.503935973 | E70: =IF($A70<$D$5,OFFSET('Constant mix'!G$12,'Volatilite Portfeuille'!$E$2+$A70,0),"") -> 0.8862071397 | F70: =IF($A70<$D$5,OFFSET('Constant mix'!H$12,'Volatilite Portfeuille'!$E$2+$A70,0),"") -> 1.254869915 | G70: =IF($A70<$D$5,OFFSET('Constant mix'!I$12,'Volatilite Portfeuille'!$E$2+$A70,0),"") -> 0.6400520976 | H70: =IF($A70<$D$5,OFFSET('Constant mix'!J$12,'Volatilite Portfeuille'!$E$2+$A70,0),"") -> 1.112604724 | I70: =IF($A70<$D$5,OFFSET('Constant mix'!K$12,'Volatilite Portfeuille'!$E$2+$A70,0),"") -> 1.65926263 | J70: =IF($A70<$D$5,OFFSET('Constant mix'!L$12,'Volatilite Portfeuille'!$E$2+$A70,0),"") -> 1.880984875 | K70: =IF($A70<$D$5,OFFSET('Constant mix'!M$12,'Volatilite Portfeuille'!$E$2+$A70,0),"") -> 0.9641958577 | L70: =IF($A70<$D$5,OFFSET('Constant mix'!N$12,'Volatilite Portfeuille'!$E$2+$A70,0),"") -> 1.136628687 | M70: =IF($A70<$D$5,OFFSET('Constant mix'!O$12,'Volatilite Portfeuille'!$E$2+$A70,0),"") -> 1.067908551 | N70: =IF($A70<$D$5,OFFSET('Constant mix'!$AM$12,'Volatilite Portfeuille'!$E$2+$A70,0),"") -> 0 | O70: -0.009825854963 | P70: -0.01024608728 | Q70: -0.003063701033 | R70: 0.0007190860941 | S70: -0.005593361778 | T70: 0.006245110201 | U70: 0.0008412327471 | V70: -0.009200172122 | W70: 0.009214471644 | X70: 0.004240468521
A71: 50 | B71: =IF(A71<$D$5,OFFSET('Constant mix'!$B$12,'Volatilite Portfeuille'!$E$2+A71,0),"") -> 2006-03-10 | C71: =IF($A71<$D$5,OFFSET('Constant mix'!$C$13,'Volatilite Portfeuille'!$E$2+$A71,0),"") -> 0.0258 | D71: =IF($A71<$D$5,OFFSET('Constant mix'!F$12,'Volatilite Portfeuille'!$E$2+$A71,0),"") -> 1.514063717 | E71: =IF($A71<$D$5,OFFSET('Constant mix'!G$12,'Volatilite Portfeuille'!$E$2+$A71,0),"") -> 0.888997353 | F71: =IF($A71<$D$5,OFFSET('Constant mix'!H$12,'Volatilite Portfeuille'!$E$2+$A71,0),"") -> 1.263132915 | G71: =IF($A71<$D$5,OFFSET('Constant mix'!I$12,'Volatilite Portfeuille'!$E$2+$A71,0),"") -> 0.6418960213 | H71: =IF($A71<$D$5,OFFSET('Constant mix'!J$12,'Volatilite Portfeuille'!$E$2+$A71,0),"") -> 1.106767533 | I71: =IF($A71<$D$5,OFFSET('Constant mix'!K$12,'Volatilite Portfeuille'!$E$2+$A71,0),"") -> 1.653248485 | J71: =IF($A71<$D$5,OFFSET('Constant mix'!L$12,'Volatilite Portfeuille'!$E$2+$A71,0),"") -> 1.881735499 | K71: =IF($A71<$D$5,OFFSET('Constant mix'!M$12,'Volatilite Portfeuille'!$E$2+$A71,0),"") -> 0.9562259855 | L71: =IF($A71<$D$5,OFFSET('Constant mix'!N$12,'Volatilite Portfeuille'!$E$2+$A71,0),"") -> 1.126212141 | M71: =IF($A71<$D$5,OFFSET('Constant mix'!O$12,'Volatilite Portfeuille'!$E$2+$A71,0),"") -> 1.071754054 | N71: =IF($A71<$D$5,OFFSET('Constant mix'!$AM$12,'Volatilite Portfeuille'!$E$2+$A71,0),"") -> 0 | O71: 0.006734159087 | P71: 0.003148488928 | Q71: 0.006584746101 | R71: 0.002880896196 | S71: -0.005246419499 | T71: -0.003624588502 | U71: 0.0003990590216 | V71: -0.008265822898 | W71: -0.009164423088 | X71: 0.003600965998
A72: 51 | B72: =IF(A72<$D$5,OFFSET('Constant mix'!$B$12,'Volatilite Portfeuille'!$E$2+A72,0),"") -> 2006-03-13 | C72: =IF($A72<$D$5,OFFSET('Constant mix'!$C$13,'Volatilite Portfeuille'!$E$2+$A72,0),"") -> 0.0258 | D72: =IF($A72<$D$5,OFFSET('Constant mix'!F$12,'Volatilite Portfeuille'!$E$2+$A72,0),"") -> 1.504398506 | E72: =IF($A72<$D$5,OFFSET('Constant mix'!G$12,'Volatilite Portfeuille'!$E$2+$A72,0),"") -> 0.897594331 | F72: =IF($A72<$D$5,OFFSET('Constant mix'!H$12,'Volatilite Portfeuille'!$E$2+$A72,0),"") -> 1.268273393 | G72: =IF($A72<$D$5,OFFSET('Constant mix'!I$12,'Volatilite Portfeuille'!$E$2+$A72,0),"") -> 0.6375019996 | H72: =IF($A72<$D$5,OFFSET('Constant mix'!J$12,'Volatilite Portfeuille'!$E$2+$A72,0),"") -> 1.107222679 | I72: =IF($A72<$D$5,OFFSET('Constant mix'!K$12,'Volatilite Portfeuille'!$E$2+$A72,0),"") -> 1.626335306 | J72: =IF($A72<$D$5,OFFSET('Constant mix'!L$12,'Volatilite Portfeuille'!$E$2+$A72,0),"") -> 1.8857839 | K72: =IF($A72<$D$5,OFFSET('Constant mix'!M$12,'Volatilite Portfeuille'!$E$2+$A72,0),"") -> 0.9502864951 | L72: =IF($A72<$D$5,OFFSET('Constant mix'!N$12,'Volatilite Portfeuille'!$E$2+$A72,0),"") -> 1.108126143 | M72: =IF($A72<$D$5,OFFSET('Constant mix'!O$12,'Volatilite Portfeuille'!$E$2+$A72,0),"") -> 1.068054193 | N72: =IF($A72<$D$5,OFFSET('Constant mix'!$AM$12,'Volatilite Portfeuille'!$E$2+$A72,0),"") -> 0 | O72: -0.006383622924 | P72: 0.009670420229 | Q72: 0.004069625806 | R72: -0.006845379137 | S72: 0.0004112395219 | T72: -0.01627896803 | U72: 0.002151418585 | V72: -0.00621138773 | W72: -0.01605913959 | X72: -0.003452154365
A73: 52 | B73: =IF(A73<$D$5,OFFSET('Constant mix'!$B$12,'Volatilite Portfeuille'!$E$2+A73,0),"") -> 2006-03-14 | C73: =IF($A73<$D$5,OFFSET('Constant mix'!$C$13,'Volatilite Portfeuille'!$E$2+$A73,0),"") -> 0.0258 | D73: =IF($A73<$D$5,OFFSET('Constant mix'!F$12,'Volatilite Portfeuille'!$E$2+$A73,0),"") -> 1.497391091 | E73: =IF($A73<$D$5,OFFSET('Constant mix'!G$12,'Volatilite Portfeuille'!$E$2+$A73,0),"") -> 0.9003373964 | F73: =IF($A73<$D$5,OFFSET('Constant mix'!H$12,'Volatilite Portfeuille'!$E$2+$A73,0),"") -> 1.26132108 | G73: =IF($A73<$D$5,OFFSET('Constant mix'!I$12,'Volatilite Portfeuille'!$E$2+$A73,0),"") -> 0.635806766 | H73: =IF($A73<$D$5,OFFSET('Constant mix'!J$12,'Volatilite Portfeuille'!$E$2+$A73,0),"") -> 1.09996891 | I73: =IF($A73<$D$5,OFFSET('Constant mix'!K$12,'Volatilite Portfeuille'!$E$2+$A73,0),"") -> 1.625755243 | J73: =IF($A73<$D$5,OFFSET('Constant mix'!L$12,'Volatilite Portfeuille'!$E$2+$A73,0),"") -> 1.887352222 | K73: =IF($A73<$D$5,OFFSET('Constant mix'!M$12,'Volatilite Portfeuille'!$E$2+$A73,0),"") -> 0.9635962953 | L73: =IF($A73<$D$5,OFFSET('Constant mix'!N$12,'Volatilite Portfeuille'!$E$2+$A73,0),"") -> 1.098654602 | M73: =IF($A73<$D$5,OFFSET('Constant mix'!O$12,'Volatilite Portfeuille'!$E$2+$A73,0),"") -> 1.065664945 | N73: =IF($A73<$D$5,OFFSET('Constant mix'!$AM$12,'Volatilite Portfeuille'!$E$2+$A73,0),"") -> 0 | O73: -0.004657950862 | P73: 0.00305601909 | Q73: -0.005481714894 | R73: -0.002659181632 | S73: -0.006551318953 | T73: -0.0003566686784 | U73: 0.0008316552069 | V73: 0.01400609214 | W73: -0.008547348825 | X73: -0.002237010689
A74: 53 | B74: =IF(A74<$D$5,OFFSET('Constant mix'!$B$12,'Volatilite Portfeuille'!$E$2+A74,0),"") -> 2006-03-15 | C74: =IF($A74<$D$5,OFFSET('Constant mix'!$C$13,'Volatilite Portfeuille'!$E$2+$A74,0),"") -> 0.0258 | D74: =IF($A74<$D$5,OFFSET('Constant mix'!F$12,'Volatilite Portfeuille'!$E$2+$A74,0),"") -> 1.500237729 | E74: =IF($A74<$D$5,OFFSET('Constant mix'!G$12,'Volatilite Portfeuille'!$E$2+$A74,0),"") -> 0.9081988803 | F74: =IF($A74<$D$5,OFFSET('Constant mix'!H$12,'Volatilite Portfeuille'!$E$2+$A74,0),"") -> 1.269773305 | G74: =IF($A74<$D$5,OFFSET('Constant mix'!I$12,'Volatilite Portfeuille'!$E$2+$A74,0),"") -> 0.6357258506 | H74: =IF($A74<$D$5,OFFSET('Constant mix'!J$12,'Volatilite Portfeuille'!$E$2+$A74,0),"") -> 1.098879488 | I74: =IF($A74<$D$5,OFFSET('Constant mix'!K$12,'Volatilite Portfeuille'!$E$2+$A74,0),"") -> 1.626420499 | J74: =IF($A74<$D$5,OFFSET('Constant mix'!L$12,'Volatilite Portfeuille'!$E$2+$A74,0),"") -> 1.872272544 | K74: =IF($A74<$D$5,OFFSET('Constant mix'!M$12,'Volatilite Portfeuille'!$E$2+$A74,0),"") -> 0.9646130861 | L74: =IF($A74<$D$5,OFFSET('Constant mix'!N$12,'Volatilite Portfeuille'!$E$2+$A74,0),"") -> 1.092452804 | M74: =IF($A74<$D$5,OFFSET('Constant mix'!O$12,'Volatilite Portfeuille'!$E$2+$A74,0),"") -> 1.075762055 | N74: =IF($A74<$D$5,OFFSET('Constant mix'!$AM$12,'Volatilite Portfeuille'!$E$2+$A74,0),"") -> 0 | O74: 0.00190106467 | P74: 0.008731708646 | Q74: 0.006701089343 | R74: -0.0001272642454 | S74: -0.0009904118023 | T74: 0.0004091978617 | U74: -0.007989858824 | V74: 0.001055204061 | W74: -0.005644902102 | X74: 0.009474939134
A75: 54 | B75: =IF(A75<$D$5,OFFSET('Constant mix'!$B$12,'Volatilite Portfeuille'!$E$2+A75,0),"") -> 2006-03-16 | C75: =IF($A75<$D$5,OFFSET('Constant mix'!$C$13,'Volatilite Portfeuille'!$E$2+$A75,0),"") -> 0.0258 | D75: =IF($A75<$D$5,OFFSET('Constant mix'!F$12,'Volatilite Portfeuille'!$E$2+$A75,0),"") -> 1.482357876 | E75: =IF($A75<$D$5,OFFSET('Constant mix'!G$12,'Volatilite Portfeuille'!$E$2+$A75,0),"") -> 0.9035772661 | F75: =IF($A75<$D$5,OFFSET('Constant mix'!H$12,'Volatilite Portfeuille'!$E$2+$A75,0),"") -> 1.267261029 | G75: =IF($A75<$D$5,OFFSET('Constant mix'!I$12,'Volatilite Portfeuille'!$E$2+$A75,0),"") -> 0.6308798184 | H75: =IF($A75<$D$5,OFFSET('Constant mix'!J$12,'Volatilite Portfeuille'!$E$2+$A75,0),"") -> 1.111663776 | I75: =IF($A75<$D$5,OFFSET('Constant mix'!K$12,'Volatilite Portfeuille'!$E$2+$A75,0),"") -> 1.624328643 | J75: =IF($A75<$D$5,OFFSET('Constant mix'!L$12,'Volatilite Portfeuille'!$E$2+$A75,0),"") -> 1.839705074 | K75: =IF($A75<$D$5,OFFSET('Constant mix'!M$12,'Volatilite Portfeuille'!$E$2+$A75,0),"") -> 0.971678708 | L75: =IF($A75<$D$5,OFFSET('Constant mix'!N$12,'Volatilite Portfeuille'!$E$2+$A75,0),"") -> 1.09791684 | M75: =IF($A75<$D$5,OFFSET('Constant mix'!O$12,'Volatilite Portfeuille'!$E$2+$A75,0),"") -> 1.057235631 | N75: =IF($A75<$D$5,OFFSET('Constant mix'!$AM$12,'Volatilite Portfeuille'!$E$2+$A75,0),"") -> 0 | O75: -0.01191801272 | P75: -0.005088768854 | Q75: -0.001978523644 | R75: -0.007622833212 | S75: 0.01163393043 | T75: -0.001286171299 | U75: -0.01739462015 | V75: 0.007324824919 | W75: 0.005001621518 | X75: -0.0172216745
A76: 55 | B76: =IF(A76<$D$5,OFFSET('Constant mix'!$B$12,'Volatilite Portfeuille'!$E$2+A76,0),"") -> 2006-03-17 | C76: =IF($A76<$D$5,OFFSET('Constant mix'!$C$13,'Volatilite Portfeuille'!$E$2+$A76,0),"") -> 0.0258 | D76: =IF($A76<$D$5,OFFSET('Constant mix'!F$12,'Volatilite Portfeuille'!$E$2+$A76,0),"") -> 1.48318225 | E76: =IF($A76<$D$5,OFFSET('Constant mix'!G$12,'Volatilite Portfeuille'!$E$2+$A76,0),"") -> 0.8992790144 | F76: =IF($A76<$D$5,OFFSET('Constant mix'!H$12,'Volatilite Portfeuille'!$E$2+$A76,0),"") -> 1.268670199 | G76: =IF($A76<$D$5,OFFSET('Constant mix'!I$12,'Volatilite Portfeuille'!$E$2+$A76,0),"") -> 0.6374236736 | H76: =IF($A76<$D$5,OFFSET('Constant mix'!J$12,'Volatilite Portfeuille'!$E$2+$A76,0),"") -> 1.108837061 | I76: =IF($A76<$D$5,OFFSET('Constant mix'!K$12,'Volatilite Portfeuille'!$E$2+$A76,0),"") -> 1.632927568 | J76: =IF($A76<$D$5,OFFSET('Constant mix'!L$12,'Volatilite Portfeuille'!$E$2+$A76,0),"") -> 1.859547519 | K76: =IF($A76<$D$5,OFFSET('Constant mix'!M$12,'Volatilite Portfeuille'!$E$2+$A76,0),"") -> 0.9646043031 | L76: =IF($A76<$D$5,OFFSET('Constant mix'!N$12,'Volatilite Portfeuille'!$E$2+$A76,0),"") -> 1.100663669 | M76: =IF($A76<$D$5,OFFSET('Constant mix'!O$12,'Volatilite Portfeuille'!$E$2+$A76,0),"") -> 1.046002077 | N76: =IF($A76<$D$5,OFFSET('Constant mix'!$AM$12,'Volatilite Portfeuille'!$E$2+$A76,0),"") -> 0 | O76: 0.000556123086 | P76: -0.004756927626 | Q76: 0.001111980865 | R76: 0.01037258599 | S76: -0.002542778061 | T76: 0.005293832972 | U76: 0.01078566613 | V76: -0.007280600965 | W76: 0.002501855794 | X76: -0.01062540295
A77: 56 | B77: =IF(A77<$D$5,OFFSET('Constant mix'!$B$12,'Volatilite Portfeuille'!$E$2+A77,0),"") -> 2006-03-20 | C77: =IF($A77<$D$5,OFFSET('Constant mix'!$C$13,'Volatilite Portfeuille'!$E$2+$A77,0),"") -> 0.0258 | D77: =IF($A77<$D$5,OFFSET('Constant mix'!F$12,'Volatilite Portfeuille'!$E$2+$A77,0),"") -> 1.504458288 | E77: =IF($A77<$D$5,OFFSET('Constant mix'!G$12,'Volatilite Portfeuille'!$E$2+$A77,0),"") -> 0.8897437706 | F77: =IF($A77<$D$5,OFFSET('Constant mix'!H$12,'Volatilite Portfeuille'!$E$2+$A77,0),"") -> 1.273993453 | G77: =IF($A77<$D$5,OFFSET('Constant mix'!I$12,'Volatilite Portfeuille'!$E$2+$A77,0),"") -> 0.6261576152 | H77: =IF($A77<$D$5,OFFSET('Constant mix'!J$12,'Volatilite Portfeuille'!$E$2+$A77,0),"") -> 1.102914736 | I77: =IF($A77<$D$5,OFFSET('Constant mix'!K$12,'Volatilite Portfeuille'!$E$2+$A77,0),"") -> 1.62540951 | J77: =IF($A77<$D$5,OFFSET('Constant mix'!L$12,'Volatilite Portfeuille'!$E$2+$A77,0),"") -> 1.871022197 | K77: =IF($A77<$D$5,OFFSET('Constant mix'!M$12,'Volatilite Portfeuille'!$E$2+$A77,0),"") -> 0.9566033461 | L77: =IF($A77<$D$5,OFFSET('Constant mix'!N$12,'Volatilite Portfeuille'!$E$2+$A77,0),"") -> 1.091225914 | M77: =IF($A77<$D$5,OFFSET('Constant mix'!O$12,'Volatilite Portfeuille'!$E$2+$A77,0),"") -> 1.03415191 | N77: =IF($A77<$D$5,OFFSET('Constant mix'!$AM$12,'Volatilite Portfeuille'!$E$2+$A77,0),"") -> 0 | O77: 0.01434485796 | P77: -0.01060320955 | Q77: 0.004195932046 | R77: -0.01767436463 | S77: -0.005341023527 | T77: -0.004604036286 | U77: 0.006170682655 | V77: -0.008294548348 | W77: -0.008574604216 | X77: -0.01132900877
A78: 57 | B78: =IF(A78<$D$5,OFFSET('Constant mix'!$B$12,'Volatilite Portfeuille'!$E$2+A78,0),"") -> 2006-03-21 | C78: =IF($A78<$D$5,OFFSET('Constant mix'!$C$13,'Volatilite Portfeuille'!$E$2+$A78,0),"") -> 0.0258 | D78: =IF($A78<$D$5,OFFSET('Constant mix'!F$12,'Volatilite Portfeuille'!$E$2+$A78,0),"") -> 1.506103788 | E78: =IF($A78<$D$5,OFFSET('Constant mix'!G$12,'Volatilite Portfeuille'!$E$2+$A78,0),"") -> 0.8911582162 | F78: =IF($A78<$D$5,OFFSET('Constant mix'!H$12,'Volatilite Portfeuille'!$E$2+$A78,0),"") -> 1.278008578 | G78: =IF($A78<$D$5,OFFSET('Constant mix'!I$12,'Volatilite Portfeuille'!$E$2+$A78,0),"") -> 0.6305154835 | H78: =IF($A78<$D$5,OFFSET('Constant mix'!J$12,'Volatilite Portfeuille'!$E$2+$A78,0),"") -> 1.101681313 | I78: =IF($A78<$D$5,OFFSET('Constant mix'!K$12,'Volatilite Portfeuille'!$E$2+$A78,0),"") -> 1.624912962 | J78: =IF($A78<$D$5,OFFSET('Constant mix'!L$12,'Volatilite Portfeuille'!$E$2+$A78,0),"") -> 1.875583461 | K78: =IF($A78<$D$5,OFFSET('Constant mix'!M$12,'Volatilite Portfeuille'!$E$2+$A78,0),"") -> 0.9516225723 | L78: =IF($A78<$D$5,OFFSET('Constant mix'!N$12,'Volatilite Portfeuille'!$E$2+$A78,0),"") -> 1.100215821 | M78: =IF($A78<$D$5,OFFSET('Constant mix'!O$12,'Volatilite Portfeuille'!$E$2+$A78,0),"") -> 1.039465876 | N78: =IF($A78<$D$5,OFFSET('Constant mix'!$AM$12,'Volatilite Portfeuille'!$E$2+$A78,0),"") -> 0 | O78: 0.001093748773 | P78: 0.00158972236 | Q78: 0.003151605883 | R78: 0.006959698715 | S78: -0.001118330412 | T78: -0.000305491149 | U78: 0.002437846317 | V78: -0.005206728356 | W78: 0.008238355301 | X78: 0.005138477281
A79: 58 | B79: =IF(A79<$D$5,OFFSET('Constant mix'!$B$12,'Volatilite Portfeuille'!$E$2+A79,0),"") -> 2006-03-22 | C79: =IF($A79<$D$5,OFFSET('Constant mix'!$C$13,'Volatilite Portfeuille'!$E$2+$A79,0),"") -> 0.0258 | D79: =IF($A79<$D$5,OFFSET('Constant mix'!F$12,'Volatilite Portfeuille'!$E$2+$A79,0),"") -> 1.500929889 | E79: =IF($A79<$D$5,OFFSET('Constant mix'!G$12,'Volatilite Portfeuille'!$E$2+$A79,0),"") -> 0.8934040366 | F79: =IF($A79<$D$5,OFFSET('Constant mix'!H$12,'Volatilite Portfeuille'!$E$2+$A79,0),"") -> 1.27175794 | G79: =IF($A79<$D$5,OFFSET('Constant mix'!I$12,'Volatilite Portfeuille'!$E$2+$A79,0),"") -> 0.6304403431 | H79: =IF($A79<$D$5,OFFSET('Constant mix'!J$12,'Volatilite Portfeuille'!$E$2+$A79,0),"") -> 1.08993639 | I79: =IF($A79<$D$5,OFFSET('Constant mix'!K$12,'Volatilite Portfeuille'!$E$2+$A79,0),"") -> 1.634643527 | J79: =IF($A79<$D$5,OFFSET('Constant mix'!L$12,'Volatilite Portfeuille'!$E$2+$A79,0),"") -> 1.876250786 | K79: =IF($A79<$D$5,OFFSET('Constant mix'!M$12,'Volatilite Portfeuille'!$E$2+$A79,0),"") -> 0.9494018553 | L79: =IF($A79<$D$5,OFFSET('Constant mix'!N$12,'Volatilite Portfeuille'!$E$2+$A79,0),"") -> 1.086211602 | M79: =IF($A79<$D$5,OFFSET('Constant mix'!O$12,'Volatilite Portfeuille'!$E$2+$A79,0),"") -> 1.043214869 | N79: =IF($A79<$D$5,OFFSET('Constant mix'!$AM$12,'Volatilite Portfeuille'!$E$2+$A79,0),"") -> 0 | O79: -0.003435287006 | P79: 0.002520114144 | Q79: -0.004890920191 | R79: -0.0001191729645 | S79: -0.0106609079 | T79: 0.005988360529 | U79: 0.0003557960881 | V79: -0.00233361107 | W79: -0.01272861062 | X79: 0.003606653029
A80: 59 | B80: =IF(A80<$D$5,OFFSET('Constant mix'!$B$12,'Volatilite Portfeuille'!$E$2+A80,0),"") -> 2006-03-23 | C80: =IF($A80<$D$5,OFFSET('Constant mix'!$C$13,'Volatilite Portfeuille'!$E$2+$A80,0),"") -> 0.0258 | D80: =IF($A80<$D$5,OFFSET('Constant mix'!F$12,'Volatilite Portfeuille'!$E$2+$A80,0),"") -> 1.486428689 | E80: =IF($A80<$D$5,OFFSET('Constant mix'!G$12,'Volatilite Portfeuille'!$E$2+$A80,0),"") -> 0.8964237718 | F80: =IF($A80<$D$5,OFFSET('Constant mix'!H$12,'Volatilite Portfeuille'!$E$2+$A80,0),"") -> 1.277988792 | G80: =IF($A80<$D$5,OFFSET('Constant mix'!I$12,'Volatilite Portfeuille'!$E$2+$A80,0),"") -> 0.6299182237 | H80: =IF($A80<$D$5,OFFSET('Constant mix'!J$12,'Volatilite Portfeuille'!$E$2+$A80,0),"") -> 1.092522213 | I80: =IF($A80<$D$5,OFFSET('Constant mix'!K$12,'Volatilite Portfeuille'!$E$2+$A80,0),"") -> 1.622976836 | J80: =IF($A80<$D$5,OFFSET('Constant mix'!L$12,'Volatilite Portfeuille'!$E$2+$A80,0),"") -> 1.865778839 | K80: =IF($A80<$D$5,OFFSET('Constant mix'!M$12,'Volatilite Portfeuille'!$E$2+$A80,0),"") -> 0.9580170638 | L80: =IF($A80<$D$5,OFFSET('Constant mix'!N$12,'Volatilite Portfeuille'!$E$2+$A80,0),"") -> 1.099722358 | M80: =IF($A80<$D$5,OFFSET('Constant mix'!O$12,'Volatilite Portfeuille'!$E$2+$A80,0),"") -> 1.045412886 | N80: =IF($A80<$D$5,OFFSET('Constant mix'!$AM$12,'Volatilite Portfeuille'!$E$2+$A80,0),"") -> 0 | O80: -0.009661477339 | P80: 0.003380033116 | Q80: 0.004899401208 | R80: -0.0008281820974 | S80: 0.002372452861 | T80: -0.007137146752 | U80: -0.005581315513 | V80: 0.009074353949 | W80: 0.01243841981 | X80: 0.002106964727
A81: 60 | B81: =IF(A81<$D$5,OFFSET('Constant mix'!$B$12,'Volatilite Portfeuille'!$E$2+A81,0),"") -> 2006-03-24 | C81: =IF($A81<$D$5,OFFSET('Constant mix'!$C$13,'Volatilite Portfeuille'!$E$2+$A81,0),"") -> 0.0258 | D81: =IF($A81<$D$5,OFFSET('Constant mix'!F$12,'Volatilite Portfeuille'!$E$2+$A81,0),"") -> 1.502593269 | E81: =IF($A81<$D$5,OFFSET('Constant mix'!G$12,'Volatilite Portfeuille'!$E$2+$A81,0),"") -> 0.8895416433 | F81: =IF($A81<$D$5,OFFSET('Constant mix'!H$12,'Volatilite Portfeuille'!$E$2+$A81,0),"") -> 1.280356237 | G81: =IF($A81<$D$5,OFFSET('Constant mix'!I$12,'Volatilite Portfeuille'!$E$2+$A81,0),"") -> 0.6313929232 | H81: =IF($A81<$D$5,OFFSET('Constant mix'!J$12,'Volatilite Portfeuille'!$E$2+$A81,0),"") -> 1.07776296 | I81: =IF($A81<$D$5,OFFSET('Constant mix'!K$12,'Volatilite Portfeuille'!$E$2+$A81,0),"") -> 1.587277151 | J81: =IF($A81<$D$5,OFFSET('Constant mix'!L$12,'Volatilite Portfeuille'!$E$2+$A81,0),"") -> 1.861501264 | K81: =IF($A81<$D$5,OFFSET('Constant mix'!M$12,'Volatilite Portfeuille'!$E$2+$A81,0),"") -> 0.9574651484 | L81: =IF($A81<$D$5,OFFSET('Constant mix'!N$12,'Volatilite Portfeuille'!$E$2+$A81,0),"") -> 1.109523236 | M81: =IF($A81<$D$5,OFFSET('Constant mix'!O$12,'Volatilite Portfeuille'!$E$2+$A81,0),"") -> 1.050224721 | N81: =IF($A81<$D$5,OFFSET('Constant mix'!$AM$12,'Volatilite Portfeuille'!$E$2+$A81,0),"") -> 0 | O81: 0.01087477681 | P81: -0.007677315946 | Q81: 0.001852476542 | R81: 0.002341096751 | S81: -0.0135093388 | T81: -0.02199642312 | U81: -0.002292648364 | V81: -0.000576101836 | W81: 0.00891213897 | X81: 0.004602808506
A82: 61 | B82: =IF(A82<$D$5,OFFSET('Constant mix'!$B$12,'Volatilite Portfeuille'!$E$2+A82,0),"") -> 2006-03-27 | C82: =IF($A82<$D$5,OFFSET('Constant mix'!$C$13,'Volatilite Portfeuille'!$E$2+$A82,0),"") -> 0.0258 | D82: =IF($A82<$D$5,OFFSET('Constant mix'!F$12,'Volatilite Portfeuille'!$E$2+$A82,0),"") -> 1.484212742 | E82: =IF($A82<$D$5,OFFSET('Constant mix'!G$12,'Volatilite Portfeuille'!$E$2+$A82,0),"") -> 0.8923481564 | F82: =IF($A82<$D$5,OFFSET('Constant mix'!H$12,'Volatilite Portfeuille'!$E$2+$A82,0),"") -> 1.304516115 | G82: =IF($A82<$D$5,OFFSET('Constant mix'!I$12,'Volatilite Portfeuille'!$E$2+$A82,0),"") -> 0.622844676 | H82: =IF($A82<$D$5,OFFSET('Constant mix'!J$12,'Volatilite Portfeuille'!$E$2+$A82,0),"") -> 1.073213269 | I82: =IF($A82<$D$5,OFFSET('Constant mix'!K$12,'Volatilite Portfeuille'!$E$2+$A82,0),"") -> 1.603176933 | J82: =IF($A82<$D$5,OFFSET('Constant mix'!L$12,'Volatilite Portfeuille'!$E$2+$A82,0),"") -> 1.841345488 | K82: =IF($A82<$D$5,OFFSET('Constant mix'!M$12,'Volatilite Portfeuille'!$E$2+$A82,0),"") -> 0.9779373847 | L82: =IF($A82<$D$5,OFFSET('Constant mix'!N$12,'Volatilite Portfeuille'!$E$2+$A82,0),"") -> 1.099591497 | M82: =IF($A82<$D$5,OFFSET('Constant mix'!O$12,'Volatilite Portfeuille'!$E$2+$A82,0),"") -> 1.064570835 | N82: =IF($A82<$D$5,OFFSET('Constant mix'!$AM$12,'Volatilite Portfeuille'!$E$2+$A82,0),"") -> 0 | O82: -0.01223253679 | P82: 0.003155010354 | Q82: 0.01886965342 | R82: -0.01353871248 | S82: -0.004221421122 | T82: 0.01001701708 | U82: -0.01082769947 | V82: 0.02138170389 | W82: -0.008951358028 | X82: 0.01366004195
A83: 62 | B83: =IF(A83<$D$5,OFFSET('Constant mix'!$B$12,'Volatilite Portfeuille'!$E$2+A83,0),"") -> 2006-03-28 | C83: =IF($A83<$D$5,OFFSET('Constant mix'!$C$13,'Volatilite Portfeuille'!$E$2+$A83,0),"") -> 0.0258 | D83: =IF($A83<$D$5,OFFSET('Constant mix'!F$12,'Volatilite Portfeuille'!$E$2+$A83,0),"") -> 1.481057073 | E83: =IF($A83<$D$5,OFFSET('Constant mix'!G$12,'Volatilite Portfeuille'!$E$2+$A83,0),"") -> 0.8930106952 | F83: =IF($A83<$D$5,OFFSET('Constant mix'!H$12,'Volatilite Portfeuille'!$E$2+$A83,0),"") -> 1.292785214 | G83: =IF($A83<$D$5,OFFSET('Constant mix'!I$12,'Volatilite Portfeuille'!$E$2+$A83,0),"") -> 0.6271953613 | H83: =IF($A83<$D$5,OFFSET('Constant mix'!J$12,'Volatilite Portfeuille'!$E$2+$A83,0),"") -> 1.07302643 | I83: =IF($A83<$D$5,OFFSET('Constant mix'!K$12,'Volatilite Portfeuille'!$E$2+$A83,0),"") -> 1.589521043 | J83: =IF($A83<$D$5,OFFSET('Constant mix'!L$12,'Volatilite Portfeuille'!$E$2+$A83,0),"") -> 1.853189852 | K83: =IF($A83<$D$5,OFFSET('Constant mix'!M$12,'Volatilite Portfeuille'!$E$2+$A83,0),"") -> 0.9881839295 | L83: =IF($A83<$D$5,OFFSET('Constant mix'!N$12,'Volatilite Portfeuille'!$E$2+$A83,0),"") -> 1.115367273 | M83: =IF($A83<$D$5,OFFSET('Constant mix'!O$12,'Volatilite Portfeuille'!$E$2+$A83,0),"") -> 1.063457682 | N83: =IF($A83<$D$5,OFFSET('Constant mix'!$AM$12,'Volatilite Portfeuille'!$E$2+$A83,0),"") -> 0 | O83: -0.002126156317 | P83: 0.0007424667138 | Q83: -0.008992530671 | R83: 0.006985185017 | S83: -0.0001740932788 | T83: -0.00851801786 | U83: 0.006432451011 | V83: 0.01047771053 | W83: 0.01434694301 | X83: -0.001045635508
A84: 63 | B84: =IF(A84<$D$5,OFFSET('Constant mix'!$B$12,'Volatilite Portfeuille'!$E$2+A84,0),"") -> 2006-03-29 | C84: =IF($A84<$D$5,OFFSET('Constant mix'!$C$13,'Volatilite Portfeuille'!$E$2+$A84,0),"") -> 0.0259 | D84: =IF($A84<$D$5,OFFSET('Constant mix'!F$12,'Volatilite Portfeuille'!$E$2+$A84,0),"") -> 1.481250626 | E84: =IF($A84<$D$5,OFFSET('Constant mix'!G$12,'Volatilite Portfeuille'!$E$2+$A84,0),"") -> 0.8899596862 | F84: =IF($A84<$D$5,OFFSET('Constant mix'!H$12,'Volatilite Portfeuille'!$E$2+$A84,0),"") -> 1.295665058 | G84: =IF($A84<$D$5,OFFSET('Constant mix'!I$12,'Volatilite Portfeuille'!$E$2+$A84,0),"") -> 0.6274479519 | H84: =IF($A84<$D$5,OFFSET('Constant mix'!J$12,'Volatilite Portfeuille'!$E$2+$A84,0),"") -> 1.071509581 | I84: =IF($A84<$D$5,OFFSET('Constant mix'!K$12,'Volatilite Portfeuille'!$E$2+$A84,0),"") -> 1.58960914 | J84: =IF($A84<$D$5,OFFSET('Constant mix'!L$12,'Volatilite Portfeuille'!$E$2+$A84,0),"") -> 1.833626286 | K84: =IF($A84<$D$5,OFFSET('Constant mix'!M$12,'Volatilite Portfeuille'!$E$2+$A84,0),"") -> 0.9966542905 | L84: =IF($A84<$D$5,OFFSET('Constant mix'!N$12,'Volatilite Portfeuille'!$E$2+$A84,0),"") -> 1.116119835 | M84: =IF($A84<$D$5,OFFSET('Constant mix'!O$12,'Volatilite Portfeuille'!$E$2+$A84,0),"") -> 1.063914368 | N84: =IF($A84<$D$5,OFFSET('Constant mix'!$AM$12,'Volatilite Portfeuille'!$E$2+$A84,0),"") -> 0 | O84: 0.0001306856745 | P84: -0.003416542451 | Q84: 0.002227627297 | R84: 0.0004027303157 | S84: -0.001413617425 | T84: 5.542360492e-05 | U84: -0.01055669869 | V84: 0.008571644075 | W84: 0.0006747210084 | X84: 0.0004294349777
A85: 64 | B85: =IF(A85<$D$5,OFFSET('Constant mix'!$B$12,'Volatilite Portfeuille'!$E$2+A85,0),"") -> 2006-03-30 | C85: =IF($A85<$D$5,OFFSET('Constant mix'!$C$13,'Volatilite Portfeuille'!$E$2+$A85,0),"") -> 0.0262 | D85: =IF($A85<$D$5,OFFSET('Constant mix'!F$12,'Volatilite Portfeuille'!$E$2+$A85,0),"") -> 1.474138919 | E85: =IF($A85<$D$5,OFFSET('Constant mix'!G$12,'Volatilite Portfeuille'!$E$2+$A85,0),"") -> 0.8865183978 | F85: =IF($A85<$D$5,OFFSET('Constant mix'!H$12,'Volatilite Portfeuille'!$E$2+$A85,0),"") -> 1.297938203 | G85: =IF($A85<$D$5,OFFSET('Constant mix'!I$12,'Volatilite Portfeuille'!$E$2+$A85,0),"") -> 0.6265632941 | H85: =IF($A85<$D$5,OFFSET('Constant mix'!J$12,'Volatilite Portfeuille'!$E$2+$A85,0),"") -> 1.059085096 | I85: =IF($A85<$D$5,OFFSET('Constant mix'!K$12,'Volatilite Portfeuille'!$E$2+$A85,0),"") -> 1.609679115 | J85: =IF($A85<$D$5,OFFSET('Constant mix'!L$12,'Volatilite Portfeuille'!$E$2+$A85,0),"") -> 1.841106926 | K85: =IF($A85<$D$5,OFFSET('Constant mix'!M$12,'Volatilite Portfeuille'!$E$2+$A85,0),"") -> 0.9974239924 | L85: =IF($A85<$D$5,OFFSET('Constant mix'!N$12,'Volatilite Portfeuille'!$E$2+$A85,0),"") -> 1.113824663 | M85: =IF($A85<$D$5,OFFSET('Constant mix'!O$12,'Volatilite Portfeuille'!$E$2+$A85,0),"") -> 1.067923686 | N85: =IF($A85<$D$5,OFFSET('Constant mix'!$AM$12,'Volatilite Portfeuille'!$E$2+$A85,0),"") -> 0 | O85: -0.004801150429 | P85: -0.003866791367 | Q85: 0.001754424062 | R85: -0.001409930024 | S85: -0.01159530891 | T85: 0.01262572924 | U85: 0.004079697228 | V85: 0.0007722857906 | W85: -0.002056384349 | X85: 0.003768460115
A86: 65 | B86: =IF(A86<$D$5,OFFSET('Constant mix'!$B$12,'Volatilite Portfeuille'!$E$2+A86,0),"") -> 2006-03-31 | C86: =IF($A86<$D$5,OFFSET('Constant mix'!$C$13,'Volatilite Portfeuille'!$E$2+$A86,0),"") -> 0.0259 | D86: =IF($A86<$D$5,OFFSET('Constant mix'!F$12,'Volatilite Portfeuille'!$E$2+$A86,0),"") -> 1.465450902 | E86: =IF($A86<$D$5,OFFSET('Constant mix'!G$12,'Volatilite Portfeuille'!$E$2+$A86,0),"") -> 0.8851894237 | F86: =IF($A86<$D$5,OFFSET('Constant mix'!H$12,'Volatilite Portfeuille'!$E$2+$A86,0),"") -> 1.304112658 | G86: =IF($A86<$D$5,OFFSET('Constant mix'!I$12,'Volatilite Portfeuille'!$E$2+$A86,0),"") -> 0.6257198512 | H86: =IF($A86<$D$5,OFFSET('Constant mix'!J$12,'Volatilite Portfeuille'!$E$2+$A86,0),"") -> 1.06327698 | I86: =IF($A86<$D$5,OFFSET('Constant mix'!K$12,'Volatilite Portfeuille'!$E$2+$A86,0),"") -> 1.597581957 | J86: =IF($A86<$D$5,OFFSET('Constant mix'!L$12,'Volatilite Portfeuille'!$E$2+$A86,0),"") -> 1.828956607 | K86: =IF($A86<$D$5,OFFSET('Constant mix'!M$12,'Volatilite Portfeuille'!$E$2+$A86,0),"") -> 0.9799186081 | L86: =IF($A86<$D$5,OFFSET('Constant mix'!N$12,'Volatilite Portfeuille'!$E$2+$A86,0),"") -> 1.10955179 | M86: =IF($A86<$D$5,OFFSET('Constant mix'!O$12,'Volatilite Portfeuille'!$E$2+$A86,0),"") -> 1.074314532 | N86: =IF($A86<$D$5,OFFSET('Constant mix'!$AM$12,'Volatilite Portfeuille'!$E$2+$A86,0),"") -> 0 | O86: -0.005893621821 | P86: -0.001499093687 | Q86: 0.004757125171 | R86: -0.001346141653 | S86: 0.003958023819 | T86: -0.007515260332 | U86: -0.006599463767 | V86: -0.01755059478 | W86: -0.003836217109 | X86: 0.00598436581
A87: =A86+1 -> 66 | B87: =IF(A87<$D$5,OFFSET('Constant mix'!$B$12,'Volatilite Portfeuille'!$E$2+A87,0),"") -> 2006-04-03 | C87: =IF($A87<$D$5,OFFSET('Constant mix'!$C$13,'Volatilite Portfeuille'!$E$2+$A87,0),"") -> 0.0259 | D87: =IF($A87<$D$5,OFFSET('Constant mix'!F$12,'Volatilite Portfeuille'!$E$2+$A87,0),"") -> 1.506797653 | E87: =IF($A87<$D$5,OFFSET('Constant mix'!G$12,'Volatilite Portfeuille'!$E$2+$A87,0),"") -> 0.875648427 | F87: =IF($A87<$D$5,OFFSET('Constant mix'!H$12,'Volatilite Portfeuille'!$E$2+$A87,0),"") -> 1.318880373 | G87: =IF($A87<$D$5,OFFSET('Constant mix'!I$12,'Volatilite Portfeuille'!$E$2+$A87,0),"") -> 0.6269873234 | H87: =IF($A87<$D$5,OFFSET('Constant mix'!J$12,'Volatilite Portfeuille'!$E$2+$A87,0),"") -> 1.050701906 | I87: =IF($A87<$D$5,OFFSET('Constant mix'!K$12,'Volatilite Portfeuille'!$E$2+$A87,0),"") -> 1.588519641 | J87: =IF($A87<$D$5,OFFSET('Constant mix'!L$12,'Volatilite Portfeuille'!$E$2+$A87,0),"") -> 1.854916224 | K87: =IF($A87<$D$5,OFFSET('Constant mix'!M$12,'Volatilite Portfeuille'!$E$2+$A87,0),"") -> 0.9772811465 | L87: =IF($A87<$D$5,OFFSET('Constant mix'!N$12,'Volatilite Portfeuille'!$E$2+$A87,0),"") -> 1.115753774 | M87: =IF($A87<$D$5,OFFSET('Constant mix'!O$12,'Volatilite Portfeuille'!$E$2+$A87,0),"") -> 1.072050169 | N87: =IF($A87<$D$5,OFFSET('Constant mix'!$AM$12,'Volatilite Portfeuille'!$E$2+$A87,0),"") -> 0 | O87: =IF($A87<$D$5,D87/D86-1,0) -> 0.02821435424 | P87: =IF($A87<$D$5,E87/E86-1,0) -> -0.01077848025 | Q87: =IF($A87<$D$5,F87/F86-1,0) -> 0.01132395677 | R87: =IF($A87<$D$5,G87/G86-1,0) -> 0.002025622433 | S87: =IF($A87<$D$5,H87/H86-1,0) -> -0.01182671562 | T87: =IF($A87<$D$5,I87/I86-1,0) -> -0.005672520635 | U87: =IF($A87<$D$5,J87/J86-1,0) -> 0.01419367549 | V87: =IF($A87<$D$5,K87/K86-1,0) -> -0.00269151084 | W87: =IF($A87<$D$5,L87/L86-1,0) -> 0.005589630001 | X87: =IF($A87<$D$5,M87/M86-1,0) -> -0.002107728919 | Y87: =IF($A87<$D$5,N87/N86-1,0) -> 
A88: 67 | B88: =IF(A88<$D$5,OFFSET('Constant mix'!$B$12,'Volatilite Portfeuille'!$E$2+A88,0),"") -> 2006-04-04 | C88: =IF($A88<$D$5,OFFSET('Constant mix'!$C$13,'Volatilite Portfeuille'!$E$2+$A88,0),"") -> 0.0261 | D88: =IF($A88<$D$5,OFFSET('Constant mix'!F$12,'Volatilite Portfeuille'!$E$2+$A88,0),"") -> 1.524749728 | E88: =IF($A88<$D$5,OFFSET('Constant mix'!G$12,'Volatilite Portfeuille'!$E$2+$A88,0),"") -> 0.8766392655 | F88: =IF($A88<$D$5,OFFSET('Constant mix'!H$12,'Volatilite Portfeuille'!$E$2+$A88,0),"") -> 1.314701322 | G88: =IF($A88<$D$5,OFFSET('Constant mix'!I$12,'Volatilite Portfeuille'!$E$2+$A88,0),"") -> 0.6244130232 | H88: =IF($A88<$D$5,OFFSET('Constant mix'!J$12,'Volatilite Portfeuille'!$E$2+$A88,0),"") -> 1.054071073 | I88: =IF($A88<$D$5,OFFSET('Constant mix'!K$12,'Volatilite Portfeuille'!$E$2+$A88,0),"") -> 1.571852353 | J88: =IF($A88<$D$5,OFFSET('Constant mix'!L$12,'Volatilite Portfeuille'!$E$2+$A88,0),"") -> 1.85605445 | K88: =IF($A88<$D$5,OFFSET('Constant mix'!M$12,'Volatilite Portfeuille'!$E$2+$A88,0),"") -> 0.9963957081 | L88: =IF($A88<$D$5,OFFSET('Constant mix'!N$12,'Volatilite Portfeuille'!$E$2+$A88,0),"") -> 1.11729219 | M88: =IF($A88<$D$5,OFFSET('Constant mix'!O$12,'Volatilite Portfeuille'!$E$2+$A88,0),"") -> 1.072538441 | N88: =IF($A88<$D$5,OFFSET('Constant mix'!$AM$12,'Volatilite Portfeuille'!$E$2+$A88,0),"") -> 0 | O88: 0.01191405802 | P88: 0.00113154837 | Q88: -0.003168635792 | R88: -0.004105824923 | S88: 0.003206586667 | T88: -0.01049233996 | U88: 0.0006136265368 | V88: 0.01955891772 | W88: 0.001378813156 | X88: 0.0004554563625
A89: 68 | B89: =IF(A89<$D$5,OFFSET('Constant mix'!$B$12,'Volatilite Portfeuille'!$E$2+A89,0),"") -> 2006-04-05 | C89: =IF($A89<$D$5,OFFSET('Constant mix'!$C$13,'Volatilite Portfeuille'!$E$2+$A89,0),"") -> 0.0267 | D89: =IF($A89<$D$5,OFFSET('Constant mix'!F$12,'Volatilite Portfeuille'!$E$2+$A89,0),"") -> 1.531455997 | E89: =IF($A89<$D$5,OFFSET('Constant mix'!G$12,'Volatilite Portfeuille'!$E$2+$A89,0),"") -> 0.8872460966 | F89: =IF($A89<$D$5,OFFSET('Constant mix'!H$12,'Volatilite Portfeuille'!$E$2+$A89,0),"") -> 1.300841933 | G89: =IF($A89<$D$5,OFFSET('Constant mix'!I$12,'Volatilite Portfeuille'!$E$2+$A89,0),"") -> 0.629022819 | H89: =IF($A89<$D$5,OFFSET('Constant mix'!J$12,'Volatilite Portfeuille'!$E$2+$A89,0),"") -> 1.063447261 | I89: =IF($A89<$D$5,OFFSET('Constant mix'!K$12,'Volatilite Portfeuille'!$E$2+$A89,0),"") -> 1.591284979 | J89: =IF($A89<$D$5,OFFSET('Constant mix'!L$12,'Volatilite Portfeuille'!$E$2+$A89,0),"") -> 1.857341094 | K89: =IF($A89<$D$5,OFFSET('Constant mix'!M$12,'Volatilite Portfeuille'!$E$2+$A89,0),"") -> 1.002642989 | L89: =IF($A89<$D$5,OFFSET('Constant mix'!N$12,'Volatilite Portfeuille'!$E$2+$A89,0),"") -> 1.131281023 | M89: =IF($A89<$D$5,OFFSET('Constant mix'!O$12,'Volatilite Portfeuille'!$E$2+$A89,0),"") -> 1.058570328 | N89: =IF($A89<$D$5,OFFSET('Constant mix'!$AM$12,'Volatilite Portfeuille'!$E$2+$A89,0),"") -> 0 | O89: 0.004398275244 | P89: 0.01209942504 | Q89: -0.01054185346 | R89: 0.0073826068 | S89: 0.008895215054 | T89: 0.0123628826 | U89: 0.0006932146121 | V89: 0.006269878911 | W89: 0.0125202996 | X89: -0.01302341483
A90: 69 | B90: =IF(A90<$D$5,OFFSET('Constant mix'!$B$12,'Volatilite Portfeuille'!$E$2+A90,0),"") -> 2006-04-06 | C90: =IF($A90<$D$5,OFFSET('Constant mix'!$C$13,'Volatilite Portfeuille'!$E$2+$A90,0),"") -> 0.0269 | D90: =IF($A90<$D$5,OFFSET('Constant mix'!F$12,'Volatilite Portfeuille'!$E$2+$A90,0),"") -> 1.542703122 | E90: =IF($A90<$D$5,OFFSET('Constant mix'!G$12,'Volatilite Portfeuille'!$E$2+$A90,0),"") -> 0.8877383676 | F90: =IF($A90<$D$5,OFFSET('Constant mix'!H$12,'Volatilite Portfeuille'!$E$2+$A90,0),"") -> 1.308867066 | G90: =IF($A90<$D$5,OFFSET('Constant mix'!I$12,'Volatilite Portfeuille'!$E$2+$A90,0),"") -> 0.6374988905 | H90: =IF($A90<$D$5,OFFSET('Constant mix'!J$12,'Volatilite Portfeuille'!$E$2+$A90,0),"") -> 1.069536937 | I90: =IF($A90<$D$5,OFFSET('Constant mix'!K$12,'Volatilite Portfeuille'!$E$2+$A90,0),"") -> 1.609945958 | J90: =IF($A90<$D$5,OFFSET('Constant mix'!L$12,'Volatilite Portfeuille'!$E$2+$A90,0),"") -> 1.874381944 | K90: =IF($A90<$D$5,OFFSET('Constant mix'!M$12,'Volatilite Portfeuille'!$E$2+$A90,0),"") -> 0.9986474083 | L90: =IF($A90<$D$5,OFFSET('Constant mix'!N$12,'Volatilite Portfeuille'!$E$2+$A90,0),"") -> 1.138741008 | M90: =IF($A90<$D$5,OFFSET('Constant mix'!O$12,'Volatilite Portfeuille'!$E$2+$A90,0),"") -> 1.054760724 | N90: =IF($A90<$D$5,OFFSET('Constant mix'!$AM$12,'Volatilite Portfeuille'!$E$2+$A90,0),"") -> 0 | O90: 0.007344073451 | P90: 0.0005548303256 | Q90: 0.006169184013 | R90: 0.01347498252 | S90: 0.005726354176 | T90: 0.01172698759 | U90: 0.00917486335 | V90: -0.003985047769 | W90: 0.00659428089 | X90: -0.003598820018
A91: 70 | B91: =IF(A91<$D$5,OFFSET('Constant mix'!$B$12,'Volatilite Portfeuille'!$E$2+A91,0),"") -> 2006-04-07 | C91: =IF($A91<$D$5,OFFSET('Constant mix'!$C$13,'Volatilite Portfeuille'!$E$2+$A91,0),"") -> 0.0271 | D91: =IF($A91<$D$5,OFFSET('Constant mix'!F$12,'Volatilite Portfeuille'!$E$2+$A91,0),"") -> 1.51846029 | E91: =IF($A91<$D$5,OFFSET('Constant mix'!G$12,'Volatilite Portfeuille'!$E$2+$A91,0),"") -> 0.879021463 | F91: =IF($A91<$D$5,OFFSET('Constant mix'!H$12,'Volatilite Portfeuille'!$E$2+$A91,0),"") -> 1.310158298 | G91: =IF($A91<$D$5,OFFSET('Constant mix'!I$12,'Volatilite Portfeuille'!$E$2+$A91,0),"") -> 0.6343886029 | H91: =IF($A91<$D$5,OFFSET('Constant mix'!J$12,'Volatilite Portfeuille'!$E$2+$A91,0),"") -> 1.069048309 | I91: =IF($A91<$D$5,OFFSET('Constant mix'!K$12,'Volatilite Portfeuille'!$E$2+$A91,0),"") -> 1.596400738 | J91: =IF($A91<$D$5,OFFSET('Constant mix'!L$12,'Volatilite Portfeuille'!$E$2+$A91,0),"") -> 1.881457029 | K91: =IF($A91<$D$5,OFFSET('Constant mix'!M$12,'Volatilite Portfeuille'!$E$2+$A91,0),"") -> 0.9996513281 | L91: =IF($A91<$D$5,OFFSET('Constant mix'!N$12,'Volatilite Portfeuille'!$E$2+$A91,0),"") -> 1.137968607 | M91: =IF($A91<$D$5,OFFSET('Constant mix'!O$12,'Volatilite Portfeuille'!$E$2+$A91,0),"") -> 1.045830261 | N91: =IF($A91<$D$5,OFFSET('Constant mix'!$AM$12,'Volatilite Portfeuille'!$E$2+$A91,0),"") -> 0 | O91: -0.01571451538 | P91: -0.009819227139 | Q91: 0.0009865265838 | R91: -0.004878891065 | S91: -0.000456859857 | T91: -0.008413462663 | U91: 0.003774622791 | V91: 0.001005279549 | W91: -0.0006782940912 | X91: -0.008466813282
A92: 71 | B92: =IF(A92<$D$5,OFFSET('Constant mix'!$B$12,'Volatilite Portfeuille'!$E$2+A92,0),"") -> 2006-04-10 | C92: =IF($A92<$D$5,OFFSET('Constant mix'!$C$13,'Volatilite Portfeuille'!$E$2+$A92,0),"") -> 0.0263 | D92: =IF($A92<$D$5,OFFSET('Constant mix'!F$12,'Volatilite Portfeuille'!$E$2+$A92,0),"") -> 1.556763213 | E92: =IF($A92<$D$5,OFFSET('Constant mix'!G$12,'Volatilite Portfeuille'!$E$2+$A92,0),"") -> 0.8776604449 | F92: =IF($A92<$D$5,OFFSET('Constant mix'!H$12,'Volatilite Portfeuille'!$E$2+$A92,0),"") -> 1.346715811 | G92: =IF($A92<$D$5,OFFSET('Constant mix'!I$12,'Volatilite Portfeuille'!$E$2+$A92,0),"") -> 0.6378225282 | H92: =IF($A92<$D$5,OFFSET('Constant mix'!J$12,'Volatilite Portfeuille'!$E$2+$A92,0),"") -> 1.068064267 | I92: =IF($A92<$D$5,OFFSET('Constant mix'!K$12,'Volatilite Portfeuille'!$E$2+$A92,0),"") -> 1.554293276 | J92: =IF($A92<$D$5,OFFSET('Constant mix'!L$12,'Volatilite Portfeuille'!$E$2+$A92,0),"") -> 1.860358172 | K92: =IF($A92<$D$5,OFFSET('Constant mix'!M$12,'Volatilite Portfeuille'!$E$2+$A92,0),"") -> 1.020656693 | L92: =IF($A92<$D$5,OFFSET('Constant mix'!N$12,'Volatilite Portfeuille'!$E$2+$A92,0),"") -> 1.160206049 | M92: =IF($A92<$D$5,OFFSET('Constant mix'!O$12,'Volatilite Portfeuille'!$E$2+$A92,0),"") -> 1.036097749 | N92: =IF($A92<$D$5,OFFSET('Constant mix'!$AM$12,'Volatilite Portfeuille'!$E$2+$A92,0),"") -> 0 | O92: 0.02522484357 | P92: -0.001548333141 | Q92: 0.02790312621 | R92: 0.005412968266 | S92: -0.0009204835818 | T92: -0.02637649877 | U92: -0.01121410534 | V92: 0.02101269183 | W92: 0.01954134935 | X92: -0.0093060151
A93: 72 | B93: =IF(A93<$D$5,OFFSET('Constant mix'!$B$12,'Volatilite Portfeuille'!$E$2+A93,0),"") -> 2006-04-11 | C93: =IF($A93<$D$5,OFFSET('Constant mix'!$C$13,'Volatilite Portfeuille'!$E$2+$A93,0),"") -> 0.026 | D93: =IF($A93<$D$5,OFFSET('Constant mix'!F$12,'Volatilite Portfeuille'!$E$2+$A93,0),"") -> 1.558075846 | E93: =IF($A93<$D$5,OFFSET('Constant mix'!G$12,'Volatilite Portfeuille'!$E$2+$A93,0),"") -> 0.8739969093 | F93: =IF($A93<$D$5,OFFSET('Constant mix'!H$12,'Volatilite Portfeuille'!$E$2+$A93,0),"") -> 1.351540543 | G93: =IF($A93<$D$5,OFFSET('Constant mix'!I$12,'Volatilite Portfeuille'!$E$2+$A93,0),"") -> 0.6325722225 | H93: =IF($A93<$D$5,OFFSET('Constant mix'!J$12,'Volatilite Portfeuille'!$E$2+$A93,0),"") -> 1.062395097 | I93: =IF($A93<$D$5,OFFSET('Constant mix'!K$12,'Volatilite Portfeuille'!$E$2+$A93,0),"") -> 1.565176631 | J93: =IF($A93<$D$5,OFFSET('Constant mix'!L$12,'Volatilite Portfeuille'!$E$2+$A93,0),"") -> 1.823041013 | K93: =IF($A93<$D$5,OFFSET('Constant mix'!M$12,'Volatilite Portfeuille'!$E$2+$A93,0),"") -> 1.008617448 | L93: =IF($A93<$D$5,OFFSET('Constant mix'!N$12,'Volatilite Portfeuille'!$E$2+$A93,0),"") -> 1.165032446 | M93: =IF($A93<$D$5,OFFSET('Constant mix'!O$12,'Volatilite Portfeuille'!$E$2+$A93,0),"") -> 1.039764243 | N93: =IF($A93<$D$5,OFFSET('Constant mix'!$AM$12,'Volatilite Portfeuille'!$E$2+$A93,0),"") -> 0 | O93: 0.0008431805619 | P93: -0.004174206085 | Q93: 0.003582590846 | R93: -0.008231609141 | S93: -0.005307892525 | T93: 0.007002124626 | U93: -0.02005912577 | V93: -0.01179558728 | W93: 0.004159948633 | X93: 0.003538752495
A94: 73 | B94: =IF(A94<$D$5,OFFSET('Constant mix'!$B$12,'Volatilite Portfeuille'!$E$2+A94,0),"") -> 2006-04-12 | C94: =IF($A94<$D$5,OFFSET('Constant mix'!$C$13,'Volatilite Portfeuille'!$E$2+$A94,0),"") -> 0.0261 | D94: =IF($A94<$D$5,OFFSET('Constant mix'!F$12,'Volatilite Portfeuille'!$E$2+$A94,0),"") -> 1.540172429 | E94: =IF($A94<$D$5,OFFSET('Constant mix'!G$12,'Volatilite Portfeuille'!$E$2+$A94,0),"") -> 0.8732826644 | F94: =IF($A94<$D$5,OFFSET('Constant mix'!H$12,'Volatilite Portfeuille'!$E$2+$A94,0),"") -> 1.337847016 | G94: =IF($A94<$D$5,OFFSET('Constant mix'!I$12,'Volatilite Portfeuille'!$E$2+$A94,0),"") -> 0.6356931882 | H94: =IF($A94<$D$5,OFFSET('Constant mix'!J$12,'Volatilite Portfeuille'!$E$2+$A94,0),"") -> 1.058521926 | I94: =IF($A94<$D$5,OFFSET('Constant mix'!K$12,'Volatilite Portfeuille'!$E$2+$A94,0),"") -> 1.555753713 | J94: =IF($A94<$D$5,OFFSET('Constant mix'!L$12,'Volatilite Portfeuille'!$E$2+$A94,0),"") -> 1.795376632 | K94: =IF($A94<$D$5,OFFSET('Constant mix'!M$12,'Volatilite Portfeuille'!$E$2+$A94,0),"") -> 1.013891704 | L94: =IF($A94<$D$5,OFFSET('Constant mix'!N$12,'Volatilite Portfeuille'!$E$2+$A94,0),"") -> 1.161205929 | M94: =IF($A94<$D$5,OFFSET('Constant mix'!O$12,'Volatilite Portfeuille'!$E$2+$A94,0),"") -> 1.036985466 | N94: =IF($A94<$D$5,OFFSET('Constant mix'!$AM$12,'Volatilite Portfeuille'!$E$2+$A94,0),"") -> 0 | O94: -0.01149072248 | P94: -0.0008172167343 | Q94: -0.01013179149 | R94: 0.004933769751 | S94: -0.003645697198 | T94: -0.006020354336 | U94: -0.01517485427 | V94: 0.005229193794 | W94: -0.003284472514 | X94: -0.002672506133
A95: 74 | B95: =IF(A95<$D$5,OFFSET('Constant mix'!$B$12,'Volatilite Portfeuille'!$E$2+A95,0),"") -> 2006-04-13 | C95: =IF($A95<$D$5,OFFSET('Constant mix'!$C$13,'Volatilite Portfeuille'!$E$2+$A95,0),"") -> 0.0261 | D95: =IF($A95<$D$5,OFFSET('Constant mix'!F$12,'Volatilite Portfeuille'!$E$2+$A95,0),"") -> 1.539352868 | E95: =IF($A95<$D$5,OFFSET('Constant mix'!G$12,'Volatilite Portfeuille'!$E$2+$A95,0),"") -> 0.8634149292 | F95: =IF($A95<$D$5,OFFSET('Constant mix'!H$12,'Volatilite Portfeuille'!$E$2+$A95,0),"") -> 1.342807871 | G95: =IF($A95<$D$5,OFFSET('Constant mix'!I$12,'Volatilite Portfeuille'!$E$2+$A95,0),"") -> 0.643736011 | H95: =IF($A95<$D$5,OFFSET('Constant mix'!J$12,'Volatilite Portfeuille'!$E$2+$A95,0),"") -> 1.071897983 | I95: =IF($A95<$D$5,OFFSET('Constant mix'!K$12,'Volatilite Portfeuille'!$E$2+$A95,0),"") -> 1.561377564 | J95: =IF($A95<$D$5,OFFSET('Constant mix'!L$12,'Volatilite Portfeuille'!$E$2+$A95,0),"") -> 1.78294912 | K95: =IF($A95<$D$5,OFFSET('Constant mix'!M$12,'Volatilite Portfeuille'!$E$2+$A95,0),"") -> 1.01217328 | L95: =IF($A95<$D$5,OFFSET('Constant mix'!N$12,'Volatilite Portfeuille'!$E$2+$A95,0),"") -> 1.168999624 | M95: =IF($A95<$D$5,OFFSET('Constant mix'!O$12,'Volatilite Portfeuille'!$E$2+$A95,0),"") -> 1.043632203 | N95: =IF($A95<$D$5,OFFSET('Constant mix'!$AM$12,'Volatilite Portfeuille'!$E$2+$A95,0),"") -> 0 | O95: -0.0005321225911 | P95: -0.01129958898 | Q95: 0.003708088861 | R95: 0.0126520512 | S95: 0.01263654183 | T95: 0.003614872086 | U95: -0.006921952514 | V95: -0.001694879278 | W95: 0.006711725032 | X95: 0.006409671773
A96: 75 | B96: =IF(A96<$D$5,OFFSET('Constant mix'!$B$12,'Volatilite Portfeuille'!$E$2+A96,0),"") -> 2006-04-14 | C96: =IF($A96<$D$5,OFFSET('Constant mix'!$C$13,'Volatilite Portfeuille'!$E$2+$A96,0),"") -> 0.0261 | D96: =IF($A96<$D$5,OFFSET('Constant mix'!F$12,'Volatilite Portfeuille'!$E$2+$A96,0),"") -> 1.542335785 | E96: =IF($A96<$D$5,OFFSET('Constant mix'!G$12,'Volatilite Portfeuille'!$E$2+$A96,0),"") -> 0.8695809037 | F96: =IF($A96<$D$5,OFFSET('Constant mix'!H$12,'Volatilite Portfeuille'!$E$2+$A96,0),"") -> 1.351545607 | G96: =IF($A96<$D$5,OFFSET('Constant mix'!I$12,'Volatilite Portfeuille'!$E$2+$A96,0),"") -> 0.6446802674 | H96: =IF($A96<$D$5,OFFSET('Constant mix'!J$12,'Volatilite Portfeuille'!$E$2+$A96,0),"") -> 1.063794451 | I96: =IF($A96<$D$5,OFFSET('Constant mix'!K$12,'Volatilite Portfeuille'!$E$2+$A96,0),"") -> 1.555552774 | J96: =IF($A96<$D$5,OFFSET('Constant mix'!L$12,'Volatilite Portfeuille'!$E$2+$A96,0),"") -> 1.784880414 | K96: =IF($A96<$D$5,OFFSET('Constant mix'!M$12,'Volatilite Portfeuille'!$E$2+$A96,0),"") -> 1.007527456 | L96: =IF($A96<$D$5,OFFSET('Constant mix'!N$12,'Volatilite Portfeuille'!$E$2+$A96,0),"") -> 1.168812116 | M96: =IF($A96<$D$5,OFFSET('Constant mix'!O$12,'Volatilite Portfeuille'!$E$2+$A96,0),"") -> 1.039527951 | N96: =IF($A96<$D$5,OFFSET('Constant mix'!$AM$12,'Volatilite Portfeuille'!$E$2+$A96,0),"") -> 0 | O96: 0.001937773264 | P96: 0.007141380448 | Q96: 0.006507063577 | R96: 0.001466838003 | S96: -0.007559984108 | T96: -0.003730545405 | U96: 0.001083202255 | V96: -0.004589949277 | W96: -0.0001604002948 | X96: -0.003932661508
A97: 76 | B97: =IF(A97<$D$5,OFFSET('Constant mix'!$B$12,'Volatilite Portfeuille'!$E$2+A97,0),"") -> 2006-04-17 | C97: =IF($A97<$D$5,OFFSET('Constant mix'!$C$13,'Volatilite Portfeuille'!$E$2+$A97,0),"") -> 0.0261 | D97: =IF($A97<$D$5,OFFSET('Constant mix'!F$12,'Volatilite Portfeuille'!$E$2+$A97,0),"") -> 1.507912959 | E97: =IF($A97<$D$5,OFFSET('Constant mix'!G$12,'Volatilite Portfeuille'!$E$2+$A97,0),"") -> 0.871923978 | F97: =IF($A97<$D$5,OFFSET('Constant mix'!H$12,'Volatilite Portfeuille'!$E$2+$A97,0),"") -> 1.374131255 | G97: =IF($A97<$D$5,OFFSET('Constant mix'!I$12,'Volatilite Portfeuille'!$E$2+$A97,0),"") -> 0.6420847427 | H97: =IF($A97<$D$5,OFFSET('Constant mix'!J$12,'Volatilite Portfeuille'!$E$2+$A97,0),"") -> 1.091634023 | I97: =IF($A97<$D$5,OFFSET('Constant mix'!K$12,'Volatilite Portfeuille'!$E$2+$A97,0),"") -> 1.553074493 | J97: =IF($A97<$D$5,OFFSET('Constant mix'!L$12,'Volatilite Portfeuille'!$E$2+$A97,0),"") -> 1.769825881 | K97: =IF($A97<$D$5,OFFSET('Constant mix'!M$12,'Volatilite Portfeuille'!$E$2+$A97,0),"") -> 1.009293897 | L97: =IF($A97<$D$5,OFFSET('Constant mix'!N$12,'Volatilite Portfeuille'!$E$2+$A97,0),"") -> 1.164747177 | M97: =IF($A97<$D$5,OFFSET('Constant mix'!O$12,'Volatilite Portfeuille'!$E$2+$A97,0),"") -> 1.059856649 | N97: =IF($A97<$D$5,OFFSET('Constant mix'!$AM$12,'Volatilite Portfeuille'!$E$2+$A97,0),"") -> 0 | O97: -0.0223186326 | P97: 0.002694486834 | Q97: 0.01671097701 | R97: -0.004026065046 | S97: 0.02617006716 | T97: -0.001593183062 | U97: -0.008434477403 | V97: 0.001753243529 | W97: -0.003477837883 | X97: 0.01955570164
A98: 77 | B98: =IF(A98<$D$5,OFFSET('Constant mix'!$B$12,'Volatilite Portfeuille'!$E$2+A98,0),"") -> 2006-04-18 | C98: =IF($A98<$D$5,OFFSET('Constant mix'!$C$13,'Volatilite Portfeuille'!$E$2+$A98,0),"") -> 0.0261 | D98: =IF($A98<$D$5,OFFSET('Constant mix'!F$12,'Volatilite Portfeuille'!$E$2+$A98,0),"") -> 1.490339631 | E98: =IF($A98<$D$5,OFFSET('Constant mix'!G$12,'Volatilite Portfeuille'!$E$2+$A98,0),"") -> 0.8725500032 | F98: =IF($A98<$D$5,OFFSET('Constant mix'!H$12,'Volatilite Portfeuille'!$E$2+$A98,0),"") -> 1.40356723 | G98: =IF($A98<$D$5,OFFSET('Constant mix'!I$12,'Volatilite Portfeuille'!$E$2+$A98,0),"") -> 0.6419993958 | H98: =IF($A98<$D$5,OFFSET('Constant mix'!J$12,'Volatilite Portfeuille'!$E$2+$A98,0),"") -> 1.098180363 | I98: =IF($A98<$D$5,OFFSET('Constant mix'!K$12,'Volatilite Portfeuille'!$E$2+$A98,0),"") -> 1.545784132 | J98: =IF($A98<$D$5,OFFSET('Constant mix'!L$12,'Volatilite Portfeuille'!$E$2+$A98,0),"") -> 1.784278665 | K98: =IF($A98<$D$5,OFFSET('Constant mix'!M$12,'Volatilite Portfeuille'!$E$2+$A98,0),"") -> 1.015481349 | L98: =IF($A98<$D$5,OFFSET('Constant mix'!N$12,'Volatilite Portfeuille'!$E$2+$A98,0),"") -> 1.180086713 | M98: =IF($A98<$D$5,OFFSET('Constant mix'!O$12,'Volatilite Portfeuille'!$E$2+$A98,0),"") -> 1.060338176 | N98: =IF($A98<$D$5,OFFSET('Constant mix'!$AM$12,'Volatilite Portfeuille'!$E$2+$A98,0),"") -> 0 | O98: -0.01165407338 | P98: 0.0007179813137 | Q98: 0.02142151645 | R98: -0.000132921598 | S98: 0.005996826835 | T98: -0.004694147999 | U98: 0.008166218051 | V98: 0.006130476098 | W98: 0.01316984171 | X98: 0.0004543317787
A99: 78 | B99: =IF(A99<$D$5,OFFSET('Constant mix'!$B$12,'Volatilite Portfeuille'!$E$2+A99,0),"") -> 2006-04-19 | C99: =IF($A99<$D$5,OFFSET('Constant mix'!$C$13,'Volatilite Portfeuille'!$E$2+$A99,0),"") -> 0.0262 | D99: =IF($A99<$D$5,OFFSET('Constant mix'!F$12,'Volatilite Portfeuille'!$E$2+$A99,0),"") -> 1.510859212 | E99: =IF($A99<$D$5,OFFSET('Constant mix'!G$12,'Volatilite Portfeuille'!$E$2+$A99,0),"") -> 0.8632885813 | F99: =IF($A99<$D$5,OFFSET('Constant mix'!H$12,'Volatilite Portfeuille'!$E$2+$A99,0),"") -> 1.410139377 | G99: =IF($A99<$D$5,OFFSET('Constant mix'!I$12,'Volatilite Portfeuille'!$E$2+$A99,0),"") -> 0.6465694363 | H99: =IF($A99<$D$5,OFFSET('Constant mix'!J$12,'Volatilite Portfeuille'!$E$2+$A99,0),"") -> 1.106416146 | I99: =IF($A99<$D$5,OFFSET('Constant mix'!K$12,'Volatilite Portfeuille'!$E$2+$A99,0),"") -> 1.552854752 | J99: =IF($A99<$D$5,OFFSET('Constant mix'!L$12,'Volatilite Portfeuille'!$E$2+$A99,0),"") -> 1.806523641 | K99: =IF($A99<$D$5,OFFSET('Constant mix'!M$12,'Volatilite Portfeuille'!$E$2+$A99,0),"") -> 1.014897516 | L99: =IF($A99<$D$5,OFFSET('Constant mix'!N$12,'Volatilite Portfeuille'!$E$2+$A99,0),"") -> 1.179337314 | M99: =IF($A99<$D$5,OFFSET('Constant mix'!O$12,'Volatilite Portfeuille'!$E$2+$A99,0),"") -> 1.070725827 | N99: =IF($A99<$D$5,OFFSET('Constant mix'!$AM$12,'Volatilite Portfeuille'!$E$2+$A99,0),"") -> 0 | O99: 0.01376839235 | P99: -0.01061420185 | Q99: 0.004682459578 | R99: 0.007118449919 | S99: 0.00749948106 | T99: 0.004574131787 | U99: 0.01246720936 | V99: -0.0005749328745 | W99: -0.0006350370492 | X99: 0.009796546068
A100: 79 | B100: =IF(A100<$D$5,OFFSET('Constant mix'!$B$12,'Volatilite Portfeuille'!$E$2+A100,0),"") -> 2006-04-20 | C100: =IF($A100<$D$5,OFFSET('Constant mix'!$C$13,'Volatilite Portfeuille'!$E$2+$A100,0),"") -> 0.0262 | D100: =IF($A100<$D$5,OFFSET('Constant mix'!F$12,'Volatilite Portfeuille'!$E$2+$A100,0),"") -> 1.506996443 | E100: =IF($A100<$D$5,OFFSET('Constant mix'!G$12,'Volatilite Portfeuille'!$E$2+$A100,0),"") -> 0.8501619571 | F100: =IF($A100<$D$5,OFFSET('Constant mix'!H$12,'Volatilite Portfeuille'!$E$2+$A100,0),"") -> 1.413566804 | G100: =IF($A100<$D$5,OFFSET('Constant mix'!I$12,'Volatilite Portfeuille'!$E$2+$A100,0),"") -> 0.6333279121 | H100: =IF($A100<$D$5,OFFSET('Constant mix'!J$12,'Volatilite Portfeuille'!$E$2+$A100,0),"") -> 1.111167497 | I100: =IF($A100<$D$5,OFFSET('Constant mix'!K$12,'Volatilite Portfeuille'!$E$2+$A100,0),"") -> 1.567053664 | J100: =IF($A100<$D$5,OFFSET('Constant mix'!L$12,'Volatilite Portfeuille'!$E$2+$A100,0),"") -> 1.817758973 | K100: =IF($A100<$D$5,OFFSET('Constant mix'!M$12,'Volatilite Portfeuille'!$E$2+$A100,0),"") -> 1.012457512 | L100: =IF($A100<$D$5,OFFSET('Constant mix'!N$12,'Volatilite Portfeuille'!$E$2+$A100,0),"") -> 1.179263631 | M100: =IF($A100<$D$5,OFFSET('Constant mix'!O$12,'Volatilite Portfeuille'!$E$2+$A100,0),"") -> 1.074407046 | N100: =IF($A100<$D$5,OFFSET('Constant mix'!$AM$12,'Volatilite Portfeuille'!$E$2+$A100,0),"") -> 0 | O100: -0.002556670076 | P100: -0.01520537217 | Q100: 0.002430558732 | R100: -0.02047966304 | S100: 0.004294361702 | T100: 0.009143747795 | U100: 0.006219311089 | V100: -0.002404187388 | W100: -6.247856836e-05 | X100: 0.003438058807
A101: 80 | B101: =IF(A101<$D$5,OFFSET('Constant mix'!$B$12,'Volatilite Portfeuille'!$E$2+A101,0),"") -> 2006-04-21 | C101: =IF($A101<$D$5,OFFSET('Constant mix'!$C$13,'Volatilite Portfeuille'!$E$2+$A101,0),"") -> 0.0262 | D101: =IF($A101<$D$5,OFFSET('Constant mix'!F$12,'Volatilite Portfeuille'!$E$2+$A101,0),"") -> 1.516567861 | E101: =IF($A101<$D$5,OFFSET('Constant mix'!G$12,'Volatilite Portfeuille'!$E$2+$A101,0),"") -> 0.8438677403 | F101: =IF($A101<$D$5,OFFSET('Constant mix'!H$12,'Volatilite Portfeuille'!$E$2+$A101,0),"") -> 1.411701104 | G101: =IF($A101<$D$5,OFFSET('Constant mix'!I$12,'Volatilite Portfeuille'!$E$2+$A101,0),"") -> 0.641816668 | H101: =IF($A101<$D$5,OFFSET('Constant mix'!J$12,'Volatilite Portfeuille'!$E$2+$A101,0),"") -> 1.111574714 | I101: =IF($A101<$D$5,OFFSET('Constant mix'!K$12,'Volatilite Portfeuille'!$E$2+$A101,0),"") -> 1.579030822 | J101: =IF($A101<$D$5,OFFSET('Constant mix'!L$12,'Volatilite Portfeuille'!$E$2+$A101,0),"") -> 1.834324768 | K101: =IF($A101<$D$5,OFFSET('Constant mix'!M$12,'Volatilite Portfeuille'!$E$2+$A101,0),"") -> 1.014510462 | L101: =IF($A101<$D$5,OFFSET('Constant mix'!N$12,'Volatilite Portfeuille'!$E$2+$A101,0),"") -> 1.183939735 | M101: =IF($A101<$D$5,OFFSET('Constant mix'!O$12,'Volatilite Portfeuille'!$E$2+$A101,0),"") -> 1.070945176 | N101: =IF($A101<$D$5,OFFSET('Constant mix'!$AM$12,'Volatilite Portfeuille'!$E$2+$A101,0),"") -> 0 | O101: 0.006351320553 | P101: -0.007403550272 | Q101: -0.001319852619 | R101: 0.01340341351 | S101: 0.0003664768323 | T101: 0.007643106451 | U101: 0.009113306605 | V101: 0.002027690089 | W101: 0.003965274313 | X101: -0.003222121474
A102: 81 | B102: =IF(A102<$D$5,OFFSET('Constant mix'!$B$12,'Volatilite Portfeuille'!$E$2+A102,0),"") -> 2006-04-24 | C102: =IF($A102<$D$5,OFFSET('Constant mix'!$C$13,'Volatilite Portfeuille'!$E$2+$A102,0),"") -> 0.0263 | D102: =IF($A102<$D$5,OFFSET('Constant mix'!F$12,'Volatilite Portfeuille'!$E$2+$A102,0),"") -> 1.467698796 | E102: =IF($A102<$D$5,OFFSET('Constant mix'!G$12,'Volatilite Portfeuille'!$E$2+$A102,0),"") -> 0.8488796676 | F102: =IF($A102<$D$5,OFFSET('Constant mix'!H$12,'Volatilite Portfeuille'!$E$2+$A102,0),"") -> 1.398241226 | G102: =IF($A102<$D$5,OFFSET('Constant mix'!I$12,'Volatilite Portfeuille'!$E$2+$A102,0),"") -> 0.6421279949 | H102: =IF($A102<$D$5,OFFSET('Constant mix'!J$12,'Volatilite Portfeuille'!$E$2+$A102,0),"") -> 1.104737077 | I102: =IF($A102<$D$5,OFFSET('Constant mix'!K$12,'Volatilite Portfeuille'!$E$2+$A102,0),"") -> 1.57365935 | J102: =IF($A102<$D$5,OFFSET('Constant mix'!L$12,'Volatilite Portfeuille'!$E$2+$A102,0),"") -> 1.774084058 | K102: =IF($A102<$D$5,OFFSET('Constant mix'!M$12,'Volatilite Portfeuille'!$E$2+$A102,0),"") -> 1.024270419 | L102: =IF($A102<$D$5,OFFSET('Constant mix'!N$12,'Volatilite Portfeuille'!$E$2+$A102,0),"") -> 1.153690935 | M102: =IF($A102<$D$5,OFFSET('Constant mix'!O$12,'Volatilite Portfeuille'!$E$2+$A102,0),"") -> 1.040084339 | N102: =IF($A102<$D$5,OFFSET('Constant mix'!$AM$12,'Volatilite Portfeuille'!$E$2+$A102,0),"") -> 0 | O102: -0.03222346063 | P102: 0.00593923313 | Q102: -0.009534509853 | R102: 0.0004850712992 | S102: -0.006151306779 | T102: -0.003401752437 | U102: -0.03284080945 | V102: 0.00962036123 | W102: -0.02554927333 | X102: -0.02881644889
A103: 82 | B103: =IF(A103<$D$5,OFFSET('Constant mix'!$B$12,'Volatilite Portfeuille'!$E$2+A103,0),"") -> 2006-04-25 | C103: =IF($A103<$D$5,OFFSET('Constant mix'!$C$13,'Volatilite Portfeuille'!$E$2+$A103,0),"") -> 0.0263 | D103: =IF($A103<$D$5,OFFSET('Constant mix'!F$12,'Volatilite Portfeuille'!$E$2+$A103,0),"") -> 1.45570652 | E103: =IF($A103<$D$5,OFFSET('Constant mix'!G$12,'Volatilite Portfeuille'!$E$2+$A103,0),"") -> 0.8474715373 | F103: =IF($A103<$D$5,OFFSET('Constant mix'!H$12,'Volatilite Portfeuille'!$E$2+$A103,0),"") -> 1.38987857 | G103: =IF($A103<$D$5,OFFSET('Constant mix'!I$12,'Volatilite Portfeuille'!$E$2+$A103,0),"") -> 0.639266162 | H103: =IF($A103<$D$5,OFFSET('Constant mix'!J$12,'Volatilite Portfeuille'!$E$2+$A103,0),"") -> 1.096492702 | I103: =IF($A103<$D$5,OFFSET('Constant mix'!K$12,'Volatilite Portfeuille'!$E$2+$A103,0),"") -> 1.586389389 | J103: =IF($A103<$D$5,OFFSET('Constant mix'!L$12,'Volatilite Portfeuille'!$E$2+$A103,0),"") -> 1.774309613 | K103: =IF($A103<$D$5,OFFSET('Constant mix'!M$12,'Volatilite Portfeuille'!$E$2+$A103,0),"") -> 1.033233165 | L103: =IF($A103<$D$5,OFFSET('Constant mix'!N$12,'Volatilite Portfeuille'!$E$2+$A103,0),"") -> 1.150374451 | M103: =IF($A103<$D$5,OFFSET('Constant mix'!O$12,'Volatilite Portfeuille'!$E$2+$A103,0),"") -> 1.046593577 | N103: =IF($A103<$D$5,OFFSET('Constant mix'!$AM$12,'Volatilite Portfeuille'!$E$2+$A103,0),"") -> 0 | O103: -0.008170801968 | P103: -0.001658810295 | Q103: -0.005980839066 | R103: -0.004456794986 | S103: -0.007462749023 | T103: 0.008089449797 | U103: 0.000127139111 | V103: 0.008750370874 | W103: -0.0028746731 | X103: 0.006258375712
A104: 83 | B104: =IF(A104<$D$5,OFFSET('Constant mix'!$B$12,'Volatilite Portfeuille'!$E$2+A104,0),"") -> 2006-04-26 | C104: =IF($A104<$D$5,OFFSET('Constant mix'!$C$13,'Volatilite Portfeuille'!$E$2+$A104,0),"") -> 0.0262 | D104: =IF($A104<$D$5,OFFSET('Constant mix'!F$12,'Volatilite Portfeuille'!$E$2+$A104,0),"") -> 1.461201973 | E104: =IF($A104<$D$5,OFFSET('Constant mix'!G$12,'Volatilite Portfeuille'!$E$2+$A104,0),"") -> 0.8447187736 | F104: =IF($A104<$D$5,OFFSET('Constant mix'!H$12,'Volatilite Portfeuille'!$E$2+$A104,0),"") -> 1.399784098 | G104: =IF($A104<$D$5,OFFSET('Constant mix'!I$12,'Volatilite Portfeuille'!$E$2+$A104,0),"") -> 0.6347412091 | H104: =IF($A104<$D$5,OFFSET('Constant mix'!J$12,'Volatilite Portfeuille'!$E$2+$A104,0),"") -> 1.078655241 | I104: =IF($A104<$D$5,OFFSET('Constant mix'!K$12,'Volatilite Portfeuille'!$E$2+$A104,0),"") -> 1.598481073 | J104: =IF($A104<$D$5,OFFSET('Constant mix'!L$12,'Volatilite Portfeuille'!$E$2+$A104,0),"") -> 1.779220085 | K104: =IF($A104<$D$5,OFFSET('Constant mix'!M$12,'Volatilite Portfeuille'!$E$2+$A104,0),"") -> 1.036118898 | L104: =IF($A104<$D$5,OFFSET('Constant mix'!N$12,'Volatilite Portfeuille'!$E$2+$A104,0),"") -> 1.142762368 | M104: =IF($A104<$D$5,OFFSET('Constant mix'!O$12,'Volatilite Portfeuille'!$E$2+$A104,0),"") -> 1.041136875 | N104: =IF($A104<$D$5,OFFSET('Constant mix'!$AM$12,'Volatilite Portfeuille'!$E$2+$A104,0),"") -> 0 | O104: 0.003775110823 | P104: -0.003248207782 | Q104: 0.007126901994 | R104: -0.007078355092 | S104: -0.01626774283 | T104: 0.007622141245 | U104: 0.002767539279 | V104: 0.002792915174 | W104: -0.006617047724 | X104: -0.005213773705
A105: 84 | B105: =IF(A105<$D$5,OFFSET('Constant mix'!$B$12,'Volatilite Portfeuille'!$E$2+A105,0),"") -> 2006-04-27 | C105: =IF($A105<$D$5,OFFSET('Constant mix'!$C$13,'Volatilite Portfeuille'!$E$2+$A105,0),"") -> 0.0265 | D105: =IF($A105<$D$5,OFFSET('Constant mix'!F$12,'Volatilite Portfeuille'!$E$2+$A105,0),"") -> 1.454794562 | E105: =IF($A105<$D$5,OFFSET('Constant mix'!G$12,'Volatilite Portfeuille'!$E$2+$A105,0),"") -> 0.8631673809 | F105: =IF($A105<$D$5,OFFSET('Constant mix'!H$12,'Volatilite Portfeuille'!$E$2+$A105,0),"") -> 1.406314712 | G105: =IF($A105<$D$5,OFFSET('Constant mix'!I$12,'Volatilite Portfeuille'!$E$2+$A105,0),"") -> 0.6344086233 | H105: =IF($A105<$D$5,OFFSET('Constant mix'!J$12,'Volatilite Portfeuille'!$E$2+$A105,0),"") -> 1.079304852 | I105: =IF($A105<$D$5,OFFSET('Constant mix'!K$12,'Volatilite Portfeuille'!$E$2+$A105,0),"") -> 1.586493178 | J105: =IF($A105<$D$5,OFFSET('Constant mix'!L$12,'Volatilite Portfeuille'!$E$2+$A105,0),"") -> 1.781977454 | K105: =IF($A105<$D$5,OFFSET('Constant mix'!M$12,'Volatilite Portfeuille'!$E$2+$A105,0),"") -> 1.0387245 | L105: =IF($A105<$D$5,OFFSET('Constant mix'!N$12,'Volatilite Portfeuille'!$E$2+$A105,0),"") -> 1.142939149 | M105: =IF($A105<$D$5,OFFSET('Constant mix'!O$12,'Volatilite Portfeuille'!$E$2+$A105,0),"") -> 1.043988782 | N105: =IF($A105<$D$5,OFFSET('Constant mix'!$AM$12,'Volatilite Portfeuille'!$E$2+$A105,0),"") -> 0 | O105: -0.004385027587 | P105: 0.02183993995 | Q105: 0.004665443371 | R105: -0.0005239708191 | S105: 0.0006022415466 | T105: -0.007499553604 | U105: 0.001549763114 | V105: 0.002514771203 | W105: 0.0001546960674 | X105: 0.002739223881
